Workbook

Sheet Manual
C3: MANUAL DE USO
C5: La calculadora desarrollada por el Instituto Mexicano para la Competitividad (IMCO) permite calcular ex ante externalidades asociadas a la generación de energía eléctrica con combustibles fósiles. Para obtener un cálculo más detallado se ha divido el territorio nacional en 2,133 zonas, lo que permite hacer un análisis in situ detallado. Está Compuesta por siete hojas, las cuales contienen el manual de uso, menú, bases de datos, cálculos, supuestos, fuente de la información, fórmulas e imágenes de referencia, todo esto para crear una herramienta transparente, fácil de usar y con una metodología robusta.
C9: Para hacer una consulta se deben seguir los siguientes pasos:
C11: a) Habilitar el contenido Para que la calculadora pueda funcioanr se debe dar click en el botón "Habilitar contenido" al abrir el archivo.
C14: b) Características de la planta En la pestaña "Principal" la sección "Tipo de planta" permite seleccionar entre seis tipos de plantas y en "Capacidad bruta" el usuario debe escribir los Mw a instalar.
C17: c) Lugar de la construcción Permite seleccionar la zona de análisis, despliega los resultados de todos los cuadros del estado o cuadro seleccionado, para seleccionar este último, se incluyó el botón "VER MAPA", que despliga el mapa del estado seleccionado con las zonas numeradas, así como la red de carreteras y líneas de transmisión.
C21: d) Despliegue de resultados Una vez seleccionado el lugar a analizar y las características de la planta se debe dar click en el botón "CALCULAR EXTERNALIDADES" para que se desplieguen los resultados, a nivel estatal de todos los cuadros o a nivel individual del cuadro seleccionado con sus "vecinos", lo cual permite hacer una análisis de sensibilidad.

Sheet Principal
BD2: NACIONAL
BC3: CARBOELECTRICA (CAR) | BD3: AGUASCALIENTES | BF3: NACIONAL | BG3: AGUASCALIENTES | BH3: BAJA_CALIFORNIA | BI3: BAJA_CALIFORNIA_SUR | BJ3: CAMPECHE | BK3: COAHUILA | BL3: COLIMA | BM3: CHIAPAS | BN3: CHIHUAHUA | BO3: DISTRITO_FEDERAL | BP3: DURANGO | BQ3: ESTADO_DE_MEXICO | BR3: GUANAJUATO | BS3: GUERRERO | BT3: HIDALGO | BU3: JALISCO | BV3: MICHOACAN | BW3: MORELOS | BX3: NAYARIT | BY3: NUEVO_LEON | BZ3: OAXACA | CA3: PUEBLA | CB3: QUERETARO | CC3: QUINTANA_ROO | CD3: SAN_LUIS_POTOSI | CE3: SINALOA | CF3: SONORA | CG3: TABASCO | CH3: TAMAULIPAS | CI3: TLAXCALA | CJ3: VERACRUZ | CK3: YUCATAN | CL3: ZACATECAS
BC4: CICLO COMBINADO (CC) | BD4: BAJA_CALIFORNIA | BG4: 1 | BH4: 1 | BI4: 1 | BJ4: 1 | BK4: 1 | BL4: 1 | BM4: 1 | BN4: 1 | BO4: 1 | BP4: 1 | BQ4: 1 | BR4: 1 | BS4: 1 | BT4: 1 | BU4: 1 | BV4: 1 | BW4: 1 | BX4: 1 | BY4: 1 | BZ4: 1 | CA4: 1 | CB4: 1 | CC4: 1 | CD4: 1 | CE4: 1 | CF4: 1 | CG4: 1 | CH4: 1 | CI4: 1 | CJ4: 1 | CK4: 1 | CL4: 1
BC5: COMBUSTION INTERNA (CI) | BD5: BAJA_CALIFORNIA_SUR | BG5: 2 | BH5: 2 | BI5: 2 | BJ5: 2 | BK5: 2 | BL5: 2 | BM5: 2 | BN5: 2 | BO5: 2 | BP5: 2 | BQ5: 2 | BR5: 2 | BS5: 2 | BT5: 2 | BU5: 2 | BV5: 2 | BW5: 2 | BX5: 2 | BY5: 2 | BZ5: 2 | CA5: 2 | CB5: 2 | CC5: 2 | CD5: 2 | CE5: 2 | CF5: 2 | CG5: 2 | CH5: 2 | CI5: 2 | CJ5: 2 | CK5: 2 | CL5: 2
BC6: TERMOELECTRICA (TC) | BD6: CAMPECHE | BG6: 3 | BH6: 3 | BI6: 3 | BJ6: 3 | BK6: 3 | BL6: 3 | BM6: 3 | BN6: 3 | BP6: 3 | BQ6: 3 | BR6: 3 | BS6: 3 | BT6: 3 | BU6: 3 | BV6: 3 | BW6: 3 | BX6: 3 | BY6: 3 | BZ6: 3 | CA6: 3 | CB6: 3 | CC6: 3 | CD6: 3 | CE6: 3 | CF6: 3 | CG6: 3 | CH6: 3 | CI6: 3 | CJ6: 3 | CK6: 3 | CL6: 3
BC7: TURBOGAS CON DIESEL (DTG) | BD7: COAHUILA | BG7: 4 | BH7: 4 | BI7: 4 | BJ7: 4 | BK7: 4 | BL7: 4 | BM7: 4 | BN7: 4 | BP7: 4 | BQ7: 4 | BR7: 4 | BS7: 4 | BT7: 4 | BU7: 4 | BV7: 4 | BW7: 4 | BX7: 4 | BY7: 4 | BZ7: 4 | CA7: 4 | CB7: 4 | CC7: 4 | CD7: 4 | CE7: 4 | CF7: 4 | CG7: 4 | CH7: 4 | CI7: 4 | CJ7: 4 | CK7: 4 | CL7: 4
BC8: TURBOGAS CON GAS (TG) | BD8: COLIMA | BG8: 5 | BH8: 5 | BI8: 5 | BJ8: 5 | BK8: 5 | BL8: 5 | BM8: 5 | BN8: 5 | BP8: 5 | BQ8: 5 | BR8: 5 | BS8: 5 | BT8: 5 | BU8: 5 | BV8: 5 | BX8: 5 | BY8: 5 | BZ8: 5 | CA8: 5 | CB8: 5 | CC8: 5 | CD8: 5 | CE8: 5 | CF8: 5 | CG8: 5 | CH8: 5 | CI8: 5 | CJ8: 5 | CK8: 5 | CL8: 5
BD9: CHIAPAS | BH9: 6 | BI9: 6 | BJ9: 6 | BK9: 6 | BL9: 6 | BM9: 6 | BN9: 6 | BP9: 6 | BQ9: 6 | BR9: 6 | BS9: 6 | BT9: 6 | BU9: 6 | BV9: 6 | BX9: 6 | BY9: 6 | BZ9: 6 | CA9: 6 | CB9: 6 | CC9: 6 | CD9: 6 | CE9: 6 | CF9: 6 | CG9: 6 | CH9: 6 | CI9: 6 | CJ9: 6 | CK9: 6 | CL9: 6
BD10: CHIHUAHUA | BH10: 7 | BI10: 7 | BJ10: 7 | BK10: 7 | BM10: 7 | BN10: 7 | BP10: 7 | BQ10: 7 | BR10: 7 | BS10: 7 | BT10: 7 | BU10: 7 | BV10: 7 | BX10: 7 | BY10: 7 | BZ10: 7 | CA10: 7 | CB10: 7 | CC10: 7 | CD10: 7 | CE10: 7 | CF10: 7 | CG10: 7 | CH10: 7 | CJ10: 7 | CK10: 7 | CL10: 7
C11: CARACTERISTICAS DE LA PLANTA | BD11: DISTRITO_FEDERAL | BH11: 8 | BI11: 8 | BJ11: 8 | BK11: 8 | BM11: 8 | BN11: 8 | BP11: 8 | BQ11: 8 | BR11: 8 | BS11: 8 | BT11: 8 | BU11: 8 | BV11: 8 | BX11: 8 | BY11: 8 | BZ11: 8 | CA11: 8 | CB11: 8 | CC11: 8 | CD11: 8 | CE11: 8 | CF11: 8 | CG11: 8 | CH11: 8 | CJ11: 8 | CK11: 8 | CL11: 8
D12: Tipo de planta | I12: Capacidad bruta (Mw) | BD12: DURANGO | BH12: 9 | BI12: 9 | BJ12: 9 | BK12: 9 | BM12: 9 | BN12: 9 | BP12: 9 | BQ12: 9 | BR12: 9 | BS12: 9 | BT12: 9 | BU12: 9 | BV12: 9 | BX12: 9 | BY12: 9 | BZ12: 9 | CA12: 9 | CB12: 9 | CC12: 9 | CD12: 9 | CE12: 9 | CF12: 9 | CG12: 9 | CH12: 9 | CJ12: 9 | CK12: 9 | CL12: 9
BD13: ESTADO_DE_MEXICO | BH13: 10 | BI13: 10 | BJ13: 10 | BK13: 10 | BM13: 10 | BN13: 10 | BP13: 10 | BQ13: 10 | BR13: 10 | BS13: 10 | BT13: 10 | BU13: 10 | BV13: 10 | BX13: 10 | BY13: 10 | BZ13: 10 | CA13: 10 | CB13: 10 | CC13: 10 | CD13: 10 | CE13: 10 | CF13: 10 | CG13: 10 | CH13: 10 | CJ13: 10 | CK13: 10 | CL13: 10
BD14: GUANAJUATO | BH14: 11 | BI14: 11 | BJ14: 11 | BK14: 11 | BM14: 11 | BN14: 11 | BP14: 11 | BQ14: 11 | BR14: 11 | BS14: 11 | BT14: 11 | BU14: 11 | BV14: 11 | BX14: 11 | BY14: 11 | BZ14: 11 | CA14: 11 | CB14: 11 | CC14: 11 | CD14: 11 | CE14: 11 | CF14: 11 | CG14: 11 | CH14: 11 | CJ14: 11 | CK14: 11 | CL14: 11
BD15: GUERRERO | BH15: 12 | BI15: 12 | BJ15: 12 | BK15: 12 | BM15: 12 | BN15: 12 | BP15: 12 | BQ15: 12 | BR15: 12 | BS15: 12 | BT15: 12 | BU15: 12 | BV15: 12 | BX15: 12 | BY15: 12 | BZ15: 12 | CA15: 12 | CB15: 12 | CC15: 12 | CD15: 12 | CE15: 12 | CF15: 12 | CG15: 12 | CH15: 12 | CJ15: 12 | CK15: 12 | CL15: 12
C16: AREA DE ANALISIS | BD16: HIDALGO | BH16: 13 | BI16: 13 | BJ16: 13 | BK16: 13 | BM16: 13 | BN16: 13 | BP16: 13 | BQ16: 13 | BR16: 13 | BS16: 13 | BT16: 13 | BU16: 13 | BV16: 13 | BX16: 13 | BY16: 13 | BZ16: 13 | CA16: 13 | CB16: 13 | CC16: 13 | CD16: 13 | CE16: 13 | CF16: 13 | CG16: 13 | CH16: 13 | CJ16: 13 | CK16: 13 | CL16: 13
D17: Estado analizado | I17: Area de análisis | BD17: JALISCO | BH17: 14 | BI17: 14 | BJ17: 14 | BK17: 14 | BM17: 14 | BN17: 14 | BP17: 14 | BQ17: 14 | BR17: 14 | BS17: 14 | BT17: 14 | BU17: 14 | BV17: 14 | BX17: 14 | BY17: 14 | BZ17: 14 | CA17: 14 | CC17: 14 | CD17: 14 | CE17: 14 | CF17: 14 | CG17: 14 | CH17: 14 | CJ17: 14 | CK17: 14 | CL17: 14
BD18: MICHOACAN | BH18: 15 | BI18: 15 | BJ18: 15 | BK18: 15 | BM18: 15 | BN18: 15 | BP18: 15 | BQ18: 15 | BR18: 15 | BS18: 15 | BT18: 15 | BU18: 15 | BV18: 15 | BX18: 15 | BY18: 15 | BZ18: 15 | CA18: 15 | CC18: 15 | CD18: 15 | CE18: 15 | CF18: 15 | CG18: 15 | CH18: 15 | CJ18: 15 | CK18: 15 | CL18: 15
BD19: MORELOS | BH19: 16 | BI19: 16 | BJ19: 16 | BK19: 16 | BM19: 16 | BN19: 16 | BP19: 16 | BQ19: 16 | BR19: 16 | BS19: 16 | BT19: 16 | BU19: 16 | BV19: 16 | BX19: 16 | BY19: 16 | BZ19: 16 | CA19: 16 | CC19: 16 | CD19: 16 | CE19: 16 | CF19: 16 | CG19: 16 | CH19: 16 | CJ19: 16 | CK19: 16 | CL19: 16
BD20: NAYARIT | BH20: 17 | BI20: 17 | BJ20: 17 | BK20: 17 | BM20: 17 | BN20: 17 | BP20: 17 | BQ20: 17 | BR20: 17 | BS20: 17 | BT20: 17 | BU20: 17 | BV20: 17 | BX20: 17 | BY20: 17 | BZ20: 17 | CA20: 17 | CC20: 17 | CD20: 17 | CE20: 17 | CF20: 17 | CG20: 17 | CH20: 17 | CJ20: 17 | CK20: 17 | CL20: 17
BD21: NUEVO_LEON | BH21: 18 | BI21: 18 | BJ21: 18 | BK21: 18 | BM21: 18 | BN21: 18 | BP21: 18 | BQ21: 18 | BR21: 18 | BS21: 18 | BT21: 18 | BU21: 18 | BV21: 18 | BX21: 18 | BY21: 18 | BZ21: 18 | CA21: 18 | CC21: 18 | CD21: 18 | CE21: 18 | CF21: 18 | CG21: 18 | CH21: 18 | CJ21: 18 | CK21: 18 | CL21: 18
BD22: OAXACA | BH22: 19 | BI22: 19 | BJ22: 19 | BK22: 19 | BM22: 19 | BN22: 19 | BP22: 19 | BQ22: 19 | BR22: 19 | BS22: 19 | BT22: 19 | BU22: 19 | BV22: 19 | BX22: 19 | BY22: 19 | BZ22: 19 | CA22: 19 | CC22: 19 | CD22: 19 | CE22: 19 | CF22: 19 | CG22: 19 | CH22: 19 | CJ22: 19 | CK22: 19 | CL22: 19
BD23: PUEBLA | BH23: 20 | BI23: 20 | BJ23: 20 | BK23: 20 | BM23: 20 | BN23: 20 | BP23: 20 | BQ23: 20 | BR23: 20 | BS23: 20 | BT23: 20 | BU23: 20 | BV23: 20 | BX23: 20 | BY23: 20 | BZ23: 20 | CA23: 20 | CC23: 20 | CD23: 20 | CE23: 20 | CF23: 20 | CG23: 20 | CH23: 20 | CJ23: 20 | CK23: 20 | CL23: 20
BD24: QUERETARO | BH24: 21 | BI24: 21 | BJ24: 21 | BK24: 21 | BM24: 21 | BN24: 21 | BP24: 21 | BQ24: 21 | BR24: 21 | BS24: 21 | BT24: 21 | BU24: 21 | BV24: 21 | BX24: 21 | BY24: 21 | BZ24: 21 | CA24: 21 | CC24: 21 | CD24: 21 | CE24: 21 | CF24: 21 | CG24: 21 | CH24: 21 | CJ24: 21 | CK24: 21 | CL24: 21
BD25: QUINTANA_ROO | BH25: 22 | BI25: 22 | BJ25: 22 | BK25: 22 | BM25: 22 | BN25: 22 | BP25: 22 | BQ25: 22 | BR25: 22 | BS25: 22 | BT25: 22 | BU25: 22 | BV25: 22 | BX25: 22 | BY25: 22 | BZ25: 22 | CA25: 22 | CC25: 22 | CD25: 22 | CE25: 22 | CF25: 22 | CG25: 22 | CH25: 22 | CJ25: 22 | CK25: 22 | CL25: 22
BD26: SAN_LUIS_POTOSI | BH26: 23 | BI26: 23 | BJ26: 23 | BK26: 23 | BM26: 23 | BN26: 23 | BP26: 23 | BQ26: 23 | BR26: 23 | BS26: 23 | BU26: 23 | BV26: 23 | BX26: 23 | BY26: 23 | BZ26: 23 | CA26: 23 | CC26: 23 | CD26: 23 | CE26: 23 | CF26: 23 | CG26: 23 | CH26: 23 | CJ26: 23 | CK26: 23 | CL26: 23
BD27: SINALOA | BH27: 24 | BI27: 24 | BJ27: 24 | BK27: 24 | BM27: 24 | BN27: 24 | BP27: 24 | BQ27: 24 | BR27: 24 | BS27: 24 | BU27: 24 | BV27: 24 | BX27: 24 | BY27: 24 | BZ27: 24 | CA27: 24 | CC27: 24 | CD27: 24 | CE27: 24 | CF27: 24 | CG27: 24 | CH27: 24 | CJ27: 24 | CK27: 24 | CL27: 24
BD28: SONORA | BH28: 25 | BI28: 25 | BJ28: 25 | BK28: 25 | BM28: 25 | BN28: 25 | BP28: 25 | BR28: 25 | BS28: 25 | BU28: 25 | BV28: 25 | BX28: 25 | BY28: 25 | BZ28: 25 | CA28: 25 | CC28: 25 | CD28: 25 | CE28: 25 | CF28: 25 | CG28: 25 | CH28: 25 | CJ28: 25 | CK28: 25 | CL28: 25
BD29: TABASCO | BH29: 26 | BI29: 26 | BJ29: 26 | BK29: 26 | BM29: 26 | BN29: 26 | BP29: 26 | BR29: 26 | BS29: 26 | BU29: 26 | BV29: 26 | BX29: 26 | BY29: 26 | BZ29: 26 | CA29: 26 | CC29: 26 | CD29: 26 | CE29: 26 | CF29: 26 | CG29: 26 | CH29: 26 | CJ29: 26 | CK29: 26 | CL29: 26
BD30: TAMAULIPAS | BH30: 27 | BI30: 27 | BJ30: 27 | BK30: 27 | BM30: 27 | BN30: 27 | BP30: 27 | BR30: 27 | BS30: 27 | BU30: 27 | BV30: 27 | BX30: 27 | BY30: 27 | BZ30: 27 | CA30: 27 | CC30: 27 | CD30: 27 | CE30: 27 | CF30: 27 | CG30: 27 | CH30: 27 | CJ30: 27 | CK30: 27 | CL30: 27
BD31: TLAXCALA | BH31: 28 | BI31: 28 | BJ31: 28 | BK31: 28 | BM31: 28 | BN31: 28 | BP31: 28 | BR31: 28 | BS31: 28 | BU31: 28 | BV31: 28 | BX31: 28 | BY31: 28 | BZ31: 28 | CA31: 28 | CC31: 28 | CD31: 28 | CE31: 28 | CF31: 28 | CH31: 28 | CJ31: 28 | CK31: 28 | CL31: 28
BD32: VERACRUZ | BH32: 29 | BI32: 29 | BJ32: 29 | BK32: 29 | BM32: 29 | BN32: 29 | BP32: 29 | BR32: 29 | BS32: 29 | BU32: 29 | BV32: 29 | BX32: 29 | BY32: 29 | BZ32: 29 | CA32: 29 | CC32: 29 | CD32: 29 | CE32: 29 | CF32: 29 | CH32: 29 | CJ32: 29 | CK32: 29 | CL32: 29
BD33: YUCATAN | BH33: 30 | BI33: 30 | BJ33: 30 | BK33: 30 | BM33: 30 | BN33: 30 | BP33: 30 | BR33: 30 | BS33: 30 | BU33: 30 | BV33: 30 | BY33: 30 | BZ33: 30 | CA33: 30 | CC33: 30 | CD33: 30 | CE33: 30 | CF33: 30 | CH33: 30 | CJ33: 30 | CK33: 30 | CL33: 30
BD34: ZACATECAS | BH34: 31 | BI34: 31 | BJ34: 31 | BK34: 31 | BM34: 31 | BN34: 31 | BP34: 31 | BR34: 31 | BS34: 31 | BU34: 31 | BV34: 31 | BY34: 31 | BZ34: 31 | CA34: 31 | CC34: 31 | CD34: 31 | CE34: 31 | CF34: 31 | CH34: 31 | CJ34: 31 | CK34: 31 | CL34: 31
BH35: 32 | BI35: 32 | BJ35: 32 | BK35: 32 | BM35: 32 | BN35: 32 | BP35: 32 | BR35: 32 | BS35: 32 | BU35: 32 | BV35: 32 | BY35: 32 | BZ35: 32 | CA35: 32 | CC35: 32 | CD35: 32 | CE35: 32 | CF35: 32 | CH35: 32 | CJ35: 32 | CK35: 32 | CL35: 32
BH36: 33 | BI36: 33 | BJ36: 33 | BK36: 33 | BM36: 33 | BN36: 33 | BP36: 33 | BS36: 33 | BU36: 33 | BV36: 33 | BY36: 33 | BZ36: 33 | CA36: 33 | CC36: 33 | CD36: 33 | CE36: 33 | CF36: 33 | CH36: 33 | CJ36: 33 | CK36: 33 | CL36: 33
BH37: 34 | BI37: 34 | BJ37: 34 | BK37: 34 | BM37: 34 | BN37: 34 | BP37: 34 | BS37: 34 | BU37: 34 | BV37: 34 | BY37: 34 | BZ37: 34 | CA37: 34 | CC37: 34 | CD37: 34 | CE37: 34 | CF37: 34 | CH37: 34 | CJ37: 34 | CK37: 34 | CL37: 34
BH38: 35 | BI38: 35 | BJ38: 35 | BK38: 35 | BM38: 35 | BN38: 35 | BP38: 35 | BS38: 35 | BU38: 35 | BV38: 35 | BY38: 35 | BZ38: 35 | CA38: 35 | CC38: 35 | CD38: 35 | CE38: 35 | CF38: 35 | CH38: 35 | CJ38: 35 | CK38: 35 | CL38: 35
BH39: 36 | BI39: 36 | BJ39: 36 | BK39: 36 | BM39: 36 | BN39: 36 | BP39: 36 | BS39: 36 | BU39: 36 | BV39: 36 | BY39: 36 | BZ39: 36 | CA39: 36 | CC39: 36 | CD39: 36 | CE39: 36 | CF39: 36 | CH39: 36 | CJ39: 36 | CK39: 36 | CL39: 36
BH40: 37 | BI40: 37 | BJ40: 37 | BK40: 37 | BM40: 37 | BN40: 37 | BP40: 37 | BS40: 37 | BU40: 37 | BV40: 37 | BY40: 37 | BZ40: 37 | CA40: 37 | CC40: 37 | CD40: 37 | CE40: 37 | CF40: 37 | CH40: 37 | CJ40: 37 | CK40: 37 | CL40: 37
BH41: 38 | BI41: 38 | BJ41: 38 | BK41: 38 | BM41: 38 | BN41: 38 | BP41: 38 | BS41: 38 | BU41: 38 | BV41: 38 | BY41: 38 | BZ41: 38 | CC41: 38 | CD41: 38 | CE41: 38 | CF41: 38 | CH41: 38 | CJ41: 38 | CK41: 38 | CL41: 38
BH42: 39 | BI42: 39 | BJ42: 39 | BK42: 39 | BM42: 39 | BN42: 39 | BP42: 39 | BS42: 39 | BU42: 39 | BV42: 39 | BY42: 39 | BZ42: 39 | CC42: 39 | CD42: 39 | CE42: 39 | CF42: 39 | CH42: 39 | CJ42: 39 | CK42: 39 | CL42: 39
BH43: 40 | BI43: 40 | BJ43: 40 | BK43: 40 | BM43: 40 | BN43: 40 | BP43: 40 | BS43: 40 | BU43: 40 | BV43: 40 | BY43: 40 | BZ43: 40 | CC43: 40 | CD43: 40 | CE43: 40 | CF43: 40 | CH43: 40 | CJ43: 40 | CK43: 40 | CL43: 40
BH44: 41 | BI44: 41 | BJ44: 41 | BK44: 41 | BM44: 41 | BN44: 41 | BP44: 41 | BS44: 41 | BU44: 41 | BV44: 41 | BY44: 41 | BZ44: 41 | CC44: 41 | CD44: 41 | CE44: 41 | CF44: 41 | CH44: 41 | CJ44: 41 | CK44: 41 | CL44: 41
BH45: 42 | BI45: 42 | BJ45: 42 | BK45: 42 | BM45: 42 | BN45: 42 | BP45: 42 | BS45: 42 | BU45: 42 | BV45: 42 | BY45: 42 | BZ45: 42 | CC45: 42 | CD45: 42 | CE45: 42 | CF45: 42 | CH45: 42 | CJ45: 42 | CK45: 42 | CL45: 42
BH46: 43 | BI46: 43 | BJ46: 43 | BK46: 43 | BM46: 43 | BN46: 43 | BP46: 43 | BS46: 43 | BU46: 43 | BV46: 43 | BY46: 43 | BZ46: 43 | CC46: 43 | CD46: 43 | CE46: 43 | CF46: 43 | CH46: 43 | CJ46: 43 | CK46: 43 | CL46: 43
BH47: 44 | BI47: 44 | BJ47: 44 | BK47: 44 | BM47: 44 | BN47: 44 | BP47: 44 | BS47: 44 | BU47: 44 | BV47: 44 | BY47: 44 | BZ47: 44 | CC47: 44 | CD47: 44 | CE47: 44 | CF47: 44 | CH47: 44 | CJ47: 44 | CK47: 44 | CL47: 44
BH48: 45 | BI48: 45 | BJ48: 45 | BK48: 45 | BM48: 45 | BN48: 45 | BP48: 45 | BS48: 45 | BU48: 45 | BV48: 45 | BY48: 45 | BZ48: 45 | CC48: 45 | CD48: 45 | CE48: 45 | CF48: 45 | CH48: 45 | CJ48: 45 | CK48: 45 | CL48: 45
BH49: 46 | BI49: 46 | BJ49: 46 | BK49: 46 | BM49: 46 | BN49: 46 | BP49: 46 | BS49: 46 | BU49: 46 | BV49: 46 | BY49: 46 | BZ49: 46 | CC49: 46 | CD49: 46 | CE49: 46 | CF49: 46 | CH49: 46 | CJ49: 46 | CK49: 46 | CL49: 46
BH50: 47 | BI50: 47 | BJ50: 47 | BK50: 47 | BM50: 47 | BN50: 47 | BP50: 47 | BS50: 47 | BU50: 47 | BV50: 47 | BY50: 47 | BZ50: 47 | CC50: 47 | CD50: 47 | CE50: 47 | CF50: 47 | CH50: 47 | CJ50: 47 | CL50: 47
BH51: 48 | BI51: 48 | BJ51: 48 | BK51: 48 | BM51: 48 | BN51: 48 | BP51: 48 | BS51: 48 | BU51: 48 | BV51: 48 | BY51: 48 | BZ51: 48 | CC51: 48 | CD51: 48 | CE51: 48 | CF51: 48 | CH51: 48 | CJ51: 48 | CL51: 48
BH52: 49 | BI52: 49 | BJ52: 49 | BK52: 49 | BM52: 49 | BN52: 49 | BP52: 49 | BS52: 49 | BU52: 49 | BV52: 49 | BY52: 49 | BZ52: 49 | CC52: 49 | CD52: 49 | CE52: 49 | CF52: 49 | CH52: 49 | CJ52: 49 | CL52: 49
BH53: 50 | BI53: 50 | BJ53: 50 | BK53: 50 | BM53: 50 | BN53: 50 | BP53: 50 | BS53: 50 | BU53: 50 | BV53: 50 | BY53: 50 | BZ53: 50 | CC53: 50 | CD53: 50 | CE53: 50 | CF53: 50 | CH53: 50 | CJ53: 50 | CL53: 50
BH54: 51 | BI54: 51 | BJ54: 51 | BK54: 51 | BM54: 51 | BN54: 51 | BP54: 51 | BS54: 51 | BU54: 51 | BV54: 51 | BY54: 51 | BZ54: 51 | CC54: 51 | CD54: 51 | CE54: 51 | CF54: 51 | CH54: 51 | CJ54: 51 | CL54: 51
BH55: 52 | BI55: 52 | BJ55: 52 | BK55: 52 | BM55: 52 | BN55: 52 | BP55: 52 | BS55: 52 | BU55: 52 | BV55: 52 | BY55: 52 | BZ55: 52 | CC55: 52 | CD55: 52 | CE55: 52 | CF55: 52 | CH55: 52 | CJ55: 52 | CL55: 52
BH56: 53 | BI56: 53 | BJ56: 53 | BK56: 53 | BM56: 53 | BN56: 53 | BP56: 53 | BS56: 53 | BU56: 53 | BV56: 53 | BY56: 53 | BZ56: 53 | CC56: 53 | CD56: 53 | CE56: 53 | CF56: 53 | CH56: 53 | CJ56: 53 | CL56: 53
BH57: 54 | BI57: 54 | BJ57: 54 | BK57: 54 | BM57: 54 | BN57: 54 | BP57: 54 | BS57: 54 | BU57: 54 | BV57: 54 | BY57: 54 | BZ57: 54 | CC57: 54 | CD57: 54 | CE57: 54 | CF57: 54 | CH57: 54 | CJ57: 54 | CL57: 54
BH58: 55 | BI58: 55 | BJ58: 55 | BK58: 55 | BM58: 55 | BN58: 55 | BP58: 55 | BS58: 55 | BU58: 55 | BV58: 55 | BY58: 55 | BZ58: 55 | CC58: 55 | CD58: 55 | CE58: 55 | CF58: 55 | CH58: 55 | CJ58: 55 | CL58: 55
BH59: 56 | BI59: 56 | BJ59: 56 | BK59: 56 | BM59: 56 | BN59: 56 | BP59: 56 | BS59: 56 | BU59: 56 | BV59: 56 | BY59: 56 | BZ59: 56 | CC59: 56 | CD59: 56 | CE59: 56 | CF59: 56 | CH59: 56 | CJ59: 56 | CL59: 56
BH60: 57 | BI60: 57 | BJ60: 57 | BK60: 57 | BM60: 57 | BN60: 57 | BP60: 57 | BS60: 57 | BU60: 57 | BV60: 57 | BY60: 57 | BZ60: 57 | CC60: 57 | CD60: 57 | CE60: 57 | CF60: 57 | CH60: 57 | CJ60: 57 | CL60: 57
BH61: 58 | BI61: 58 | BJ61: 58 | BK61: 58 | BM61: 58 | BN61: 58 | BP61: 58 | BS61: 58 | BU61: 58 | BV61: 58 | BY61: 58 | BZ61: 58 | CC61: 58 | CD61: 58 | CE61: 58 | CF61: 58 | CH61: 58 | CJ61: 58 | CL61: 58
BH62: 59 | BI62: 59 | BJ62: 59 | BK62: 59 | BM62: 59 | BN62: 59 | BP62: 59 | BS62: 59 | BU62: 59 | BV62: 59 | BY62: 59 | BZ62: 59 | CC62: 59 | CD62: 59 | CE62: 59 | CF62: 59 | CH62: 59 | CJ62: 59 | CL62: 59
BH63: 60 | BI63: 60 | BJ63: 60 | BK63: 60 | BM63: 60 | BN63: 60 | BP63: 60 | BS63: 60 | BU63: 60 | BV63: 60 | BY63: 60 | BZ63: 60 | CC63: 60 | CD63: 60 | CE63: 60 | CF63: 60 | CH63: 60 | CJ63: 60 | CL63: 60
BH64: 61 | BI64: 61 | BJ64: 61 | BK64: 61 | BM64: 61 | BN64: 61 | BP64: 61 | BS64: 61 | BU64: 61 | BV64: 61 | BY64: 61 | BZ64: 61 | CC64: 61 | CD64: 61 | CE64: 61 | CF64: 61 | CH64: 61 | CJ64: 61 | CL64: 61
BH65: 62 | BI65: 62 | BJ65: 62 | BK65: 62 | BM65: 62 | BN65: 62 | BP65: 62 | BS65: 62 | BU65: 62 | BV65: 62 | BY65: 62 | BZ65: 62 | CC65: 62 | CD65: 62 | CE65: 62 | CF65: 62 | CH65: 62 | CJ65: 62 | CL65: 62
BH66: 63 | BI66: 63 | BJ66: 63 | BK66: 63 | BM66: 63 | BN66: 63 | BP66: 63 | BS66: 63 | BU66: 63 | BV66: 63 | BY66: 63 | BZ66: 63 | CC66: 63 | CD66: 63 | CF66: 63 | CH66: 63 | CJ66: 63 | CL66: 63
BH67: 64 | BI67: 64 | BJ67: 64 | BK67: 64 | BM67: 64 | BN67: 64 | BP67: 64 | BS67: 64 | BU67: 64 | BY67: 64 | BZ67: 64 | CD67: 64 | CF67: 64 | CH67: 64 | CJ67: 64 | CL67: 64
BH68: 65 | BI68: 65 | BJ68: 65 | BK68: 65 | BM68: 65 | BN68: 65 | BP68: 65 | BS68: 65 | BU68: 65 | BY68: 65 | BZ68: 65 | CD68: 65 | CF68: 65 | CH68: 65 | CJ68: 65 | CL68: 65
BH69: 66 | BI69: 66 | BJ69: 66 | BK69: 66 | BM69: 66 | BN69: 66 | BP69: 66 | BS69: 66 | BU69: 66 | BY69: 66 | BZ69: 66 | CD69: 66 | CF69: 66 | CH69: 66 | CJ69: 66 | CL69: 66
BH70: 67 | BI70: 67 | BK70: 67 | BM70: 67 | BN70: 67 | BP70: 67 | BS70: 67 | BU70: 67 | BY70: 67 | BZ70: 67 | CD70: 67 | CF70: 67 | CH70: 67 | CJ70: 67 | CL70: 67
BH71: 68 | BI71: 68 | BK71: 68 | BM71: 68 | BN71: 68 | BP71: 68 | BS71: 68 | BU71: 68 | BY71: 68 | BZ71: 68 | CD71: 68 | CF71: 68 | CH71: 68 | CJ71: 68 | CL71: 68
BH72: 69 | BI72: 69 | BK72: 69 | BM72: 69 | BN72: 69 | BP72: 69 | BS72: 69 | BU72: 69 | BZ72: 69 | CD72: 69 | CF72: 69 | CH72: 69 | CJ72: 69 | CL72: 69
BH73: 70 | BI73: 70 | BK73: 70 | BM73: 70 | BN73: 70 | BP73: 70 | BS73: 70 | BU73: 70 | BZ73: 70 | CD73: 70 | CF73: 70 | CH73: 70 | CJ73: 70 | CL73: 70
BH74: 71 | BI74: 71 | BK74: 71 | BM74: 71 | BN74: 71 | BP74: 71 | BU74: 71 | BZ74: 71 | CF74: 71 | CH74: 71 | CJ74: 71 | CL74: 71
BH75: 72 | BI75: 72 | BK75: 72 | BM75: 72 | BN75: 72 | BP75: 72 | BU75: 72 | BZ75: 72 | CF75: 72 | CH75: 72 | CJ75: 72 | CL75: 72
BH76: 73 | BI76: 73 | BK76: 73 | BM76: 73 | BN76: 73 | BP76: 73 | BU76: 73 | BZ76: 73 | CF76: 73 | CH76: 73 | CJ76: 73 | CL76: 73
BH77: 74 | BI77: 74 | BK77: 74 | BM77: 74 | BN77: 74 | BP77: 74 | BU77: 74 | BZ77: 74 | CF77: 74 | CH77: 74 | CJ77: 74 | CL77: 74
BH78: 75 | BI78: 75 | BK78: 75 | BM78: 75 | BN78: 75 | BP78: 75 | BU78: 75 | BZ78: 75 | CF78: 75 | CH78: 75 | CJ78: 75 | CL78: 75
BH79: 76 | BI79: 76 | BK79: 76 | BM79: 76 | BN79: 76 | BP79: 76 | BU79: 76 | BZ79: 76 | CF79: 76 | CH79: 76 | CJ79: 76 | CL79: 76
BH80: 77 | BI80: 77 | BK80: 77 | BM80: 77 | BN80: 77 | BP80: 77 | BU80: 77 | BZ80: 77 | CF80: 77 | CH80: 77 | CJ80: 77 | CL80: 77
BH81: 78 | BI81: 78 | BK81: 78 | BM81: 78 | BN81: 78 | BP81: 78 | BU81: 78 | BZ81: 78 | CF81: 78 | CH81: 78 | CJ81: 78 | CL81: 78
BH82: 79 | BI82: 79 | BK82: 79 | BM82: 79 | BN82: 79 | BP82: 79 | BU82: 79 | BZ82: 79 | CF82: 79 | CH82: 79 | CJ82: 79 | CL82: 79
BH83: 80 | BK83: 80 | BM83: 80 | BN83: 80 | BP83: 80 | BU83: 80 | BZ83: 80 | CF83: 80 | CH83: 80 | CJ83: 80 | CL83: 80
BH84: 81 | BK84: 81 | BN84: 81 | BP84: 81 | BU84: 81 | BZ84: 81 | CF84: 81 | CH84: 81 | CJ84: 81
BH85: 82 | BK85: 82 | BN85: 82 | BP85: 82 | BU85: 82 | BZ85: 82 | CF85: 82 | CH85: 82
BH86: 83 | BK86: 83 | BN86: 83 | BP86: 83 | BU86: 83 | BZ86: 83 | CF86: 83 | CH86: 83
BK87: 84 | BN87: 84 | BP87: 84 | BZ87: 84 | CF87: 84 | CH87: 84
BK88: 85 | BN88: 85 | BP88: 85 | BZ88: 85 | CF88: 85 | CH88: 85
BK89: 86 | BN89: 86 | BP89: 86 | BZ89: 86 | CF89: 86 | CH89: 86
BK90: 87 | BN90: 87 | BP90: 87 | BZ90: 87 | CF90: 87 | CH90: 87
BK91: 88 | BN91: 88 | BP91: 88 | BZ91: 88 | CF91: 88 | CH91: 88
BK92: 89 | BN92: 89 | BP92: 89 | BZ92: 89 | CF92: 89 | CH92: 89
BK93: 90 | BN93: 90 | BP93: 90 | BZ93: 90 | CF93: 90 | CH93: 90
BK94: 91 | BN94: 91 | BP94: 91 | BZ94: 91 | CF94: 91
BK95: 92 | BN95: 92 | BP95: 92 | BZ95: 92 | CF95: 92
BK96: 93 | BN96: 93 | BP96: 93 | BZ96: 93 | CF96: 93
BK97: 94 | BN97: 94 | BP97: 94 | BZ97: 94 | CF97: 94
BK98: 95 | BN98: 95 | BP98: 95 | BZ98: 95 | CF98: 95
BK99: 96 | BN99: 96 | BP99: 96 | BZ99: 96 | CF99: 96
BK100: 97 | BN100: 97 | BP100: 97 | BZ100: 97 | CF100: 97
BK101: 98 | BN101: 98 | BP101: 98 | CF101: 98
BK102: 99 | BN102: 99 | BP102: 99 | CF102: 99
BK103: 100 | BN103: 100 | BP103: 100 | CF103: 100
BK104: 101 | BN104: 101 | BP104: 101 | CF104: 101
BK105: 102 | BN105: 102 | BP105: 102 | CF105: 102
BK106: 103 | BN106: 103 | BP106: 103 | CF106: 103
BK107: 104 | BN107: 104 | BP107: 104 | CF107: 104
BK108: 105 | BN108: 105 | BP108: 105 | CF108: 105
BK109: 106 | BN109: 106 | BP109: 106 | CF109: 106
BK110: 107 | BN110: 107 | BP110: 107 | CF110: 107
BK111: 108 | BN111: 108 | BP111: 108 | CF111: 108
BK112: 109 | BN112: 109 | BP112: 109 | CF112: 109
BK113: 110 | BN113: 110 | BP113: 110 | CF113: 110
BK114: 111 | BN114: 111 | BP114: 111 | CF114: 111
BK115: 112 | BN115: 112 | BP115: 112 | CF115: 112
BK116: 113 | BN116: 113 | BP116: 113 | CF116: 113
BK117: 114 | BN117: 114 | BP117: 114 | CF117: 114
BK118: 115 | BN118: 115 | BP118: 115 | CF118: 115
BK119: 116 | BN119: 116 | BP119: 116 | CF119: 116
BK120: 117 | BN120: 117 | BP120: 117 | CF120: 117
BK121: 118 | BN121: 118 | BP121: 118 | CF121: 118
BK122: 119 | BN122: 119 | BP122: 119 | CF122: 119
BK123: 120 | BN123: 120 | BP123: 120 | CF123: 120
BK124: 121 | BN124: 121 | BP124: 121 | CF124: 121
BK125: 122 | BN125: 122 | BP125: 122 | CF125: 122
BK126: 123 | BN126: 123 | BP126: 123 | CF126: 123
BK127: 124 | BN127: 124 | BP127: 124 | CF127: 124
BK128: 125 | BN128: 125 | BP128: 125 | CF128: 125
BK129: 126 | BN129: 126 | BP129: 126 | CF129: 126
BK130: 127 | BN130: 127 | BP130: 127 | CF130: 127
BK131: 128 | BN131: 128 | BP131: 128 | CF131: 128
BK132: 129 | BN132: 129 | BP132: 129 | CF132: 129
BK133: 130 | BN133: 130 | BP133: 130 | CF133: 130
BK134: 131 | BN134: 131 | BP134: 131 | CF134: 131
BK135: 132 | BN135: 132 | BP135: 132 | CF135: 132
BK136: 133 | BN136: 133 | BP136: 133 | CF136: 133
BK137: 134 | BN137: 134 | BP137: 134 | CF137: 134
BK138: 135 | BN138: 135 | BP138: 135 | CF138: 135
BK139: 136 | BN139: 136 | CF139: 136
BK140: 137 | BN140: 137 | CF140: 137
BK141: 138 | BN141: 138 | CF141: 138
BK142: 139 | BN142: 139 | CF142: 139
BK143: 140 | BN143: 140 | CF143: 140
BK144: 141 | BN144: 141 | CF144: 141
BK145: 142 | BN145: 142 | CF145: 142
BK146: 143 | BN146: 143 | CF146: 143
BK147: 144 | BN147: 144 | CF147: 144
BK148: 145 | BN148: 145 | CF148: 145
BK149: 146 | BN149: 146 | CF149: 146
BK150: 147 | BN150: 147 | CF150: 147
BK151: 148 | BN151: 148 | CF151: 148
BK152: 149 | BN152: 149 | CF152: 149
BK153: 150 | BN153: 150 | CF153: 150
BK154: 151 | BN154: 151 | CF154: 151
BK155: 152 | BN155: 152 | CF155: 152
BK156: 153 | BN156: 153 | CF156: 153
BK157: 154 | BN157: 154 | CF157: 154
BK158: 155 | BN158: 155 | CF158: 155
BK159: 156 | BN159: 156 | CF159: 156
BK160: 157 | BN160: 157 | CF160: 157
BK161: 158 | BN161: 158 | CF161: 158
BK162: 159 | BN162: 159 | CF162: 159
BK163: 160 | BN163: 160 | CF163: 160
BK164: 161 | BN164: 161 | CF164: 161
BK165: 162 | BN165: 162 | CF165: 162
BK166: 163 | BN166: 163 | CF166: 163
BK167: 164 | BN167: 164 | CF167: 164
BK168: 165 | BN168: 165 | CF168: 165
BK169: 166 | BN169: 166 | CF169: 166
BK170: 167 | BN170: 167 | CF170: 167
BN171: 168 | CF171: 168
BN172: 169 | CF172: 169
BN173: 170 | CF173: 170
BN174: 171 | CF174: 171
BN175: 172 | CF175: 172
BN176: 173 | CF176: 173
BN177: 174 | CF177: 174
BN178: 175 | CF178: 175
BN179: 176 | CF179: 176
BN180: 177 | CF180: 177
BN181: 178 | CF181: 178
BN182: 179 | CF182: 179
BN183: 180 | CF183: 180
BN184: 181 | CF184: 181
BN185: 182 | CF185: 182
BN186: 183 | CF186: 183
BN187: 184 | CF187: 184
BN188: 185 | CF188: 185
BN189: 186 | CF189: 186
BN190: 187 | CF190: 187
BN191: 188 | CF191: 188
BN192: 189 | CF192: 189
BN193: 190 | CF193: 190
BN194: 191 | CF194: 191
BN195: 192 | CF195: 192
BN196: 193 | CF196: 193
BN197: 194 | CF197: 194
BN198: 195 | CF198: 195
BN199: 196 | CF199: 196
BN200: 197 | CF200: 197
BN201: 198 | CF201: 198
... 77 more rows

Sheet Base Localidades
A1: Estado | B1: OID | C1: Cuadro local | D1: Cuadro vegetación | E1: Cuadro regional | F1: Porcentaje de vegetación* | G1: Población en zona de impacto local 2012** | L1: Densidad local | M1: Población en zona de impacto regional 2012** | Q1: Densidad regional | R1: Clasificación por densidad poblacional | AC1: Concentración base de SO2 (μg/m3)*** | AD1: Constantes usadas de acuerdo a la clasificación por densidad poblacional | AK1: Vecinos de cada cuadro local | AS1: Estado perteneciente | BA1: Probabilidad de deforestación por año****
G2: (habitantes en un radio de 50 km del centro del cuadro local) | L2: (ρ local) | M2: (habitantes en un radio de 1,000 km del centro del cuadro regional) | Q2: (ρ regional) | R2: x | S2: Rural (x<=2) | T2: Ciudad pequeña (2<x<=6) | W2: Ciudad mediana (6<x<=10) | Z2: Ciudad grande (10<x) | AB2: Clasificación general | AD2: Valores para el factor CF | AE2: Valores para el factor CT | AG2: Valores para el factor FS | AI2: Valores para el factor Fρ | AK2: Norte | AL2: Noreste | AM2: Este | AN2: Sureste | AO2: Sur | AP2: Suroeste | AQ2: Oeste | AR2: Noroeste | AS2: Norte | AT2: Noreste | AU2: Este | AV2: Sureste | AW2: Sur | AX2: Suroeste | AY2: Oeste | AZ2: Noroeste | BA2: 1 | BB2: 2 | BC2: 3 | BD2: 4 | BE2: 5 | BF2: 6 | BG2: 7 | BH2: 8 | BI2: 9 | BJ2: 10 | BK2: 11 | BL2: 12 | BM2: 13 | BN2: 14 | BO2: 15 | BP2: 16 | BQ2: 17 | BR2: 18 | BS2: 19 | BT2: 20 | BU2: 21 | BV2: 22 | BW2: 23 | BX2: 24 | BY2: 25 | BZ2: 26 | CA2: 27 | CB2: 28 | CC2: 29
F3: (%) | G3: México | H3: Estados Unidos | I3: Guatemala | J3: Belice | K3: TOTAL | L3: (personas/km2) | M3: México | N3: Estados Unidos | O3: Centroamérica-Caribe | P3: TOTAL | Q3: (personas/km2) | R3: (ρ local/ρ regional) | S3: 1705 | T3: 357 | W3: 60 | Z3: 46 | AB3: =S3+T3+W3+Z3 -> 2168 | AD3: b | AE3: a | AF3: b | AG3: a | AH3: b | AI3: a | AJ3: b
A4: 1 | B4: AGUASCALIENTES | E4: 0
A5: 1 | B5: 1178 | C5: 1 | D5: 76 | E5: 70 | F5: 0.3426 | G5: 1248439.833 | H5: 0 | I5: 0 | J5: 0 | K5: =SUM(G5:J5) -> 1248439.833 | L5: =K5/(PI()*50^2) -> 158.9562964 | M5: 97355109.87 | N5: 6141243.804 | O5: 0 | P5: =SUM(M5:O5) -> 103496353.7 | Q5: =P5/(PI()*1000^2) -> 32.94391256 | R5: =L5/Q5 -> 4.82505823 | S5: =IF(R5<=2,1,0) -> 0 | T5: =IF(R5>2,1,0) -> 1 | U5: =IF(R5<=6,2,0) -> 2 | V5: =T5*U5 -> 2 | W5: =IF(R5>6,1,0) -> 0 | X5: =IF(R5<=10,3,0) -> 3 | Y5: =W5*X5 -> 0 | Z5: =IF(R5>10,4,0) -> 0 | AA5: =IF(Z5=4,AB5,0) -> 0 | AB5: 2 | AC5: 10 | AD5: -0.1034 | AE5: 1.035 | AF5: -0.4288 | AG5: 1.52 | AH5: -0.076 | AI5: 4.35 | AJ5: -0.153 | AK5: 65 | AL5: 66 | AM5: 2 | AN5: 5 | AO5: 4 | AP5: 3 | AQ5: 69 | AR5: 64 | AS5: 32 | AT5: 32 | AU5: 1 | AV5: 1 | AW5: 1 | AX5: 1 | AY5: 32 | AZ5: 32 | BA5: 0.0029478904 | BB5: 0.0029478904 | BC5: 0.0029478904 | BD5: 0.0029478904 | BE5: 0.0029478904 | BF5: 0.0029478904 | BG5: 0.0029478904 | BH5: 0.0029478904 | BI5: 0.0029478904 | BJ5: 0.0029478904 | BK5: 0.0029478904 | BL5: 0.0029478904 | BM5: 0.0029478904 | BN5: 0.0029478904 | BO5: 0.0029478904 | BP5: 0.0029478904 | BQ5: 0.0029478904 | BR5: 0.0029478904 | BS5: 0.0029478904 | BT5: 0.0029478904 | BU5: 0.0029478904 | BV5: 0.0029478904 | BW5: 0.0029478904 | BX5: 0.0029478904 | BY5: 0.0029478904 | BZ5: 0.0029478904 | CA5: 0.0029478904 | CB5: 0.0029478904 | CC5: 0.0029478904
A6: 1 | B6: 1177 | C6: 2 | D6: 76 | E6: 70 | F6: 0.3426 | G6: 1361214.683 | H6: 0 | I6: 0 | J6: 0 | K6: =SUM(G6:J6) -> 1361214.683 | L6: =K6/(PI()*50^2) -> 173.3152363 | M6: 97355109.87 | N6: 6141243.804 | O6: 0 | P6: =SUM(M6:O6) -> 103496353.7 | Q6: =P6/(PI()*1000^2) -> 32.94391256 | R6: =L6/Q6 -> 5.260918418 | S6: 0 | T6: 1 | U6: 2 | V6: =T6*U6 -> 2 | W6: 0 | X6: 3 | Y6: =W6*X6 -> 0 | Z6: 0 | AA6: =IF(Z6=4,AB6,0) -> 0 | AB6: 2 | AC6: 10 | AD6: -0.1034 | AE6: 1.035 | AF6: -0.4288 | AG6: 1.52 | AH6: -0.076 | AI6: 4.35 | AJ6: -0.153 | AK6: 66 | AL6: 67 | AM6: 70 | AN6: 10 | AO6: 5 | AP6: 4 | AQ6: 1 | AR6: 65 | AS6: 32 | AT6: 32 | AU6: 32 | AV6: 15 | AW6: 1 | AX6: 1 | AY6: 1 | AZ6: 32 | BA6: 0.0029478904 | BB6: 0.0029478904 | BC6: 0.0029478904 | BD6: 0.0029478904 | BE6: 0.0029478904 | BF6: 0.0029478904 | BG6: 0.0029478904 | BH6: 0.0029478904 | BI6: 0.0029478904 | BJ6: 0.0029478904 | BK6: 0.0029478904 | BL6: 0.0029478904 | BM6: 0.0029478904 | BN6: 0.0029478904 | BO6: 0.0029478904 | BP6: 0.0029478904 | BQ6: 0.0029478904 | BR6: 0.0029478904 | BS6: 0.0029478904 | BT6: 0.0029478904 | BU6: 0.0029478904 | BV6: 0.0029478904 | BW6: 0.0029478904 | BX6: 0.0029478904 | BY6: 0.0029478904 | BZ6: 0.0029478904 | CA6: 0.0029478904 | CB6: 0.0029478904 | CC6: 0.0029478904
A7: 1 | B7: 1150 | C7: 3 | D7: 81 | E7: 74 | F7: 0.3448 | G7: 202407.5494 | H7: 0 | I7: 0 | J7: 0 | K7: =SUM(G7:J7) -> 202407.5494 | L7: =K7/(PI()*50^2) -> 25.77132961 | M7: 98405036.66 | N7: 4347645.375 | O7: 0 | P7: 102752682 | Q7: 32.70719452 | R7: =L7/Q7 -> 0.7879406957 | S7: 1 | T7: 0 | U7: 2 | V7: 0 | W7: 0 | X7: 3 | Y7: 0 | Z7: 0 | AA7: 0 | AB7: 1 | AC7: 10 | AD7: -0.0568 | AE7: 1.02 | AF7: -0.2446 | AG7: 2.94 | AH7: -0.206 | AI7: 4.35 | AJ7: -0.153 | AK7: 69 | AL7: 1 | AM7: 4 | AN7: 12 | AO7: 76 | AP7: 75 | AQ7: 72 | AR7: 6 | AS7: 32 | AT7: 1 | AU7: 1 | AV7: 15 | AW7: 32 | AX7: 32 | AY7: 32 | AZ7: 15 | BA7: 0.0029478904 | BB7: 0.0029478904 | BC7: 0.0029478904 | BD7: 0.0029478904 | BE7: 0.0029478904 | BF7: 0.0029478904 | BG7: 0.0029478904 | BH7: 0.0029478904 | BI7: 0.0029478904 | BJ7: 0.0029478904 | BK7: 0.0029478904 | BL7: 0.0029478904 | BM7: 0.0029478904 | BN7: 0.0029478904 | BO7: 0.0029478904 | BP7: 0.0029478904 | BQ7: 0.0029478904 | BR7: 0.0029478904 | BS7: 0.0029478904 | BT7: 0.0029478904 | BU7: 0.0029478904 | BV7: 0.0029478904 | BW7: 0.0029478904 | BX7: 0.0029478904 | BY7: 0.0029478904 | BZ7: 0.0029478904 | CA7: 0.0029478904 | CB7: 0.0029478904 | CC7: 0.0029478904
A8: 1 | B8: 1149 | C8: 4 | D8: 81 | E8: 74 | F8: 0.3448 | G8: 1275102.377 | H8: 0 | I8: 0 | J8: 0 | K8: =SUM(G8:J8) -> 1275102.377 | L8: 162.3510769 | M8: 98405036.66 | N8: 4347645.375 | O8: 0 | P8: 102752682 | Q8: 32.70719452 | R8: =L8/Q8 -> 4.963772629 | S8: 0 | T8: 1 | U8: 2 | V8: 2 | W8: 0 | X8: 3 | Y8: 0 | Z8: 0 | AA8: 0 | AB8: 2 | AC8: 10 | AD8: -0.1034 | AE8: 1.035 | AF8: -0.4288 | AG8: 1.52 | AH8: -0.076 | AI8: 4.35 | AJ8: -0.153 | AK8: 1 | AL8: 2 | AM8: 5 | AN8: 13 | AO8: 12 | AP8: 76 | AQ8: 3 | AR8: 69 | AS8: 1 | AT8: 1 | AU8: 1 | AV8: 15 | AW8: 15 | AX8: 32 | AY8: 1 | AZ8: 32 | BA8: 0.0029478904 | BB8: 0.0029478904 | BC8: 0.0029478904 | BD8: 0.0029478904 | BE8: 0.0029478904 | BF8: 0.0029478904 | BG8: 0.0029478904 | BH8: 0.0029478904 | BI8: 0.0029478904 | BJ8: 0.0029478904 | BK8: 0.0029478904 | BL8: 0.0029478904 | BM8: 0.0029478904 | BN8: 0.0029478904 | BO8: 0.0029478904 | BP8: 0.0029478904 | BQ8: 0.0029478904 | BR8: 0.0029478904 | BS8: 0.0029478904 | BT8: 0.0029478904 | BU8: 0.0029478904 | BV8: 0.0029478904 | BW8: 0.0029478904 | BX8: 0.0029478904 | BY8: 0.0029478904 | BZ8: 0.0029478904 | CA8: 0.0029478904 | CB8: 0.0029478904 | CC8: 0.0029478904
A9: 1 | B9: 1148 | C9: 5 | D9: 81 | E9: 74 | F9: 0.3448 | G9: 1306276.039 | H9: 0 | I9: 0 | J9: 0 | K9: =SUM(G9:J9) -> 1306276.039 | L9: 166.3202309 | M9: 98405036.66 | N9: 4347645.375 | O9: 0 | P9: 102752682 | Q9: 32.70719452 | R9: =L9/Q9 -> 5.085126784 | S9: 0 | T9: 1 | U9: 2 | V9: 2 | W9: 0 | X9: 3 | Y9: 0 | Z9: 0 | AA9: 0 | AB9: 2 | AC9: 10 | AD9: -0.1034 | AE9: 1.035 | AF9: -0.4288 | AG9: 1.52 | AH9: -0.076 | AI9: 4.35 | AJ9: -0.153 | AK9: 2 | AL9: 70 | AM9: 10 | AN9: 14 | AO9: 13 | AP9: 12 | AQ9: 4 | AR9: 1 | AS9: 1 | AT9: 32 | AU9: 15 | AV9: 15 | AW9: 15 | AX9: 15 | AY9: 1 | AZ9: 1 | BA9: 0.0029478904 | BB9: 0.0029478904 | BC9: 0.0029478904 | BD9: 0.0029478904 | BE9: 0.0029478904 | BF9: 0.0029478904 | BG9: 0.0029478904 | BH9: 0.0029478904 | BI9: 0.0029478904 | BJ9: 0.0029478904 | BK9: 0.0029478904 | BL9: 0.0029478904 | BM9: 0.0029478904 | BN9: 0.0029478904 | BO9: 0.0029478904 | BP9: 0.0029478904 | BQ9: 0.0029478904 | BR9: 0.0029478904 | BS9: 0.0029478904 | BT9: 0.0029478904 | BU9: 0.0029478904 | BV9: 0.0029478904 | BW9: 0.0029478904 | BX9: 0.0029478904 | BY9: 0.0029478904 | BZ9: 0.0029478904 | CA9: 0.0029478904 | CB9: 0.0029478904 | CC9: 0.0029478904
A10: 2 | B10: BAJA CALIFORNIA | E10: 0 | AB10: 0
A11: 2 | B11: 2301 | C11: 1 | D11: 1 | E11: 1 | F11: 0.6094 | G11: 101133.8228 | H11: 91803.23448 | I11: 0 | J11: 0 | K11: =SUM(G11:J11) -> 192937.0573 | L11: 24.5655091 | M11: 7880567.3 | N11: 48093358.03 | O11: 0 | P11: 55973925.33 | Q11: 17.8170538 | R11: =L11/Q11 -> 1.378763817 | S11: 1 | T11: 0 | U11: 2 | V11: 0 | W11: 0 | X11: 3 | Y11: 0 | Z11: 0 | AA11: 0 | AB11: 1 | AC11: 10 | AD11: -0.0568 | AE11: 1.02 | AF11: -0.2446 | AG11: 2.94 | AH11: -0.206 | AI11: 4.35 | AJ11: -0.153 | AK11: 0 | AL11: 0 | AM11: 2 | AN11: 9 | AO11: 8 | AP11: 7 | AQ11: 0 | AR11: 0 | AS11: 0 | AT11: 0 | AU11: 2 | AV11: 2 | AW11: 2 | AX11: 2 | AY11: 0 | AZ11: 0 | BA11: 0.001276400343 | BB11: 0.001276400343 | BC11: 0.001276400343 | BD11: 0.001276400343 | BE11: 0.001276400343 | BF11: 0.001276400343 | BG11: 0.001276400343 | BH11: 0.001276400343 | BI11: 0.001276400343 | BJ11: 0.001276400343 | BK11: 0.001276400343 | BL11: 0.001276400343 | BM11: 0.001276400343 | BN11: 0.001276400343 | BO11: 0.001276400343 | BP11: 0.001276400343 | BQ11: 0.001276400343 | BR11: 0.001276400343 | BS11: 0.001276400343 | BT11: 0.001276400343 | BU11: 0.001276400343 | BV11: 0.001276400343 | BW11: 0.001276400343 | BX11: 0.001276400343 | BY11: 0.001276400343 | BZ11: 0.001276400343 | CA11: 0.001276400343 | CB11: 0.001276400343 | CC11: 0.001276400343
A12: 2 | B12: 2300 | C12: 2 | D12: 2 | E12: 2 | F12: 0.7738 | G12: 805780.254 | H12: 182151.3627 | I12: 0 | J12: 0 | K12: =SUM(G12:J12) -> 987931.6167 | L12: 125.7873602 | M12: 10440176.69 | N12: 49348500.86 | O12: 0 | P12: 59788677.56 | Q12: 19.03132715 | R12: 6.60948967 | S12: 0 | T12: 1 | U12: 0 | V12: 0 | W12: 1 | X12: 3 | Y12: 3 | Z12: 0 | AA12: 0 | AB12: 3 | AC12: 10 | AD12: -0.1034 | AE12: 1.035 | AF12: -0.4288 | AG12: 1.38 | AH12: -0.056 | AI12: 4.35 | AJ12: -0.153 | AK12: 0 | AL12: 0 | AM12: 3 | AN12: 10 | AO12: 9 | AP12: 8 | AQ12: 1 | AR12: 0 | AS12: 0 | AT12: 0 | AU12: 2 | AV12: 2 | AW12: 2 | AX12: 2 | AY12: 2 | AZ12: 0 | BA12: 0.001276400343 | BB12: 0.001276400343 | BC12: 0.001276400343 | BD12: 0.001276400343 | BE12: 0.001276400343 | BF12: 0.001276400343 | BG12: 0.001276400343 | BH12: 0.001276400343 | BI12: 0.001276400343 | BJ12: 0.001276400343 | BK12: 0.001276400343 | BL12: 0.001276400343 | BM12: 0.001276400343 | BN12: 0.001276400343 | BO12: 0.001276400343 | BP12: 0.001276400343 | BQ12: 0.001276400343 | BR12: 0.001276400343 | BS12: 0.001276400343 | BT12: 0.001276400343 | BU12: 0.001276400343 | BV12: 0.001276400343 | BW12: 0.001276400343 | BX12: 0.001276400343 | BY12: 0.001276400343 | BZ12: 0.001276400343 | CA12: 0.001276400343 | CB12: 0.001276400343 | CC12: 0.001276400343
A13: 2 | B13: 2299 | C13: 3 | D13: 2 | E13: 2 | F13: 0.7738 | G13: 865690.1444 | H13: 157331.9611 | I13: 0 | J13: 0 | K13: 1023022.106 | L13: 130.25522 | M13: 10440176.69 | N13: 49348500.86 | O13: 0 | P13: 59788677.56 | Q13: 19.03132715 | R13: 6.844253108 | S13: 0 | T13: 1 | U13: 0 | V13: 0 | W13: 1 | X13: 3 | Y13: 3 | Z13: 0 | AA13: 0 | AB13: 3 | AC13: 10 | AD13: -0.1034 | AE13: 1.035 | AF13: -0.4288 | AG13: 1.38 | AH13: -0.056 | AI13: 4.35 | AJ13: -0.153 | AK13: 0 | AL13: 0 | AM13: 4 | AN13: 11 | AO13: 10 | AP13: 9 | AQ13: 2 | AR13: 0 | AS13: 0 | AT13: 0 | AU13: 2 | AV13: 2 | AW13: 2 | AX13: 2 | AY13: 2 | AZ13: 0 | BA13: 0.001276400343 | BB13: 0.001276400343 | BC13: 0.001276400343 | BD13: 0.001276400343 | BE13: 0.001276400343 | BF13: 0.001276400343 | BG13: 0.001276400343 | BH13: 0.001276400343 | BI13: 0.001276400343 | BJ13: 0.001276400343 | BK13: 0.001276400343 | BL13: 0.001276400343 | BM13: 0.001276400343 | BN13: 0.001276400343 | BO13: 0.001276400343 | BP13: 0.001276400343 | BQ13: 0.001276400343 | BR13: 0.001276400343 | BS13: 0.001276400343 | BT13: 0.001276400343 | BU13: 0.001276400343 | BV13: 0.001276400343 | BW13: 0.001276400343 | BX13: 0.001276400343 | BY13: 0.001276400343 | BZ13: 0.001276400343 | CA13: 0.001276400343 | CB13: 0.001276400343 | CC13: 0.001276400343
A14: 2 | B14: 2298 | C14: 4 | D14: 2 | E14: 2 | F14: 0.7738 | G14: 1114898.086 | H14: 327257.1683 | I14: 0 | J14: 0 | K14: 1442155.254 | L14: 183.6209099 | M14: 10440176.69 | N14: 49348500.86 | O14: 0 | P14: 59788677.56 | Q14: 19.03132715 | R14: 9.648350242 | S14: 0 | T14: 1 | U14: 0 | V14: 0 | W14: 1 | X14: 3 | Y14: 3 | Z14: 0 | AA14: 0 | AB14: 3 | AC14: 10 | AD14: -0.1034 | AE14: 1.035 | AF14: -0.4288 | AG14: 1.38 | AH14: -0.056 | AI14: 4.35 | AJ14: -0.153 | AK14: 0 | AL14: 0 | AM14: 5 | AN14: 1 | AO14: 11 | AP14: 10 | AQ14: 3 | AR14: 0 | AS14: 0 | AT14: 0 | AU14: 2 | AV14: 26 | AW14: 2 | AX14: 2 | AY14: 2 | AZ14: 0 | BA14: 0.001276400343 | BB14: 0.001276400343 | BC14: 0.001276400343 | BD14: 0.001276400343 | BE14: 0.001276400343 | BF14: 0.001276400343 | BG14: 0.001276400343 | BH14: 0.001276400343 | BI14: 0.001276400343 | BJ14: 0.001276400343 | BK14: 0.001276400343 | BL14: 0.001276400343 | BM14: 0.001276400343 | BN14: 0.001276400343 | BO14: 0.001276400343 | BP14: 0.001276400343 | BQ14: 0.001276400343 | BR14: 0.001276400343 | BS14: 0.001276400343 | BT14: 0.001276400343 | BU14: 0.001276400343 | BV14: 0.001276400343 | BW14: 0.001276400343 | BX14: 0.001276400343 | BY14: 0.001276400343 | BZ14: 0.001276400343 | CA14: 0.001276400343 | CB14: 0.001276400343 | CC14: 0.001276400343
A15: 2 | B15: 2297 | C15: 5 | D15: 2 | E15: 2 | F15: 0.7738 | G15: 325667.926 | H15: 236388.9951 | I15: 0 | J15: 0 | K15: =SUM(G15:J15) -> 562056.9211 | L15: 71.56330983 | M15: 10440176.69 | N15: 49348500.86 | O15: 0 | P15: 59788677.56 | Q15: 19.03132715 | R15: 3.760290035 | S15: 0 | T15: 1 | U15: 2 | V15: 2 | W15: 0 | X15: 3 | Y15: 0 | Z15: 0 | AA15: 0 | AB15: 2 | AC15: 10 | AD15: -0.1034 | AE15: 1.035 | AF15: -0.4288 | AG15: 1.52 | AH15: -0.076 | AI15: 4.35 | AJ15: -0.153 | AK15: 0 | AL15: 0 | AM15: 0 | AN15: 2 | AO15: 1 | AP15: 11 | AQ15: 4 | AR15: 0 | AS15: 0 | AT15: 0 | AU15: 0 | AV15: 26 | AW15: 26 | AX15: 2 | AY15: 2 | AZ15: 0 | BA15: 0.001276400343 | BB15: 0.001276400343 | BC15: 0.001276400343 | BD15: 0.001276400343 | BE15: 0.001276400343 | BF15: 0.001276400343 | BG15: 0.001276400343 | BH15: 0.001276400343 | BI15: 0.001276400343 | BJ15: 0.001276400343 | BK15: 0.001276400343 | BL15: 0.001276400343 | BM15: 0.001276400343 | BN15: 0.001276400343 | BO15: 0.001276400343 | BP15: 0.001276400343 | BQ15: 0.001276400343 | BR15: 0.001276400343 | BS15: 0.001276400343 | BT15: 0.001276400343 | BU15: 0.001276400343 | BV15: 0.001276400343 | BW15: 0.001276400343 | BX15: 0.001276400343 | BY15: 0.001276400343 | BZ15: 0.001276400343 | CA15: 0.001276400343 | CB15: 0.001276400343 | CC15: 0.001276400343
A16: 2 | B16: 2296 | C16: 6 | D16: 1 | E16: 1 | F16: 0.6094 | G16: 1815138.067 | H16: 77491.80056 | I16: 0 | J16: 0 | K16: 1892629.868 | L16: 240.9771191 | M16: 7880567.3 | N16: 48093358.03 | O16: 0 | P16: 55973925.33 | Q16: 17.8170538 | R16: 13.52508231 | S16: 0 | T16: 1 | U16: 0 | V16: 0 | W16: 1 | X16: 0 | Y16: 0 | Z16: 4 | AA16: 5 | AB16: 5 | AC16: 15 | AD16: -0.1034 | AE16: 1.035 | AF16: -0.4288 | AG16: 1.4 | AH16: -0.06 | AI16: 11.9 | AJ16: -0.248 | AK16: 0 | AL16: 0 | AM16: 7 | AN16: 13 | AO16: 12 | AP16: 0 | AQ16: 0 | AR16: 0 | AS16: 0 | AT16: 0 | AU16: 2 | AV16: 2 | AW16: 2 | AX16: 0 | AY16: 0 | AZ16: 0 | BA16: 0.001276400343 | BB16: 0.001276400343 | BC16: 0.001276400343 | BD16: 0.001276400343 | BE16: 0.001276400343 | BF16: 0.001276400343 | BG16: 0.001276400343 | BH16: 0.001276400343 | BI16: 0.001276400343 | BJ16: 0.001276400343 | BK16: 0.001276400343 | BL16: 0.001276400343 | BM16: 0.001276400343 | BN16: 0.001276400343 | BO16: 0.001276400343 | BP16: 0.001276400343 | BQ16: 0.001276400343 | BR16: 0.001276400343 | BS16: 0.001276400343 | BT16: 0.001276400343 | BU16: 0.001276400343 | BV16: 0.001276400343 | BW16: 0.001276400343 | BX16: 0.001276400343 | BY16: 0.001276400343 | BZ16: 0.001276400343 | CA16: 0.001276400343 | CB16: 0.001276400343 | CC16: 0.001276400343
A17: 2 | B17: 2295 | C17: 7 | D17: 1 | E17: 1 | F17: 0.6094 | G17: 344083.4035 | H17: 48195.93333 | I17: 0 | J17: 0 | K17: 392279.3368 | L17: 49.94655642 | M17: 7880567.3 | N17: 48093358.03 | O17: 0 | P17: 55973925.33 | Q17: 17.8170538 | R17: 2.803300533 | S17: 0 | T17: 1 | U17: 2 | V17: 2 | W17: 0 | X17: 3 | Y17: 0 | Z17: 0 | AA17: 0 | AB17: 2 | AC17: 10 | AD17: -0.1034 | AE17: 1.035 | AF17: -0.4288 | AG17: 1.52 | AH17: -0.076 | AI17: 4.35 | AJ17: -0.153 | AK17: 0 | AL17: 0 | AM17: 8 | AN17: 14 | AO17: 13 | AP17: 12 | AQ17: 6 | AR17: 0 | AS17: 0 | AT17: 0 | AU17: 2 | AV17: 2 | AW17: 2 | AX17: 2 | AY17: 2 | AZ17: 0 | BA17: 0.001276400343 | BB17: 0.001276400343 | BC17: 0.001276400343 | BD17: 0.001276400343 | BE17: 0.001276400343 | BF17: 0.001276400343 | BG17: 0.001276400343 | BH17: 0.001276400343 | BI17: 0.001276400343 | BJ17: 0.001276400343 | BK17: 0.001276400343 | BL17: 0.001276400343 | BM17: 0.001276400343 | BN17: 0.001276400343 | BO17: 0.001276400343 | BP17: 0.001276400343 | BQ17: 0.001276400343 | BR17: 0.001276400343 | BS17: 0.001276400343 | BT17: 0.001276400343 | BU17: 0.001276400343 | BV17: 0.001276400343 | BW17: 0.001276400343 | BX17: 0.001276400343 | BY17: 0.001276400343 | BZ17: 0.001276400343 | CA17: 0.001276400343 | CB17: 0.001276400343 | CC17: 0.001276400343
A18: 2 | B18: 2294 | C18: 8 | D18: 1 | E18: 1 | F18: 0.6094 | G18: 40293.31344 | H18: 42666.12171 | I18: 0 | J18: 0 | K18: 82959.43515 | L18: 10.56272334 | M18: 7880567.3 | N18: 48093358.03 | O18: 0 | P18: 55973925.33 | Q18: 17.8170538 | R18: 0.5928434332 | S18: 1 | T18: 0 | U18: 2 | V18: 0 | W18: 0 | X18: 3 | Y18: 0 | Z18: 0 | AA18: 0 | AB18: 1 | AC18: 10 | AD18: -0.0568 | AE18: 1.02 | AF18: -0.2446 | AG18: 2.94 | AH18: -0.206 | AI18: 4.35 | AJ18: -0.153 | AK18: 1 | AL18: 2 | AM18: 9 | AN18: 15 | AO18: 14 | AP18: 13 | AQ18: 7 | AR18: 0 | AS18: 2 | AT18: 2 | AU18: 2 | AV18: 2 | AW18: 2 | AX18: 2 | AY18: 2 | AZ18: 0 | BA18: 0.001276400343 | BB18: 0.001276400343 | BC18: 0.001276400343 | BD18: 0.001276400343 | BE18: 0.001276400343 | BF18: 0.001276400343 | BG18: 0.001276400343 | BH18: 0.001276400343 | BI18: 0.001276400343 | BJ18: 0.001276400343 | BK18: 0.001276400343 | BL18: 0.001276400343 | BM18: 0.001276400343 | BN18: 0.001276400343 | BO18: 0.001276400343 | BP18: 0.001276400343 | BQ18: 0.001276400343 | BR18: 0.001276400343 | BS18: 0.001276400343 | BT18: 0.001276400343 | BU18: 0.001276400343 | BV18: 0.001276400343 | BW18: 0.001276400343 | BX18: 0.001276400343 | BY18: 0.001276400343 | BZ18: 0.001276400343 | CA18: 0.001276400343 | CB18: 0.001276400343 | CC18: 0.001276400343
A19: 2 | B19: 2293 | C19: 9 | D19: 2 | E19: 2 | F19: 0.7738 | G19: 782785.2608 | H19: 79534.25173 | I19: 0 | J19: 0 | K19: 862319.5125 | L19: 109.7939303 | M19: 10440176.69 | N19: 49348500.86 | O19: 0 | P19: 59788677.56 | Q19: 19.03132715 | R19: 5.769115811 | S19: 0 | T19: 1 | U19: 2 | V19: 2 | W19: 0 | X19: 3 | Y19: 0 | Z19: 0 | AA19: 0 | AB19: 2 | AC19: 10 | AD19: -0.1034 | AE19: 1.035 | AF19: -0.4288 | AG19: 1.52 | AH19: -0.076 | AI19: 4.35 | AJ19: -0.153 | AK19: 2 | AL19: 3 | AM19: 10 | AN19: 16 | AO19: 15 | AP19: 14 | AQ19: 8 | AR19: 1 | AS19: 2 | AT19: 2 | AU19: 2 | AV19: 2 | AW19: 2 | AX19: 2 | AY19: 2 | AZ19: 2 | BA19: 0.001276400343 | BB19: 0.001276400343 | BC19: 0.001276400343 | BD19: 0.001276400343 | BE19: 0.001276400343 | BF19: 0.001276400343 | BG19: 0.001276400343 | BH19: 0.001276400343 | BI19: 0.001276400343 | BJ19: 0.001276400343 | BK19: 0.001276400343 | BL19: 0.001276400343 | BM19: 0.001276400343 | BN19: 0.001276400343 | BO19: 0.001276400343 | BP19: 0.001276400343 | BQ19: 0.001276400343 | BR19: 0.001276400343 | BS19: 0.001276400343 | BT19: 0.001276400343 | BU19: 0.001276400343 | BV19: 0.001276400343 | BW19: 0.001276400343 | BX19: 0.001276400343 | BY19: 0.001276400343 | BZ19: 0.001276400343 | CA19: 0.001276400343 | CB19: 0.001276400343 | CC19: 0.001276400343
A20: 2 | B20: 2292 | C20: 10 | D20: 2 | E20: 2 | F20: 0.7738 | G20: 894177.6549 | H20: 74069.70065 | I20: 0 | J20: 0 | K20: 968247.3555 | L20: 123.2810822 | M20: 10440176.69 | N20: 49348500.86 | O20: 0 | P20: 59788677.56 | Q20: 19.03132715 | R20: 6.477797436 | S20: 0 | T20: 1 | U20: 0 | V20: 0 | W20: 1 | X20: 3 | Y20: 3 | Z20: 0 | AA20: 0 | AB20: 3 | AC20: 10 | AD20: -0.1034 | AE20: 1.035 | AF20: -0.4288 | AG20: 1.38 | AH20: -0.056 | AI20: 4.35 | AJ20: -0.153 | AK20: 3 | AL20: 4 | AM20: 11 | AN20: 17 | AO20: 16 | AP20: 15 | AQ20: 9 | AR20: 2 | AS20: 2 | AT20: 2 | AU20: 2 | AV20: 2 | AW20: 2 | AX20: 2 | AY20: 2 | AZ20: 2 | BA20: 0.001276400343 | BB20: 0.001276400343 | BC20: 0.001276400343 | BD20: 0.001276400343 | BE20: 0.001276400343 | BF20: 0.001276400343 | BG20: 0.001276400343 | BH20: 0.001276400343 | BI20: 0.001276400343 | BJ20: 0.001276400343 | BK20: 0.001276400343 | BL20: 0.001276400343 | BM20: 0.001276400343 | BN20: 0.001276400343 | BO20: 0.001276400343 | BP20: 0.001276400343 | BQ20: 0.001276400343 | BR20: 0.001276400343 | BS20: 0.001276400343 | BT20: 0.001276400343 | BU20: 0.001276400343 | BV20: 0.001276400343 | BW20: 0.001276400343 | BX20: 0.001276400343 | BY20: 0.001276400343 | BZ20: 0.001276400343 | CA20: 0.001276400343 | CB20: 0.001276400343 | CC20: 0.001276400343
A21: 2 | B21: 2291 | C21: 11 | D21: 2 | E21: 2 | F21: 0.7738 | G21: 1125647.875 | H21: 82725.90033 | I21: 0 | J21: 0 | K21: 1208373.775 | L21: 153.8549275 | M21: 10440176.69 | N21: 49348500.86 | O21: 0 | P21: 59788677.56 | Q21: 19.03132715 | R21: 8.084298394 | S21: 0 | T21: 1 | U21: 0 | V21: 0 | W21: 1 | X21: 3 | Y21: 3 | Z21: 0 | AA21: 0 | AB21: 3 | AC21: 10 | AD21: -0.1034 | AE21: 1.035 | AF21: -0.4288 | AG21: 1.38 | AH21: -0.056 | AI21: 4.35 | AJ21: -0.153 | AK21: 4 | AL21: 5 | AM21: 1 | AN21: 3 | AO21: 17 | AP21: 16 | AQ21: 10 | AR21: 3 | AS21: 2 | AT21: 2 | AU21: 26 | AV21: 26 | AW21: 2 | AX21: 2 | AY21: 2 | AZ21: 2 | BA21: 0.001276400343 | BB21: 0.001276400343 | BC21: 0.001276400343 | BD21: 0.001276400343 | BE21: 0.001276400343 | BF21: 0.001276400343 | BG21: 0.001276400343 | BH21: 0.001276400343 | BI21: 0.001276400343 | BJ21: 0.001276400343 | BK21: 0.001276400343 | BL21: 0.001276400343 | BM21: 0.001276400343 | BN21: 0.001276400343 | BO21: 0.001276400343 | BP21: 0.001276400343 | BQ21: 0.001276400343 | BR21: 0.001276400343 | BS21: 0.001276400343 | BT21: 0.001276400343 | BU21: 0.001276400343 | BV21: 0.001276400343 | BW21: 0.001276400343 | BX21: 0.001276400343 | BY21: 0.001276400343 | BZ21: 0.001276400343 | CA21: 0.001276400343 | CB21: 0.001276400343 | CC21: 0.001276400343
A22: 2 | B22: 2287 | C22: 12 | D22: 1 | E22: 1 | F22: 0.6094 | G22: 702696.0694 | H22: 0 | I22: 0 | J22: 0 | K22: 702696.0694 | L22: 89.47004235 | M22: 7880567.3 | N22: 48093358.03 | O22: 0 | P22: 55973925.33 | Q22: 17.8170538 | R22: 5.02159579 | S22: 0 | T22: 1 | U22: 2 | V22: 2 | W22: 0 | X22: 3 | Y22: 0 | Z22: 0 | AA22: 0 | AB22: 2 | AC22: 10 | AD22: -0.1034 | AE22: 1.035 | AF22: -0.4288 | AG22: 1.52 | AH22: -0.076 | AI22: 4.35 | AJ22: -0.153 | AK22: 6 | AL22: 7 | AM22: 13 | AN22: 18 | AO22: 0 | AP22: 0 | AQ22: 0 | AR22: 0 | AS22: 2 | AT22: 2 | AU22: 2 | AV22: 2 | AW22: 0 | AX22: 0 | AY22: 0 | AZ22: 0 | BA22: 0.001276400343 | BB22: 0.001276400343 | BC22: 0.001276400343 | BD22: 0.001276400343 | BE22: 0.001276400343 | BF22: 0.001276400343 | BG22: 0.001276400343 | BH22: 0.001276400343 | BI22: 0.001276400343 | BJ22: 0.001276400343 | BK22: 0.001276400343 | BL22: 0.001276400343 | BM22: 0.001276400343 | BN22: 0.001276400343 | BO22: 0.001276400343 | BP22: 0.001276400343 | BQ22: 0.001276400343 | BR22: 0.001276400343 | BS22: 0.001276400343 | BT22: 0.001276400343 | BU22: 0.001276400343 | BV22: 0.001276400343 | BW22: 0.001276400343 | BX22: 0.001276400343 | BY22: 0.001276400343 | BZ22: 0.001276400343 | CA22: 0.001276400343 | CB22: 0.001276400343 | CC22: 0.001276400343
A23: 2 | B23: 2286 | C23: 13 | D23: 1 | E23: 1 | F23: 0.6094 | G23: 480920.6607 | H23: 0 | I23: 0 | J23: 0 | K23: 480920.6607 | L23: 61.23272031 | M23: 7880567.3 | N23: 48093358.03 | O23: 0 | P23: 55973925.33 | Q23: 17.8170538 | R23: 3.436747792 | S23: 0 | T23: 1 | U23: 2 | V23: 2 | W23: 0 | X23: 3 | Y23: 0 | Z23: 0 | AA23: 0 | AB23: 2 | AC23: 10 | AD23: -0.1034 | AE23: 1.035 | AF23: -0.4288 | AG23: 1.52 | AH23: -0.076 | AI23: 4.35 | AJ23: -0.153 | AK23: 7 | AL23: 8 | AM23: 14 | AN23: 19 | AO23: 18 | AP23: 0 | AQ23: 12 | AR23: 6 | AS23: 2 | AT23: 2 | AU23: 2 | AV23: 2 | AW23: 2 | AX23: 0 | AY23: 2 | AZ23: 2 | BA23: 0.001276400343 | BB23: 0.001276400343 | BC23: 0.001276400343 | BD23: 0.001276400343 | BE23: 0.001276400343 | BF23: 0.001276400343 | BG23: 0.001276400343 | BH23: 0.001276400343 | BI23: 0.001276400343 | BJ23: 0.001276400343 | BK23: 0.001276400343 | BL23: 0.001276400343 | BM23: 0.001276400343 | BN23: 0.001276400343 | BO23: 0.001276400343 | BP23: 0.001276400343 | BQ23: 0.001276400343 | BR23: 0.001276400343 | BS23: 0.001276400343 | BT23: 0.001276400343 | BU23: 0.001276400343 | BV23: 0.001276400343 | BW23: 0.001276400343 | BX23: 0.001276400343 | BY23: 0.001276400343 | BZ23: 0.001276400343 | CA23: 0.001276400343 | CB23: 0.001276400343 | CC23: 0.001276400343
A24: 2 | B24: 2285 | C24: 14 | D24: 1 | E24: 1 | F24: 0.6094 | G24: 33934.42938 | H24: 0 | I24: 0 | J24: 0 | K24: 33934.42938 | L24: 4.320665741 | M24: 7880567.3 | N24: 48093358.03 | O24: 0 | P24: 55973925.33 | Q24: 17.8170538 | R24: 0.2425016947 | S24: 1 | T24: 0 | U24: 2 | V24: 0 | W24: 0 | X24: 3 | Y24: 0 | Z24: 0 | AA24: 0 | AB24: 1 | AC24: 10 | AD24: -0.0568 | AE24: 1.02 | AF24: -0.2446 | AG24: 2.94 | AH24: -0.206 | AI24: 4.35 | AJ24: -0.153 | AK24: 8 | AL24: 9 | AM24: 15 | AN24: 20 | AO24: 19 | AP24: 18 | AQ24: 13 | AR24: 7 | AS24: 2 | AT24: 2 | AU24: 2 | AV24: 2 | AW24: 2 | AX24: 2 | AY24: 2 | AZ24: 2 | BA24: 0.001276400343 | BB24: 0.001276400343 | BC24: 0.001276400343 | BD24: 0.001276400343 | BE24: 0.001276400343 | BF24: 0.001276400343 | BG24: 0.001276400343 | BH24: 0.001276400343 | BI24: 0.001276400343 | BJ24: 0.001276400343 | BK24: 0.001276400343 | BL24: 0.001276400343 | BM24: 0.001276400343 | BN24: 0.001276400343 | BO24: 0.001276400343 | BP24: 0.001276400343 | BQ24: 0.001276400343 | BR24: 0.001276400343 | BS24: 0.001276400343 | BT24: 0.001276400343 | BU24: 0.001276400343 | BV24: 0.001276400343 | BW24: 0.001276400343 | BX24: 0.001276400343 | BY24: 0.001276400343 | BZ24: 0.001276400343 | CA24: 0.001276400343 | CB24: 0.001276400343 | CC24: 0.001276400343
A25: 2 | B25: 2284 | C25: 15 | D25: 2 | E25: 2 | F25: 0.7738 | G25: 6277.014468 | H25: 0 | I25: 0 | J25: 0 | K25: 6277.014468 | L25: 0.7992143044 | M25: 10440176.69 | N25: 49348500.86 | O25: 0 | P25: 59788677.56 | Q25: 19.03132715 | R25: 0.04199467006 | S25: 1 | T25: 0 | U25: 2 | V25: 0 | W25: 0 | X25: 3 | Y25: 0 | Z25: 0 | AA25: 0 | AB25: 1 | AC25: 10 | AD25: -0.0568 | AE25: 1.02 | AF25: -0.2446 | AG25: 2.94 | AH25: -0.206 | AI25: 4.35 | AJ25: -0.153 | AK25: 9 | AL25: 10 | AM25: 16 | AN25: 21 | AO25: 20 | AP25: 19 | AQ25: 14 | AR25: 8 | AS25: 2 | AT25: 2 | AU25: 2 | AV25: 2 | AW25: 2 | AX25: 2 | AY25: 2 | AZ25: 2 | BA25: 0.001276400343 | BB25: 0.001276400343 | BC25: 0.001276400343 | BD25: 0.001276400343 | BE25: 0.001276400343 | BF25: 0.001276400343 | BG25: 0.001276400343 | BH25: 0.001276400343 | BI25: 0.001276400343 | BJ25: 0.001276400343 | BK25: 0.001276400343 | BL25: 0.001276400343 | BM25: 0.001276400343 | BN25: 0.001276400343 | BO25: 0.001276400343 | BP25: 0.001276400343 | BQ25: 0.001276400343 | BR25: 0.001276400343 | BS25: 0.001276400343 | BT25: 0.001276400343 | BU25: 0.001276400343 | BV25: 0.001276400343 | BW25: 0.001276400343 | BX25: 0.001276400343 | BY25: 0.001276400343 | BZ25: 0.001276400343 | CA25: 0.001276400343 | CB25: 0.001276400343 | CC25: 0.001276400343
A26: 2 | B26: 2283 | C26: 16 | D26: 2 | E26: 2 | F26: 0.7738 | G26: 86603.52403 | H26: 0 | I26: 0 | J26: 0 | K26: 86603.52403 | L26: 11.02670315 | M26: 10440176.69 | N26: 49348500.86 | O26: 0 | P26: 59788677.56 | Q26: 19.03132715 | R26: 0.5793974884 | S26: 1 | T26: 0 | U26: 2 | V26: 0 | W26: 0 | X26: 3 | Y26: 0 | Z26: 0 | AA26: 0 | AB26: 1 | AC26: 10 | AD26: -0.0568 | AE26: 1.02 | AF26: -0.2446 | AG26: 2.94 | AH26: -0.206 | AI26: 4.35 | AJ26: -0.153 | AK26: 10 | AL26: 11 | AM26: 17 | AN26: 22 | AO26: 21 | AP26: 20 | AQ26: 15 | AR26: 9 | AS26: 2 | AT26: 2 | AU26: 2 | AV26: 2 | AW26: 2 | AX26: 2 | AY26: 2 | AZ26: 2 | BA26: 0.001276400343 | BB26: 0.001276400343 | BC26: 0.001276400343 | BD26: 0.001276400343 | BE26: 0.001276400343 | BF26: 0.001276400343 | BG26: 0.001276400343 | BH26: 0.001276400343 | BI26: 0.001276400343 | BJ26: 0.001276400343 | BK26: 0.001276400343 | BL26: 0.001276400343 | BM26: 0.001276400343 | BN26: 0.001276400343 | BO26: 0.001276400343 | BP26: 0.001276400343 | BQ26: 0.001276400343 | BR26: 0.001276400343 | BS26: 0.001276400343 | BT26: 0.001276400343 | BU26: 0.001276400343 | BV26: 0.001276400343 | BW26: 0.001276400343 | BX26: 0.001276400343 | BY26: 0.001276400343 | BZ26: 0.001276400343 | CA26: 0.001276400343 | CB26: 0.001276400343 | CC26: 0.001276400343
A27: 2 | B27: 2282 | C27: 17 | D27: 2 | E27: 2 | F27: 0.7738 | G27: 131881.5559 | H27: 0 | I27: 0 | J27: 0 | K27: 131881.5559 | L27: 16.79168122 | M27: 10440176.69 | N27: 49348500.86 | O27: 0 | P27: 59788677.56 | Q27: 19.03132715 | R27: 0.8823179325 | S27: 1 | T27: 0 | U27: 2 | V27: 0 | W27: 0 | X27: 3 | Y27: 0 | Z27: 0 | AA27: 0 | AB27: 1 | AC27: 10 | AD27: -0.0568 | AE27: 1.02 | AF27: -0.2446 | AG27: 2.94 | AH27: -0.206 | AI27: 4.35 | AJ27: -0.153 | AK27: 11 | AL27: 1 | AM27: 3 | AN27: 8 | AO27: 22 | AP27: 21 | AQ27: 16 | AR27: 10 | AS27: 2 | AT27: 26 | AU27: 26 | AV27: 26 | AW27: 2 | AX27: 2 | AY27: 2 | AZ27: 2 | BA27: 0.001276400343 | BB27: 0.001276400343 | BC27: 0.001276400343 | BD27: 0.001276400343 | BE27: 0.001276400343 | BF27: 0.001276400343 | BG27: 0.001276400343 | BH27: 0.001276400343 | BI27: 0.001276400343 | BJ27: 0.001276400343 | BK27: 0.001276400343 | BL27: 0.001276400343 | BM27: 0.001276400343 | BN27: 0.001276400343 | BO27: 0.001276400343 | BP27: 0.001276400343 | BQ27: 0.001276400343 | BR27: 0.001276400343 | BS27: 0.001276400343 | BT27: 0.001276400343 | BU27: 0.001276400343 | BV27: 0.001276400343 | BW27: 0.001276400343 | BX27: 0.001276400343 | BY27: 0.001276400343 | BZ27: 0.001276400343 | CA27: 0.001276400343 | CB27: 0.001276400343 | CC27: 0.001276400343
A28: 2 | B28: 2392 | C28: 18 | D28: 4 | E28: 3 | F28: 0.9165 | G28: 368361.3658 | H28: 0 | I28: 0 | J28: 0 | K28: 368361.3658 | L28: 46.90122577 | M28: 8970970.832 | N28: 45589480.13 | O28: 0 | P28: 54560450.96 | Q28: 17.36713093 | R28: 2.700574202 | S28: 0 | T28: 1 | U28: 2 | V28: 2 | W28: 0 | X28: 3 | Y28: 0 | Z28: 0 | AA28: 0 | AB28: 2 | AC28: 10 | AD28: -0.1034 | AE28: 1.035 | AF28: -0.4288 | AG28: 1.52 | AH28: -0.076 | AI28: 4.35 | AJ28: -0.153 | AK28: 13 | AL28: 14 | AM28: 19 | AN28: 24 | AO28: 23 | AP28: 0 | AQ28: 0 | AR28: 12 | AS28: 2 | AT28: 2 | AU28: 2 | AV28: 2 | AW28: 2 | AX28: 0 | AY28: 0 | AZ28: 2 | BA28: 0.001276400343 | BB28: 0.001276400343 | BC28: 0.001276400343 | BD28: 0.001276400343 | BE28: 0.001276400343 | BF28: 0.001276400343 | BG28: 0.001276400343 | BH28: 0.001276400343 | BI28: 0.001276400343 | BJ28: 0.001276400343 | BK28: 0.001276400343 | BL28: 0.001276400343 | BM28: 0.001276400343 | BN28: 0.001276400343 | BO28: 0.001276400343 | BP28: 0.001276400343 | BQ28: 0.001276400343 | BR28: 0.001276400343 | BS28: 0.001276400343 | BT28: 0.001276400343 | BU28: 0.001276400343 | BV28: 0.001276400343 | BW28: 0.001276400343 | BX28: 0.001276400343 | BY28: 0.001276400343 | BZ28: 0.001276400343 | CA28: 0.001276400343 | CB28: 0.001276400343 | CC28: 0.001276400343
A29: 2 | B29: 2391 | C29: 19 | D29: 4 | E29: 3 | F29: 0.9165 | G29: 354450.7887 | H29: 0 | I29: 0 | J29: 0 | K29: 354450.7887 | L29: 45.13007609 | M29: 8970970.832 | N29: 45589480.13 | O29: 0 | P29: 54560450.96 | Q29: 17.36713093 | R29: 2.598591342 | S29: 0 | T29: 1 | U29: 2 | V29: 2 | W29: 0 | X29: 3 | Y29: 0 | Z29: 0 | AA29: 0 | AB29: 2 | AC29: 10 | AD29: -0.1034 | AE29: 1.035 | AF29: -0.4288 | AG29: 1.52 | AH29: -0.076 | AI29: 4.35 | AJ29: -0.153 | AK29: 14 | AL29: 15 | AM29: 20 | AN29: 25 | AO29: 24 | AP29: 23 | AQ29: 18 | AR29: 13 | AS29: 2 | AT29: 2 | AU29: 2 | AV29: 2 | AW29: 2 | AX29: 2 | AY29: 2 | AZ29: 2 | BA29: 0.001276400343 | BB29: 0.001276400343 | BC29: 0.001276400343 | BD29: 0.001276400343 | BE29: 0.001276400343 | BF29: 0.001276400343 | BG29: 0.001276400343 | BH29: 0.001276400343 | BI29: 0.001276400343 | BJ29: 0.001276400343 | BK29: 0.001276400343 | BL29: 0.001276400343 | BM29: 0.001276400343 | BN29: 0.001276400343 | BO29: 0.001276400343 | BP29: 0.001276400343 | BQ29: 0.001276400343 | BR29: 0.001276400343 | BS29: 0.001276400343 | BT29: 0.001276400343 | BU29: 0.001276400343 | BV29: 0.001276400343 | BW29: 0.001276400343 | BX29: 0.001276400343 | BY29: 0.001276400343 | BZ29: 0.001276400343 | CA29: 0.001276400343 | CB29: 0.001276400343 | CC29: 0.001276400343
A30: 2 | B30: 2390 | C30: 20 | D30: 5 | E30: 4 | F30: 0.8321 | G30: 7228.3599 | H30: 0 | I30: 0 | J30: 0 | K30: 7228.3599 | L30: 0.9203433668 | M30: 11136474.5 | N30: 39901365.79 | O30: 0 | P30: 51037840.29 | Q30: 16.24584913 | R30: 0.05665098569 | S30: 1 | T30: 0 | U30: 2 | V30: 0 | W30: 0 | X30: 3 | Y30: 0 | Z30: 0 | AA30: 0 | AB30: 1 | AC30: 10 | AD30: -0.0568 | AE30: 1.02 | AF30: -0.2446 | AG30: 2.94 | AH30: -0.206 | AI30: 4.35 | AJ30: -0.153 | AK30: 15 | AL30: 16 | AM30: 21 | AN30: 26 | AO30: 25 | AP30: 24 | AQ30: 19 | AR30: 14 | AS30: 2 | AT30: 2 | AU30: 2 | AV30: 2 | AW30: 2 | AX30: 2 | AY30: 2 | AZ30: 2 | BA30: 0.001276400343 | BB30: 0.001276400343 | BC30: 0.001276400343 | BD30: 0.001276400343 | BE30: 0.001276400343 | BF30: 0.001276400343 | BG30: 0.001276400343 | BH30: 0.001276400343 | BI30: 0.001276400343 | BJ30: 0.001276400343 | BK30: 0.001276400343 | BL30: 0.001276400343 | BM30: 0.001276400343 | BN30: 0.001276400343 | BO30: 0.001276400343 | BP30: 0.001276400343 | BQ30: 0.001276400343 | BR30: 0.001276400343 | BS30: 0.001276400343 | BT30: 0.001276400343 | BU30: 0.001276400343 | BV30: 0.001276400343 | BW30: 0.001276400343 | BX30: 0.001276400343 | BY30: 0.001276400343 | BZ30: 0.001276400343 | CA30: 0.001276400343 | CB30: 0.001276400343 | CC30: 0.001276400343
A31: 2 | B31: 2389 | C31: 21 | D31: 5 | E31: 4 | F31: 0.8321 | G31: 4748.436568 | H31: 0 | I31: 0 | J31: 0 | K31: 4748.436568 | L31: 0.6045897214 | M31: 11136474.5 | N31: 39901365.79 | O31: 0 | P31: 51037840.29 | Q31: 16.24584913 | R31: 0.03721502745 | S31: 1 | T31: 0 | U31: 2 | V31: 0 | W31: 0 | X31: 3 | Y31: 0 | Z31: 0 | AA31: 0 | AB31: 1 | AC31: 10 | AD31: -0.0568 | AE31: 1.02 | AF31: -0.2446 | AG31: 2.94 | AH31: -0.206 | AI31: 4.35 | AJ31: -0.153 | AK31: 16 | AL31: 17 | AM31: 22 | AN31: 27 | AO31: 26 | AP31: 25 | AQ31: 20 | AR31: 15 | AS31: 2 | AT31: 2 | AU31: 2 | AV31: 2 | AW31: 2 | AX31: 2 | AY31: 2 | AZ31: 2 | BA31: 0.001276400343 | BB31: 0.001276400343 | BC31: 0.001276400343 | BD31: 0.001276400343 | BE31: 0.001276400343 | BF31: 0.001276400343 | BG31: 0.001276400343 | BH31: 0.001276400343 | BI31: 0.001276400343 | BJ31: 0.001276400343 | BK31: 0.001276400343 | BL31: 0.001276400343 | BM31: 0.001276400343 | BN31: 0.001276400343 | BO31: 0.001276400343 | BP31: 0.001276400343 | BQ31: 0.001276400343 | BR31: 0.001276400343 | BS31: 0.001276400343 | BT31: 0.001276400343 | BU31: 0.001276400343 | BV31: 0.001276400343 | BW31: 0.001276400343 | BX31: 0.001276400343 | BY31: 0.001276400343 | BZ31: 0.001276400343 | CA31: 0.001276400343 | CB31: 0.001276400343 | CC31: 0.001276400343
A32: 2 | B32: 2388 | C32: 22 | D32: 5 | E32: 4 | F32: 0.8321 | G32: 58788.58787 | H32: 0 | I32: 0 | J32: 0 | K32: 58788.58787 | L32: 7.485195486 | M32: 11136474.5 | N32: 39901365.79 | O32: 0 | P32: 51037840.29 | Q32: 16.24584913 | R32: 0.4607451063 | S32: 1 | T32: 0 | U32: 2 | V32: 0 | W32: 0 | X32: 3 | Y32: 0 | Z32: 0 | AA32: 0 | AB32: 1 | AC32: 10 | AD32: -0.0568 | AE32: 1.02 | AF32: -0.2446 | AG32: 2.94 | AH32: -0.206 | AI32: 4.35 | AJ32: -0.153 | AK32: 17 | AL32: 3 | AM32: 8 | AN32: 28 | AO32: 27 | AP32: 26 | AQ32: 21 | AR32: 16 | AS32: 2 | AT32: 26 | AU32: 26 | AV32: 2 | AW32: 2 | AX32: 2 | AY32: 2 | AZ32: 2 | BA32: 0.001276400343 | BB32: 0.001276400343 | BC32: 0.001276400343 | BD32: 0.001276400343 | BE32: 0.001276400343 | BF32: 0.001276400343 | BG32: 0.001276400343 | BH32: 0.001276400343 | BI32: 0.001276400343 | BJ32: 0.001276400343 | BK32: 0.001276400343 | BL32: 0.001276400343 | BM32: 0.001276400343 | BN32: 0.001276400343 | BO32: 0.001276400343 | BP32: 0.001276400343 | BQ32: 0.001276400343 | BR32: 0.001276400343 | BS32: 0.001276400343 | BT32: 0.001276400343 | BU32: 0.001276400343 | BV32: 0.001276400343 | BW32: 0.001276400343 | BX32: 0.001276400343 | BY32: 0.001276400343 | BZ32: 0.001276400343 | CA32: 0.001276400343 | CB32: 0.001276400343 | CC32: 0.001276400343
A33: 2 | B33: 2383 | C33: 23 | D33: 4 | E33: 3 | F33: 0.9165 | G33: 365270.0113 | H33: 0 | I33: 0 | J33: 0 | K33: 365270.0113 | L33: 46.50762229 | M33: 8970970.832 | N33: 45589480.13 | O33: 0 | P33: 54560450.96 | Q33: 17.36713093 | R33: 2.6779105 | S33: 0 | T33: 1 | U33: 2 | V33: 2 | W33: 0 | X33: 3 | Y33: 0 | Z33: 0 | AA33: 0 | AB33: 2 | AC33: 10 | AD33: -0.1034 | AE33: 1.035 | AF33: -0.4288 | AG33: 1.52 | AH33: -0.076 | AI33: 4.35 | AJ33: -0.153 | AK33: 18 | AL33: 19 | AM33: 24 | AN33: 30 | AO33: 29 | AP33: 0 | AQ33: 0 | AR33: 0 | AS33: 2 | AT33: 2 | AU33: 2 | AV33: 2 | AW33: 2 | AX33: 0 | AY33: 0 | AZ33: 0 | BA33: 0.001276400343 | BB33: 0.001276400343 | BC33: 0.001276400343 | BD33: 0.001276400343 | BE33: 0.001276400343 | BF33: 0.001276400343 | BG33: 0.001276400343 | BH33: 0.001276400343 | BI33: 0.001276400343 | BJ33: 0.001276400343 | BK33: 0.001276400343 | BL33: 0.001276400343 | BM33: 0.001276400343 | BN33: 0.001276400343 | BO33: 0.001276400343 | BP33: 0.001276400343 | BQ33: 0.001276400343 | BR33: 0.001276400343 | BS33: 0.001276400343 | BT33: 0.001276400343 | BU33: 0.001276400343 | BV33: 0.001276400343 | BW33: 0.001276400343 | BX33: 0.001276400343 | BY33: 0.001276400343 | BZ33: 0.001276400343 | CA33: 0.001276400343 | CB33: 0.001276400343 | CC33: 0.001276400343
A34: 2 | B34: 2382 | C34: 24 | D34: 4 | E34: 3 | F34: 0.9165 | G34: 355183.4698 | H34: 0 | I34: 0 | J34: 0 | K34: 355183.4698 | L34: 45.22336394 | M34: 8970970.832 | N34: 45589480.13 | O34: 0 | P34: 54560450.96 | Q34: 17.36713093 | R34: 2.60396286 | S34: 0 | T34: 1 | U34: 2 | V34: 2 | W34: 0 | X34: 3 | Y34: 0 | Z34: 0 | AA34: 0 | AB34: 2 | AC34: 10 | AD34: -0.1034 | AE34: 1.035 | AF34: -0.4288 | AG34: 1.52 | AH34: -0.076 | AI34: 4.35 | AJ34: -0.153 | AK34: 19 | AL34: 20 | AM34: 25 | AN34: 31 | AO34: 30 | AP34: 29 | AQ34: 23 | AR34: 18 | AS34: 2 | AT34: 2 | AU34: 2 | AV34: 2 | AW34: 2 | AX34: 2 | AY34: 2 | AZ34: 2 | BA34: 0.001276400343 | BB34: 0.001276400343 | BC34: 0.001276400343 | BD34: 0.001276400343 | BE34: 0.001276400343 | BF34: 0.001276400343 | BG34: 0.001276400343 | BH34: 0.001276400343 | BI34: 0.001276400343 | BJ34: 0.001276400343 | BK34: 0.001276400343 | BL34: 0.001276400343 | BM34: 0.001276400343 | BN34: 0.001276400343 | BO34: 0.001276400343 | BP34: 0.001276400343 | BQ34: 0.001276400343 | BR34: 0.001276400343 | BS34: 0.001276400343 | BT34: 0.001276400343 | BU34: 0.001276400343 | BV34: 0.001276400343 | BW34: 0.001276400343 | BX34: 0.001276400343 | BY34: 0.001276400343 | BZ34: 0.001276400343 | CA34: 0.001276400343 | CB34: 0.001276400343 | CC34: 0.001276400343
A35: 2 | B35: 2381 | C35: 25 | D35: 5 | E35: 4 | F35: 0.8321 | G35: 6006.533904 | H35: 0 | I35: 0 | J35: 0 | K35: 6006.533904 | L35: 0.7647756493 | M35: 11136474.5 | N35: 39901365.79 | O35: 0 | P35: 51037840.29 | Q35: 16.24584913 | R35: 0.04707514166 | S35: 1 | T35: 0 | U35: 2 | V35: 0 | W35: 0 | X35: 3 | Y35: 0 | Z35: 0 | AA35: 0 | AB35: 1 | AC35: 10 | AD35: -0.0568 | AE35: 1.02 | AF35: -0.2446 | AG35: 2.94 | AH35: -0.206 | AI35: 4.35 | AJ35: -0.153 | AK35: 20 | AL35: 21 | AM35: 26 | AN35: 32 | AO35: 31 | AP35: 30 | AQ35: 24 | AR35: 19 | AS35: 2 | AT35: 2 | AU35: 2 | AV35: 2 | AW35: 2 | AX35: 2 | AY35: 2 | AZ35: 2 | BA35: 0.001276400343 | BB35: 0.001276400343 | BC35: 0.001276400343 | BD35: 0.001276400343 | BE35: 0.001276400343 | BF35: 0.001276400343 | BG35: 0.001276400343 | BH35: 0.001276400343 | BI35: 0.001276400343 | BJ35: 0.001276400343 | BK35: 0.001276400343 | BL35: 0.001276400343 | BM35: 0.001276400343 | BN35: 0.001276400343 | BO35: 0.001276400343 | BP35: 0.001276400343 | BQ35: 0.001276400343 | BR35: 0.001276400343 | BS35: 0.001276400343 | BT35: 0.001276400343 | BU35: 0.001276400343 | BV35: 0.001276400343 | BW35: 0.001276400343 | BX35: 0.001276400343 | BY35: 0.001276400343 | BZ35: 0.001276400343 | CA35: 0.001276400343 | CB35: 0.001276400343 | CC35: 0.001276400343
A36: 2 | B36: 2380 | C36: 26 | D36: 5 | E36: 4 | F36: 0.8321 | G36: 5329.814332 | H36: 0 | I36: 0 | J36: 0 | K36: 5329.814332 | L36: 0.6786130374 | M36: 11136474.5 | N36: 39901365.79 | O36: 0 | P36: 51037840.29 | Q36: 16.24584913 | R36: 0.04177147232 | S36: 1 | T36: 0 | U36: 2 | V36: 0 | W36: 0 | X36: 3 | Y36: 0 | Z36: 0 | AA36: 0 | AB36: 1 | AC36: 10 | AD36: -0.0568 | AE36: 1.02 | AF36: -0.2446 | AG36: 2.94 | AH36: -0.206 | AI36: 4.35 | AJ36: -0.153 | AK36: 21 | AL36: 22 | AM36: 27 | AN36: 33 | AO36: 32 | AP36: 31 | AQ36: 25 | AR36: 20 | AS36: 2 | AT36: 2 | AU36: 2 | AV36: 2 | AW36: 2 | AX36: 2 | AY36: 2 | AZ36: 2 | BA36: 0.001276400343 | BB36: 0.001276400343 | BC36: 0.001276400343 | BD36: 0.001276400343 | BE36: 0.001276400343 | BF36: 0.001276400343 | BG36: 0.001276400343 | BH36: 0.001276400343 | BI36: 0.001276400343 | BJ36: 0.001276400343 | BK36: 0.001276400343 | BL36: 0.001276400343 | BM36: 0.001276400343 | BN36: 0.001276400343 | BO36: 0.001276400343 | BP36: 0.001276400343 | BQ36: 0.001276400343 | BR36: 0.001276400343 | BS36: 0.001276400343 | BT36: 0.001276400343 | BU36: 0.001276400343 | BV36: 0.001276400343 | BW36: 0.001276400343 | BX36: 0.001276400343 | BY36: 0.001276400343 | BZ36: 0.001276400343 | CA36: 0.001276400343 | CB36: 0.001276400343 | CC36: 0.001276400343
A37: 2 | B37: 2379 | C37: 27 | D37: 5 | E37: 4 | F37: 0.8321 | G37: 1336.85796 | H37: 0 | I37: 0 | J37: 0 | K37: 1336.85796 | L37: 0.170214042 | M37: 11136474.5 | N37: 39901365.79 | O37: 0 | P37: 51037840.29 | Q37: 16.24584913 | R37: 0.0104773866 | S37: 1 | T37: 0 | U37: 2 | V37: 0 | W37: 0 | X37: 3 | Y37: 0 | Z37: 0 | AA37: 0 | AB37: 1 | AC37: 10 | AD37: -0.0568 | AE37: 1.02 | AF37: -0.2446 | AG37: 2.94 | AH37: -0.206 | AI37: 4.35 | AJ37: -0.153 | AK37: 22 | AL37: 8 | AM37: 28 | AN37: 0 | AO37: 33 | AP37: 32 | AQ37: 26 | AR37: 21 | AS37: 2 | AT37: 26 | AU37: 2 | AV37: 0 | AW37: 2 | AX37: 2 | AY37: 2 | AZ37: 2 | BA37: 0.001276400343 | BB37: 0.001276400343 | BC37: 0.001276400343 | BD37: 0.001276400343 | BE37: 0.001276400343 | BF37: 0.001276400343 | BG37: 0.001276400343 | BH37: 0.001276400343 | BI37: 0.001276400343 | BJ37: 0.001276400343 | BK37: 0.001276400343 | BL37: 0.001276400343 | BM37: 0.001276400343 | BN37: 0.001276400343 | BO37: 0.001276400343 | BP37: 0.001276400343 | BQ37: 0.001276400343 | BR37: 0.001276400343 | BS37: 0.001276400343 | BT37: 0.001276400343 | BU37: 0.001276400343 | BV37: 0.001276400343 | BW37: 0.001276400343 | BX37: 0.001276400343 | BY37: 0.001276400343 | BZ37: 0.001276400343 | CA37: 0.001276400343 | CB37: 0.001276400343 | CC37: 0.001276400343
A38: 2 | B38: 2378 | C38: 28 | D38: 5 | E38: 4 | F38: 0.8321 | G38: 5246.908412 | H38: 0 | I38: 0 | J38: 0 | K38: 5246.908412 | L38: 0.6680571278 | M38: 11136474.5 | N38: 39901365.79 | O38: 0 | P38: 51037840.29 | Q38: 16.24584913 | R38: 0.04112171191 | S38: 1 | T38: 0 | U38: 2 | V38: 0 | W38: 0 | X38: 3 | Y38: 0 | Z38: 0 | AA38: 0 | AB38: 1 | AC38: 10 | AD38: -0.0568 | AE38: 1.02 | AF38: -0.2446 | AG38: 2.94 | AH38: -0.206 | AI38: 4.35 | AJ38: -0.153 | AK38: 8 | AL38: 9 | AM38: 0 | AN38: 0 | AO38: 0 | AP38: 33 | AQ38: 27 | AR38: 22 | AS38: 26 | AT38: 26 | AU38: 0 | AV38: 0 | AW38: 0 | AX38: 2 | AY38: 2 | AZ38: 2 | BA38: 0.001276400343 | BB38: 0.001276400343 | BC38: 0.001276400343 | BD38: 0.001276400343 | BE38: 0.001276400343 | BF38: 0.001276400343 | BG38: 0.001276400343 | BH38: 0.001276400343 | BI38: 0.001276400343 | BJ38: 0.001276400343 | BK38: 0.001276400343 | BL38: 0.001276400343 | BM38: 0.001276400343 | BN38: 0.001276400343 | BO38: 0.001276400343 | BP38: 0.001276400343 | BQ38: 0.001276400343 | BR38: 0.001276400343 | BS38: 0.001276400343 | BT38: 0.001276400343 | BU38: 0.001276400343 | BV38: 0.001276400343 | BW38: 0.001276400343 | BX38: 0.001276400343 | BY38: 0.001276400343 | BZ38: 0.001276400343 | CA38: 0.001276400343 | CB38: 0.001276400343 | CC38: 0.001276400343
A39: 2 | B39: 2375 | C39: 29 | D39: 4 | E39: 3 | F39: 0.9165 | G39: 54610.1295 | H39: 0 | I39: 0 | J39: 0 | K39: 54610.1295 | L39: 6.953177643 | M39: 8970970.832 | N39: 45589480.13 | O39: 0 | P39: 54560450.96 | Q39: 17.36713093 | R39: 0.4003642092 | S39: 1 | T39: 0 | U39: 2 | V39: 0 | W39: 0 | X39: 3 | Y39: 0 | Z39: 0 | AA39: 0 | AB39: 1 | AC39: 10 | AD39: -0.0568 | AE39: 1.02 | AF39: -0.2446 | AG39: 2.94 | AH39: -0.206 | AI39: 4.35 | AJ39: -0.153 | AK39: 23 | AL39: 24 | AM39: 30 | AN39: 34 | AO39: 0 | AP39: 0 | AQ39: 0 | AR39: 0 | AS39: 2 | AT39: 2 | AU39: 2 | AV39: 2 | AW39: 0 | AX39: 0 | AY39: 0 | AZ39: 0 | BA39: 0.001276400343 | BB39: 0.001276400343 | BC39: 0.001276400343 | BD39: 0.001276400343 | BE39: 0.001276400343 | BF39: 0.001276400343 | BG39: 0.001276400343 | BH39: 0.001276400343 | BI39: 0.001276400343 | BJ39: 0.001276400343 | BK39: 0.001276400343 | BL39: 0.001276400343 | BM39: 0.001276400343 | BN39: 0.001276400343 | BO39: 0.001276400343 | BP39: 0.001276400343 | BQ39: 0.001276400343 | BR39: 0.001276400343 | BS39: 0.001276400343 | BT39: 0.001276400343 | BU39: 0.001276400343 | BV39: 0.001276400343 | BW39: 0.001276400343 | BX39: 0.001276400343 | BY39: 0.001276400343 | BZ39: 0.001276400343 | CA39: 0.001276400343 | CB39: 0.001276400343 | CC39: 0.001276400343
A40: 2 | B40: 2374 | C40: 30 | D40: 4 | E40: 3 | F40: 0.9165 | G40: 32712.60338 | H40: 0 | I40: 0 | J40: 0 | K40: 32712.60338 | L40: 4.165098024 | M40: 8970970.832 | N40: 45589480.13 | O40: 0 | P40: 54560450.96 | Q40: 17.36713093 | R40: 0.2398264883 | S40: 1 | T40: 0 | U40: 2 | V40: 0 | W40: 0 | X40: 3 | Y40: 0 | Z40: 0 | AA40: 0 | AB40: 1 | AC40: 10 | AD40: -0.0568 | AE40: 1.02 | AF40: -0.2446 | AG40: 2.94 | AH40: -0.206 | AI40: 4.35 | AJ40: -0.153 | AK40: 24 | AL40: 25 | AM40: 31 | AN40: 35 | AO40: 34 | AP40: 0 | AQ40: 29 | AR40: 23 | AS40: 2 | AT40: 2 | AU40: 2 | AV40: 2 | AW40: 2 | AX40: 0 | AY40: 2 | AZ40: 2 | BA40: 0.001276400343 | BB40: 0.001276400343 | BC40: 0.001276400343 | BD40: 0.001276400343 | BE40: 0.001276400343 | BF40: 0.001276400343 | BG40: 0.001276400343 | BH40: 0.001276400343 | BI40: 0.001276400343 | BJ40: 0.001276400343 | BK40: 0.001276400343 | BL40: 0.001276400343 | BM40: 0.001276400343 | BN40: 0.001276400343 | BO40: 0.001276400343 | BP40: 0.001276400343 | BQ40: 0.001276400343 | BR40: 0.001276400343 | BS40: 0.001276400343 | BT40: 0.001276400343 | BU40: 0.001276400343 | BV40: 0.001276400343 | BW40: 0.001276400343 | BX40: 0.001276400343 | BY40: 0.001276400343 | BZ40: 0.001276400343 | CA40: 0.001276400343 | CB40: 0.001276400343 | CC40: 0.001276400343
A41: 2 | B41: 2373 | C41: 31 | D41: 5 | E41: 4 | F41: 0.8321 | G41: 15816.37689 | H41: 0 | I41: 0 | J41: 0 | K41: 15816.37689 | L41: 2.013803651 | M41: 11136474.5 | N41: 39901365.79 | O41: 0 | P41: 51037840.29 | Q41: 16.24584913 | R41: 0.1239580421 | S41: 1 | T41: 0 | U41: 2 | V41: 0 | W41: 0 | X41: 3 | Y41: 0 | Z41: 0 | AA41: 0 | AB41: 1 | AC41: 10 | AD41: -0.0568 | AE41: 1.02 | AF41: -0.2446 | AG41: 2.94 | AH41: -0.206 | AI41: 4.35 | AJ41: -0.153 | AK41: 25 | AL41: 26 | AM41: 32 | AN41: 36 | AO41: 35 | AP41: 34 | AQ41: 30 | AR41: 24 | AS41: 2 | AT41: 2 | AU41: 2 | AV41: 2 | AW41: 2 | AX41: 2 | AY41: 2 | AZ41: 2 | BA41: 0.001276400343 | BB41: 0.001276400343 | BC41: 0.001276400343 | BD41: 0.001276400343 | BE41: 0.001276400343 | BF41: 0.001276400343 | BG41: 0.001276400343 | BH41: 0.001276400343 | BI41: 0.001276400343 | BJ41: 0.001276400343 | BK41: 0.001276400343 | BL41: 0.001276400343 | BM41: 0.001276400343 | BN41: 0.001276400343 | BO41: 0.001276400343 | BP41: 0.001276400343 | BQ41: 0.001276400343 | BR41: 0.001276400343 | BS41: 0.001276400343 | BT41: 0.001276400343 | BU41: 0.001276400343 | BV41: 0.001276400343 | BW41: 0.001276400343 | BX41: 0.001276400343 | BY41: 0.001276400343 | BZ41: 0.001276400343 | CA41: 0.001276400343 | CB41: 0.001276400343 | CC41: 0.001276400343
A42: 2 | B42: 2372 | C42: 32 | D42: 5 | E42: 4 | F42: 0.8321 | G42: 5308.051528 | H42: 0 | I42: 0 | J42: 0 | K42: 5308.051528 | L42: 0.6758421111 | M42: 11136474.5 | N42: 39901365.79 | O42: 0 | P42: 51037840.29 | Q42: 16.24584913 | R42: 0.04160091021 | S42: 1 | T42: 0 | U42: 2 | V42: 0 | W42: 0 | X42: 3 | Y42: 0 | Z42: 0 | AA42: 0 | AB42: 1 | AC42: 10 | AD42: -0.0568 | AE42: 1.02 | AF42: -0.2446 | AG42: 2.94 | AH42: -0.206 | AI42: 4.35 | AJ42: -0.153 | AK42: 26 | AL42: 27 | AM42: 33 | AN42: 37 | AO42: 36 | AP42: 35 | AQ42: 31 | AR42: 25 | AS42: 2 | AT42: 2 | AU42: 2 | AV42: 2 | AW42: 2 | AX42: 2 | AY42: 2 | AZ42: 2 | BA42: 0.001276400343 | BB42: 0.001276400343 | BC42: 0.001276400343 | BD42: 0.001276400343 | BE42: 0.001276400343 | BF42: 0.001276400343 | BG42: 0.001276400343 | BH42: 0.001276400343 | BI42: 0.001276400343 | BJ42: 0.001276400343 | BK42: 0.001276400343 | BL42: 0.001276400343 | BM42: 0.001276400343 | BN42: 0.001276400343 | BO42: 0.001276400343 | BP42: 0.001276400343 | BQ42: 0.001276400343 | BR42: 0.001276400343 | BS42: 0.001276400343 | BT42: 0.001276400343 | BU42: 0.001276400343 | BV42: 0.001276400343 | BW42: 0.001276400343 | BX42: 0.001276400343 | BY42: 0.001276400343 | BZ42: 0.001276400343 | CA42: 0.001276400343 | CB42: 0.001276400343 | CC42: 0.001276400343
A43: 2 | B43: 2371 | C43: 33 | D43: 5 | E43: 4 | F43: 0.8321 | G43: 1285.04176 | H43: 0 | I43: 0 | J43: 0 | K43: 1285.04176 | L43: 0.1636165985 | M43: 11136474.5 | N43: 39901365.79 | O43: 0 | P43: 51037840.29 | Q43: 16.24584913 | R43: =L43/Q43 -> 0.01007128635 | S43: 1 | T43: 0 | U43: 2 | V43: 0 | W43: 0 | X43: 3 | Y43: 0 | Z43: 0 | AA43: 0 | AB43: 1 | AC43: 10 | AD43: -0.0568 | AE43: 1.02 | AF43: -0.2446 | AG43: 2.94 | AH43: -0.206 | AI43: 4.35 | AJ43: -0.153 | AK43: 27 | AL43: 28 | AM43: 0 | AN43: 0 | AO43: 37 | AP43: 36 | AQ43: 32 | AR43: 26 | AS43: 2 | AT43: 2 | AU43: 0 | AV43: 0 | AW43: 2 | AX43: 2 | AY43: 2 | AZ43: 2 | BA43: 0.001276400343 | BB43: 0.001276400343 | BC43: 0.001276400343 | BD43: 0.001276400343 | BE43: 0.001276400343 | BF43: 0.001276400343 | BG43: 0.001276400343 | BH43: 0.001276400343 | BI43: 0.001276400343 | BJ43: 0.001276400343 | BK43: 0.001276400343 | BL43: 0.001276400343 | BM43: 0.001276400343 | BN43: 0.001276400343 | BO43: 0.001276400343 | BP43: 0.001276400343 | BQ43: 0.001276400343 | BR43: 0.001276400343 | BS43: 0.001276400343 | BT43: 0.001276400343 | BU43: 0.001276400343 | BV43: 0.001276400343 | BW43: 0.001276400343 | BX43: 0.001276400343 | BY43: 0.001276400343 | BZ43: 0.001276400343 | CA43: 0.001276400343 | CB43: 0.001276400343 | CC43: 0.001276400343
A44: 2 | B44: 2367 | C44: 34 | D44: 4 | E44: 3 | F44: 0.9165 | G44: 56846.5167 | H44: 0 | I44: 0 | J44: 0 | K44: 56846.5167 | L44: 7.237923304 | M44: 8970970.832 | N44: 45589480.13 | O44: 0 | P44: 54560450.96 | Q44: 17.36713093 | R44: 0.4167598742 | S44: 1 | T44: 0 | U44: 2 | V44: 0 | W44: 0 | X44: 3 | Y44: 0 | Z44: 0 | AA44: 0 | AB44: 1 | AC44: 10 | AD44: -0.0568 | AE44: 1.02 | AF44: -0.2446 | AG44: 2.94 | AH44: -0.206 | AI44: 4.35 | AJ44: -0.153 | AK44: 30 | AL44: 31 | AM44: 35 | AN44: 39 | AO44: 38 | AP44: 0 | AQ44: 0 | AR44: 0 | AS44: 2 | AT44: 2 | AU44: 2 | AV44: 2 | AW44: 2 | AX44: 0 | AY44: 0 | AZ44: 0 | BA44: 0.001276400343 | BB44: 0.001276400343 | BC44: 0.001276400343 | BD44: 0.001276400343 | BE44: 0.001276400343 | BF44: 0.001276400343 | BG44: 0.001276400343 | BH44: 0.001276400343 | BI44: 0.001276400343 | BJ44: 0.001276400343 | BK44: 0.001276400343 | BL44: 0.001276400343 | BM44: 0.001276400343 | BN44: 0.001276400343 | BO44: 0.001276400343 | BP44: 0.001276400343 | BQ44: 0.001276400343 | BR44: 0.001276400343 | BS44: 0.001276400343 | BT44: 0.001276400343 | BU44: 0.001276400343 | BV44: 0.001276400343 | BW44: 0.001276400343 | BX44: 0.001276400343 | BY44: 0.001276400343 | BZ44: 0.001276400343 | CA44: 0.001276400343 | CB44: 0.001276400343 | CC44: 0.001276400343
A45: 2 | B45: 2366 | C45: 35 | D45: 5 | E45: 4 | F45: 0.8321 | G45: 59149.22862 | H45: 0 | I45: 0 | J45: 0 | K45: 59149.22862 | L45: 7.531113692 | M45: 11136474.5 | N45: 39901365.79 | O45: 0 | P45: 51037840.29 | Q45: 16.24584913 | R45: 0.4635715641 | S45: 1 | T45: 0 | U45: 2 | V45: 0 | W45: 0 | X45: 3 | Y45: 0 | Z45: 0 | AA45: 0 | AB45: 1 | AC45: 10 | AD45: -0.0568 | AE45: 1.02 | AF45: -0.2446 | AG45: 2.94 | AH45: -0.206 | AI45: 4.35 | AJ45: -0.153 | AK45: 31 | AL45: 32 | AM45: 36 | AN45: 40 | AO45: 39 | AP45: 38 | AQ45: 34 | AR45: 30 | AS45: 2 | AT45: 2 | AU45: 2 | AV45: 2 | AW45: 2 | AX45: 2 | AY45: 2 | AZ45: 2 | BA45: 0.001276400343 | BB45: 0.001276400343 | BC45: 0.001276400343 | BD45: 0.001276400343 | BE45: 0.001276400343 | BF45: 0.001276400343 | BG45: 0.001276400343 | BH45: 0.001276400343 | BI45: 0.001276400343 | BJ45: 0.001276400343 | BK45: 0.001276400343 | BL45: 0.001276400343 | BM45: 0.001276400343 | BN45: 0.001276400343 | BO45: 0.001276400343 | BP45: 0.001276400343 | BQ45: 0.001276400343 | BR45: 0.001276400343 | BS45: 0.001276400343 | BT45: 0.001276400343 | BU45: 0.001276400343 | BV45: 0.001276400343 | BW45: 0.001276400343 | BX45: 0.001276400343 | BY45: 0.001276400343 | BZ45: 0.001276400343 | CA45: 0.001276400343 | CB45: 0.001276400343 | CC45: 0.001276400343
A46: 2 | B46: 2365 | C46: 36 | D46: 5 | E46: 4 | F46: 0.8321 | G46: 4225.092948 | H46: 0 | I46: 0 | J46: 0 | K46: 4225.092948 | L46: 0.5379555422 | M46: 11136474.5 | N46: 39901365.79 | O46: 0 | P46: 51037840.29 | Q46: 16.24584913 | R46: 0.03311341486 | S46: 1 | T46: 0 | U46: 2 | V46: 0 | W46: 0 | X46: 3 | Y46: 0 | Z46: 0 | AA46: 0 | AB46: 1 | AC46: 10 | AD46: -0.0568 | AE46: 1.02 | AF46: -0.2446 | AG46: 2.94 | AH46: -0.206 | AI46: 4.35 | AJ46: -0.153 | AK46: 32 | AL46: 33 | AM46: 37 | AN46: 41 | AO46: 40 | AP46: 39 | AQ46: 35 | AR46: 31 | AS46: 2 | AT46: 2 | AU46: 2 | AV46: 2 | AW46: 2 | AX46: 2 | AY46: 2 | AZ46: 2 | BA46: 0.001276400343 | BB46: 0.001276400343 | BC46: 0.001276400343 | BD46: 0.001276400343 | BE46: 0.001276400343 | BF46: 0.001276400343 | BG46: 0.001276400343 | BH46: 0.001276400343 | BI46: 0.001276400343 | BJ46: 0.001276400343 | BK46: 0.001276400343 | BL46: 0.001276400343 | BM46: 0.001276400343 | BN46: 0.001276400343 | BO46: 0.001276400343 | BP46: 0.001276400343 | BQ46: 0.001276400343 | BR46: 0.001276400343 | BS46: 0.001276400343 | BT46: 0.001276400343 | BU46: 0.001276400343 | BV46: 0.001276400343 | BW46: 0.001276400343 | BX46: 0.001276400343 | BY46: 0.001276400343 | BZ46: 0.001276400343 | CA46: 0.001276400343 | CB46: 0.001276400343 | CC46: 0.001276400343
A47: 2 | B47: 2364 | C47: 37 | D47: 5 | E47: 4 | F47: 0.8321 | G47: 18984.41936 | H47: 0 | I47: 0 | J47: 0 | K47: 18984.41936 | L47: 2.417171346 | M47: 11136474.5 | N47: 39901365.79 | O47: 0 | P47: 51037840.29 | Q47: 16.24584913 | R47: 0.1487870117 | S47: 1 | T47: 0 | U47: 2 | V47: 0 | W47: 0 | X47: 3 | Y47: 0 | Z47: 0 | AA47: 0 | AB47: 1 | AC47: 10 | AD47: -0.0568 | AE47: 1.02 | AF47: -0.2446 | AG47: 2.94 | AH47: -0.206 | AI47: 4.35 | AJ47: -0.153 | AK47: 33 | AL47: 0 | AM47: 0 | AN47: 42 | AO47: 41 | AP47: 40 | AQ47: 36 | AR47: 32 | AS47: 2 | AT47: 0 | AU47: 0 | AV47: 2 | AW47: 2 | AX47: 2 | AY47: 2 | AZ47: 2 | BA47: 0.001276400343 | BB47: 0.001276400343 | BC47: 0.001276400343 | BD47: 0.001276400343 | BE47: 0.001276400343 | BF47: 0.001276400343 | BG47: 0.001276400343 | BH47: 0.001276400343 | BI47: 0.001276400343 | BJ47: 0.001276400343 | BK47: 0.001276400343 | BL47: 0.001276400343 | BM47: 0.001276400343 | BN47: 0.001276400343 | BO47: 0.001276400343 | BP47: 0.001276400343 | BQ47: 0.001276400343 | BR47: 0.001276400343 | BS47: 0.001276400343 | BT47: 0.001276400343 | BU47: 0.001276400343 | BV47: 0.001276400343 | BW47: 0.001276400343 | BX47: 0.001276400343 | BY47: 0.001276400343 | BZ47: 0.001276400343 | CA47: 0.001276400343 | CB47: 0.001276400343 | CC47: 0.001276400343
A48: 2 | B48: 2361 | C48: 38 | D48: 11 | E48: 9 | F48: 0.7788 | G48: 89045.10338 | H48: 0 | I48: 0 | J48: 0 | K48: 89045.10338 | L48: 11.33757469 | M48: 12431701.25 | N48: 27453119.45 | O48: 0 | P48: 39884820.7 | Q48: 12.69573274 | R48: 0.8930224763 | S48: 1 | T48: 0 | U48: 2 | V48: 0 | W48: 0 | X48: 3 | Y48: 0 | Z48: 0 | AA48: 0 | AB48: 1 | AC48: 10 | AD48: -0.0568 | AE48: 1.02 | AF48: -0.2446 | AG48: 2.94 | AH48: -0.206 | AI48: 4.35 | AJ48: -0.153 | AK48: 34 | AL48: 35 | AM48: 39 | AN48: 43 | AO48: 0 | AP48: 0 | AQ48: 0 | AR48: 0 | AS48: 2 | AT48: 2 | AU48: 2 | AV48: 2 | AW48: 0 | AX48: 0 | AY48: 0 | AZ48: 0 | BA48: 0.001276400343 | BB48: 0.001276400343 | BC48: 0.001276400343 | BD48: 0.001276400343 | BE48: 0.001276400343 | BF48: 0.001276400343 | BG48: 0.001276400343 | BH48: 0.001276400343 | BI48: 0.001276400343 | BJ48: 0.001276400343 | BK48: 0.001276400343 | BL48: 0.001276400343 | BM48: 0.001276400343 | BN48: 0.001276400343 | BO48: 0.001276400343 | BP48: 0.001276400343 | BQ48: 0.001276400343 | BR48: 0.001276400343 | BS48: 0.001276400343 | BT48: 0.001276400343 | BU48: 0.001276400343 | BV48: 0.001276400343 | BW48: 0.001276400343 | BX48: 0.001276400343 | BY48: 0.001276400343 | BZ48: 0.001276400343 | CA48: 0.001276400343 | CB48: 0.001276400343 | CC48: 0.001276400343
A49: 2 | B49: 2360 | C49: 39 | D49: 11 | E49: 9 | F49: 0.7788 | G49: 91905.35762 | H49: 0 | I49: 0 | J49: 0 | K49: 91905.35762 | L49: 11.70175357 | M49: 12431701.25 | N49: 27453119.45 | O49: 0 | P49: 39884820.7 | Q49: 12.69573274 | R49: 0.921707617 | S49: 1 | T49: 0 | U49: 2 | V49: 0 | W49: 0 | X49: 3 | Y49: 0 | Z49: 0 | AA49: 0 | AB49: 1 | AC49: 10 | AD49: -0.0568 | AE49: 1.02 | AF49: -0.2446 | AG49: 2.94 | AH49: -0.206 | AI49: 4.35 | AJ49: -0.153 | AK49: 35 | AL49: 36 | AM49: 40 | AN49: 44 | AO49: 43 | AP49: 0 | AQ49: 38 | AR49: 34 | AS49: 2 | AT49: 2 | AU49: 2 | AV49: 2 | AW49: 2 | AX49: 0 | AY49: 2 | AZ49: 2 | BA49: 0.001276400343 | BB49: 0.001276400343 | BC49: 0.001276400343 | BD49: 0.001276400343 | BE49: 0.001276400343 | BF49: 0.001276400343 | BG49: 0.001276400343 | BH49: 0.001276400343 | BI49: 0.001276400343 | BJ49: 0.001276400343 | BK49: 0.001276400343 | BL49: 0.001276400343 | BM49: 0.001276400343 | BN49: 0.001276400343 | BO49: 0.001276400343 | BP49: 0.001276400343 | BQ49: 0.001276400343 | BR49: 0.001276400343 | BS49: 0.001276400343 | BT49: 0.001276400343 | BU49: 0.001276400343 | BV49: 0.001276400343 | BW49: 0.001276400343 | BX49: 0.001276400343 | BY49: 0.001276400343 | BZ49: 0.001276400343 | CA49: 0.001276400343 | CB49: 0.001276400343 | CC49: 0.001276400343
A50: 2 | B50: 2359 | C50: 40 | D50: 11 | E50: 9 | F50: 0.7788 | G50: 12771.65698 | H50: 0 | I50: 0 | J50: 0 | K50: 12771.65698 | L50: 1.626137871 | M50: 12431701.25 | N50: 27453119.45 | O50: 0 | P50: 39884820.7 | Q50: 12.69573274 | R50: 0.1280853894 | S50: 1 | T50: 0 | U50: 2 | V50: 0 | W50: 0 | X50: 3 | Y50: 0 | Z50: 0 | AA50: 0 | AB50: 1 | AC50: 10 | AD50: -0.0568 | AE50: 1.02 | AF50: -0.2446 | AG50: 2.94 | AH50: -0.206 | AI50: 4.35 | AJ50: -0.153 | AK50: 36 | AL50: 37 | AM50: 41 | AN50: 45 | AO50: 44 | AP50: 43 | AQ50: 39 | AR50: 35 | AS50: 2 | AT50: 2 | AU50: 2 | AV50: 2 | AW50: 2 | AX50: 2 | AY50: 2 | AZ50: 2 | BA50: 0.001276400343 | BB50: 0.001276400343 | BC50: 0.001276400343 | BD50: 0.001276400343 | BE50: 0.001276400343 | BF50: 0.001276400343 | BG50: 0.001276400343 | BH50: 0.001276400343 | BI50: 0.001276400343 | BJ50: 0.001276400343 | BK50: 0.001276400343 | BL50: 0.001276400343 | BM50: 0.001276400343 | BN50: 0.001276400343 | BO50: 0.001276400343 | BP50: 0.001276400343 | BQ50: 0.001276400343 | BR50: 0.001276400343 | BS50: 0.001276400343 | BT50: 0.001276400343 | BU50: 0.001276400343 | BV50: 0.001276400343 | BW50: 0.001276400343 | BX50: 0.001276400343 | BY50: 0.001276400343 | BZ50: 0.001276400343 | CA50: 0.001276400343 | CB50: 0.001276400343 | CC50: 0.001276400343
A51: 2 | B51: 2358 | C51: 41 | D51: 11 | E51: 9 | F51: 0.7788 | G51: 18834.15238 | H51: 0 | I51: 0 | J51: 0 | K51: 18834.15238 | L51: 2.39803876 | M51: 12431701.25 | N51: 27453119.45 | O51: 0 | P51: 39884820.7 | Q51: 12.69573274 | R51: 0.188885416 | S51: 1 | T51: 0 | U51: 2 | V51: 0 | W51: 0 | X51: 3 | Y51: 0 | Z51: 0 | AA51: 0 | AB51: 1 | AC51: 10 | AD51: -0.0568 | AE51: 1.02 | AF51: -0.2446 | AG51: 2.94 | AH51: -0.206 | AI51: 4.35 | AJ51: -0.153 | AK51: 37 | AL51: 0 | AM51: 42 | AN51: 46 | AO51: 45 | AP51: 44 | AQ51: 40 | AR51: 36 | AS51: 2 | AT51: 0 | AU51: 2 | AV51: 2 | AW51: 2 | AX51: 2 | AY51: 2 | AZ51: 2 | BA51: 0.001276400343 | BB51: 0.001276400343 | BC51: 0.001276400343 | BD51: 0.001276400343 | BE51: 0.001276400343 | BF51: 0.001276400343 | BG51: 0.001276400343 | BH51: 0.001276400343 | BI51: 0.001276400343 | BJ51: 0.001276400343 | BK51: 0.001276400343 | BL51: 0.001276400343 | BM51: 0.001276400343 | BN51: 0.001276400343 | BO51: 0.001276400343 | BP51: 0.001276400343 | BQ51: 0.001276400343 | BR51: 0.001276400343 | BS51: 0.001276400343 | BT51: 0.001276400343 | BU51: 0.001276400343 | BV51: 0.001276400343 | BW51: 0.001276400343 | BX51: 0.001276400343 | BY51: 0.001276400343 | BZ51: 0.001276400343 | CA51: 0.001276400343 | CB51: 0.001276400343 | CC51: 0.001276400343
A52: 2 | B52: 2357 | C52: 42 | D52: 11 | E52: 9 | F52: 0.7788 | G52: 18883.89593 | H52: 0 | I52: 0 | J52: 0 | K52: 18883.89593 | L52: 2.404372305 | M52: 12431701.25 | N52: 27453119.45 | O52: 0 | P52: 39884820.7 | Q52: 12.69573274 | R52: 0.189384288 | S52: 1 | T52: 0 | U52: 2 | V52: 0 | W52: 0 | X52: 3 | Y52: 0 | Z52: 0 | AA52: 0 | AB52: 1 | AC52: 10 | AD52: -0.0568 | AE52: 1.02 | AF52: -0.2446 | AG52: 2.94 | AH52: -0.206 | AI52: 4.35 | AJ52: -0.153 | AK52: 0 | AL52: 0 | AM52: 0 | AN52: 0 | AO52: 46 | AP52: 45 | AQ52: 41 | AR52: 37 | AS52: 0 | AT52: 0 | AU52: 0 | AV52: 0 | AW52: 2 | AX52: 2 | AY52: 2 | AZ52: 2 | BA52: 0.001276400343 | BB52: 0.001276400343 | BC52: 0.001276400343 | BD52: 0.001276400343 | BE52: 0.001276400343 | BF52: 0.001276400343 | BG52: 0.001276400343 | BH52: 0.001276400343 | BI52: 0.001276400343 | BJ52: 0.001276400343 | BK52: 0.001276400343 | BL52: 0.001276400343 | BM52: 0.001276400343 | BN52: 0.001276400343 | BO52: 0.001276400343 | BP52: 0.001276400343 | BQ52: 0.001276400343 | BR52: 0.001276400343 | BS52: 0.001276400343 | BT52: 0.001276400343 | BU52: 0.001276400343 | BV52: 0.001276400343 | BW52: 0.001276400343 | BX52: 0.001276400343 | BY52: 0.001276400343 | BZ52: 0.001276400343 | CA52: 0.001276400343 | CB52: 0.001276400343 | CC52: 0.001276400343
A53: 2 | B53: 2355 | C53: 43 | D53: 11 | E53: 9 | F53: 0.7788 | G53: 90767.47386 | H53: 0 | I53: 0 | J53: 0 | K53: 90767.47386 | L53: 11.55687371 | M53: 12431701.25 | N53: 27453119.45 | O53: 0 | P53: 39884820.7 | Q53: 12.69573274 | R53: 0.9102959197 | S53: 1 | T53: 0 | U53: 2 | V53: 0 | W53: 0 | X53: 3 | Y53: 0 | Z53: 0 | AA53: 0 | AB53: 1 | AC53: 10 | AD53: -0.0568 | AE53: 1.02 | AF53: -0.2446 | AG53: 2.94 | AH53: -0.206 | AI53: 4.35 | AJ53: -0.153 | AK53: 39 | AL53: 40 | AM53: 44 | AN53: 48 | AO53: 47 | AP53: 0 | AQ53: 0 | AR53: 0 | AS53: 2 | AT53: 2 | AU53: 2 | AV53: 2 | AW53: 2 | AX53: 0 | AY53: 0 | AZ53: 0 | BA53: 0.001276400343 | BB53: 0.001276400343 | BC53: 0.001276400343 | BD53: 0.001276400343 | BE53: 0.001276400343 | BF53: 0.001276400343 | BG53: 0.001276400343 | BH53: 0.001276400343 | BI53: 0.001276400343 | BJ53: 0.001276400343 | BK53: 0.001276400343 | BL53: 0.001276400343 | BM53: 0.001276400343 | BN53: 0.001276400343 | BO53: 0.001276400343 | BP53: 0.001276400343 | BQ53: 0.001276400343 | BR53: 0.001276400343 | BS53: 0.001276400343 | BT53: 0.001276400343 | BU53: 0.001276400343 | BV53: 0.001276400343 | BW53: 0.001276400343 | BX53: 0.001276400343 | BY53: 0.001276400343 | BZ53: 0.001276400343 | CA53: 0.001276400343 | CB53: 0.001276400343 | CC53: 0.001276400343
A54: 2 | B54: 2354 | C54: 44 | D54: 11 | E54: 9 | F54: 0.7788 | G54: 64315.30376 | H54: 0 | I54: 0 | J54: 0 | K54: 64315.30376 | L54: 8.188878808 | M54: 12431701.25 | N54: 27453119.45 | O54: 0 | P54: 39884820.7 | Q54: 12.69573274 | R54: 0.6450103336 | S54: 1 | T54: 0 | U54: 2 | V54: 0 | W54: 0 | X54: 3 | Y54: 0 | Z54: 0 | AA54: 0 | AB54: 1 | AC54: 10 | AD54: -0.0568 | AE54: 1.02 | AF54: -0.2446 | AG54: 2.94 | AH54: -0.206 | AI54: 4.35 | AJ54: -0.153 | AK54: 40 | AL54: 41 | AM54: 45 | AN54: 49 | AO54: 48 | AP54: 47 | AQ54: 43 | AR54: 39 | AS54: 2 | AT54: 2 | AU54: 2 | AV54: 2 | AW54: 2 | AX54: 2 | AY54: 2 | AZ54: 2 | BA54: 0.001276400343 | BB54: 0.001276400343 | BC54: 0.001276400343 | BD54: 0.001276400343 | BE54: 0.001276400343 | BF54: 0.001276400343 | BG54: 0.001276400343 | BH54: 0.001276400343 | BI54: 0.001276400343 | BJ54: 0.001276400343 | BK54: 0.001276400343 | BL54: 0.001276400343 | BM54: 0.001276400343 | BN54: 0.001276400343 | BO54: 0.001276400343 | BP54: 0.001276400343 | BQ54: 0.001276400343 | BR54: 0.001276400343 | BS54: 0.001276400343 | BT54: 0.001276400343 | BU54: 0.001276400343 | BV54: 0.001276400343 | BW54: 0.001276400343 | BX54: 0.001276400343 | BY54: 0.001276400343 | BZ54: 0.001276400343 | CA54: 0.001276400343 | CB54: 0.001276400343 | CC54: 0.001276400343
A55: 2 | B55: 2353 | C55: 45 | D55: 11 | E55: 9 | F55: 0.7788 | G55: 243.53614 | H55: 0 | I55: 0 | J55: 0 | K55: 243.53614 | L55: 0.0310079844 | M55: 12431701.25 | N55: 27453119.45 | O55: 0 | P55: 39884820.7 | Q55: 12.69573274 | R55: 0.002442394231 | S55: 1 | T55: 0 | U55: 2 | V55: 0 | W55: 0 | X55: 3 | Y55: 0 | Z55: 0 | AA55: 0 | AB55: 1 | AC55: 10 | AD55: -0.0568 | AE55: 1.02 | AF55: -0.2446 | AG55: 2.94 | AH55: -0.206 | AI55: 4.35 | AJ55: -0.153 | AK55: 41 | AL55: 42 | AM55: 46 | AN55: 50 | AO55: 49 | AP55: 48 | AQ55: 44 | AR55: 40 | AS55: 2 | AT55: 2 | AU55: 2 | AV55: 2 | AW55: 2 | AX55: 2 | AY55: 2 | AZ55: 2 | BA55: 0.001276400343 | BB55: 0.001276400343 | BC55: 0.001276400343 | BD55: 0.001276400343 | BE55: 0.001276400343 | BF55: 0.001276400343 | BG55: 0.001276400343 | BH55: 0.001276400343 | BI55: 0.001276400343 | BJ55: 0.001276400343 | BK55: 0.001276400343 | BL55: 0.001276400343 | BM55: 0.001276400343 | BN55: 0.001276400343 | BO55: 0.001276400343 | BP55: 0.001276400343 | BQ55: 0.001276400343 | BR55: 0.001276400343 | BS55: 0.001276400343 | BT55: 0.001276400343 | BU55: 0.001276400343 | BV55: 0.001276400343 | BW55: 0.001276400343 | BX55: 0.001276400343 | BY55: 0.001276400343 | BZ55: 0.001276400343 | CA55: 0.001276400343 | CB55: 0.001276400343 | CC55: 0.001276400343
A56: 2 | B56: 2352 | C56: 46 | D56: 11 | E56: 9 | F56: 0.7788 | G56: 18101.47131 | H56: 0 | I56: 0 | J56: 0 | K56: 18101.47131 | L56: 2.304750909 | M56: 12431701.25 | N56: 27453119.45 | O56: 0 | P56: 39884820.7 | Q56: 12.69573274 | R56: 0.181537447 | S56: 1 | T56: 0 | U56: 2 | V56: 0 | W56: 0 | X56: 3 | Y56: 0 | Z56: 0 | AA56: 0 | AB56: 1 | AC56: 10 | AD56: -0.0568 | AE56: 1.02 | AF56: -0.2446 | AG56: 2.94 | AH56: -0.206 | AI56: 4.35 | AJ56: -0.153 | AK56: 42 | AL56: 0 | AM56: 0 | AN56: 0 | AO56: 50 | AP56: 49 | AQ56: 45 | AR56: 41 | AS56: 2 | AT56: 0 | AU56: 0 | AV56: 0 | AW56: 2 | AX56: 2 | AY56: 2 | AZ56: 2 | BA56: 0.001276400343 | BB56: 0.001276400343 | BC56: 0.001276400343 | BD56: 0.001276400343 | BE56: 0.001276400343 | BF56: 0.001276400343 | BG56: 0.001276400343 | BH56: 0.001276400343 | BI56: 0.001276400343 | BJ56: 0.001276400343 | BK56: 0.001276400343 | BL56: 0.001276400343 | BM56: 0.001276400343 | BN56: 0.001276400343 | BO56: 0.001276400343 | BP56: 0.001276400343 | BQ56: 0.001276400343 | BR56: 0.001276400343 | BS56: 0.001276400343 | BT56: 0.001276400343 | BU56: 0.001276400343 | BV56: 0.001276400343 | BW56: 0.001276400343 | BX56: 0.001276400343 | BY56: 0.001276400343 | BZ56: 0.001276400343 | CA56: 0.001276400343 | CB56: 0.001276400343 | CC56: 0.001276400343
A57: 2 | B57: 2349 | C57: 47 | D57: 11 | E57: 9 | F57: 0.7788 | G57: 75298.26552 | H57: 0 | I57: 0 | J57: 0 | K57: 75298.26552 | L57: 9.58727293 | M57: 12431701.25 | N57: 27453119.45 | O57: 0 | P57: 39884820.7 | Q57: 12.69573274 | R57: 0.7551571168 | S57: 1 | T57: 0 | U57: 2 | V57: 0 | W57: 0 | X57: 3 | Y57: 0 | Z57: 0 | AA57: 0 | AB57: 1 | AC57: 10 | AD57: -0.0568 | AE57: 1.02 | AF57: -0.2446 | AG57: 2.94 | AH57: -0.206 | AI57: 4.35 | AJ57: -0.153 | AK57: 43 | AL57: 44 | AM57: 48 | AN57: 51 | AO57: 0 | AP57: 0 | AQ57: 0 | AR57: 0 | AS57: 2 | AT57: 2 | AU57: 2 | AV57: 2 | AW57: 0 | AX57: 0 | AY57: 0 | AZ57: 0 | BA57: 0.001276400343 | BB57: 0.001276400343 | BC57: 0.001276400343 | BD57: 0.001276400343 | BE57: 0.001276400343 | BF57: 0.001276400343 | BG57: 0.001276400343 | BH57: 0.001276400343 | BI57: 0.001276400343 | BJ57: 0.001276400343 | BK57: 0.001276400343 | BL57: 0.001276400343 | BM57: 0.001276400343 | BN57: 0.001276400343 | BO57: 0.001276400343 | BP57: 0.001276400343 | BQ57: 0.001276400343 | BR57: 0.001276400343 | BS57: 0.001276400343 | BT57: 0.001276400343 | BU57: 0.001276400343 | BV57: 0.001276400343 | BW57: 0.001276400343 | BX57: 0.001276400343 | BY57: 0.001276400343 | BZ57: 0.001276400343 | CA57: 0.001276400343 | CB57: 0.001276400343 | CC57: 0.001276400343
A58: 2 | B58: 2348 | C58: 48 | D58: 11 | E58: 9 | F58: 0.7788 | G58: 42536.9549 | H58: 0 | I58: 0 | J58: 0 | K58: 42536.9549 | L58: 5.41597331 | M58: 12431701.25 | N58: 27453119.45 | O58: 0 | P58: 39884820.7 | Q58: 12.69573274 | R58: 0.4265979303 | S58: 1 | T58: 0 | U58: 2 | V58: 0 | W58: 0 | X58: 3 | Y58: 0 | Z58: 0 | AA58: 0 | AB58: 1 | AC58: 10 | AD58: -0.0568 | AE58: 1.02 | AF58: -0.2446 | AG58: 2.94 | AH58: -0.206 | AI58: 4.35 | AJ58: -0.153 | AK58: 44 | AL58: 45 | AM58: 49 | AN58: 52 | AO58: 51 | AP58: 0 | AQ58: 47 | AR58: 43 | AS58: 2 | AT58: 2 | AU58: 2 | AV58: 2 | AW58: 2 | AX58: 0 | AY58: 2 | AZ58: 2 | BA58: 0.001276400343 | BB58: 0.001276400343 | BC58: 0.001276400343 | BD58: 0.001276400343 | BE58: 0.001276400343 | BF58: 0.001276400343 | BG58: 0.001276400343 | BH58: 0.001276400343 | BI58: 0.001276400343 | BJ58: 0.001276400343 | BK58: 0.001276400343 | BL58: 0.001276400343 | BM58: 0.001276400343 | BN58: 0.001276400343 | BO58: 0.001276400343 | BP58: 0.001276400343 | BQ58: 0.001276400343 | BR58: 0.001276400343 | BS58: 0.001276400343 | BT58: 0.001276400343 | BU58: 0.001276400343 | BV58: 0.001276400343 | BW58: 0.001276400343 | BX58: 0.001276400343 | BY58: 0.001276400343 | BZ58: 0.001276400343 | CA58: 0.001276400343 | CB58: 0.001276400343 | CC58: 0.001276400343
A59: 2 | B59: 2347 | C59: 49 | D59: 11 | E59: 9 | F59: 0.7788 | G59: 102.596076 | H59: 0 | I59: 0 | J59: 0 | K59: 102.596076 | L59: 0.01306293811 | M59: 12431701.25 | N59: 27453119.45 | O59: 0 | P59: 39884820.7 | Q59: 12.69573274 | R59: 0.001028923527 | S59: 1 | T59: 0 | U59: 2 | V59: 0 | W59: 0 | X59: 3 | Y59: 0 | Z59: 0 | AA59: 0 | AB59: 1 | AC59: 10 | AD59: -0.0568 | AE59: 1.02 | AF59: -0.2446 | AG59: 2.94 | AH59: -0.206 | AI59: 4.35 | AJ59: -0.153 | AK59: 45 | AL59: 46 | AM59: 50 | AN59: 53 | AO59: 52 | AP59: 51 | AQ59: 48 | AR59: 44 | AS59: 2 | AT59: 2 | AU59: 2 | AV59: 2 | AW59: 2 | AX59: 2 | AY59: 2 | AZ59: 2 | BA59: 0.001276400343 | BB59: 0.001276400343 | BC59: 0.001276400343 | BD59: 0.001276400343 | BE59: 0.001276400343 | BF59: 0.001276400343 | BG59: 0.001276400343 | BH59: 0.001276400343 | BI59: 0.001276400343 | BJ59: 0.001276400343 | BK59: 0.001276400343 | BL59: 0.001276400343 | BM59: 0.001276400343 | BN59: 0.001276400343 | BO59: 0.001276400343 | BP59: 0.001276400343 | BQ59: 0.001276400343 | BR59: 0.001276400343 | BS59: 0.001276400343 | BT59: 0.001276400343 | BU59: 0.001276400343 | BV59: 0.001276400343 | BW59: 0.001276400343 | BX59: 0.001276400343 | BY59: 0.001276400343 | BZ59: 0.001276400343 | CA59: 0.001276400343 | CB59: 0.001276400343 | CC59: 0.001276400343
A60: 2 | B60: 2346 | C60: 50 | D60: 11 | E60: 9 | F60: 0.7788 | G60: 292.243368 | H60: 0 | I60: 0 | J60: 0 | K60: 292.243368 | L60: 0.03720958128 | M60: 12431701.25 | N60: 27453119.45 | O60: 0 | P60: 39884820.7 | Q60: 12.69573274 | R60: 0.002930873078 | S60: 1 | T60: 0 | U60: 2 | V60: 0 | W60: 0 | X60: 3 | Y60: 0 | Z60: 0 | AA60: 0 | AB60: 1 | AC60: 10 | AD60: -0.0568 | AE60: 1.02 | AF60: -0.2446 | AG60: 2.94 | AH60: -0.206 | AI60: 4.35 | AJ60: -0.153 | AK60: 46 | AL60: 0 | AM60: 0 | AN60: 0 | AO60: 53 | AP60: 52 | AQ60: 49 | AR60: 45 | AS60: 2 | AT60: 0 | AU60: 0 | AV60: 0 | AW60: 2 | AX60: 2 | AY60: 2 | AZ60: 2 | BA60: 0.001276400343 | BB60: 0.001276400343 | BC60: 0.001276400343 | BD60: 0.001276400343 | BE60: 0.001276400343 | BF60: 0.001276400343 | BG60: 0.001276400343 | BH60: 0.001276400343 | BI60: 0.001276400343 | BJ60: 0.001276400343 | BK60: 0.001276400343 | BL60: 0.001276400343 | BM60: 0.001276400343 | BN60: 0.001276400343 | BO60: 0.001276400343 | BP60: 0.001276400343 | BQ60: 0.001276400343 | BR60: 0.001276400343 | BS60: 0.001276400343 | BT60: 0.001276400343 | BU60: 0.001276400343 | BV60: 0.001276400343 | BW60: 0.001276400343 | BX60: 0.001276400343 | BY60: 0.001276400343 | BZ60: 0.001276400343 | CA60: 0.001276400343 | CB60: 0.001276400343 | CC60: 0.001276400343
A61: 2 | B61: 2343 | C61: 51 | D61: 11 | E61: 9 | F61: 0.7788 | G61: 8309.245832 | H61: 0 | I61: 0 | J61: 0 | K61: 8309.245832 | L61: 1.057966038 | M61: 12431701.25 | N61: 27453119.45 | O61: 0 | P61: 39884820.7 | Q61: 12.69573274 | R61: 0.08333241254 | S61: 1 | T61: 0 | U61: 2 | V61: 0 | W61: 0 | X61: 3 | Y61: 0 | Z61: 0 | AA61: 0 | AB61: 1 | AC61: 10 | AD61: -0.0568 | AE61: 1.02 | AF61: -0.2446 | AG61: 2.94 | AH61: -0.206 | AI61: 4.35 | AJ61: -0.153 | AK61: 48 | AL61: 49 | AM61: 52 | AN61: 55 | AO61: 54 | AP61: 0 | AQ61: 0 | AR61: 47 | AS61: 2 | AT61: 2 | AU61: 2 | AV61: 2 | AW61: 2 | AX61: 0 | AY61: 0 | AZ61: 2 | BA61: 0.001276400343 | BB61: 0.001276400343 | BC61: 0.001276400343 | BD61: 0.001276400343 | BE61: 0.001276400343 | BF61: 0.001276400343 | BG61: 0.001276400343 | BH61: 0.001276400343 | BI61: 0.001276400343 | BJ61: 0.001276400343 | BK61: 0.001276400343 | BL61: 0.001276400343 | BM61: 0.001276400343 | BN61: 0.001276400343 | BO61: 0.001276400343 | BP61: 0.001276400343 | BQ61: 0.001276400343 | BR61: 0.001276400343 | BS61: 0.001276400343 | BT61: 0.001276400343 | BU61: 0.001276400343 | BV61: 0.001276400343 | BW61: 0.001276400343 | BX61: 0.001276400343 | BY61: 0.001276400343 | BZ61: 0.001276400343 | CA61: 0.001276400343 | CB61: 0.001276400343 | CC61: 0.001276400343
A62: 2 | B62: 2342 | C62: 52 | D62: 11 | E62: 9 | F62: 0.7788 | G62: 94.305484 | H62: 0 | I62: 0 | J62: 0 | K62: 94.305484 | L62: 0.01200734715 | M62: 12431701.25 | N62: 27453119.45 | O62: 0 | P62: 39884820.7 | Q62: 12.69573274 | R62: 0.0009457781917 | S62: 1 | T62: 0 | U62: 2 | V62: 0 | W62: 0 | X62: 3 | Y62: 0 | Z62: 0 | AA62: 0 | AB62: 1 | AC62: 10 | AD62: -0.0568 | AE62: 1.02 | AF62: -0.2446 | AG62: 2.94 | AH62: -0.206 | AI62: 4.35 | AJ62: -0.153 | AK62: 49 | AL62: 50 | AM62: 53 | AN62: 56 | AO62: 55 | AP62: 54 | AQ62: 51 | AR62: 48 | AS62: 2 | AT62: 2 | AU62: 2 | AV62: 2 | AW62: 2 | AX62: 2 | AY62: 2 | AZ62: 2 | BA62: 0.001276400343 | BB62: 0.001276400343 | BC62: 0.001276400343 | BD62: 0.001276400343 | BE62: 0.001276400343 | BF62: 0.001276400343 | BG62: 0.001276400343 | BH62: 0.001276400343 | BI62: 0.001276400343 | BJ62: 0.001276400343 | BK62: 0.001276400343 | BL62: 0.001276400343 | BM62: 0.001276400343 | BN62: 0.001276400343 | BO62: 0.001276400343 | BP62: 0.001276400343 | BQ62: 0.001276400343 | BR62: 0.001276400343 | BS62: 0.001276400343 | BT62: 0.001276400343 | BU62: 0.001276400343 | BV62: 0.001276400343 | BW62: 0.001276400343 | BX62: 0.001276400343 | BY62: 0.001276400343 | BZ62: 0.001276400343 | CA62: 0.001276400343 | CB62: 0.001276400343 | CC62: 0.001276400343
A63: 2 | B63: 2341 | C63: 53 | D63: 11 | E63: 9 | F63: 0.7788 | G63: 355.459132 | H63: 0 | I63: 0 | J63: 0 | K63: 355.459132 | L63: 0.04525846234 | M63: 12431701.25 | N63: 27453119.45 | O63: 0 | P63: 39884820.7 | Q63: 12.69573274 | R63: 0.003564856261 | S63: 1 | T63: 0 | U63: 2 | V63: 0 | W63: 0 | X63: 3 | Y63: 0 | Z63: 0 | AA63: 0 | AB63: 1 | AC63: 10 | AD63: -0.0568 | AE63: 1.02 | AF63: -0.2446 | AG63: 2.94 | AH63: -0.206 | AI63: 4.35 | AJ63: -0.153 | AK63: 50 | AL63: 0 | AM63: 0 | AN63: 57 | AO63: 56 | AP63: 55 | AQ63: 52 | AR63: 49 | AS63: 2 | AT63: 0 | AU63: 0 | AV63: 2 | AW63: 2 | AX63: 2 | AY63: 2 | AZ63: 2 | BA63: 0.001276400343 | BB63: 0.001276400343 | BC63: 0.001276400343 | BD63: 0.001276400343 | BE63: 0.001276400343 | BF63: 0.001276400343 | BG63: 0.001276400343 | BH63: 0.001276400343 | BI63: 0.001276400343 | BJ63: 0.001276400343 | BK63: 0.001276400343 | BL63: 0.001276400343 | BM63: 0.001276400343 | BN63: 0.001276400343 | BO63: 0.001276400343 | BP63: 0.001276400343 | BQ63: 0.001276400343 | BR63: 0.001276400343 | BS63: 0.001276400343 | BT63: 0.001276400343 | BU63: 0.001276400343 | BV63: 0.001276400343 | BW63: 0.001276400343 | BX63: 0.001276400343 | BY63: 0.001276400343 | BZ63: 0.001276400343 | CA63: 0.001276400343 | CB63: 0.001276400343 | CC63: 0.001276400343
A64: 2 | B64: 2334 | C64: 54 | D64: 17 | E64: 15 | F64: 0.7788 | G64: 3224.003964 | H64: 0 | I64: 0 | J64: 0 | K64: 3224.003964 | L64: 0.4104929339 | M64: 12593643.46 | N64: 25172152.2 | O64: 0 | P64: 37765795.66 | Q64: 12.02122612 | R64: 0.0341473432 | S64: 1 | T64: 0 | U64: 2 | V64: 0 | W64: 0 | X64: 3 | Y64: 0 | Z64: 0 | AA64: 0 | AB64: 1 | AC64: 10 | AD64: -0.0568 | AE64: 1.02 | AF64: -0.2446 | AG64: 2.94 | AH64: -0.206 | AI64: 4.35 | AJ64: -0.153 | AK64: 51 | AL64: 52 | AM64: 55 | AN64: 58 | AO64: 0 | AP64: 0 | AQ64: 0 | AR64: 0 | AS64: 2 | AT64: 2 | AU64: 2 | AV64: 2 | AW64: 0 | AX64: 0 | AY64: 0 | AZ64: 0 | BA64: 0.001276400343 | BB64: 0.001276400343 | BC64: 0.001276400343 | BD64: 0.001276400343 | BE64: 0.001276400343 | BF64: 0.001276400343 | BG64: 0.001276400343 | BH64: 0.001276400343 | BI64: 0.001276400343 | BJ64: 0.001276400343 | BK64: 0.001276400343 | BL64: 0.001276400343 | BM64: 0.001276400343 | BN64: 0.001276400343 | BO64: 0.001276400343 | BP64: 0.001276400343 | BQ64: 0.001276400343 | BR64: 0.001276400343 | BS64: 0.001276400343 | BT64: 0.001276400343 | BU64: 0.001276400343 | BV64: 0.001276400343 | BW64: 0.001276400343 | BX64: 0.001276400343 | BY64: 0.001276400343 | BZ64: 0.001276400343 | CA64: 0.001276400343 | CB64: 0.001276400343 | CC64: 0.001276400343
A65: 2 | B65: 2333 | C65: 55 | D65: 17 | E65: 15 | F65: 0.7788 | G65: 273.589536 | H65: 0 | I65: 0 | J65: 0 | K65: 273.589536 | L65: 0.03483450163 | M65: 12593643.46 | N65: 25172152.2 | O65: 0 | P65: 37765795.66 | Q65: 12.02122612 | R65: 0.002897749471 | S65: 1 | T65: 0 | U65: 2 | V65: 0 | W65: 0 | X65: 3 | Y65: 0 | Z65: 0 | AA65: 0 | AB65: 1 | AC65: 10 | AD65: -0.0568 | AE65: 1.02 | AF65: -0.2446 | AG65: 2.94 | AH65: -0.206 | AI65: 4.35 | AJ65: -0.153 | AK65: 52 | AL65: 53 | AM65: 56 | AN65: 59 | AO65: 58 | AP65: 0 | AQ65: 54 | AR65: 51 | AS65: 2 | AT65: 2 | AU65: 2 | AV65: 2 | AW65: 2 | AX65: 0 | AY65: 2 | AZ65: 2 | BA65: 0.001276400343 | BB65: 0.001276400343 | BC65: 0.001276400343 | BD65: 0.001276400343 | BE65: 0.001276400343 | BF65: 0.001276400343 | BG65: 0.001276400343 | BH65: 0.001276400343 | BI65: 0.001276400343 | BJ65: 0.001276400343 | BK65: 0.001276400343 | BL65: 0.001276400343 | BM65: 0.001276400343 | BN65: 0.001276400343 | BO65: 0.001276400343 | BP65: 0.001276400343 | BQ65: 0.001276400343 | BR65: 0.001276400343 | BS65: 0.001276400343 | BT65: 0.001276400343 | BU65: 0.001276400343 | BV65: 0.001276400343 | BW65: 0.001276400343 | BX65: 0.001276400343 | BY65: 0.001276400343 | BZ65: 0.001276400343 | CA65: 0.001276400343 | CB65: 0.001276400343 | CC65: 0.001276400343
A66: 2 | B66: 2332 | C66: 56 | D66: 17 | E66: 15 | F66: 0.7788 | G66: 323.333088 | H66: 0 | I66: 0 | J66: 0 | K66: 323.333088 | L66: 0.04116804738 | M66: 12593643.46 | N66: 25172152.2 | O66: 0 | P66: 37765795.66 | Q66: 12.02122612 | R66: 0.003424613011 | S66: 1 | T66: 0 | U66: 2 | V66: 0 | W66: 0 | X66: 3 | Y66: 0 | Z66: 0 | AA66: 0 | AB66: 1 | AC66: 10 | AD66: -0.0568 | AE66: 1.02 | AF66: -0.2446 | AG66: 2.94 | AH66: -0.206 | AI66: 4.35 | AJ66: -0.153 | AK66: 53 | AL66: 0 | AM66: 57 | AN66: 60 | AO66: 59 | AP66: 58 | AQ66: 55 | AR66: 52 | AS66: 2 | AT66: 0 | AU66: 2 | AV66: 2 | AW66: 2 | AX66: 2 | AY66: 2 | AZ66: 2 | BA66: 0.001276400343 | BB66: 0.001276400343 | BC66: 0.001276400343 | BD66: 0.001276400343 | BE66: 0.001276400343 | BF66: 0.001276400343 | BG66: 0.001276400343 | BH66: 0.001276400343 | BI66: 0.001276400343 | BJ66: 0.001276400343 | BK66: 0.001276400343 | BL66: 0.001276400343 | BM66: 0.001276400343 | BN66: 0.001276400343 | BO66: 0.001276400343 | BP66: 0.001276400343 | BQ66: 0.001276400343 | BR66: 0.001276400343 | BS66: 0.001276400343 | BT66: 0.001276400343 | BU66: 0.001276400343 | BV66: 0.001276400343 | BW66: 0.001276400343 | BX66: 0.001276400343 | BY66: 0.001276400343 | BZ66: 0.001276400343 | CA66: 0.001276400343 | CB66: 0.001276400343 | CC66: 0.001276400343
A67: 2 | B67: 2331 | C67: 57 | D67: 17 | E67: 15 | F67: 0.7788 | G67: 290.17072 | H67: 0 | I67: 0 | J67: 0 | K67: 290.17072 | L67: 0.03694568354 | M67: 12593643.46 | N67: 25172152.2 | O67: 0 | P67: 37765795.66 | Q67: 12.02122612 | R67: 0.003073370651 | S67: 1 | T67: 0 | U67: 2 | V67: 0 | W67: 0 | X67: 3 | Y67: 0 | Z67: 0 | AA67: 0 | AB67: 1 | AC67: 10 | AD67: -0.0568 | AE67: 1.02 | AF67: -0.2446 | AG67: 2.94 | AH67: -0.206 | AI67: 4.35 | AJ67: -0.153 | AK67: 0 | AL67: 0 | AM67: 0 | AN67: 61 | AO67: 60 | AP67: 59 | AQ67: 56 | AR67: 53 | AS67: 0 | AT67: 0 | AU67: 0 | AV67: 2 | AW67: 2 | AX67: 2 | AY67: 2 | AZ67: 2 | BA67: 0.001276400343 | BB67: 0.001276400343 | BC67: 0.001276400343 | BD67: 0.001276400343 | BE67: 0.001276400343 | BF67: 0.001276400343 | BG67: 0.001276400343 | BH67: 0.001276400343 | BI67: 0.001276400343 | BJ67: 0.001276400343 | BK67: 0.001276400343 | BL67: 0.001276400343 | BM67: 0.001276400343 | BN67: 0.001276400343 | BO67: 0.001276400343 | BP67: 0.001276400343 | BQ67: 0.001276400343 | BR67: 0.001276400343 | BS67: 0.001276400343 | BT67: 0.001276400343 | BU67: 0.001276400343 | BV67: 0.001276400343 | BW67: 0.001276400343 | BX67: 0.001276400343 | BY67: 0.001276400343 | BZ67: 0.001276400343 | CA67: 0.001276400343 | CB67: 0.001276400343 | CC67: 0.001276400343
A68: 2 | B68: 2327 | C68: 58 | D68: 17 | E68: 15 | F68: 0.7788 | G68: 281.880128 | H68: 0 | I68: 0 | J68: 0 | K68: 281.880128 | L68: 0.03589009258 | M68: 12593643.46 | N68: 25172152.2 | O68: 0 | P68: 37765795.66 | Q68: 12.02122612 | R68: 0.002985560061 | S68: 1 | T68: 0 | U68: 2 | V68: 0 | W68: 0 | X68: 3 | Y68: 0 | Z68: 0 | AA68: 0 | AB68: 1 | AC68: 10 | AD68: -0.0568 | AE68: 1.02 | AF68: -0.2446 | AG68: 2.94 | AH68: -0.206 | AI68: 4.35 | AJ68: -0.153 | AK68: 55 | AL68: 56 | AM68: 59 | AN68: 62 | AO68: 0 | AP68: 0 | AQ68: 0 | AR68: 54 | AS68: 2 | AT68: 2 | AU68: 2 | AV68: 2 | AW68: 0 | AX68: 0 | AY68: 0 | AZ68: 2 | BA68: 0.001276400343 | BB68: 0.001276400343 | BC68: 0.001276400343 | BD68: 0.001276400343 | BE68: 0.001276400343 | BF68: 0.001276400343 | BG68: 0.001276400343 | BH68: 0.001276400343 | BI68: 0.001276400343 | BJ68: 0.001276400343 | BK68: 0.001276400343 | BL68: 0.001276400343 | BM68: 0.001276400343 | BN68: 0.001276400343 | BO68: 0.001276400343 | BP68: 0.001276400343 | BQ68: 0.001276400343 | BR68: 0.001276400343 | BS68: 0.001276400343 | BT68: 0.001276400343 | BU68: 0.001276400343 | BV68: 0.001276400343 | BW68: 0.001276400343 | BX68: 0.001276400343 | BY68: 0.001276400343 | BZ68: 0.001276400343 | CA68: 0.001276400343 | CB68: 0.001276400343 | CC68: 0.001276400343
A69: 2 | B69: 2326 | C69: 59 | D69: 17 | E69: 15 | F69: 0.7788 | G69: 311.933524 | H69: 0 | I69: 0 | J69: 0 | K69: 311.933524 | L69: 0.03971660981 | M69: 12593643.46 | N69: 25172152.2 | O69: 0 | P69: 37765795.66 | Q69: 12.02122612 | R69: 0.00330387345 | S69: =IF(R69<=2,1,0) -> 1 | T69: =IF(R69>2,1,0) -> 0 | U69: =IF(R69<=6,2,0) -> 2 | V69: 0 | W69: =IF(R69>6,1,0) -> 0 | X69: =IF(R69<=10,3,0) -> 3 | Y69: 0 | Z69: =IF(R69>10,4,0) -> 0 | AA69: 0 | AB69: 1 | AC69: 10 | AD69: -0.0568 | AE69: 1.02 | AF69: -0.2446 | AG69: 2.94 | AH69: -0.206 | AI69: 4.35 | AJ69: -0.153 | AK69: 56 | AL69: 57 | AM69: 60 | AN69: 63 | AO69: 62 | AP69: 0 | AQ69: 58 | AR69: 55 | AS69: 2 | AT69: 2 | AU69: 2 | AV69: 2 | AW69: 2 | AX69: 0 | AY69: 2 | AZ69: 2 | BA69: 0.001276400343 | BB69: 0.001276400343 | BC69: 0.001276400343 | BD69: 0.001276400343 | BE69: 0.001276400343 | BF69: 0.001276400343 | BG69: 0.001276400343 | BH69: 0.001276400343 | BI69: 0.001276400343 | BJ69: 0.001276400343 | BK69: 0.001276400343 | BL69: 0.001276400343 | BM69: 0.001276400343 | BN69: 0.001276400343 | BO69: 0.001276400343 | BP69: 0.001276400343 | BQ69: 0.001276400343 | BR69: 0.001276400343 | BS69: 0.001276400343 | BT69: 0.001276400343 | BU69: 0.001276400343 | BV69: 0.001276400343 | BW69: 0.001276400343 | BX69: 0.001276400343 | BY69: 0.001276400343 | BZ69: 0.001276400343 | CA69: 0.001276400343 | CB69: 0.001276400343 | CC69: 0.001276400343
A70: 2 | B70: 2325 | C70: 60 | D70: 17 | E70: 15 | F70: 0.7788 | G70: 270.480564 | H70: 0 | I70: 0 | J70: 0 | K70: 270.480564 | L70: =K70/(PI()*50^2) -> 0.03443865502 | M70: 12593643.46 | N70: 25172152.2 | O70: 0 | P70: =SUM(M70:O70) -> 37765795.66 | Q70: =P70/(PI()*1000^2) -> 12.02122612 | R70: 0.0028648205 | S70: 1 | T70: 0 | U70: 2 | V70: =T70*U70 -> 0 | W70: 0 | X70: 3 | Y70: =W70*X70 -> 0 | Z70: 0 | AA70: =IF(Z70=4,AB70,0) -> 0 | AB70: 1 | AC70: 10 | AD70: -0.0568 | AE70: 1.02 | AF70: -0.2446 | AG70: 2.94 | AH70: -0.206 | AI70: 4.35 | AJ70: -0.153 | AK70: 57 | AL70: 0 | AM70: 61 | AN70: 64 | AO70: 63 | AP70: 62 | AQ70: 59 | AR70: 56 | AS70: 2 | AT70: 0 | AU70: 2 | AV70: 2 | AW70: 2 | AX70: 2 | AY70: 2 | AZ70: 2 | BA70: 0.001276400343 | BB70: 0.001276400343 | BC70: 0.001276400343 | BD70: 0.001276400343 | BE70: 0.001276400343 | BF70: 0.001276400343 | BG70: 0.001276400343 | BH70: 0.001276400343 | BI70: 0.001276400343 | BJ70: 0.001276400343 | BK70: 0.001276400343 | BL70: 0.001276400343 | BM70: 0.001276400343 | BN70: 0.001276400343 | BO70: 0.001276400343 | BP70: 0.001276400343 | BQ70: 0.001276400343 | BR70: 0.001276400343 | BS70: 0.001276400343 | BT70: 0.001276400343 | BU70: 0.001276400343 | BV70: 0.001276400343 | BW70: 0.001276400343 | BX70: 0.001276400343 | BY70: 0.001276400343 | BZ70: 0.001276400343 | CA70: 0.001276400343 | CB70: 0.001276400343 | CC70: 0.001276400343
A71: 2 | B71: 2324 | C71: 61 | D71: 17 | E71: 15 | F71: 0.7788 | G71: 88.08754 | H71: 0 | I71: 0 | J71: 0 | K71: 88.08754 | L71: 0.01121565393 | M71: 12593643.46 | N71: 25172152.2 | O71: 0 | P71: 37765795.66 | Q71: 12.02122612 | R71: 0.0009329875191 | S71: 1 | T71: 0 | U71: 2 | V71: 0 | W71: 0 | X71: 3 | Y71: 0 | Z71: 0 | AA71: 0 | AB71: 1 | AC71: 10 | AD71: -0.0568 | AE71: 1.02 | AF71: -0.2446 | AG71: 2.94 | AH71: -0.206 | AI71: 4.35 | AJ71: -0.153 | AK71: 0 | AL71: 0 | AM71: 0 | AN71: 65 | AO71: 64 | AP71: 63 | AQ71: 60 | AR71: 57 | AS71: 0 | AT71: 0 | AU71: 0 | AV71: 2 | AW71: 2 | AX71: 2 | AY71: 2 | AZ71: 2 | BA71: 0.001276400343 | BB71: 0.001276400343 | BC71: 0.001276400343 | BD71: 0.001276400343 | BE71: 0.001276400343 | BF71: 0.001276400343 | BG71: 0.001276400343 | BH71: 0.001276400343 | BI71: 0.001276400343 | BJ71: 0.001276400343 | BK71: 0.001276400343 | BL71: 0.001276400343 | BM71: 0.001276400343 | BN71: 0.001276400343 | BO71: 0.001276400343 | BP71: 0.001276400343 | BQ71: 0.001276400343 | BR71: 0.001276400343 | BS71: 0.001276400343 | BT71: 0.001276400343 | BU71: 0.001276400343 | BV71: 0.001276400343 | BW71: 0.001276400343 | BX71: 0.001276400343 | BY71: 0.001276400343 | BZ71: 0.001276400343 | CA71: 0.001276400343 | CB71: 0.001276400343 | CC71: 0.001276400343
A72: 2 | B72: 2322 | C72: 62 | D72: 17 | E72: 15 | F72: 0.7788 | G72: 240.427168 | H72: 0 | I72: 0 | J72: 0 | K72: 240.427168 | L72: 0.03061213779 | M72: 12593643.46 | N72: 25172152.2 | O72: 0 | P72: 37765795.66 | Q72: 12.02122612 | R72: 0.002546507111 | S72: 1 | T72: 0 | U72: 2 | V72: 0 | W72: 0 | X72: 3 | Y72: 0 | Z72: 0 | AA72: 0 | AB72: 1 | AC72: 10 | AD72: -0.0568 | AE72: 1.02 | AF72: -0.2446 | AG72: 2.94 | AH72: -0.206 | AI72: 4.35 | AJ72: -0.153 | AK72: 59 | AL72: 60 | AM72: 63 | AN72: 67 | AO72: 0 | AP72: 0 | AQ72: 0 | AR72: 58 | AS72: 2 | AT72: 2 | AU72: 2 | AV72: 2 | AW72: 0 | AX72: 0 | AY72: 0 | AZ72: 2 | BA72: 0.001276400343 | BB72: 0.001276400343 | BC72: 0.001276400343 | BD72: 0.001276400343 | BE72: 0.001276400343 | BF72: 0.001276400343 | BG72: 0.001276400343 | BH72: 0.001276400343 | BI72: 0.001276400343 | BJ72: 0.001276400343 | BK72: 0.001276400343 | BL72: 0.001276400343 | BM72: 0.001276400343 | BN72: 0.001276400343 | BO72: 0.001276400343 | BP72: 0.001276400343 | BQ72: 0.001276400343 | BR72: 0.001276400343 | BS72: 0.001276400343 | BT72: 0.001276400343 | BU72: 0.001276400343 | BV72: 0.001276400343 | BW72: 0.001276400343 | BX72: 0.001276400343 | BY72: 0.001276400343 | BZ72: 0.001276400343 | CA72: 0.001276400343 | CB72: 0.001276400343 | CC72: 0.001276400343
A73: 2 | B73: 2321 | C73: 63 | D73: 17 | E73: 15 | F73: 0.7788 | G73: 254.935704 | H73: 0 | I73: 0 | J73: 0 | K73: 254.935704 | L73: 0.03245942197 | M73: 12593643.46 | N73: 25172152.2 | O73: 0 | P73: 37765795.66 | Q73: 12.02122612 | R73: 0.002700175644 | S73: 1 | T73: 0 | U73: 2 | V73: 0 | W73: 0 | X73: 3 | Y73: 0 | Z73: 0 | AA73: 0 | AB73: 1 | AC73: 10 | AD73: -0.0568 | AE73: 1.02 | AF73: -0.2446 | AG73: 2.94 | AH73: -0.206 | AI73: 4.35 | AJ73: -0.153 | AK73: 60 | AL73: 61 | AM73: 64 | AN73: 68 | AO73: 67 | AP73: 0 | AQ73: 62 | AR73: 59 | AS73: 2 | AT73: 2 | AU73: 2 | AV73: 2 | AW73: 2 | AX73: 0 | AY73: 2 | AZ73: 2 | BA73: 0.001276400343 | BB73: 0.001276400343 | BC73: 0.001276400343 | BD73: 0.001276400343 | BE73: 0.001276400343 | BF73: 0.001276400343 | BG73: 0.001276400343 | BH73: 0.001276400343 | BI73: 0.001276400343 | BJ73: 0.001276400343 | BK73: 0.001276400343 | BL73: 0.001276400343 | BM73: 0.001276400343 | BN73: 0.001276400343 | BO73: 0.001276400343 | BP73: 0.001276400343 | BQ73: 0.001276400343 | BR73: 0.001276400343 | BS73: 0.001276400343 | BT73: 0.001276400343 | BU73: 0.001276400343 | BV73: 0.001276400343 | BW73: 0.001276400343 | BX73: 0.001276400343 | BY73: 0.001276400343 | BZ73: 0.001276400343 | CA73: 0.001276400343 | CB73: 0.001276400343 | CC73: 0.001276400343
A74: 2 | B74: 2320 | C74: 64 | D74: 17 | E74: 15 | F74: 0.7788 | G74: 173.066108 | H74: 0 | I74: 0 | J74: 0 | K74: 173.066108 | L74: 0.02203546126 | M74: 12593643.46 | N74: 25172152.2 | O74: 0 | P74: 37765795.66 | Q74: 12.02122612 | R74: 0.001833046067 | S74: 1 | T74: 0 | U74: 2 | V74: 0 | W74: 0 | X74: 3 | Y74: 0 | Z74: 0 | AA74: 0 | AB74: 1 | AC74: 10 | AD74: -0.0568 | AE74: 1.02 | AF74: -0.2446 | AG74: 2.94 | AH74: -0.206 | AI74: 4.35 | AJ74: -0.153 | AK74: 61 | AL74: 0 | AM74: 65 | AN74: 69 | AO74: 68 | AP74: 67 | AQ74: 63 | AR74: 60 | AS74: 2 | AT74: 0 | AU74: 2 | AV74: 2 | AW74: 2 | AX74: 2 | AY74: 2 | AZ74: 2 | BA74: 0.001276400343 | BB74: 0.001276400343 | BC74: 0.001276400343 | BD74: 0.001276400343 | BE74: 0.001276400343 | BF74: 0.001276400343 | BG74: 0.001276400343 | BH74: 0.001276400343 | BI74: 0.001276400343 | BJ74: 0.001276400343 | BK74: 0.001276400343 | BL74: 0.001276400343 | BM74: 0.001276400343 | BN74: 0.001276400343 | BO74: 0.001276400343 | BP74: 0.001276400343 | BQ74: 0.001276400343 | BR74: 0.001276400343 | BS74: 0.001276400343 | BT74: 0.001276400343 | BU74: 0.001276400343 | BV74: 0.001276400343 | BW74: 0.001276400343 | BX74: 0.001276400343 | BY74: 0.001276400343 | BZ74: 0.001276400343 | CA74: 0.001276400343 | CB74: 0.001276400343 | CC74: 0.001276400343
A75: 2 | B75: 2021 | C75: 65 | D75: 18 | E75: 15 | F75: 0.835 | G75: 13.472212 | H75: 0 | I75: 0 | J75: 0 | K75: 13.472212 | L75: 0.001715335307 | M75: 12593643.46 | N75: 25172152.2 | O75: 0 | P75: 37765795.66 | Q75: 12.02122612 | R75: =L75/Q75 -> 0.0001426922088 | S75: 1 | T75: 0 | U75: 2 | V75: 0 | W75: 0 | X75: 3 | Y75: 0 | Z75: 0 | AA75: 0 | AB75: 1 | AC75: 10 | AD75: -0.0568 | AE75: 1.02 | AF75: -0.2446 | AG75: 2.94 | AH75: -0.206 | AI75: 4.35 | AJ75: -0.153 | AK75: 0 | AL75: 0 | AM75: 66 | AN75: 0 | AO75: 69 | AP75: 68 | AQ75: 64 | AR75: 61 | AS75: 0 | AT75: 0 | AU75: 2 | AV75: 0 | AW75: 2 | AX75: 2 | AY75: 2 | AZ75: 2 | BA75: 0.001276400343 | BB75: 0.001276400343 | BC75: 0.001276400343 | BD75: 0.001276400343 | BE75: 0.001276400343 | BF75: 0.001276400343 | BG75: 0.001276400343 | BH75: 0.001276400343 | BI75: 0.001276400343 | BJ75: 0.001276400343 | BK75: 0.001276400343 | BL75: 0.001276400343 | BM75: 0.001276400343 | BN75: 0.001276400343 | BO75: 0.001276400343 | BP75: 0.001276400343 | BQ75: 0.001276400343 | BR75: 0.001276400343 | BS75: 0.001276400343 | BT75: 0.001276400343 | BU75: 0.001276400343 | BV75: 0.001276400343 | BW75: 0.001276400343 | BX75: 0.001276400343 | BY75: 0.001276400343 | BZ75: 0.001276400343 | CA75: 0.001276400343 | CB75: 0.001276400343 | CC75: 0.001276400343
A76: 2 | B76: 2020 | C76: 66 | D76: 18 | E76: 15 | F76: 0.835 | G76: 628.012344 | H76: 0 | I76: 0 | J76: 0 | K76: =SUM(G76:J76) -> 628.012344 | L76: 0.0799610151 | M76: 12593643.46 | N76: 25172152.2 | O76: 0 | P76: 37765795.66 | Q76: 12.02122612 | R76: 0.006651652195 | S76: 1 | T76: 0 | U76: 2 | V76: 0 | W76: 0 | X76: 3 | Y76: 0 | Z76: 0 | AA76: 0 | AB76: 1 | AC76: 10 | AD76: -0.0568 | AE76: 1.02 | AF76: -0.2446 | AG76: 2.94 | AH76: -0.206 | AI76: 4.35 | AJ76: -0.153 | AK76: 0 | AL76: 0 | AM76: 0 | AN76: 0 | AO76: 0 | AP76: 69 | AQ76: 65 | AR76: 0 | AS76: 0 | AT76: 0 | AU76: 0 | AV76: 0 | AW76: 0 | AX76: 2 | AY76: 2 | AZ76: 0 | BA76: 0.001276400343 | BB76: 0.001276400343 | BC76: 0.001276400343 | BD76: 0.001276400343 | BE76: 0.001276400343 | BF76: 0.001276400343 | BG76: 0.001276400343 | BH76: 0.001276400343 | BI76: 0.001276400343 | BJ76: 0.001276400343 | BK76: 0.001276400343 | BL76: 0.001276400343 | BM76: 0.001276400343 | BN76: 0.001276400343 | BO76: 0.001276400343 | BP76: 0.001276400343 | BQ76: 0.001276400343 | BR76: 0.001276400343 | BS76: 0.001276400343 | BT76: 0.001276400343 | BU76: 0.001276400343 | BV76: 0.001276400343 | BW76: 0.001276400343 | BX76: 0.001276400343 | BY76: 0.001276400343 | BZ76: 0.001276400343 | CA76: 0.001276400343 | CB76: 0.001276400343 | CC76: 0.001276400343
A77: 2 | B77: 2318 | C77: 67 | D77: 17 | E77: 15 | F77: 0.7788 | G77: 166.848164 | H77: 0 | I77: 0 | J77: 0 | K77: 166.848164 | L77: 0.02124376804 | M77: 12593643.46 | N77: 25172152.2 | O77: 0 | P77: 37765795.66 | Q77: 12.02122612 | R77: 0.001767188124 | S77: 1 | T77: 0 | U77: 2 | V77: 0 | W77: 0 | X77: 3 | Y77: 0 | Z77: 0 | AA77: 0 | AB77: 1 | AC77: 10 | AD77: -0.0568 | AE77: 1.02 | AF77: -0.2446 | AG77: 2.94 | AH77: -0.206 | AI77: 4.35 | AJ77: -0.153 | AK77: 63 | AL77: 64 | AM77: 68 | AN77: 70 | AO77: 0 | AP77: 0 | AQ77: 0 | AR77: 62 | AS77: 2 | AT77: 2 | AU77: 2 | AV77: 2 | AW77: 0 | AX77: 0 | AY77: 0 | AZ77: 2 | BA77: 0.001276400343 | BB77: 0.001276400343 | BC77: 0.001276400343 | BD77: 0.001276400343 | BE77: 0.001276400343 | BF77: 0.001276400343 | BG77: 0.001276400343 | BH77: 0.001276400343 | BI77: 0.001276400343 | BJ77: 0.001276400343 | BK77: 0.001276400343 | BL77: 0.001276400343 | BM77: 0.001276400343 | BN77: 0.001276400343 | BO77: 0.001276400343 | BP77: 0.001276400343 | BQ77: 0.001276400343 | BR77: 0.001276400343 | BS77: 0.001276400343 | BT77: 0.001276400343 | BU77: 0.001276400343 | BV77: 0.001276400343 | BW77: 0.001276400343 | BX77: 0.001276400343 | BY77: 0.001276400343 | BZ77: 0.001276400343 | CA77: 0.001276400343 | CB77: 0.001276400343 | CC77: 0.001276400343
A78: 2 | B78: 2317 | C78: 68 | D78: 17 | E78: 15 | F78: 0.7788 | G78: 172.029784 | H78: 0 | I78: 0 | J78: 0 | K78: 172.029784 | L78: 0.02190351239 | M78: 12593643.46 | N78: 25172152.2 | O78: 0 | P78: 37765795.66 | Q78: 12.02122612 | R78: 0.001822069743 | S78: 1 | T78: 0 | U78: 2 | V78: 0 | W78: 0 | X78: 3 | Y78: 0 | Z78: 0 | AA78: 0 | AB78: 1 | AC78: 10 | AD78: -0.0568 | AE78: 1.02 | AF78: -0.2446 | AG78: 2.94 | AH78: -0.206 | AI78: 4.35 | AJ78: -0.153 | AK78: 64 | AL78: 65 | AM78: 69 | AN78: 71 | AO78: 70 | AP78: 0 | AQ78: 67 | AR78: 63 | AS78: 2 | AT78: 2 | AU78: 2 | AV78: 2 | AW78: 2 | AX78: 0 | AY78: 2 | AZ78: 2 | BA78: 0.001276400343 | BB78: 0.001276400343 | BC78: 0.001276400343 | BD78: 0.001276400343 | BE78: 0.001276400343 | BF78: 0.001276400343 | BG78: 0.001276400343 | BH78: 0.001276400343 | BI78: 0.001276400343 | BJ78: 0.001276400343 | BK78: 0.001276400343 | BL78: 0.001276400343 | BM78: 0.001276400343 | BN78: 0.001276400343 | BO78: 0.001276400343 | BP78: 0.001276400343 | BQ78: 0.001276400343 | BR78: 0.001276400343 | BS78: 0.001276400343 | BT78: 0.001276400343 | BU78: 0.001276400343 | BV78: 0.001276400343 | BW78: 0.001276400343 | BX78: 0.001276400343 | BY78: 0.001276400343 | BZ78: 0.001276400343 | CA78: 0.001276400343 | CB78: 0.001276400343 | CC78: 0.001276400343
A79: 2 | B79: 2013 | C79: 69 | D79: 18 | E79: 15 | F79: 0.835 | G79: 779.315648 | H79: 0 | I79: 0 | J79: 0 | K79: 779.315648 | L79: 0.09922555009 | M79: 12593643.46 | N79: 25172152.2 | O79: 0 | P79: 37765795.66 | Q79: 12.02122612 | R79: 0.008254195463 | S79: 1 | T79: 0 | U79: 2 | V79: 0 | W79: 0 | X79: 3 | Y79: 0 | Z79: 0 | AA79: 0 | AB79: 1 | AC79: 10 | AD79: -0.0568 | AE79: 1.02 | AF79: -0.2446 | AG79: 2.94 | AH79: -0.206 | AI79: 4.35 | AJ79: -0.153 | AK79: 65 | AL79: 66 | AM79: 0 | AN79: 72 | AO79: 71 | AP79: 70 | AQ79: 68 | AR79: 64 | AS79: 2 | AT79: 2 | AU79: 0 | AV79: 2 | AW79: 2 | AX79: 2 | AY79: 2 | AZ79: 2 | BA79: 0.001276400343 | BB79: 0.001276400343 | BC79: 0.001276400343 | BD79: 0.001276400343 | BE79: 0.001276400343 | BF79: 0.001276400343 | BG79: 0.001276400343 | BH79: 0.001276400343 | BI79: 0.001276400343 | BJ79: 0.001276400343 | BK79: 0.001276400343 | BL79: 0.001276400343 | BM79: 0.001276400343 | BN79: 0.001276400343 | BO79: 0.001276400343 | BP79: 0.001276400343 | BQ79: 0.001276400343 | BR79: 0.001276400343 | BS79: 0.001276400343 | BT79: 0.001276400343 | BU79: 0.001276400343 | BV79: 0.001276400343 | BW79: 0.001276400343 | BX79: 0.001276400343 | BY79: 0.001276400343 | BZ79: 0.001276400343 | CA79: 0.001276400343 | CB79: 0.001276400343 | CC79: 0.001276400343
A80: 2 | B80: 2315 | C80: 70 | D80: 25 | E80: 15 | F80: 0.9173 | G80: 444.582996 | H80: 0 | I80: 0 | J80: 0 | K80: 444.582996 | L80: 0.05660606514 | M80: 12593643.46 | N80: 25172152.2 | O80: 0 | P80: 37765795.66 | Q80: 12.02122612 | R80: 0.004708842891 | S80: 1 | T80: 0 | U80: 2 | V80: 0 | W80: 0 | X80: 3 | Y80: 0 | Z80: 0 | AA80: 0 | AB80: 1 | AC80: 10 | AD80: -0.0568 | AE80: 1.02 | AF80: -0.2446 | AG80: 2.94 | AH80: -0.206 | AI80: 4.35 | AJ80: -0.153 | AK80: 68 | AL80: 69 | AM80: 71 | AN80: 74 | AO80: 73 | AP80: 0 | AQ80: 0 | AR80: 67 | AS80: 2 | AT80: 2 | AU80: 2 | AV80: 2 | AW80: 2 | AX80: 0 | AY80: 0 | AZ80: 2 | BA80: 0.001276400343 | BB80: 0.001276400343 | BC80: 0.001276400343 | BD80: 0.001276400343 | BE80: 0.001276400343 | BF80: 0.001276400343 | BG80: 0.001276400343 | BH80: 0.001276400343 | BI80: 0.001276400343 | BJ80: 0.001276400343 | BK80: 0.001276400343 | BL80: 0.001276400343 | BM80: 0.001276400343 | BN80: 0.001276400343 | BO80: 0.001276400343 | BP80: 0.001276400343 | BQ80: 0.001276400343 | BR80: 0.001276400343 | BS80: 0.001276400343 | BT80: 0.001276400343 | BU80: 0.001276400343 | BV80: 0.001276400343 | BW80: 0.001276400343 | BX80: 0.001276400343 | BY80: 0.001276400343 | BZ80: 0.001276400343 | CA80: 0.001276400343 | CB80: 0.001276400343 | CC80: 0.001276400343
A81: 2 | B81: 2005 | C81: 71 | D81: 26 | E81: 22 | F81: 0.8253 | G81: 1077.77696 | H81: 0 | I81: 0 | J81: 0 | K81: 1077.77696 | L81: 0.1372268246 | M81: 15755820.33 | N81: 17805271.49 | O81: 0 | P81: 33561091.82 | Q81: 10.68282732 | R81: 0.01284555301 | S81: 1 | T81: 0 | U81: 2 | V81: 0 | W81: 0 | X81: 3 | Y81: 0 | Z81: 0 | AA81: 0 | AB81: 1 | AC81: 10 | AD81: -0.0568 | AE81: 1.02 | AF81: -0.2446 | AG81: 2.94 | AH81: -0.206 | AI81: 4.35 | AJ81: -0.153 | AK81: 69 | AL81: 0 | AM81: 72 | AN81: 75 | AO81: 74 | AP81: 73 | AQ81: 70 | AR81: 68 | AS81: 2 | AT81: 0 | AU81: 2 | AV81: 2 | AW81: 2 | AX81: 2 | AY81: 2 | AZ81: 2 | BA81: 0.001276400343 | BB81: 0.001276400343 | BC81: 0.001276400343 | BD81: 0.001276400343 | BE81: 0.001276400343 | BF81: 0.001276400343 | BG81: 0.001276400343 | BH81: 0.001276400343 | BI81: 0.001276400343 | BJ81: 0.001276400343 | BK81: 0.001276400343 | BL81: 0.001276400343 | BM81: 0.001276400343 | BN81: 0.001276400343 | BO81: 0.001276400343 | BP81: 0.001276400343 | BQ81: 0.001276400343 | BR81: 0.001276400343 | BS81: 0.001276400343 | BT81: 0.001276400343 | BU81: 0.001276400343 | BV81: 0.001276400343 | BW81: 0.001276400343 | BX81: 0.001276400343 | BY81: 0.001276400343 | BZ81: 0.001276400343 | CA81: 0.001276400343 | CB81: 0.001276400343 | CC81: 0.001276400343
A82: 2 | B82: 2004 | C82: 72 | D82: 26 | E82: 22 | F82: 0.8253 | G82: 644.593528 | H82: 0 | I82: 0 | J82: 0 | K82: 644.593528 | L82: 0.08207219701 | M82: 15755820.33 | N82: 17805271.49 | O82: 0 | P82: 33561091.82 | Q82: 10.68282732 | R82: 0.007682628819 | S82: 1 | T82: 0 | U82: 2 | V82: 0 | W82: 0 | X82: 3 | Y82: 0 | Z82: 0 | AA82: 0 | AB82: 1 | AC82: 10 | AD82: -0.0568 | AE82: 1.02 | AF82: -0.2446 | AG82: 2.94 | AH82: -0.206 | AI82: 4.35 | AJ82: -0.153 | AK82: 0 | AL82: 0 | AM82: 0 | AN82: 76 | AO82: 75 | AP82: 74 | AQ82: 71 | AR82: 69 | AS82: 0 | AT82: 0 | AU82: 0 | AV82: 2 | AW82: 2 | AX82: 2 | AY82: 2 | AZ82: 2 | BA82: 0.001276400343 | BB82: 0.001276400343 | BC82: 0.001276400343 | BD82: 0.001276400343 | BE82: 0.001276400343 | BF82: 0.001276400343 | BG82: 0.001276400343 | BH82: 0.001276400343 | BI82: 0.001276400343 | BJ82: 0.001276400343 | BK82: 0.001276400343 | BL82: 0.001276400343 | BM82: 0.001276400343 | BN82: 0.001276400343 | BO82: 0.001276400343 | BP82: 0.001276400343 | BQ82: 0.001276400343 | BR82: 0.001276400343 | BS82: 0.001276400343 | BT82: 0.001276400343 | BU82: 0.001276400343 | BV82: 0.001276400343 | BW82: 0.001276400343 | BX82: 0.001276400343 | BY82: 0.001276400343 | BZ82: 0.001276400343 | CA82: 0.001276400343 | CB82: 0.001276400343 | CC82: 0.001276400343
A83: 2 | B83: 2312 | C83: 73 | D83: 25 | E83: 22 | F83: 0.9173 | G83: 923.364684 | H83: 0 | I83: 0 | J83: 0 | K83: 923.364684 | L83: 0.117566443 | M83: 15755820.33 | N83: 17805271.49 | O83: 0 | P83: 33561091.82 | Q83: 10.68282732 | R83: 0.01100518051 | S83: 1 | T83: 0 | U83: 2 | V83: 0 | W83: 0 | X83: 3 | Y83: 0 | Z83: 0 | AA83: 0 | AB83: 1 | AC83: 10 | AD83: -0.0568 | AE83: 1.02 | AF83: -0.2446 | AG83: 2.94 | AH83: -0.206 | AI83: 4.35 | AJ83: -0.153 | AK83: 70 | AL83: 71 | AM83: 74 | AN83: 77 | AO83: 0 | AP83: 0 | AQ83: 0 | AR83: 0 | AS83: 2 | AT83: 2 | AU83: 2 | AV83: 2 | AW83: 0 | AX83: 0 | AY83: 0 | AZ83: 0 | BA83: 0.001276400343 | BB83: 0.001276400343 | BC83: 0.001276400343 | BD83: 0.001276400343 | BE83: 0.001276400343 | BF83: 0.001276400343 | BG83: 0.001276400343 | BH83: 0.001276400343 | BI83: 0.001276400343 | BJ83: 0.001276400343 | BK83: 0.001276400343 | BL83: 0.001276400343 | BM83: 0.001276400343 | BN83: 0.001276400343 | BO83: 0.001276400343 | BP83: 0.001276400343 | BQ83: 0.001276400343 | BR83: 0.001276400343 | BS83: 0.001276400343 | BT83: 0.001276400343 | BU83: 0.001276400343 | BV83: 0.001276400343 | BW83: 0.001276400343 | BX83: 0.001276400343 | BY83: 0.001276400343 | BZ83: 0.001276400343 | CA83: 0.001276400343 | CB83: 0.001276400343 | CC83: 0.001276400343
A84: 2 | B84: 1996 | C84: 74 | D84: 26 | E84: 22 | F84: 0.8253 | G84: 1560.703944 | H84: 0 | I84: 0 | J84: 0 | K84: 1560.703944 | L84: 0.1987149979 | M84: 15755820.33 | N84: 17805271.49 | O84: 0 | P84: 33561091.82 | Q84: 10.68282732 | R84: 0.01860134888 | S84: 1 | T84: 0 | U84: 2 | V84: 0 | W84: 0 | X84: 3 | Y84: 0 | Z84: 0 | AA84: 0 | AB84: 1 | AC84: 10 | AD84: -0.0568 | AE84: 1.02 | AF84: -0.2446 | AG84: 2.94 | AH84: -0.206 | AI84: 4.35 | AJ84: -0.153 | AK84: 71 | AL84: 72 | AM84: 75 | AN84: 78 | AO84: 77 | AP84: 0 | AQ84: 73 | AR84: 70 | AS84: 2 | AT84: 2 | AU84: 2 | AV84: 2 | AW84: 2 | AX84: 0 | AY84: 2 | AZ84: 2 | BA84: 0.001276400343 | BB84: 0.001276400343 | BC84: 0.001276400343 | BD84: 0.001276400343 | BE84: 0.001276400343 | BF84: 0.001276400343 | BG84: 0.001276400343 | BH84: 0.001276400343 | BI84: 0.001276400343 | BJ84: 0.001276400343 | BK84: 0.001276400343 | BL84: 0.001276400343 | BM84: 0.001276400343 | BN84: 0.001276400343 | BO84: 0.001276400343 | BP84: 0.001276400343 | BQ84: 0.001276400343 | BR84: 0.001276400343 | BS84: 0.001276400343 | BT84: 0.001276400343 | BU84: 0.001276400343 | BV84: 0.001276400343 | BW84: 0.001276400343 | BX84: 0.001276400343 | BY84: 0.001276400343 | BZ84: 0.001276400343 | CA84: 0.001276400343 | CB84: 0.001276400343 | CC84: 0.001276400343
A85: 2 | B85: 1995 | C85: 75 | D85: 26 | E85: 22 | F85: 0.8253 | G85: 666.356332 | H85: 0 | I85: 0 | J85: 0 | K85: 666.356332 | L85: 0.08484312328 | M85: 15755820.33 | N85: 17805271.49 | O85: 0 | P85: 33561091.82 | Q85: 10.68282732 | R85: 0.007942010178 | S85: 1 | T85: 0 | U85: 2 | V85: 0 | W85: 0 | X85: 3 | Y85: 0 | Z85: 0 | AA85: 0 | AB85: 1 | AC85: 10 | AD85: -0.0568 | AE85: 1.02 | AF85: -0.2446 | AG85: 2.94 | AH85: -0.206 | AI85: 4.35 | AJ85: -0.153 | AK85: 72 | AL85: 0 | AM85: 76 | AN85: 79 | AO85: 78 | AP85: 77 | AQ85: 74 | AR85: 71 | AS85: 2 | AT85: 0 | AU85: 2 | AV85: 2 | AW85: 2 | AX85: 2 | AY85: 2 | AZ85: 2 | BA85: 0.001276400343 | BB85: 0.001276400343 | BC85: 0.001276400343 | BD85: 0.001276400343 | BE85: 0.001276400343 | BF85: 0.001276400343 | BG85: 0.001276400343 | BH85: 0.001276400343 | BI85: 0.001276400343 | BJ85: 0.001276400343 | BK85: 0.001276400343 | BL85: 0.001276400343 | BM85: 0.001276400343 | BN85: 0.001276400343 | BO85: 0.001276400343 | BP85: 0.001276400343 | BQ85: 0.001276400343 | BR85: 0.001276400343 | BS85: 0.001276400343 | BT85: 0.001276400343 | BU85: 0.001276400343 | BV85: 0.001276400343 | BW85: 0.001276400343 | BX85: 0.001276400343 | BY85: 0.001276400343 | BZ85: 0.001276400343 | CA85: 0.001276400343 | CB85: 0.001276400343 | CC85: 0.001276400343
A86: 2 | B86: 1994 | C86: 76 | D86: 26 | E86: 22 | F86: 0.8253 | G86: 106.741372 | H86: 0 | I86: 0 | J86: 0 | K86: 106.741372 | L86: 0.01359073359 | M86: 15755820.33 | N86: 17805271.49 | O86: 0 | P86: 33561091.82 | Q86: 10.68282732 | R86: 0.001272203808 | S86: 1 | T86: 0 | U86: 2 | V86: 0 | W86: 0 | X86: 3 | Y86: 0 | Z86: 0 | AA86: 0 | AB86: 1 | AC86: 10 | AD86: -0.0568 | AE86: 1.02 | AF86: -0.2446 | AG86: 2.94 | AH86: -0.206 | AI86: 4.35 | AJ86: -0.153 | AK86: 0 | AL86: 0 | AM86: 0 | AN86: 0 | AO86: 79 | AP86: 78 | AQ86: 75 | AR86: 72 | AS86: 0 | AT86: 0 | AU86: 0 | AV86: 0 | AW86: 2 | AX86: 2 | AY86: 2 | AZ86: 2 | BA86: 0.001276400343 | BB86: 0.001276400343 | BC86: 0.001276400343 | BD86: 0.001276400343 | BE86: 0.001276400343 | BF86: 0.001276400343 | BG86: 0.001276400343 | BH86: 0.001276400343 | BI86: 0.001276400343 | BJ86: 0.001276400343 | BK86: 0.001276400343 | BL86: 0.001276400343 | BM86: 0.001276400343 | BN86: 0.001276400343 | BO86: 0.001276400343 | BP86: 0.001276400343 | BQ86: 0.001276400343 | BR86: 0.001276400343 | BS86: 0.001276400343 | BT86: 0.001276400343 | BU86: 0.001276400343 | BV86: 0.001276400343 | BW86: 0.001276400343 | BX86: 0.001276400343 | BY86: 0.001276400343 | BZ86: 0.001276400343 | CA86: 0.001276400343 | CB86: 0.001276400343 | CC86: 0.001276400343
A87: 2 | B87: 1987 | C87: 77 | D87: 26 | E87: 22 | F87: 0.8253 | G87: 1173.118768 | H87: 0 | I87: 0 | J87: 0 | K87: 1173.118768 | L87: 0.1493661206 | M87: 15755820.33 | N87: 17805271.49 | O87: 0 | P87: 33561091.82 | Q87: 10.68282732 | R87: 0.01398189039 | S87: 1 | T87: 0 | U87: 2 | V87: 0 | W87: 0 | X87: 3 | Y87: 0 | Z87: 0 | AA87: 0 | AB87: 1 | AC87: 10 | AD87: -0.0568 | AE87: 1.02 | AF87: -0.2446 | AG87: 2.94 | AH87: -0.206 | AI87: 4.35 | AJ87: -0.153 | AK87: 74 | AL87: 75 | AM87: 78 | AN87: 81 | AO87: 80 | AP87: 0 | AQ87: 0 | AR87: 73 | AS87: 2 | AT87: 2 | AU87: 2 | AV87: 2 | AW87: 2 | AX87: 0 | AY87: 0 | AZ87: 2 | BA87: 0.001276400343 | BB87: 0.001276400343 | BC87: 0.001276400343 | BD87: 0.001276400343 | BE87: 0.001276400343 | BF87: 0.001276400343 | BG87: 0.001276400343 | BH87: 0.001276400343 | BI87: 0.001276400343 | BJ87: 0.001276400343 | BK87: 0.001276400343 | BL87: 0.001276400343 | BM87: 0.001276400343 | BN87: 0.001276400343 | BO87: 0.001276400343 | BP87: 0.001276400343 | BQ87: 0.001276400343 | BR87: 0.001276400343 | BS87: 0.001276400343 | BT87: 0.001276400343 | BU87: 0.001276400343 | BV87: 0.001276400343 | BW87: 0.001276400343 | BX87: 0.001276400343 | BY87: 0.001276400343 | BZ87: 0.001276400343 | CA87: 0.001276400343 | CB87: 0.001276400343 | CC87: 0.001276400343
A88: 2 | B88: 1986 | C88: 78 | D88: 26 | E88: 22 | F88: 0.8253 | G88: 67.36106 | H88: 0 | I88: 0 | J88: 0 | K88: 67.36106 | L88: 0.008576676537 | M88: 15755820.33 | N88: 17805271.49 | O88: 0 | P88: 33561091.82 | Q88: 10.68282732 | R88: 0.0008028470631 | S88: 1 | T88: 0 | U88: 2 | V88: 0 | W88: 0 | X88: 3 | Y88: 0 | Z88: 0 | AA88: 0 | AB88: 1 | AC88: 10 | AD88: -0.0568 | AE88: 1.02 | AF88: -0.2446 | AG88: 2.94 | AH88: -0.206 | AI88: 4.35 | AJ88: -0.153 | AK88: 75 | AL88: 76 | AM88: 79 | AN88: 82 | AO88: 81 | AP88: 80 | AQ88: 77 | AR88: 74 | AS88: 2 | AT88: 2 | AU88: 2 | AV88: 2 | AW88: 2 | AX88: 2 | AY88: 2 | AZ88: 2 | BA88: 0.001276400343 | BB88: 0.001276400343 | BC88: 0.001276400343 | BD88: 0.001276400343 | BE88: 0.001276400343 | BF88: 0.001276400343 | BG88: 0.001276400343 | BH88: 0.001276400343 | BI88: 0.001276400343 | BJ88: 0.001276400343 | BK88: 0.001276400343 | BL88: 0.001276400343 | BM88: 0.001276400343 | BN88: 0.001276400343 | BO88: 0.001276400343 | BP88: 0.001276400343 | BQ88: 0.001276400343 | BR88: 0.001276400343 | BS88: 0.001276400343 | BT88: 0.001276400343 | BU88: 0.001276400343 | BV88: 0.001276400343 | BW88: 0.001276400343 | BX88: 0.001276400343 | BY88: 0.001276400343 | BZ88: 0.001276400343 | CA88: 0.001276400343 | CB88: 0.001276400343 | CC88: 0.001276400343
A89: 2 | B89: 1985 | C89: 79 | D89: 26 | E89: 22 | F89: 0.8253 | G89: 200.010532 | H89: 0 | I89: 0 | J89: 0 | K89: 200.010532 | L89: 0.02546613187 | M89: 15755820.33 | N89: 17805271.49 | O89: 0 | P89: 33561091.82 | Q89: 10.68282732 | R89: 0.002383838203 | S89: 1 | T89: 0 | U89: 2 | V89: 0 | W89: 0 | X89: 3 | Y89: 0 | Z89: 0 | AA89: 0 | AB89: 1 | AC89: 10 | AD89: -0.0568 | AE89: 1.02 | AF89: -0.2446 | AG89: 2.94 | AH89: -0.206 | AI89: 4.35 | AJ89: -0.153 | AK89: 76 | AL89: 0 | AM89: 0 | AN89: 83 | AO89: 82 | AP89: 81 | AQ89: 78 | AR89: 75 | AS89: 2 | AT89: 0 | AU89: 0 | AV89: 2 | AW89: 2 | AX89: 2 | AY89: 2 | AZ89: 2 | BA89: 0.001276400343 | BB89: 0.001276400343 | BC89: 0.001276400343 | BD89: 0.001276400343 | BE89: 0.001276400343 | BF89: 0.001276400343 | BG89: 0.001276400343 | BH89: 0.001276400343 | BI89: 0.001276400343 | BJ89: 0.001276400343 | BK89: 0.001276400343 | BL89: 0.001276400343 | BM89: 0.001276400343 | BN89: 0.001276400343 | BO89: 0.001276400343 | BP89: 0.001276400343 | BQ89: 0.001276400343 | BR89: 0.001276400343 | BS89: 0.001276400343 | BT89: 0.001276400343 | BU89: 0.001276400343 | BV89: 0.001276400343 | BW89: 0.001276400343 | BX89: 0.001276400343 | BY89: 0.001276400343 | BZ89: 0.001276400343 | CA89: 0.001276400343 | CB89: 0.001276400343 | CC89: 0.001276400343
A90: 2 | B90: 1978 | C90: 80 | D90: 26 | E90: 22 | F90: 0.8253 | G90: 15101.31333 | H90: 0 | I90: 0 | J90: 0 | K90: 15101.31333 | L90: 1.922758931 | M90: 15755820.33 | N90: 17805271.49 | O90: 0 | P90: 33561091.82 | Q90: 10.68282732 | R90: 0.17998596 | S90: 1 | T90: 0 | U90: 2 | V90: 0 | W90: 0 | X90: 3 | Y90: 0 | Z90: 0 | AA90: 0 | AB90: 1 | AC90: 10 | AD90: -0.0568 | AE90: 1.02 | AF90: -0.2446 | AG90: 2.94 | AH90: -0.206 | AI90: 4.35 | AJ90: -0.153 | AK90: 77 | AL90: 78 | AM90: 81 | AN90: 3 | AO90: 2 | AP90: 1 | AQ90: 0 | AR90: 0 | AS90: 2 | AT90: 2 | AU90: 2 | AV90: 3 | AW90: 3 | AX90: 3 | AY90: 0 | AZ90: 0 | BA90: 0.001276400343 | BB90: 0.001276400343 | BC90: 0.001276400343 | BD90: 0.001276400343 | BE90: 0.001276400343 | BF90: 0.001276400343 | BG90: 0.001276400343 | BH90: 0.001276400343 | BI90: 0.001276400343 | BJ90: 0.001276400343 | BK90: 0.001276400343 | BL90: 0.001276400343 | BM90: 0.001276400343 | BN90: 0.001276400343 | BO90: 0.001276400343 | BP90: 0.001276400343 | BQ90: 0.001276400343 | BR90: 0.001276400343 | BS90: 0.001276400343 | BT90: 0.001276400343 | BU90: 0.001276400343 | BV90: 0.001276400343 | BW90: 0.001276400343 | BX90: 0.001276400343 | BY90: 0.001276400343 | BZ90: 0.001276400343 | CA90: 0.001276400343 | CB90: 0.001276400343 | CC90: 0.001276400343
A91: 2 | B91: 1977 | C91: 81 | D91: 26 | E91: 22 | F91: 0.8253 | G91: 851.858328 | H91: 0 | I91: 0 | J91: 0 | K91: 851.858328 | L91: 0.108461971 | M91: 15755820.33 | N91: 17805271.49 | O91: 0 | P91: 33561091.82 | Q91: 10.68282732 | R91: 0.01015292747 | S91: 1 | T91: 0 | U91: 2 | V91: 0 | W91: 0 | X91: 3 | Y91: 0 | Z91: 0 | AA91: 0 | AB91: 1 | AC91: 10 | AD91: -0.0568 | AE91: 1.02 | AF91: -0.2446 | AG91: 2.94 | AH91: -0.206 | AI91: 4.35 | AJ91: -0.153 | AK91: 78 | AL91: 79 | AM91: 82 | AN91: 4 | AO91: 3 | AP91: 2 | AQ91: 80 | AR91: 77 | AS91: 2 | AT91: 2 | AU91: 2 | AV91: 3 | AW91: 3 | AX91: 3 | AY91: 2 | AZ91: 2 | BA91: 0.001276400343 | BB91: 0.001276400343 | BC91: 0.001276400343 | BD91: 0.001276400343 | BE91: 0.001276400343 | BF91: 0.001276400343 | BG91: 0.001276400343 | BH91: 0.001276400343 | BI91: 0.001276400343 | BJ91: 0.001276400343 | BK91: 0.001276400343 | BL91: 0.001276400343 | BM91: 0.001276400343 | BN91: 0.001276400343 | BO91: 0.001276400343 | BP91: 0.001276400343 | BQ91: 0.001276400343 | BR91: 0.001276400343 | BS91: 0.001276400343 | BT91: 0.001276400343 | BU91: 0.001276400343 | BV91: 0.001276400343 | BW91: 0.001276400343 | BX91: 0.001276400343 | BY91: 0.001276400343 | BZ91: 0.001276400343 | CA91: 0.001276400343 | CB91: 0.001276400343 | CC91: 0.001276400343
A92: 2 | B92: 1976 | C92: 82 | D92: 26 | E92: 22 | F92: 0.8253 | G92: 262.189972 | H92: 0 | I92: 0 | J92: 0 | K92: 262.189972 | L92: 0.03338306406 | M92: 15755820.33 | N92: 17805271.49 | O92: 0 | P92: 33561091.82 | Q92: 10.68282732 | R92: 0.003124927799 | S92: 1 | T92: 0 | U92: 2 | V92: 0 | W92: 0 | X92: 3 | Y92: 0 | Z92: 0 | AA92: 0 | AB92: 1 | AC92: 10 | AD92: -0.0568 | AE92: 1.02 | AF92: -0.2446 | AG92: 2.94 | AH92: -0.206 | AI92: 4.35 | AJ92: -0.153 | AK92: 79 | AL92: 0 | AM92: 83 | AN92: 5 | AO92: 4 | AP92: 3 | AQ92: 81 | AR92: 78 | AS92: 2 | AT92: 0 | AU92: 2 | AV92: 3 | AW92: 3 | AX92: 3 | AY92: 2 | AZ92: 2 | BA92: 0.001276400343 | BB92: 0.001276400343 | BC92: 0.001276400343 | BD92: 0.001276400343 | BE92: 0.001276400343 | BF92: 0.001276400343 | BG92: 0.001276400343 | BH92: 0.001276400343 | BI92: 0.001276400343 | BJ92: 0.001276400343 | BK92: 0.001276400343 | BL92: 0.001276400343 | BM92: 0.001276400343 | BN92: 0.001276400343 | BO92: 0.001276400343 | BP92: 0.001276400343 | BQ92: 0.001276400343 | BR92: 0.001276400343 | BS92: 0.001276400343 | BT92: 0.001276400343 | BU92: 0.001276400343 | BV92: 0.001276400343 | BW92: 0.001276400343 | BX92: 0.001276400343 | BY92: 0.001276400343 | BZ92: 0.001276400343 | CA92: 0.001276400343 | CB92: 0.001276400343 | CC92: 0.001276400343
A93: 2 | B93: 1975 | C93: 83 | D93: 26 | E93: 22 | F93: 0.8253 | G93: 202.08318 | H93: 0 | I93: 0 | J93: 0 | K93: 202.08318 | L93: 0.02573002961 | M93: 15755820.33 | N93: 17805271.49 | O93: 0 | P93: 33561091.82 | Q93: 10.68282732 | R93: 0.002408541189 | S93: 1 | T93: 0 | U93: 2 | V93: 0 | W93: 0 | X93: 3 | Y93: 0 | Z93: 0 | AA93: 0 | AB93: 1 | AC93: 10 | AD93: -0.0568 | AE93: 1.02 | AF93: -0.2446 | AG93: 2.94 | AH93: -0.206 | AI93: 4.35 | AJ93: -0.153 | AK93: 0 | AL93: 0 | AM93: 0 | AN93: 0 | AO93: 5 | AP93: 4 | AQ93: 82 | AR93: 79 | AS93: 0 | AT93: 0 | AU93: 0 | AV93: 0 | AW93: 3 | AX93: 3 | AY93: 2 | AZ93: 2 | BA93: 0.001276400343 | BB93: 0.001276400343 | BC93: 0.001276400343 | BD93: 0.001276400343 | BE93: 0.001276400343 | BF93: 0.001276400343 | BG93: 0.001276400343 | BH93: 0.001276400343 | BI93: 0.001276400343 | BJ93: 0.001276400343 | BK93: 0.001276400343 | BL93: 0.001276400343 | BM93: 0.001276400343 | BN93: 0.001276400343 | BO93: 0.001276400343 | BP93: 0.001276400343 | BQ93: 0.001276400343 | BR93: 0.001276400343 | BS93: 0.001276400343 | BT93: 0.001276400343 | BU93: 0.001276400343 | BV93: 0.001276400343 | BW93: 0.001276400343 | BX93: 0.001276400343 | BY93: 0.001276400343 | BZ93: 0.001276400343 | CA93: 0.001276400343 | CB93: 0.001276400343 | CC93: 0.001276400343
A94: 3 | B94: BAJA CALIFORNIA SUR | E94: 0 | AB94: 0
A95: 3 | B95: 2404 | C95: 1 | D95: 33 | E95: 29 | F95: 0.9182 | G95: 15059.86037 | H95: 0 | I95: 0 | J95: 0 | K95: 15059.86037 | L95: 1.917480976 | M95: 13288326.67 | N95: 16319240.92 | O95: 0 | P95: 29607567.59 | Q95: 9.424381468 | R95: =L95/Q95 -> 0.2034596098 | S95: 1 | T95: 0 | U95: 2 | V95: 0 | W95: 0 | X95: 3 | Y95: 0 | Z95: 0 | AA95: 0 | AB95: 1 | AC95: 10 | AD95: -0.0568 | AE95: 1.02 | AF95: -0.2446 | AG95: 2.94 | AH95: -0.206 | AI95: 4.35 | AJ95: -0.153 | AK95: 0 | AL95: 80 | AM95: 2 | AN95: 9 | AO95: 8 | AP95: 7 | AQ95: 0 | AR95: 0 | AS95: 0 | AT95: 2 | AU95: 3 | AV95: 3 | AW95: 3 | AX95: 3 | AY95: 0 | AZ95: 0 | BA95: 0.0007950964382 | BB95: 0.0007950964382 | BC95: 0.0007950964382 | BD95: 0.0007950964382 | BE95: 0.0007950964382 | BF95: 0.0007950964382 | BG95: 0.0007950964382 | BH95: 0.0007950964382 | BI95: 0.0007950964382 | BJ95: 0.0007950964382 | BK95: 0.0007950964382 | BL95: 0.0007950964382 | BM95: 0.0007950964382 | BN95: 0.0007950964382 | BO95: 0.0007950964382 | BP95: 0.0007950964382 | BQ95: 0.0007950964382 | BR95: 0.0007950964382 | BS95: 0.0007950964382 | BT95: 0.0007950964382 | BU95: 0.0007950964382 | BV95: 0.0007950964382 | BW95: 0.0007950964382 | BX95: 0.0007950964382 | BY95: 0.0007950964382 | BZ95: 0.0007950964382 | CA95: 0.0007950964382 | CB95: 0.0007950964382 | CC95: 0.0007950964382
A96: 3 | B96: 2255 | C96: 2 | D96: 34 | E96: 30 | F96: 0.9182 | G96: 21032.19558 | H96: 0 | I96: 0 | J96: 0 | K96: 21032.19558 | L96: 2.677902313 | M96: 16482334.24 | N96: 16044007.62 | O96: 0 | P96: 32526341.86 | Q96: 10.35345617 | R96: 0.2586481526 | S96: 1 | T96: 0 | U96: 2 | V96: 0 | W96: 0 | X96: 3 | Y96: 0 | Z96: 0 | AA96: 0 | AB96: 1 | AC96: 10 | AD96: -0.0568 | AE96: 1.02 | AF96: -0.2446 | AG96: 2.94 | AH96: -0.206 | AI96: 4.35 | AJ96: -0.153 | AK96: 80 | AL96: 91 | AM96: 3 | AN96: 10 | AO96: 9 | AP96: 8 | AQ96: 1 | AR96: 0 | AS96: 2 | AT96: 2 | AU96: 3 | AV96: 3 | AW96: 3 | AX96: 3 | AY96: 3 | AZ96: 0 | BA96: 0.0007950964382 | BB96: 0.0007950964382 | BC96: 0.0007950964382 | BD96: 0.0007950964382 | BE96: 0.0007950964382 | BF96: 0.0007950964382 | BG96: 0.0007950964382 | BH96: 0.0007950964382 | BI96: 0.0007950964382 | BJ96: 0.0007950964382 | BK96: 0.0007950964382 | BL96: 0.0007950964382 | BM96: 0.0007950964382 | BN96: 0.0007950964382 | BO96: 0.0007950964382 | BP96: 0.0007950964382 | BQ96: 0.0007950964382 | BR96: 0.0007950964382 | BS96: 0.0007950964382 | BT96: 0.0007950964382 | BU96: 0.0007950964382 | BV96: 0.0007950964382 | BW96: 0.0007950964382 | BX96: 0.0007950964382 | BY96: 0.0007950964382 | BZ96: 0.0007950964382 | CA96: 0.0007950964382 | CB96: 0.0007950964382 | CC96: 0.0007950964382
A97: 3 | B97: 2254 | C97: 3 | D97: 34 | E97: 30 | F97: 0.9182 | G97: 16007.0605 | H97: 0 | I97: 0 | J97: 0 | K97: 16007.0605 | L97: 2.038082243 | M97: 16482334.24 | N97: 16044007.62 | O97: 0 | P97: 32526341.86 | Q97: 10.35345617 | R97: 0.1968504245 | S97: 1 | T97: 0 | U97: 2 | V97: 0 | W97: 0 | X97: 3 | Y97: 0 | Z97: 0 | AA97: 0 | AB97: 1 | AC97: 10 | AD97: -0.0568 | AE97: 1.02 | AF97: -0.2446 | AG97: 2.94 | AH97: -0.206 | AI97: 4.35 | AJ97: -0.153 | AK97: 81 | AL97: 82 | AM97: 4 | AN97: 11 | AO97: 10 | AP97: 9 | AQ97: 2 | AR97: 80 | AS97: 2 | AT97: 2 | AU97: 3 | AV97: 3 | AW97: 3 | AX97: 3 | AY97: 3 | AZ97: 2 | BA97: 0.0007950964382 | BB97: 0.0007950964382 | BC97: 0.0007950964382 | BD97: 0.0007950964382 | BE97: 0.0007950964382 | BF97: 0.0007950964382 | BG97: 0.0007950964382 | BH97: 0.0007950964382 | BI97: 0.0007950964382 | BJ97: 0.0007950964382 | BK97: 0.0007950964382 | BL97: 0.0007950964382 | BM97: 0.0007950964382 | BN97: 0.0007950964382 | BO97: 0.0007950964382 | BP97: 0.0007950964382 | BQ97: 0.0007950964382 | BR97: 0.0007950964382 | BS97: 0.0007950964382 | BT97: 0.0007950964382 | BU97: 0.0007950964382 | BV97: 0.0007950964382 | BW97: 0.0007950964382 | BX97: 0.0007950964382 | BY97: 0.0007950964382 | BZ97: 0.0007950964382 | CA97: 0.0007950964382 | CB97: 0.0007950964382 | CC97: 0.0007950964382
A98: 3 | B98: 2253 | C98: 4 | D98: 34 | E98: 30 | F98: 0.9182 | G98: 15244.32604 | H98: 0 | I98: 0 | J98: 0 | K98: 15244.32604 | L98: 1.940967875 | M98: 16482334.24 | N98: 16044007.62 | O98: 0 | P98: 32526341.86 | Q98: 10.35345617 | R98: 0.187470526 | S98: 1 | T98: 0 | U98: 2 | V98: 0 | W98: 0 | X98: 3 | Y98: 0 | Z98: 0 | AA98: 0 | AB98: 1 | AC98: 10 | AD98: -0.0568 | AE98: 1.02 | AF98: -0.2446 | AG98: 2.94 | AH98: -0.206 | AI98: 4.35 | AJ98: -0.153 | AK98: 82 | AL98: 83 | AM98: 5 | AN98: 12 | AO98: 11 | AP98: 10 | AQ98: 3 | AR98: 81 | AS98: 2 | AT98: 2 | AU98: 3 | AV98: 3 | AW98: 3 | AX98: 3 | AY98: 3 | AZ98: 2 | BA98: 0.0007950964382 | BB98: 0.0007950964382 | BC98: 0.0007950964382 | BD98: 0.0007950964382 | BE98: 0.0007950964382 | BF98: 0.0007950964382 | BG98: 0.0007950964382 | BH98: 0.0007950964382 | BI98: 0.0007950964382 | BJ98: 0.0007950964382 | BK98: 0.0007950964382 | BL98: 0.0007950964382 | BM98: 0.0007950964382 | BN98: 0.0007950964382 | BO98: 0.0007950964382 | BP98: 0.0007950964382 | BQ98: 0.0007950964382 | BR98: 0.0007950964382 | BS98: 0.0007950964382 | BT98: 0.0007950964382 | BU98: 0.0007950964382 | BV98: 0.0007950964382 | BW98: 0.0007950964382 | BX98: 0.0007950964382 | BY98: 0.0007950964382 | BZ98: 0.0007950964382 | CA98: 0.0007950964382 | CB98: 0.0007950964382 | CC98: 0.0007950964382
A99: 3 | B99: 2252 | C99: 5 | D99: 34 | E99: 30 | F99: 0.9182 | G99: 476.70904 | H99: 0 | I99: 0 | J99: 0 | K99: 476.70904 | L99: 0.06069648011 | M99: 16482334.24 | N99: 16044007.62 | O99: 0 | P99: 32526341.86 | Q99: 10.35345617 | R99: 0.005862436571 | S99: 1 | T99: 0 | U99: 2 | V99: 0 | W99: 0 | X99: 3 | Y99: 0 | Z99: 0 | AA99: 0 | AB99: 1 | AC99: 10 | AD99: -0.0568 | AE99: 1.02 | AF99: -0.2446 | AG99: 2.94 | AH99: -0.206 | AI99: 4.35 | AJ99: -0.153 | AK99: 83 | AL99: 0 | AM99: 0 | AN99: 13 | AO99: 12 | AP99: 11 | AQ99: 4 | AR99: 82 | AS99: 2 | AT99: 0 | AU99: 0 | AV99: 3 | AW99: 3 | AX99: 3 | AY99: 3 | AZ99: 2 | BA99: 0.0007950964382 | BB99: 0.0007950964382 | BC99: 0.0007950964382 | BD99: 0.0007950964382 | BE99: 0.0007950964382 | BF99: 0.0007950964382 | BG99: 0.0007950964382 | BH99: 0.0007950964382 | BI99: 0.0007950964382 | BJ99: 0.0007950964382 | BK99: 0.0007950964382 | BL99: 0.0007950964382 | BM99: 0.0007950964382 | BN99: 0.0007950964382 | BO99: 0.0007950964382 | BP99: 0.0007950964382 | BQ99: 0.0007950964382 | BR99: 0.0007950964382 | BS99: 0.0007950964382 | BT99: 0.0007950964382 | BU99: 0.0007950964382 | BV99: 0.0007950964382 | BW99: 0.0007950964382 | BX99: 0.0007950964382 | BY99: 0.0007950964382 | BZ99: 0.0007950964382 | CA99: 0.0007950964382 | CB99: 0.0007950964382 | CC99: 0.0007950964382
A100: 3 | B100: 2402 | C100: 6 | D100: 33 | E100: 29 | F100: 0.9182 | G100: 3119.33524 | H100: 0 | I100: 0 | J100: 0 | K100: 3119.33524 | L100: 0.3971660981 | M100: 13288326.67 | N100: 16319240.92 | O100: 0 | P100: 29607567.59 | Q100: 9.424381468 | R100: 0.04214240472 | S100: 1 | T100: 0 | U100: 2 | V100: 0 | W100: 0 | X100: 3 | Y100: 0 | Z100: 0 | AA100: 0 | AB100: 1 | AC100: 10 | AD100: -0.0568 | AE100: 1.02 | AF100: -0.2446 | AG100: 2.94 | AH100: -0.206 | AI100: 4.35 | AJ100: -0.153 | AK100: 0 | AL100: 0 | AM100: 7 | AN100: 14 | AO100: 0 | AP100: 0 | AQ100: 0 | AR100: 0 | AS100: 0 | AT100: 0 | AU100: 3 | AV100: 3 | AW100: 0 | AX100: 0 | AY100: 0 | AZ100: 0 | BA100: 0.0007950964382 | BB100: 0.0007950964382 | BC100: 0.0007950964382 | BD100: 0.0007950964382 | BE100: 0.0007950964382 | BF100: 0.0007950964382 | BG100: 0.0007950964382 | BH100: 0.0007950964382 | BI100: 0.0007950964382 | BJ100: 0.0007950964382 | BK100: 0.0007950964382 | BL100: 0.0007950964382 | BM100: 0.0007950964382 | BN100: 0.0007950964382 | BO100: 0.0007950964382 | BP100: 0.0007950964382 | BQ100: 0.0007950964382 | BR100: 0.0007950964382 | BS100: 0.0007950964382 | BT100: 0.0007950964382 | BU100: 0.0007950964382 | BV100: 0.0007950964382 | BW100: 0.0007950964382 | BX100: 0.0007950964382 | BY100: 0.0007950964382 | BZ100: 0.0007950964382 | CA100: 0.0007950964382 | CB100: 0.0007950964382 | CC100: 0.0007950964382
A101: 3 | B101: 2401 | C101: 7 | D101: 33 | E101: 29 | F101: 0.9182 | G101: 2789.784208 | H101: 0 | I101: 0 | J101: 0 | K101: 2789.784208 | L101: 0.3552063575 | M101: 13288326.67 | N101: 16319240.92 | O101: 0 | P101: 29607567.59 | Q101: 9.424381468 | R101: 0.03769015067 | S101: 1 | T101: 0 | U101: 2 | V101: 0 | W101: 0 | X101: 3 | Y101: 0 | Z101: 0 | AA101: 0 | AB101: 1 | AC101: 10 | AD101: -0.0568 | AE101: 1.02 | AF101: -0.2446 | AG101: 2.94 | AH101: -0.206 | AI101: 4.35 | AJ101: -0.153 | AK101: 0 | AL101: 1 | AM101: 8 | AN101: 15 | AO101: 14 | AP101: 0 | AQ101: 6 | AR101: 0 | AS101: 0 | AT101: 3 | AU101: 3 | AV101: 3 | AW101: 3 | AX101: 0 | AY101: 3 | AZ101: 0 | BA101: 0.0007950964382 | BB101: 0.0007950964382 | BC101: 0.0007950964382 | BD101: 0.0007950964382 | BE101: 0.0007950964382 | BF101: 0.0007950964382 | BG101: 0.0007950964382 | BH101: 0.0007950964382 | BI101: 0.0007950964382 | BJ101: 0.0007950964382 | BK101: 0.0007950964382 | BL101: 0.0007950964382 | BM101: 0.0007950964382 | BN101: 0.0007950964382 | BO101: 0.0007950964382 | BP101: 0.0007950964382 | BQ101: 0.0007950964382 | BR101: 0.0007950964382 | BS101: 0.0007950964382 | BT101: 0.0007950964382 | BU101: 0.0007950964382 | BV101: 0.0007950964382 | BW101: 0.0007950964382 | BX101: 0.0007950964382 | BY101: 0.0007950964382 | BZ101: 0.0007950964382 | CA101: 0.0007950964382 | CB101: 0.0007950964382 | CC101: 0.0007950964382
A102: 3 | B102: 2400 | C102: 8 | D102: 33 | E102: 29 | F102: 0.9182 | G102: 14555.17058 | H102: 0 | I102: 0 | J102: 0 | K102: 14555.17058 | L102: 1.853221876 | M102: 13288326.67 | N102: 16319240.92 | O102: 0 | P102: 29607567.59 | Q102: 9.424381468 | R102: 0.1966412207 | S102: 1 | T102: 0 | U102: 2 | V102: 0 | W102: 0 | X102: 3 | Y102: 0 | Z102: 0 | AA102: 0 | AB102: 1 | AC102: 10 | AD102: -0.0568 | AE102: 1.02 | AF102: -0.2446 | AG102: 2.94 | AH102: -0.206 | AI102: 4.35 | AJ102: -0.153 | AK102: 1 | AL102: 2 | AM102: 9 | AN102: 16 | AO102: 15 | AP102: 14 | AQ102: 7 | AR102: 0 | AS102: 3 | AT102: 3 | AU102: 3 | AV102: 3 | AW102: 3 | AX102: 3 | AY102: 3 | AZ102: 0 | BA102: 0.0007950964382 | BB102: 0.0007950964382 | BC102: 0.0007950964382 | BD102: 0.0007950964382 | BE102: 0.0007950964382 | BF102: 0.0007950964382 | BG102: 0.0007950964382 | BH102: 0.0007950964382 | BI102: 0.0007950964382 | BJ102: 0.0007950964382 | BK102: 0.0007950964382 | BL102: 0.0007950964382 | BM102: 0.0007950964382 | BN102: 0.0007950964382 | BO102: 0.0007950964382 | BP102: 0.0007950964382 | BQ102: 0.0007950964382 | BR102: 0.0007950964382 | BS102: 0.0007950964382 | BT102: 0.0007950964382 | BU102: 0.0007950964382 | BV102: 0.0007950964382 | BW102: 0.0007950964382 | BX102: 0.0007950964382 | BY102: 0.0007950964382 | BZ102: 0.0007950964382 | CA102: 0.0007950964382 | CB102: 0.0007950964382 | CC102: 0.0007950964382
A103: 3 | B103: 2249 | C103: 9 | D103: 34 | E103: 30 | F103: 0.9182 | G103: 28302.00844 | H103: 0 | I103: 0 | J103: 0 | K103: 28302.00844 | L103: 3.603523634 | M103: 16482334.24 | N103: 16044007.62 | O103: 0 | P103: 32526341.86 | Q103: 10.35345617 | R103: 0.3480503103 | S103: 1 | T103: 0 | U103: 2 | V103: 0 | W103: 0 | X103: 3 | Y103: 0 | Z103: 0 | AA103: 0 | AB103: 1 | AC103: 10 | AD103: -0.0568 | AE103: 1.02 | AF103: -0.2446 | AG103: 2.94 | AH103: -0.206 | AI103: 4.35 | AJ103: -0.153 | AK103: 2 | AL103: 3 | AM103: 10 | AN103: 17 | AO103: 16 | AP103: 15 | AQ103: 8 | AR103: 1 | AS103: 3 | AT103: 3 | AU103: 3 | AV103: 3 | AW103: 3 | AX103: 3 | AY103: 3 | AZ103: 3 | BA103: 0.0007950964382 | BB103: 0.0007950964382 | BC103: 0.0007950964382 | BD103: 0.0007950964382 | BE103: 0.0007950964382 | BF103: 0.0007950964382 | BG103: 0.0007950964382 | BH103: 0.0007950964382 | BI103: 0.0007950964382 | BJ103: 0.0007950964382 | BK103: 0.0007950964382 | BL103: 0.0007950964382 | BM103: 0.0007950964382 | BN103: 0.0007950964382 | BO103: 0.0007950964382 | BP103: 0.0007950964382 | BQ103: 0.0007950964382 | BR103: 0.0007950964382 | BS103: 0.0007950964382 | BT103: 0.0007950964382 | BU103: 0.0007950964382 | BV103: 0.0007950964382 | BW103: 0.0007950964382 | BX103: 0.0007950964382 | BY103: 0.0007950964382 | BZ103: 0.0007950964382 | CA103: 0.0007950964382 | CB103: 0.0007950964382 | CC103: 0.0007950964382
A104: 3 | B104: 2248 | C104: 10 | D104: 34 | E104: 30 | F104: 0.9182 | G104: 17495.22177 | H104: 0 | I104: 0 | J104: 0 | K104: 17495.22177 | L104: 2.22756082 | M104: 16482334.24 | N104: 16044007.62 | O104: 0 | P104: 32526341.86 | Q104: 10.35345617 | R104: 0.2151514221 | S104: 1 | T104: 0 | U104: 2 | V104: 0 | W104: 0 | X104: 3 | Y104: 0 | Z104: 0 | AA104: 0 | AB104: 1 | AC104: 10 | AD104: -0.0568 | AE104: 1.02 | AF104: -0.2446 | AG104: 2.94 | AH104: -0.206 | AI104: 4.35 | AJ104: -0.153 | AK104: 3 | AL104: 4 | AM104: 11 | AN104: 18 | AO104: 17 | AP104: 16 | AQ104: 9 | AR104: 2 | AS104: 3 | AT104: 3 | AU104: 3 | AV104: 3 | AW104: 3 | AX104: 3 | AY104: 3 | AZ104: 3 | BA104: 0.0007950964382 | BB104: 0.0007950964382 | BC104: 0.0007950964382 | BD104: 0.0007950964382 | BE104: 0.0007950964382 | BF104: 0.0007950964382 | BG104: 0.0007950964382 | BH104: 0.0007950964382 | BI104: 0.0007950964382 | BJ104: 0.0007950964382 | BK104: 0.0007950964382 | BL104: 0.0007950964382 | BM104: 0.0007950964382 | BN104: 0.0007950964382 | BO104: 0.0007950964382 | BP104: 0.0007950964382 | BQ104: 0.0007950964382 | BR104: 0.0007950964382 | BS104: 0.0007950964382 | BT104: 0.0007950964382 | BU104: 0.0007950964382 | BV104: 0.0007950964382 | BW104: 0.0007950964382 | BX104: 0.0007950964382 | BY104: 0.0007950964382 | BZ104: 0.0007950964382 | CA104: 0.0007950964382 | CB104: 0.0007950964382 | CC104: 0.0007950964382
A105: 3 | B105: 2247 | C105: 11 | D105: 34 | E105: 30 | F105: 0.9182 | G105: 18854.87886 | H105: 0 | I105: 0 | J105: 0 | K105: 18854.87886 | L105: 2.400677737 | M105: 16482334.24 | N105: 16044007.62 | O105: 0 | P105: 32526341.86 | Q105: 10.35345617 | R105: 0.2318721108 | S105: 1 | T105: 0 | U105: 2 | V105: 0 | W105: 0 | X105: 3 | Y105: 0 | Z105: 0 | AA105: 0 | AB105: 1 | AC105: 10 | AD105: -0.0568 | AE105: 1.02 | AF105: -0.2446 | AG105: 2.94 | AH105: -0.206 | AI105: 4.35 | AJ105: -0.153 | AK105: 4 | AL105: 5 | AM105: 12 | AN105: 19 | AO105: 18 | AP105: 17 | AQ105: 10 | AR105: 3 | AS105: 3 | AT105: 3 | AU105: 3 | AV105: 3 | AW105: 3 | AX105: 3 | AY105: 3 | AZ105: 3 | BA105: 0.0007950964382 | BB105: 0.0007950964382 | BC105: 0.0007950964382 | BD105: 0.0007950964382 | BE105: 0.0007950964382 | BF105: 0.0007950964382 | BG105: 0.0007950964382 | BH105: 0.0007950964382 | BI105: 0.0007950964382 | BJ105: 0.0007950964382 | BK105: 0.0007950964382 | BL105: 0.0007950964382 | BM105: 0.0007950964382 | BN105: 0.0007950964382 | BO105: 0.0007950964382 | BP105: 0.0007950964382 | BQ105: 0.0007950964382 | BR105: 0.0007950964382 | BS105: 0.0007950964382 | BT105: 0.0007950964382 | BU105: 0.0007950964382 | BV105: 0.0007950964382 | BW105: 0.0007950964382 | BX105: 0.0007950964382 | BY105: 0.0007950964382 | BZ105: 0.0007950964382 | CA105: 0.0007950964382 | CB105: 0.0007950964382 | CC105: 0.0007950964382
A106: 3 | B106: 2246 | C106: 12 | D106: 34 | E106: 30 | F106: 0.9182 | G106: 4925.647972 | H106: 0 | I106: 0 | J106: 0 | K106: 4925.647972 | L106: 0.6271529781 | M106: 16482334.24 | N106: 16044007.62 | O106: 0 | P106: 32526341.86 | Q106: 10.35345617 | R106: 0.06057426309 | S106: 1 | T106: 0 | U106: 2 | V106: 0 | W106: 0 | X106: 3 | Y106: 0 | Z106: 0 | AA106: 0 | AB106: 1 | AC106: 10 | AD106: -0.0568 | AE106: 1.02 | AF106: -0.2446 | AG106: 2.94 | AH106: -0.206 | AI106: 4.35 | AJ106: -0.153 | AK106: 5 | AL106: 0 | AM106: 13 | AN106: 20 | AO106: 19 | AP106: 18 | AQ106: 11 | AR106: 4 | AS106: 3 | AT106: 0 | AU106: 3 | AV106: 3 | AW106: 3 | AX106: 3 | AY106: 3 | AZ106: 3 | BA106: 0.0007950964382 | BB106: 0.0007950964382 | BC106: 0.0007950964382 | BD106: 0.0007950964382 | BE106: 0.0007950964382 | BF106: 0.0007950964382 | BG106: 0.0007950964382 | BH106: 0.0007950964382 | BI106: 0.0007950964382 | BJ106: 0.0007950964382 | BK106: 0.0007950964382 | BL106: 0.0007950964382 | BM106: 0.0007950964382 | BN106: 0.0007950964382 | BO106: 0.0007950964382 | BP106: 0.0007950964382 | BQ106: 0.0007950964382 | BR106: 0.0007950964382 | BS106: 0.0007950964382 | BT106: 0.0007950964382 | BU106: 0.0007950964382 | BV106: 0.0007950964382 | BW106: 0.0007950964382 | BX106: 0.0007950964382 | BY106: 0.0007950964382 | BZ106: 0.0007950964382 | CA106: 0.0007950964382 | CB106: 0.0007950964382 | CC106: 0.0007950964382
A107: 3 | B107: 2245 | C107: 13 | D107: 34 | E107: 30 | F107: 0.9182 | G107: 13116.75287 | H107: 0 | I107: 0 | J107: 0 | K107: 13116.75287 | L107: 1.670076845 | M107: 16482334.24 | N107: 16044007.62 | O107: 0 | P107: 32526341.86 | Q107: 10.35345617 | R107: 0.1613062167 | S107: 1 | T107: 0 | U107: 2 | V107: 0 | W107: 0 | X107: 3 | Y107: 0 | Z107: 0 | AA107: 0 | AB107: 1 | AC107: 10 | AD107: -0.0568 | AE107: 1.02 | AF107: -0.2446 | AG107: 2.94 | AH107: -0.206 | AI107: 4.35 | AJ107: -0.153 | AK107: 0 | AL107: 0 | AM107: 0 | AN107: 0 | AO107: 20 | AP107: 19 | AQ107: 12 | AR107: 5 | AS107: 0 | AT107: 0 | AU107: 0 | AV107: 0 | AW107: 3 | AX107: 3 | AY107: 3 | AZ107: 3 | BA107: 0.0007950964382 | BB107: 0.0007950964382 | BC107: 0.0007950964382 | BD107: 0.0007950964382 | BE107: 0.0007950964382 | BF107: 0.0007950964382 | BG107: 0.0007950964382 | BH107: 0.0007950964382 | BI107: 0.0007950964382 | BJ107: 0.0007950964382 | BK107: 0.0007950964382 | BL107: 0.0007950964382 | BM107: 0.0007950964382 | BN107: 0.0007950964382 | BO107: 0.0007950964382 | BP107: 0.0007950964382 | BQ107: 0.0007950964382 | BR107: 0.0007950964382 | BS107: 0.0007950964382 | BT107: 0.0007950964382 | BU107: 0.0007950964382 | BV107: 0.0007950964382 | BW107: 0.0007950964382 | BX107: 0.0007950964382 | BY107: 0.0007950964382 | BZ107: 0.0007950964382 | CA107: 0.0007950964382 | CB107: 0.0007950964382 | CC107: 0.0007950964382
A108: 3 | B108: 2399 | C108: 14 | D108: 33 | E108: 29 | F108: 0.9182 | G108: 1559.66762 | H108: 0 | I108: 0 | J108: 0 | K108: 1559.66762 | L108: 0.198583049 | M108: 13288326.67 | N108: 16319240.92 | O108: 0 | P108: 29607567.59 | Q108: 9.424381468 | R108: 0.02107120236 | S108: 1 | T108: 0 | U108: 2 | V108: 0 | W108: 0 | X108: 3 | Y108: 0 | Z108: 0 | AA108: 0 | AB108: 1 | AC108: 10 | AD108: -0.0568 | AE108: 1.02 | AF108: -0.2446 | AG108: 2.94 | AH108: -0.206 | AI108: 4.35 | AJ108: -0.153 | AK108: 7 | AL108: 8 | AM108: 15 | AN108: 21 | AO108: 0 | AP108: 0 | AQ108: 0 | AR108: 6 | AS108: 3 | AT108: 3 | AU108: 3 | AV108: 3 | AW108: 0 | AX108: 0 | AY108: 0 | AZ108: 3 | BA108: 0.0007950964382 | BB108: 0.0007950964382 | BC108: 0.0007950964382 | BD108: 0.0007950964382 | BE108: 0.0007950964382 | BF108: 0.0007950964382 | BG108: 0.0007950964382 | BH108: 0.0007950964382 | BI108: 0.0007950964382 | BJ108: 0.0007950964382 | BK108: 0.0007950964382 | BL108: 0.0007950964382 | BM108: 0.0007950964382 | BN108: 0.0007950964382 | BO108: 0.0007950964382 | BP108: 0.0007950964382 | BQ108: 0.0007950964382 | BR108: 0.0007950964382 | BS108: 0.0007950964382 | BT108: 0.0007950964382 | BU108: 0.0007950964382 | BV108: 0.0007950964382 | BW108: 0.0007950964382 | BX108: 0.0007950964382 | BY108: 0.0007950964382 | BZ108: 0.0007950964382 | CA108: 0.0007950964382 | CB108: 0.0007950964382 | CC108: 0.0007950964382
A109: 3 | B109: 2398 | C109: 15 | D109: 33 | E109: 29 | F109: 0.9182 | G109: 1821.857592 | H109: 0 | I109: 0 | J109: 0 | K109: 1821.857592 | L109: 0.2319661131 | M109: 13288326.67 | N109: 16319240.92 | O109: 0 | P109: 29607567.59 | Q109: 9.424381468 | R109: 0.02461340448 | S109: 1 | T109: 0 | U109: 2 | V109: 0 | W109: 0 | X109: 3 | Y109: 0 | Z109: 0 | AA109: 0 | AB109: 1 | AC109: 10 | AD109: -0.0568 | AE109: 1.02 | AF109: -0.2446 | AG109: 2.94 | AH109: -0.206 | AI109: 4.35 | AJ109: -0.153 | AK109: 8 | AL109: 9 | AM109: 16 | AN109: 22 | AO109: 21 | AP109: 0 | AQ109: 14 | AR109: 7 | AS109: 3 | AT109: 3 | AU109: 3 | AV109: 3 | AW109: 3 | AX109: 0 | AY109: 3 | AZ109: 3 | BA109: 0.0007950964382 | BB109: 0.0007950964382 | BC109: 0.0007950964382 | BD109: 0.0007950964382 | BE109: 0.0007950964382 | BF109: 0.0007950964382 | BG109: 0.0007950964382 | BH109: 0.0007950964382 | BI109: 0.0007950964382 | BJ109: 0.0007950964382 | BK109: 0.0007950964382 | BL109: 0.0007950964382 | BM109: 0.0007950964382 | BN109: 0.0007950964382 | BO109: 0.0007950964382 | BP109: 0.0007950964382 | BQ109: 0.0007950964382 | BR109: 0.0007950964382 | BS109: 0.0007950964382 | BT109: 0.0007950964382 | BU109: 0.0007950964382 | BV109: 0.0007950964382 | BW109: 0.0007950964382 | BX109: 0.0007950964382 | BY109: 0.0007950964382 | BZ109: 0.0007950964382 | CA109: 0.0007950964382 | CB109: 0.0007950964382 | CC109: 0.0007950964382
A110: 3 | B110: 2243 | C110: 16 | D110: 34 | E110: 30 | F110: 0.9182 | G110: 4648.949464 | H110: 0 | I110: 0 | J110: 0 | K110: 4648.949464 | L110: 0.5919226299 | M110: 16482334.24 | N110: 16044007.62 | O110: 0 | P110: 32526341.86 | Q110: 10.35345617 | R110: 0.05717150099 | S110: 1 | T110: 0 | U110: 2 | V110: 0 | W110: 0 | X110: 3 | Y110: 0 | Z110: 0 | AA110: 0 | AB110: 1 | AC110: 10 | AD110: -0.0568 | AE110: 1.02 | AF110: -0.2446 | AG110: 2.94 | AH110: -0.206 | AI110: 4.35 | AJ110: -0.153 | AK110: 9 | AL110: 10 | AM110: 17 | AN110: 23 | AO110: 22 | AP110: 21 | AQ110: 15 | AR110: 8 | AS110: 3 | AT110: 3 | AU110: 3 | AV110: 3 | AW110: 3 | AX110: 3 | AY110: 3 | AZ110: 3 | BA110: 0.0007950964382 | BB110: 0.0007950964382 | BC110: 0.0007950964382 | BD110: 0.0007950964382 | BE110: 0.0007950964382 | BF110: 0.0007950964382 | BG110: 0.0007950964382 | BH110: 0.0007950964382 | BI110: 0.0007950964382 | BJ110: 0.0007950964382 | BK110: 0.0007950964382 | BL110: 0.0007950964382 | BM110: 0.0007950964382 | BN110: 0.0007950964382 | BO110: 0.0007950964382 | BP110: 0.0007950964382 | BQ110: 0.0007950964382 | BR110: 0.0007950964382 | BS110: 0.0007950964382 | BT110: 0.0007950964382 | BU110: 0.0007950964382 | BV110: 0.0007950964382 | BW110: 0.0007950964382 | BX110: 0.0007950964382 | BY110: 0.0007950964382 | BZ110: 0.0007950964382 | CA110: 0.0007950964382 | CB110: 0.0007950964382 | CC110: 0.0007950964382
A111: 3 | B111: 2242 | C111: 17 | D111: 34 | E111: 30 | F111: 0.9182 | G111: 16783.26718 | H111: 0 | I111: 0 | J111: 0 | K111: 16783.26718 | L111: 2.136911946 | M111: 16482334.24 | N111: 16044007.62 | O111: 0 | P111: 32526341.86 | Q111: 10.35345617 | R111: 0.2063960006 | S111: 1 | T111: 0 | U111: 2 | V111: 0 | W111: 0 | X111: 3 | Y111: 0 | Z111: 0 | AA111: 0 | AB111: 1 | AC111: 10 | AD111: -0.0568 | AE111: 1.02 | AF111: -0.2446 | AG111: 2.94 | AH111: -0.206 | AI111: 4.35 | AJ111: -0.153 | AK111: 10 | AL111: 11 | AM111: 18 | AN111: 24 | AO111: 23 | AP111: 22 | AQ111: 16 | AR111: 9 | AS111: 3 | AT111: 3 | AU111: 3 | AV111: 3 | AW111: 3 | AX111: 3 | AY111: 3 | AZ111: 3 | BA111: 0.0007950964382 | BB111: 0.0007950964382 | BC111: 0.0007950964382 | BD111: 0.0007950964382 | BE111: 0.0007950964382 | BF111: 0.0007950964382 | BG111: 0.0007950964382 | BH111: 0.0007950964382 | BI111: 0.0007950964382 | BJ111: 0.0007950964382 | BK111: 0.0007950964382 | BL111: 0.0007950964382 | BM111: 0.0007950964382 | BN111: 0.0007950964382 | BO111: 0.0007950964382 | BP111: 0.0007950964382 | BQ111: 0.0007950964382 | BR111: 0.0007950964382 | BS111: 0.0007950964382 | BT111: 0.0007950964382 | BU111: 0.0007950964382 | BV111: 0.0007950964382 | BW111: 0.0007950964382 | BX111: 0.0007950964382 | BY111: 0.0007950964382 | BZ111: 0.0007950964382 | CA111: 0.0007950964382 | CB111: 0.0007950964382 | CC111: 0.0007950964382
A112: 3 | B112: 2241 | C112: 18 | D112: 34 | E112: 30 | F112: 0.9182 | G112: 19250.75462 | H112: 0 | I112: 0 | J112: 0 | K112: 19250.75462 | L112: 2.451082205 | M112: 16482334.24 | N112: 16044007.62 | O112: 0 | P112: 32526341.86 | Q112: 10.35345617 | R112: 0.236740482 | S112: 1 | T112: 0 | U112: 2 | V112: 0 | W112: 0 | X112: 3 | Y112: 0 | Z112: 0 | AA112: 0 | AB112: 1 | AC112: 10 | AD112: -0.0568 | AE112: 1.02 | AF112: -0.2446 | AG112: 2.94 | AH112: -0.206 | AI112: 4.35 | AJ112: -0.153 | AK112: 11 | AL112: 12 | AM112: 19 | AN112: 25 | AO112: 24 | AP112: 23 | AQ112: 17 | AR112: 10 | AS112: 3 | AT112: 3 | AU112: 3 | AV112: 3 | AW112: 3 | AX112: 3 | AY112: 3 | AZ112: 3 | BA112: 0.0007950964382 | BB112: 0.0007950964382 | BC112: 0.0007950964382 | BD112: 0.0007950964382 | BE112: 0.0007950964382 | BF112: 0.0007950964382 | BG112: 0.0007950964382 | BH112: 0.0007950964382 | BI112: 0.0007950964382 | BJ112: 0.0007950964382 | BK112: 0.0007950964382 | BL112: 0.0007950964382 | BM112: 0.0007950964382 | BN112: 0.0007950964382 | BO112: 0.0007950964382 | BP112: 0.0007950964382 | BQ112: 0.0007950964382 | BR112: 0.0007950964382 | BS112: 0.0007950964382 | BT112: 0.0007950964382 | BU112: 0.0007950964382 | BV112: 0.0007950964382 | BW112: 0.0007950964382 | BX112: 0.0007950964382 | BY112: 0.0007950964382 | BZ112: 0.0007950964382 | CA112: 0.0007950964382 | CB112: 0.0007950964382 | CC112: 0.0007950964382
A113: 3 | B113: 2240 | C113: 19 | D113: 34 | E113: 30 | F113: 0.9182 | G113: 5552.623992 | H113: 0 | I113: 0 | J113: 0 | K113: 5552.623992 | L113: 0.7069820444 | M113: 16482334.24 | N113: 16044007.62 | O113: 0 | P113: 32526341.86 | Q113: 10.35345617 | R113: 0.06828464162 | S113: 1 | T113: 0 | U113: 2 | V113: 0 | W113: 0 | X113: 3 | Y113: 0 | Z113: 0 | AA113: 0 | AB113: 1 | AC113: 10 | AD113: -0.0568 | AE113: 1.02 | AF113: -0.2446 | AG113: 2.94 | AH113: -0.206 | AI113: 4.35 | AJ113: -0.153 | AK113: 12 | AL113: 13 | AM113: 20 | AN113: 26 | AO113: 25 | AP113: 24 | AQ113: 18 | AR113: 11 | AS113: 3 | AT113: 3 | AU113: 3 | AV113: 3 | AW113: 3 | AX113: 3 | AY113: 3 | AZ113: 3 | BA113: 0.0007950964382 | BB113: 0.0007950964382 | BC113: 0.0007950964382 | BD113: 0.0007950964382 | BE113: 0.0007950964382 | BF113: 0.0007950964382 | BG113: 0.0007950964382 | BH113: 0.0007950964382 | BI113: 0.0007950964382 | BJ113: 0.0007950964382 | BK113: 0.0007950964382 | BL113: 0.0007950964382 | BM113: 0.0007950964382 | BN113: 0.0007950964382 | BO113: 0.0007950964382 | BP113: 0.0007950964382 | BQ113: 0.0007950964382 | BR113: 0.0007950964382 | BS113: 0.0007950964382 | BT113: 0.0007950964382 | BU113: 0.0007950964382 | BV113: 0.0007950964382 | BW113: 0.0007950964382 | BX113: 0.0007950964382 | BY113: 0.0007950964382 | BZ113: 0.0007950964382 | CA113: 0.0007950964382 | CB113: 0.0007950964382 | CC113: 0.0007950964382
A114: 3 | B114: 2239 | C114: 20 | D114: 34 | E114: 30 | F114: 0.9182 | G114: 17290.02962 | H114: 0 | I114: 0 | J114: 0 | K114: 17290.02962 | L114: 2.201434944 | M114: 16482334.24 | N114: 16044007.62 | O114: 0 | P114: 32526341.86 | Q114: 10.35345617 | R114: 0.2126280255 | S114: 1 | T114: 0 | U114: 2 | V114: 0 | W114: 0 | X114: 3 | Y114: 0 | Z114: 0 | AA114: 0 | AB114: 1 | AC114: 10 | AD114: -0.0568 | AE114: 1.02 | AF114: -0.2446 | AG114: 2.94 | AH114: -0.206 | AI114: 4.35 | AJ114: -0.153 | AK114: 13 | AL114: 0 | AM114: 0 | AN114: 27 | AO114: 26 | AP114: 25 | AQ114: 19 | AR114: 12 | AS114: 3 | AT114: 0 | AU114: 0 | AV114: 3 | AW114: 3 | AX114: 3 | AY114: 3 | AZ114: 3 | BA114: 0.0007950964382 | BB114: 0.0007950964382 | BC114: 0.0007950964382 | BD114: 0.0007950964382 | BE114: 0.0007950964382 | BF114: 0.0007950964382 | BG114: 0.0007950964382 | BH114: 0.0007950964382 | BI114: 0.0007950964382 | BJ114: 0.0007950964382 | BK114: 0.0007950964382 | BL114: 0.0007950964382 | BM114: 0.0007950964382 | BN114: 0.0007950964382 | BO114: 0.0007950964382 | BP114: 0.0007950964382 | BQ114: 0.0007950964382 | BR114: 0.0007950964382 | BS114: 0.0007950964382 | BT114: 0.0007950964382 | BU114: 0.0007950964382 | BV114: 0.0007950964382 | BW114: 0.0007950964382 | BX114: 0.0007950964382 | BY114: 0.0007950964382 | BZ114: 0.0007950964382 | CA114: 0.0007950964382 | CB114: 0.0007950964382 | CC114: 0.0007950964382
A115: 3 | B115: 2396 | C115: 21 | D115: 33 | E115: 29 | F115: 0.9182 | G115: 1806.312732 | H115: 0 | I115: 0 | J115: 0 | K115: 1806.312732 | L115: 0.2299868801 | M115: 13288326.67 | N115: 16319240.92 | O115: 0 | P115: 29607567.59 | Q115: 9.424381468 | R115: 0.0244033925 | S115: 1 | T115: 0 | U115: 2 | V115: 0 | W115: 0 | X115: 3 | Y115: 0 | Z115: 0 | AA115: 0 | AB115: 1 | AC115: 10 | AD115: -0.0568 | AE115: 1.02 | AF115: -0.2446 | AG115: 2.94 | AH115: -0.206 | AI115: 4.35 | AJ115: -0.153 | AK115: 15 | AL115: 16 | AM115: 22 | AN115: 0 | AO115: 0 | AP115: 0 | AQ115: 0 | AR115: 14 | AS115: 3 | AT115: 3 | AU115: 3 | AV115: 0 | AW115: 0 | AX115: 0 | AY115: 0 | AZ115: 3 | BA115: 0.0007950964382 | BB115: 0.0007950964382 | BC115: 0.0007950964382 | BD115: 0.0007950964382 | BE115: 0.0007950964382 | BF115: 0.0007950964382 | BG115: 0.0007950964382 | BH115: 0.0007950964382 | BI115: 0.0007950964382 | BJ115: 0.0007950964382 | BK115: 0.0007950964382 | BL115: 0.0007950964382 | BM115: 0.0007950964382 | BN115: 0.0007950964382 | BO115: 0.0007950964382 | BP115: 0.0007950964382 | BQ115: 0.0007950964382 | BR115: 0.0007950964382 | BS115: 0.0007950964382 | BT115: 0.0007950964382 | BU115: 0.0007950964382 | BV115: 0.0007950964382 | BW115: 0.0007950964382 | BX115: 0.0007950964382 | BY115: 0.0007950964382 | BZ115: 0.0007950964382 | CA115: 0.0007950964382 | CB115: 0.0007950964382 | CC115: 0.0007950964382
A116: 3 | B116: 2236 | C116: 22 | D116: 34 | E116: 30 | F116: 0.9182 | G116: 2806.365392 | H116: 0 | I116: 0 | J116: 0 | K116: 2806.365392 | L116: 0.3573175394 | M116: 16482334.24 | N116: 16044007.62 | O116: 0 | P116: 32526341.86 | Q116: 10.35345617 | R116: 0.0345119092 | S116: 1 | T116: 0 | U116: 2 | V116: 0 | W116: 0 | X116: 3 | Y116: 0 | Z116: 0 | AA116: 0 | AB116: 1 | AC116: 10 | AD116: -0.0568 | AE116: 1.02 | AF116: -0.2446 | AG116: 2.94 | AH116: -0.206 | AI116: 4.35 | AJ116: -0.153 | AK116: 16 | AL116: 17 | AM116: 23 | AN116: 28 | AO116: 0 | AP116: 0 | AQ116: 21 | AR116: 15 | AS116: 3 | AT116: 3 | AU116: 3 | AV116: 3 | AW116: 0 | AX116: 0 | AY116: 3 | AZ116: 3 | BA116: 0.0007950964382 | BB116: 0.0007950964382 | BC116: 0.0007950964382 | BD116: 0.0007950964382 | BE116: 0.0007950964382 | BF116: 0.0007950964382 | BG116: 0.0007950964382 | BH116: 0.0007950964382 | BI116: 0.0007950964382 | BJ116: 0.0007950964382 | BK116: 0.0007950964382 | BL116: 0.0007950964382 | BM116: 0.0007950964382 | BN116: 0.0007950964382 | BO116: 0.0007950964382 | BP116: 0.0007950964382 | BQ116: 0.0007950964382 | BR116: 0.0007950964382 | BS116: 0.0007950964382 | BT116: 0.0007950964382 | BU116: 0.0007950964382 | BV116: 0.0007950964382 | BW116: 0.0007950964382 | BX116: 0.0007950964382 | BY116: 0.0007950964382 | BZ116: 0.0007950964382 | CA116: 0.0007950964382 | CB116: 0.0007950964382 | CC116: 0.0007950964382
A117: 3 | B117: 2235 | C117: 23 | D117: 34 | E117: 30 | F117: 0.9182 | G117: 5913.264744 | H117: 0 | I117: 0 | J117: 0 | K117: 5913.264744 | L117: 0.7529002511 | M117: 16482334.24 | N117: 16044007.62 | O117: 0 | P117: 32526341.86 | Q117: 10.35345617 | R117: 0.07271970233 | S117: 1 | T117: 0 | U117: 2 | V117: 0 | W117: 0 | X117: 3 | Y117: 0 | Z117: 0 | AA117: 0 | AB117: 1 | AC117: 10 | AD117: -0.0568 | AE117: 1.02 | AF117: -0.2446 | AG117: 2.94 | AH117: -0.206 | AI117: 4.35 | AJ117: -0.153 | AK117: 17 | AL117: 18 | AM117: 24 | AN117: 29 | AO117: 28 | AP117: 0 | AQ117: 22 | AR117: 16 | AS117: 3 | AT117: 3 | AU117: 3 | AV117: 3 | AW117: 3 | AX117: 0 | AY117: 3 | AZ117: 3 | BA117: 0.0007950964382 | BB117: 0.0007950964382 | BC117: 0.0007950964382 | BD117: 0.0007950964382 | BE117: 0.0007950964382 | BF117: 0.0007950964382 | BG117: 0.0007950964382 | BH117: 0.0007950964382 | BI117: 0.0007950964382 | BJ117: 0.0007950964382 | BK117: 0.0007950964382 | BL117: 0.0007950964382 | BM117: 0.0007950964382 | BN117: 0.0007950964382 | BO117: 0.0007950964382 | BP117: 0.0007950964382 | BQ117: 0.0007950964382 | BR117: 0.0007950964382 | BS117: 0.0007950964382 | BT117: 0.0007950964382 | BU117: 0.0007950964382 | BV117: 0.0007950964382 | BW117: 0.0007950964382 | BX117: 0.0007950964382 | BY117: 0.0007950964382 | BZ117: 0.0007950964382 | CA117: 0.0007950964382 | CB117: 0.0007950964382 | CC117: 0.0007950964382
A118: 3 | B118: 2234 | C118: 24 | D118: 34 | E118: 30 | F118: 0.9182 | G118: 5344.322868 | H118: 0 | I118: 0 | J118: 0 | K118: 5344.322868 | L118: 0.6804603215 | M118: 16482334.24 | N118: 16044007.62 | O118: 0 | P118: 32526341.86 | Q118: 10.35345617 | R118: 0.06572301173 | S118: 1 | T118: 0 | U118: 2 | V118: 0 | W118: 0 | X118: 3 | Y118: 0 | Z118: 0 | AA118: 0 | AB118: 1 | AC118: 10 | AD118: -0.0568 | AE118: 1.02 | AF118: -0.2446 | AG118: 2.94 | AH118: -0.206 | AI118: 4.35 | AJ118: -0.153 | AK118: 18 | AL118: 19 | AM118: 25 | AN118: 30 | AO118: 29 | AP118: 28 | AQ118: 23 | AR118: 17 | AS118: 3 | AT118: 3 | AU118: 3 | AV118: 3 | AW118: 3 | AX118: 3 | AY118: 3 | AZ118: 3 | BA118: 0.0007950964382 | BB118: 0.0007950964382 | BC118: 0.0007950964382 | BD118: 0.0007950964382 | BE118: 0.0007950964382 | BF118: 0.0007950964382 | BG118: 0.0007950964382 | BH118: 0.0007950964382 | BI118: 0.0007950964382 | BJ118: 0.0007950964382 | BK118: 0.0007950964382 | BL118: 0.0007950964382 | BM118: 0.0007950964382 | BN118: 0.0007950964382 | BO118: 0.0007950964382 | BP118: 0.0007950964382 | BQ118: 0.0007950964382 | BR118: 0.0007950964382 | BS118: 0.0007950964382 | BT118: 0.0007950964382 | BU118: 0.0007950964382 | BV118: 0.0007950964382 | BW118: 0.0007950964382 | BX118: 0.0007950964382 | BY118: 0.0007950964382 | BZ118: 0.0007950964382 | CA118: 0.0007950964382 | CB118: 0.0007950964382 | CC118: 0.0007950964382
A119: 3 | B119: 2233 | C119: 25 | D119: 34 | E119: 30 | F119: 0.9182 | G119: 4042.699924 | H119: 0 | I119: 0 | J119: 0 | K119: 4042.699924 | L119: 0.5147325411 | M119: 16482334.24 | N119: 16044007.62 | O119: 0 | P119: 32526341.86 | Q119: 10.35345617 | R119: 0.049716011 | S119: 1 | T119: 0 | U119: 2 | V119: 0 | W119: 0 | X119: 3 | Y119: 0 | Z119: 0 | AA119: 0 | AB119: 1 | AC119: 10 | AD119: -0.0568 | AE119: 1.02 | AF119: -0.2446 | AG119: 2.94 | AH119: -0.206 | AI119: 4.35 | AJ119: -0.153 | AK119: 19 | AL119: 20 | AM119: 26 | AN119: 31 | AO119: 30 | AP119: 29 | AQ119: 24 | AR119: 18 | AS119: 3 | AT119: 3 | AU119: 3 | AV119: 3 | AW119: 3 | AX119: 3 | AY119: 3 | AZ119: 3 | BA119: 0.0007950964382 | BB119: 0.0007950964382 | BC119: 0.0007950964382 | BD119: 0.0007950964382 | BE119: 0.0007950964382 | BF119: 0.0007950964382 | BG119: 0.0007950964382 | BH119: 0.0007950964382 | BI119: 0.0007950964382 | BJ119: 0.0007950964382 | BK119: 0.0007950964382 | BL119: 0.0007950964382 | BM119: 0.0007950964382 | BN119: 0.0007950964382 | BO119: 0.0007950964382 | BP119: 0.0007950964382 | BQ119: 0.0007950964382 | BR119: 0.0007950964382 | BS119: 0.0007950964382 | BT119: 0.0007950964382 | BU119: 0.0007950964382 | BV119: 0.0007950964382 | BW119: 0.0007950964382 | BX119: 0.0007950964382 | BY119: 0.0007950964382 | BZ119: 0.0007950964382 | CA119: 0.0007950964382 | CB119: 0.0007950964382 | CC119: 0.0007950964382
A120: 3 | B120: 2232 | C120: 26 | D120: 34 | E120: 30 | F120: 0.9182 | G120: 17729.43099 | H120: 0 | I120: 0 | J120: 0 | K120: 17729.43099 | L120: 2.257381264 | M120: 16482334.24 | N120: 16044007.62 | O120: 0 | P120: 32526341.86 | Q120: 10.35345617 | R120: 0.2180316627 | S120: 1 | T120: 0 | U120: 2 | V120: 0 | W120: 0 | X120: 3 | Y120: 0 | Z120: 0 | AA120: 0 | AB120: 1 | AC120: 10 | AD120: -0.0568 | AE120: 1.02 | AF120: -0.2446 | AG120: 2.94 | AH120: -0.206 | AI120: 4.35 | AJ120: -0.153 | AK120: 20 | AL120: 0 | AM120: 27 | AN120: 32 | AO120: 31 | AP120: 30 | AQ120: 25 | AR120: 19 | AS120: 3 | AT120: 0 | AU120: 3 | AV120: 3 | AW120: 3 | AX120: 3 | AY120: 3 | AZ120: 3 | BA120: 0.0007950964382 | BB120: 0.0007950964382 | BC120: 0.0007950964382 | BD120: 0.0007950964382 | BE120: 0.0007950964382 | BF120: 0.0007950964382 | BG120: 0.0007950964382 | BH120: 0.0007950964382 | BI120: 0.0007950964382 | BJ120: 0.0007950964382 | BK120: 0.0007950964382 | BL120: 0.0007950964382 | BM120: 0.0007950964382 | BN120: 0.0007950964382 | BO120: 0.0007950964382 | BP120: 0.0007950964382 | BQ120: 0.0007950964382 | BR120: 0.0007950964382 | BS120: 0.0007950964382 | BT120: 0.0007950964382 | BU120: 0.0007950964382 | BV120: 0.0007950964382 | BW120: 0.0007950964382 | BX120: 0.0007950964382 | BY120: 0.0007950964382 | BZ120: 0.0007950964382 | CA120: 0.0007950964382 | CB120: 0.0007950964382 | CC120: 0.0007950964382
A121: 3 | B121: 2231 | C121: 27 | D121: 34 | E121: 30 | F121: 0.9182 | G121: 19612.4317 | H121: 0 | I121: 0 | J121: 0 | K121: 19612.4317 | L121: 2.497132361 | M121: 16482334.24 | N121: 16044007.62 | O121: 0 | P121: 32526341.86 | Q121: 10.35345617 | R121: 0.2411882872 | S121: 1 | T121: 0 | U121: 2 | V121: 0 | W121: 0 | X121: 3 | Y121: 0 | Z121: 0 | AA121: 0 | AB121: 1 | AC121: 10 | AD121: -0.0568 | AE121: 1.02 | AF121: -0.2446 | AG121: 2.94 | AH121: -0.206 | AI121: 4.35 | AJ121: -0.153 | AK121: 0 | AL121: 0 | AM121: 0 | AN121: 1 | AP121: 1 | AQ121: 26 | AR121: 20 | AS121: 0 | AT121: 0 | AU121: 0 | AV121: 3 | AW121: 0 | AX121: 3 | AY121: 3 | AZ121: 3 | BA121: 0.0007950964382 | BB121: 0.0007950964382 | BC121: 0.0007950964382 | BD121: 0.0007950964382 | BE121: 0.0007950964382 | BF121: 0.0007950964382 | BG121: 0.0007950964382 | BH121: 0.0007950964382 | BI121: 0.0007950964382 | BJ121: 0.0007950964382 | BK121: 0.0007950964382 | BL121: 0.0007950964382 | BM121: 0.0007950964382 | BN121: 0.0007950964382 | BO121: 0.0007950964382 | BP121: 0.0007950964382 | BQ121: 0.0007950964382 | BR121: 0.0007950964382 | BS121: 0.0007950964382 | BT121: 0.0007950964382 | BU121: 0.0007950964382 | BV121: 0.0007950964382 | BW121: 0.0007950964382 | BX121: 0.0007950964382 | BY121: 0.0007950964382 | BZ121: 0.0007950964382 | CA121: 0.0007950964382 | CB121: 0.0007950964382 | CC121: 0.0007950964382
A122: 3 | B122: 2228 | C122: 28 | D122: 42 | E122: 38 | F122: 0.8848 | G122: 2300.63928 | H122: 0 | I122: 0 | J122: 0 | K122: 2300.63928 | L122: 0.2929264909 | M122: 17240473.64 | N122: 13147147.02 | O122: 0 | P122: 30387620.66 | Q122: 9.672680074 | R122: 0.03028390154 | S122: 1 | T122: 0 | U122: 2 | V122: 0 | W122: 0 | X122: 3 | Y122: 0 | Z122: 0 | AA122: 0 | AB122: 1 | AC122: 10 | AD122: -0.0568 | AE122: 1.02 | AF122: -0.2446 | AG122: 2.94 | AH122: -0.206 | AI122: 4.35 | AJ122: -0.153 | AK122: 23 | AL122: 24 | AM122: 29 | AN122: 0 | AO122: 0 | AP122: 0 | AQ122: 0 | AR122: 22 | AS122: 3 | AT122: 3 | AU122: 3 | AV122: 0 | AW122: 0 | AX122: 0 | AY122: 0 | AZ122: 3 | BA122: 0.0007950964382 | BB122: 0.0007950964382 | BC122: 0.0007950964382 | BD122: 0.0007950964382 | BE122: 0.0007950964382 | BF122: 0.0007950964382 | BG122: 0.0007950964382 | BH122: 0.0007950964382 | BI122: 0.0007950964382 | BJ122: 0.0007950964382 | BK122: 0.0007950964382 | BL122: 0.0007950964382 | BM122: 0.0007950964382 | BN122: 0.0007950964382 | BO122: 0.0007950964382 | BP122: 0.0007950964382 | BQ122: 0.0007950964382 | BR122: 0.0007950964382 | BS122: 0.0007950964382 | BT122: 0.0007950964382 | BU122: 0.0007950964382 | BV122: 0.0007950964382 | BW122: 0.0007950964382 | BX122: 0.0007950964382 | BY122: 0.0007950964382 | BZ122: 0.0007950964382 | CA122: 0.0007950964382 | CB122: 0.0007950964382 | CC122: 0.0007950964382
A123: 3 | B123: 2227 | C123: 29 | D123: 42 | E123: 38 | F123: 0.8848 | G123: 1705.789304 | H123: 0 | I123: 0 | J123: 0 | K123: 1705.789304 | L123: 0.2171878397 | M123: 17240473.64 | N123: 13147147.02 | O123: 0 | P123: 30387620.66 | Q123: 9.672680074 | R123: 0.02245373961 | S123: 1 | T123: 0 | U123: 2 | V123: 0 | W123: 0 | X123: 3 | Y123: 0 | Z123: 0 | AA123: 0 | AB123: 1 | AC123: 10 | AD123: -0.0568 | AE123: 1.02 | AF123: -0.2446 | AG123: 2.94 | AH123: -0.206 | AI123: 4.35 | AJ123: -0.153 | AK123: 24 | AL123: 25 | AM123: 30 | AN123: 34 | AO123: 0 | AP123: 0 | AQ123: 28 | AR123: 23 | AS123: 3 | AT123: 3 | AU123: 3 | AV123: 3 | AW123: 0 | AX123: 0 | AY123: 3 | AZ123: 3 | BA123: 0.0007950964382 | BB123: 0.0007950964382 | BC123: 0.0007950964382 | BD123: 0.0007950964382 | BE123: 0.0007950964382 | BF123: 0.0007950964382 | BG123: 0.0007950964382 | BH123: 0.0007950964382 | BI123: 0.0007950964382 | BJ123: 0.0007950964382 | BK123: 0.0007950964382 | BL123: 0.0007950964382 | BM123: 0.0007950964382 | BN123: 0.0007950964382 | BO123: 0.0007950964382 | BP123: 0.0007950964382 | BQ123: 0.0007950964382 | BR123: 0.0007950964382 | BS123: 0.0007950964382 | BT123: 0.0007950964382 | BU123: 0.0007950964382 | BV123: 0.0007950964382 | BW123: 0.0007950964382 | BX123: 0.0007950964382 | BY123: 0.0007950964382 | BZ123: 0.0007950964382 | CA123: 0.0007950964382 | CB123: 0.0007950964382 | CC123: 0.0007950964382
A124: 3 | B124: 2226 | C124: 30 | D124: 42 | E124: 38 | F124: 0.8848 | G124: 3011.557544 | H124: 0 | I124: 0 | J124: 0 | K124: 3011.557544 | L124: 0.3834434156 | M124: 17240473.64 | N124: 13147147.02 | O124: 0 | P124: 30387620.66 | Q124: 9.672680074 | R124: 0.03964189994 | S124: 1 | T124: 0 | U124: 2 | V124: 0 | W124: 0 | X124: 3 | Y124: 0 | Z124: 0 | AA124: 0 | AB124: 1 | AC124: 10 | AD124: -0.0568 | AE124: 1.02 | AF124: -0.2446 | AG124: 2.94 | AH124: -0.206 | AI124: 4.35 | AJ124: -0.153 | AK124: 25 | AL124: 26 | AM124: 31 | AN124: 35 | AO124: 34 | AP124: 0 | AQ124: 29 | AR124: 24 | AS124: 3 | AT124: 3 | AU124: 3 | AV124: 3 | AW124: 3 | AX124: 0 | AY124: 3 | AZ124: 3 | BA124: 0.0007950964382 | BB124: 0.0007950964382 | BC124: 0.0007950964382 | BD124: 0.0007950964382 | BE124: 0.0007950964382 | BF124: 0.0007950964382 | BG124: 0.0007950964382 | BH124: 0.0007950964382 | BI124: 0.0007950964382 | BJ124: 0.0007950964382 | BK124: 0.0007950964382 | BL124: 0.0007950964382 | BM124: 0.0007950964382 | BN124: 0.0007950964382 | BO124: 0.0007950964382 | BP124: 0.0007950964382 | BQ124: 0.0007950964382 | BR124: 0.0007950964382 | BS124: 0.0007950964382 | BT124: 0.0007950964382 | BU124: 0.0007950964382 | BV124: 0.0007950964382 | BW124: 0.0007950964382 | BX124: 0.0007950964382 | BY124: 0.0007950964382 | BZ124: 0.0007950964382 | CA124: 0.0007950964382 | CB124: 0.0007950964382 | CC124: 0.0007950964382
A125: 3 | B125: 2225 | C125: 31 | D125: 42 | E125: 38 | F125: 0.8848 | G125: 3083.0639 | H125: 0 | I125: 0 | J125: 0 | K125: 3083.0639 | L125: 0.3925478876 | M125: 17240473.64 | N125: 13147147.02 | O125: 0 | P125: 30387620.66 | Q125: 9.672680074 | R125: 0.04058315634 | S125: 1 | T125: 0 | U125: 2 | V125: 0 | W125: 0 | X125: 3 | Y125: 0 | Z125: 0 | AA125: 0 | AB125: 1 | AC125: 10 | AD125: -0.0568 | AE125: 1.02 | AF125: -0.2446 | AG125: 2.94 | AH125: -0.206 | AI125: 4.35 | AJ125: -0.153 | AK125: 26 | AL125: 27 | AM125: 32 | AN125: 36 | AO125: 35 | AP125: 34 | AQ125: 30 | AR125: 25 | AS125: 3 | AT125: 3 | AU125: 3 | AV125: 3 | AW125: 3 | AX125: 3 | AY125: 3 | AZ125: 3 | BA125: 0.0007950964382 | BB125: 0.0007950964382 | BC125: 0.0007950964382 | BD125: 0.0007950964382 | BE125: 0.0007950964382 | BF125: 0.0007950964382 | BG125: 0.0007950964382 | BH125: 0.0007950964382 | BI125: 0.0007950964382 | BJ125: 0.0007950964382 | BK125: 0.0007950964382 | BL125: 0.0007950964382 | BM125: 0.0007950964382 | BN125: 0.0007950964382 | BO125: 0.0007950964382 | BP125: 0.0007950964382 | BQ125: 0.0007950964382 | BR125: 0.0007950964382 | BS125: 0.0007950964382 | BT125: 0.0007950964382 | BU125: 0.0007950964382 | BV125: 0.0007950964382 | BW125: 0.0007950964382 | BX125: 0.0007950964382 | BY125: 0.0007950964382 | BZ125: 0.0007950964382 | CA125: 0.0007950964382 | CB125: 0.0007950964382 | CC125: 0.0007950964382
A126: 3 | B126: 2224 | C126: 32 | D126: 42 | E126: 38 | F126: 0.8848 | G126: 7512.312676 | H126: 0 | I126: 0 | J126: 0 | K126: 7512.312676 | L126: 0.9564973571 | M126: 17240473.64 | N126: 13147147.02 | O126: 0 | P126: 30387620.66 | Q126: 9.672680074 | R126: 0.09888648749 | S126: 1 | T126: 0 | U126: 2 | V126: 0 | W126: 0 | X126: 3 | Y126: 0 | Z126: 0 | AA126: 0 | AB126: 1 | AC126: 10 | AD126: -0.0568 | AE126: 1.02 | AF126: -0.2446 | AG126: 2.94 | AH126: -0.206 | AI126: 4.35 | AJ126: -0.153 | AK126: 27 | AL126: 0 | AM126: 33 | AN126: 37 | AO126: 36 | AP126: 35 | AQ126: 31 | AR126: 26 | AS126: 3 | AT126: 0 | AU126: 3 | AV126: 3 | AW126: 3 | AX126: 3 | AY126: 3 | AZ126: 3 | BA126: 0.0007950964382 | BB126: 0.0007950964382 | BC126: 0.0007950964382 | BD126: 0.0007950964382 | BE126: 0.0007950964382 | BF126: 0.0007950964382 | BG126: 0.0007950964382 | BH126: 0.0007950964382 | BI126: 0.0007950964382 | BJ126: 0.0007950964382 | BK126: 0.0007950964382 | BL126: 0.0007950964382 | BM126: 0.0007950964382 | BN126: 0.0007950964382 | BO126: 0.0007950964382 | BP126: 0.0007950964382 | BQ126: 0.0007950964382 | BR126: 0.0007950964382 | BS126: 0.0007950964382 | BT126: 0.0007950964382 | BU126: 0.0007950964382 | BV126: 0.0007950964382 | BW126: 0.0007950964382 | BX126: 0.0007950964382 | BY126: 0.0007950964382 | BZ126: 0.0007950964382 | CA126: 0.0007950964382 | CB126: 0.0007950964382 | CC126: 0.0007950964382
A127: 3 | B127: 2223 | C127: 33 | D127: 43 | E127: 39 | F127: 0.9196 | G127: 6043.841568 | H127: 0 | I127: 0 | J127: 0 | K127: 6043.841568 | L127: 0.7695258086 | M127: 23389864.81 | N127: 10021461.53 | O127: 0 | P127: 33411326.34 | Q127: 10.63515548 | R127: =L127/Q127 -> 0.07235679909 | S127: 1 | T127: 0 | U127: 2 | V127: 0 | W127: 0 | X127: 3 | Y127: 0 | Z127: 0 | AA127: 0 | AB127: 1 | AC127: 10 | AD127: -0.0568 | AE127: 1.02 | AF127: -0.2446 | AG127: 2.94 | AH127: -0.206 | AI127: 4.35 | AJ127: -0.153 | AK127: 0 | AL127: 0 | AM127: 0 | AN127: 0 | AO127: 37 | AP127: 36 | AQ127: 32 | AR127: 27 | AS127: 0 | AT127: 0 | AU127: 0 | AV127: 0 | AW127: 3 | AX127: 3 | AY127: 3 | AZ127: 3 | BA127: 0.0007950964382 | BB127: 0.0007950964382 | BC127: 0.0007950964382 | BD127: 0.0007950964382 | BE127: 0.0007950964382 | BF127: 0.0007950964382 | BG127: 0.0007950964382 | BH127: 0.0007950964382 | BI127: 0.0007950964382 | BJ127: 0.0007950964382 | BK127: 0.0007950964382 | BL127: 0.0007950964382 | BM127: 0.0007950964382 | BN127: 0.0007950964382 | BO127: 0.0007950964382 | BP127: 0.0007950964382 | BQ127: 0.0007950964382 | BR127: 0.0007950964382 | BS127: 0.0007950964382 | BT127: 0.0007950964382 | BU127: 0.0007950964382 | BV127: 0.0007950964382 | BW127: 0.0007950964382 | BX127: 0.0007950964382 | BY127: 0.0007950964382 | BZ127: 0.0007950964382 | CA127: 0.0007950964382 | CB127: 0.0007950964382 | CC127: 0.0007950964382
A128: 3 | B128: 2219 | C128: 34 | D128: 42 | E128: 38 | F128: 0.8848 | G128: 1143.065372 | H128: 0 | I128: 0 | J128: 0 | K128: 1143.065372 | L128: 0.1455396034 | M128: 17240473.64 | N128: 13147147.02 | O128: 0 | P128: 30387620.66 | Q128: 9.672680074 | R128: 0.01504646099 | S128: 1 | T128: 0 | U128: 2 | V128: 0 | W128: 0 | X128: 3 | Y128: 0 | Z128: 0 | AA128: 0 | AB128: 1 | AC128: 10 | AD128: -0.0568 | AE128: 1.02 | AF128: -0.2446 | AG128: 2.94 | AH128: -0.206 | AI128: 4.35 | AJ128: -0.153 | AK128: 30 | AL128: 31 | AM128: 35 | AN128: 38 | AO128: 0 | AP128: 0 | AQ128: 0 | AR128: 29 | AS128: 3 | AT128: 3 | AU128: 3 | AV128: 3 | AW128: 0 | AX128: 0 | AY128: 0 | AZ128: 3 | BA128: 0.0007950964382 | BB128: 0.0007950964382 | BC128: 0.0007950964382 | BD128: 0.0007950964382 | BE128: 0.0007950964382 | BF128: 0.0007950964382 | BG128: 0.0007950964382 | BH128: 0.0007950964382 | BI128: 0.0007950964382 | BJ128: 0.0007950964382 | BK128: 0.0007950964382 | BL128: 0.0007950964382 | BM128: 0.0007950964382 | BN128: 0.0007950964382 | BO128: 0.0007950964382 | BP128: 0.0007950964382 | BQ128: 0.0007950964382 | BR128: 0.0007950964382 | BS128: 0.0007950964382 | BT128: 0.0007950964382 | BU128: 0.0007950964382 | BV128: 0.0007950964382 | BW128: 0.0007950964382 | BX128: 0.0007950964382 | BY128: 0.0007950964382 | BZ128: 0.0007950964382 | CA128: 0.0007950964382 | CB128: 0.0007950964382 | CC128: 0.0007950964382
A129: 3 | B129: 2218 | C129: 35 | D129: 42 | E129: 38 | F129: 0.8848 | G129: 1752.423884 | H129: 0 | I129: 0 | J129: 0 | K129: 1752.423884 | L129: 0.2231255388 | M129: 17240473.64 | N129: 13147147.02 | O129: 0 | P129: 30387620.66 | Q129: 9.672680074 | R129: 0.02306760248 | S129: 1 | T129: 0 | U129: 2 | V129: 0 | W129: 0 | X129: 3 | Y129: 0 | Z129: 0 | AA129: 0 | AB129: 1 | AC129: 10 | AD129: -0.0568 | AE129: 1.02 | AF129: -0.2446 | AG129: 2.94 | AH129: -0.206 | AI129: 4.35 | AJ129: -0.153 | AK129: 31 | AL129: 32 | AM129: 36 | AN129: 39 | AO129: 38 | AP129: 0 | AQ129: 34 | AR129: 30 | AS129: 3 | AT129: 3 | AU129: 3 | AV129: 3 | AW129: 3 | AX129: 0 | AY129: 3 | AZ129: 3 | BA129: 0.0007950964382 | BB129: 0.0007950964382 | BC129: 0.0007950964382 | BD129: 0.0007950964382 | BE129: 0.0007950964382 | BF129: 0.0007950964382 | BG129: 0.0007950964382 | BH129: 0.0007950964382 | BI129: 0.0007950964382 | BJ129: 0.0007950964382 | BK129: 0.0007950964382 | BL129: 0.0007950964382 | BM129: 0.0007950964382 | BN129: 0.0007950964382 | BO129: 0.0007950964382 | BP129: 0.0007950964382 | BQ129: 0.0007950964382 | BR129: 0.0007950964382 | BS129: 0.0007950964382 | BT129: 0.0007950964382 | BU129: 0.0007950964382 | BV129: 0.0007950964382 | BW129: 0.0007950964382 | BX129: 0.0007950964382 | BY129: 0.0007950964382 | BZ129: 0.0007950964382 | CA129: 0.0007950964382 | CB129: 0.0007950964382 | CC129: 0.0007950964382
A130: 3 | B130: 2217 | C130: 36 | D130: 42 | E130: 38 | F130: 0.8848 | G130: 6224.161944 | H130: 0 | I130: 0 | J130: 0 | K130: 6224.161944 | L130: 0.792484912 | M130: 17240473.64 | N130: 13147147.02 | O130: 0 | P130: 30387620.66 | Q130: 9.672680074 | R130: 0.08193023091 | S130: 1 | T130: 0 | U130: 2 | V130: 0 | W130: 0 | X130: 3 | Y130: 0 | Z130: 0 | AA130: 0 | AB130: 1 | AC130: 10 | AD130: -0.0568 | AE130: 1.02 | AF130: -0.2446 | AG130: 2.94 | AH130: -0.206 | AI130: 4.35 | AJ130: -0.153 | AK130: 32 | AL130: 33 | AM130: 37 | AN130: 40 | AO130: 39 | AP130: 38 | AQ130: 35 | AR130: 31 | AS130: 3 | AT130: 3 | AU130: 3 | AV130: 3 | AW130: 3 | AX130: 3 | AY130: 3 | AZ130: 3 | BA130: 0.0007950964382 | BB130: 0.0007950964382 | BC130: 0.0007950964382 | BD130: 0.0007950964382 | BE130: 0.0007950964382 | BF130: 0.0007950964382 | BG130: 0.0007950964382 | BH130: 0.0007950964382 | BI130: 0.0007950964382 | BJ130: 0.0007950964382 | BK130: 0.0007950964382 | BL130: 0.0007950964382 | BM130: 0.0007950964382 | BN130: 0.0007950964382 | BO130: 0.0007950964382 | BP130: 0.0007950964382 | BQ130: 0.0007950964382 | BR130: 0.0007950964382 | BS130: 0.0007950964382 | BT130: 0.0007950964382 | BU130: 0.0007950964382 | BV130: 0.0007950964382 | BW130: 0.0007950964382 | BX130: 0.0007950964382 | BY130: 0.0007950964382 | BZ130: 0.0007950964382 | CA130: 0.0007950964382 | CB130: 0.0007950964382 | CC130: 0.0007950964382
A131: 3 | B131: 2216 | C131: 37 | D131: 43 | E131: 39 | F131: 0.9196 | G131: 4909.066788 | H131: 0 | I131: 0 | J131: 0 | K131: 4909.066788 | L131: 0.6250417962 | M131: 23389864.81 | N131: 10021461.53 | O131: 0 | P131: 33411326.34 | Q131: 10.63515548 | R131: 0.05877128897 | S131: 1 | T131: 0 | U131: 2 | V131: 0 | W131: 0 | X131: 3 | Y131: 0 | Z131: 0 | AA131: 0 | AB131: 1 | AC131: 10 | AD131: -0.0568 | AE131: 1.02 | AF131: -0.2446 | AG131: 2.94 | AH131: -0.206 | AI131: 4.35 | AJ131: -0.153 | AK131: 33 | AL131: 0 | AM131: 0 | AN131: 41 | AO131: 40 | AP131: 39 | AQ131: 36 | AR131: 32 | AS131: 3 | AT131: 0 | AU131: 0 | AV131: 3 | AW131: 3 | AX131: 3 | AY131: 3 | AZ131: 3 | BA131: 0.0007950964382 | BB131: 0.0007950964382 | BC131: 0.0007950964382 | BD131: 0.0007950964382 | BE131: 0.0007950964382 | BF131: 0.0007950964382 | BG131: 0.0007950964382 | BH131: 0.0007950964382 | BI131: 0.0007950964382 | BJ131: 0.0007950964382 | BK131: 0.0007950964382 | BL131: 0.0007950964382 | BM131: 0.0007950964382 | BN131: 0.0007950964382 | BO131: 0.0007950964382 | BP131: 0.0007950964382 | BQ131: 0.0007950964382 | BR131: 0.0007950964382 | BS131: 0.0007950964382 | BT131: 0.0007950964382 | BU131: 0.0007950964382 | BV131: 0.0007950964382 | BW131: 0.0007950964382 | BX131: 0.0007950964382 | BY131: 0.0007950964382 | BZ131: 0.0007950964382 | CA131: 0.0007950964382 | CB131: 0.0007950964382 | CC131: 0.0007950964382
A132: 3 | B132: 2213 | C132: 38 | D132: 42 | E132: 38 | F132: 0.8848 | G132: 2228.0966 | H132: 0 | I132: 0 | J132: 0 | K132: 2228.0966 | L132: 0.2836900701 | M132: 17240473.64 | N132: 13147147.02 | O132: 0 | P132: 30387620.66 | Q132: 9.672680074 | R132: 0.02932900374 | S132: 1 | T132: 0 | U132: 2 | V132: 0 | W132: 0 | X132: 3 | Y132: 0 | Z132: 0 | AA132: 0 | AB132: 1 | AC132: 10 | AD132: -0.0568 | AE132: 1.02 | AF132: -0.2446 | AG132: 2.94 | AH132: -0.206 | AI132: 4.35 | AJ132: -0.153 | AK132: 35 | AL132: 36 | AM132: 39 | AN132: 42 | AO132: 0 | AP132: 0 | AQ132: 0 | AR132: 34 | AS132: 3 | AT132: 3 | AU132: 3 | AV132: 3 | AW132: 0 | AX132: 0 | AY132: 0 | AZ132: 3 | BA132: 0.0007950964382 | BB132: 0.0007950964382 | BC132: 0.0007950964382 | BD132: 0.0007950964382 | BE132: 0.0007950964382 | BF132: 0.0007950964382 | BG132: 0.0007950964382 | BH132: 0.0007950964382 | BI132: 0.0007950964382 | BJ132: 0.0007950964382 | BK132: 0.0007950964382 | BL132: 0.0007950964382 | BM132: 0.0007950964382 | BN132: 0.0007950964382 | BO132: 0.0007950964382 | BP132: 0.0007950964382 | BQ132: 0.0007950964382 | BR132: 0.0007950964382 | BS132: 0.0007950964382 | BT132: 0.0007950964382 | BU132: 0.0007950964382 | BV132: 0.0007950964382 | BW132: 0.0007950964382 | BX132: 0.0007950964382 | BY132: 0.0007950964382 | BZ132: 0.0007950964382 | CA132: 0.0007950964382 | CB132: 0.0007950964382 | CC132: 0.0007950964382
A133: 3 | B133: 2212 | C133: 39 | D133: 42 | E133: 38 | F133: 0.8848 | G133: 2873.726452 | H133: 0 | I133: 0 | J133: 0 | K133: 2873.726452 | L133: 0.3658942159 | M133: 17240473.64 | N133: 13147147.02 | O133: 0 | P133: 30387620.66 | Q133: 9.672680074 | R133: 0.03782759413 | S133: =IF(R133<=2,1,0) -> 1 | T133: =IF(R133>2,1,0) -> 0 | U133: =IF(R133<=6,2,0) -> 2 | V133: 0 | W133: =IF(R133>6,1,0) -> 0 | X133: =IF(R133<=10,3,0) -> 3 | Y133: 0 | Z133: =IF(R133>10,4,0) -> 0 | AA133: 0 | AB133: 1 | AC133: 10 | AD133: -0.0568 | AE133: 1.02 | AF133: -0.2446 | AG133: 2.94 | AH133: -0.206 | AI133: 4.35 | AJ133: -0.153 | AK133: 36 | AL133: 37 | AM133: 40 | AN133: 43 | AO133: 42 | AP133: 0 | AQ133: 38 | AR133: 35 | AS133: 3 | AT133: 3 | AU133: 3 | AV133: 3 | AW133: 3 | AX133: 0 | AY133: 3 | AZ133: 3 | BA133: 0.0007950964382 | BB133: 0.0007950964382 | BC133: 0.0007950964382 | BD133: 0.0007950964382 | BE133: 0.0007950964382 | BF133: 0.0007950964382 | BG133: 0.0007950964382 | BH133: 0.0007950964382 | BI133: 0.0007950964382 | BJ133: 0.0007950964382 | BK133: 0.0007950964382 | BL133: 0.0007950964382 | BM133: 0.0007950964382 | BN133: 0.0007950964382 | BO133: 0.0007950964382 | BP133: 0.0007950964382 | BQ133: 0.0007950964382 | BR133: 0.0007950964382 | BS133: 0.0007950964382 | BT133: 0.0007950964382 | BU133: 0.0007950964382 | BV133: 0.0007950964382 | BW133: 0.0007950964382 | BX133: 0.0007950964382 | BY133: 0.0007950964382 | BZ133: 0.0007950964382 | CA133: 0.0007950964382 | CB133: 0.0007950964382 | CC133: 0.0007950964382
A134: 3 | B134: 2211 | C134: 40 | D134: 43 | E134: 39 | F134: 0.9196 | G134: 1909.945132 | H134: 0 | I134: 0 | J134: 0 | K134: 1909.945132 | L134: =K134/(PI()*50^2) -> 0.243181767 | M134: 23389864.81 | N134: 10021461.53 | O134: 0 | P134: =SUM(M134:O134) -> 33411326.34 | Q134: =P134/(PI()*1000^2) -> 10.63515548 | R134: 0.02286584031 | S134: 1 | T134: 0 | U134: 2 | V134: =T134*U134 -> 0 | W134: 0 | X134: 3 | Y134: =W134*X134 -> 0 | Z134: 0 | AA134: =IF(Z134=4,AB134,0) -> 0 | AB134: 1 | AC134: 10 | AD134: -0.0568 | AE134: 1.02 | AF134: -0.2446 | AG134: 2.94 | AH134: -0.206 | AI134: 4.35 | AJ134: -0.153 | AK134: 37 | AL134: 0 | AM134: 41 | AN134: 44 | AO134: 43 | AP134: 42 | AQ134: 39 | AR134: 36 | AS134: 3 | AT134: 0 | AU134: 3 | AV134: 3 | AW134: 3 | AX134: 3 | AY134: 3 | AZ134: 3 | BA134: 0.0007950964382 | BB134: 0.0007950964382 | BC134: 0.0007950964382 | BD134: 0.0007950964382 | BE134: 0.0007950964382 | BF134: 0.0007950964382 | BG134: 0.0007950964382 | BH134: 0.0007950964382 | BI134: 0.0007950964382 | BJ134: 0.0007950964382 | BK134: 0.0007950964382 | BL134: 0.0007950964382 | BM134: 0.0007950964382 | BN134: 0.0007950964382 | BO134: 0.0007950964382 | BP134: 0.0007950964382 | BQ134: 0.0007950964382 | BR134: 0.0007950964382 | BS134: 0.0007950964382 | BT134: 0.0007950964382 | BU134: 0.0007950964382 | BV134: 0.0007950964382 | BW134: 0.0007950964382 | BX134: 0.0007950964382 | BY134: 0.0007950964382 | BZ134: 0.0007950964382 | CA134: 0.0007950964382 | CB134: 0.0007950964382 | CC134: 0.0007950964382
A135: 3 | B135: 2210 | C135: 41 | D135: 43 | E135: 39 | F135: 0.9196 | G135: 15917.93664 | H135: 0 | I135: 0 | J135: 0 | K135: 15917.93664 | L135: 2.02673464 | M135: 23389864.81 | N135: 10021461.53 | O135: 0 | P135: 33411326.34 | Q135: 10.63515548 | R135: 0.1905693474 | S135: 1 | T135: 0 | U135: 2 | V135: 0 | W135: 0 | X135: 3 | Y135: 0 | Z135: 0 | AA135: 0 | AB135: 1 | AC135: 10 | AD135: -0.0568 | AE135: 1.02 | AF135: -0.2446 | AG135: 2.94 | AH135: -0.206 | AI135: 4.35 | AJ135: -0.153 | AK135: 0 | AL135: 0 | AM135: 0 | AN135: 0 | AO135: 44 | AP135: 43 | AQ135: 40 | AR135: 37 | AS135: 0 | AT135: 0 | AU135: 0 | AV135: 0 | AW135: 3 | AX135: 3 | AY135: 3 | AZ135: 3 | BA135: 0.0007950964382 | BB135: 0.0007950964382 | BC135: 0.0007950964382 | BD135: 0.0007950964382 | BE135: 0.0007950964382 | BF135: 0.0007950964382 | BG135: 0.0007950964382 | BH135: 0.0007950964382 | BI135: 0.0007950964382 | BJ135: 0.0007950964382 | BK135: 0.0007950964382 | BL135: 0.0007950964382 | BM135: 0.0007950964382 | BN135: 0.0007950964382 | BO135: 0.0007950964382 | BP135: 0.0007950964382 | BQ135: 0.0007950964382 | BR135: 0.0007950964382 | BS135: 0.0007950964382 | BT135: 0.0007950964382 | BU135: 0.0007950964382 | BV135: 0.0007950964382 | BW135: 0.0007950964382 | BX135: 0.0007950964382 | BY135: 0.0007950964382 | BZ135: 0.0007950964382 | CA135: 0.0007950964382 | CB135: 0.0007950964382 | CC135: 0.0007950964382
A136: 3 | B136: 2208 | C136: 42 | D136: 42 | E136: 38 | F136: 0.8848 | G136: 3312.091504 | H136: 0 | I136: 0 | J136: 0 | K136: 3312.091504 | L136: 0.4217085879 | M136: 17240473.64 | N136: 13147147.02 | O136: 0 | P136: 30387620.66 | Q136: 9.672680074 | R136: 0.04359790509 | S136: 1 | T136: 0 | U136: 2 | V136: 0 | W136: 0 | X136: 3 | Y136: 0 | Z136: 0 | AA136: 0 | AB136: 1 | AC136: 10 | AD136: -0.0568 | AE136: 1.02 | AF136: -0.2446 | AG136: 2.94 | AH136: -0.206 | AI136: 4.35 | AJ136: -0.153 | AK136: 39 | AL136: 40 | AM136: 43 | AN136: 45 | AO136: 0 | AP136: 0 | AQ136: 0 | AR136: 38 | AS136: 3 | AT136: 3 | AU136: 3 | AV136: 3 | AW136: 0 | AX136: 0 | AY136: 0 | AZ136: 3 | BA136: 0.0007950964382 | BB136: 0.0007950964382 | BC136: 0.0007950964382 | BD136: 0.0007950964382 | BE136: 0.0007950964382 | BF136: 0.0007950964382 | BG136: 0.0007950964382 | BH136: 0.0007950964382 | BI136: 0.0007950964382 | BJ136: 0.0007950964382 | BK136: 0.0007950964382 | BL136: 0.0007950964382 | BM136: 0.0007950964382 | BN136: 0.0007950964382 | BO136: 0.0007950964382 | BP136: 0.0007950964382 | BQ136: 0.0007950964382 | BR136: 0.0007950964382 | BS136: 0.0007950964382 | BT136: 0.0007950964382 | BU136: 0.0007950964382 | BV136: 0.0007950964382 | BW136: 0.0007950964382 | BX136: 0.0007950964382 | BY136: 0.0007950964382 | BZ136: 0.0007950964382 | CA136: 0.0007950964382 | CB136: 0.0007950964382 | CC136: 0.0007950964382
A137: 3 | B137: 2207 | C137: 43 | D137: 43 | E137: 39 | F137: 0.9196 | G137: 3127.625832 | H137: 0 | I137: 0 | J137: 0 | K137: 3127.625832 | L137: 0.398221689 | M137: 23389864.81 | N137: 10021461.53 | O137: 0 | P137: 33411326.34 | Q137: 10.63515548 | R137: 0.03744389912 | S137: 1 | T137: 0 | U137: 2 | V137: 0 | W137: 0 | X137: 3 | Y137: 0 | Z137: 0 | AA137: 0 | AB137: 1 | AC137: 10 | AD137: -0.0568 | AE137: 1.02 | AF137: -0.2446 | AG137: 2.94 | AH137: -0.206 | AI137: 4.35 | AJ137: -0.153 | AK137: 40 | AL137: 41 | AM137: 44 | AN137: 46 | AO137: 45 | AP137: 0 | AQ137: 42 | AR137: 39 | AS137: 3 | AT137: 3 | AU137: 3 | AV137: 3 | AW137: 3 | AX137: 0 | AY137: 3 | AZ137: 3 | BA137: 0.0007950964382 | BB137: 0.0007950964382 | BC137: 0.0007950964382 | BD137: 0.0007950964382 | BE137: 0.0007950964382 | BF137: 0.0007950964382 | BG137: 0.0007950964382 | BH137: 0.0007950964382 | BI137: 0.0007950964382 | BJ137: 0.0007950964382 | BK137: 0.0007950964382 | BL137: 0.0007950964382 | BM137: 0.0007950964382 | BN137: 0.0007950964382 | BO137: 0.0007950964382 | BP137: 0.0007950964382 | BQ137: 0.0007950964382 | BR137: 0.0007950964382 | BS137: 0.0007950964382 | BT137: 0.0007950964382 | BU137: 0.0007950964382 | BV137: 0.0007950964382 | BW137: 0.0007950964382 | BX137: 0.0007950964382 | BY137: 0.0007950964382 | BZ137: 0.0007950964382 | CA137: 0.0007950964382 | CB137: 0.0007950964382 | CC137: 0.0007950964382
A138: 3 | B138: 2206 | C138: 44 | D138: 43 | E138: 39 | F138: 0.9196 | G138: 16813.32058 | H138: 0 | I138: 0 | J138: 0 | K138: 16813.32058 | L138: 2.140738464 | M138: 23389864.81 | N138: 10021461.53 | O138: 0 | P138: 33411326.34 | Q138: 10.63515548 | R138: 0.2012888732 | S138: 1 | T138: 0 | U138: 2 | V138: 0 | W138: 0 | X138: 3 | Y138: 0 | Z138: 0 | AA138: 0 | AB138: 1 | AC138: 10 | AD138: -0.0568 | AE138: 1.02 | AF138: -0.2446 | AG138: 2.94 | AH138: -0.206 | AI138: 4.35 | AJ138: -0.153 | AK138: 41 | AL138: 0 | AM138: 0 | AN138: 0 | AO138: 46 | AP138: 45 | AQ138: 43 | AR138: 40 | AS138: 3 | AT138: 0 | AU138: 0 | AV138: 0 | AW138: 3 | AX138: 3 | AY138: 3 | AZ138: 3 | BA138: 0.0007950964382 | BB138: 0.0007950964382 | BC138: 0.0007950964382 | BD138: 0.0007950964382 | BE138: 0.0007950964382 | BF138: 0.0007950964382 | BG138: 0.0007950964382 | BH138: 0.0007950964382 | BI138: 0.0007950964382 | BJ138: 0.0007950964382 | BK138: 0.0007950964382 | BL138: 0.0007950964382 | BM138: 0.0007950964382 | BN138: 0.0007950964382 | BO138: 0.0007950964382 | BP138: 0.0007950964382 | BQ138: 0.0007950964382 | BR138: 0.0007950964382 | BS138: 0.0007950964382 | BT138: 0.0007950964382 | BU138: 0.0007950964382 | BV138: 0.0007950964382 | BW138: 0.0007950964382 | BX138: 0.0007950964382 | BY138: 0.0007950964382 | BZ138: 0.0007950964382 | CA138: 0.0007950964382 | CB138: 0.0007950964382 | CC138: 0.0007950964382
A139: 3 | B139: 2149 | C139: 45 | D139: 51 | E139: 46 | F139: 0.9272 | G139: 4063.426404 | H139: 0 | I139: 0 | J139: 0 | K139: 4063.426404 | L139: 0.5173715185 | M139: 28838356.89 | N139: 7870055.844 | O139: 0 | P139: 36708412.73 | Q139: 11.68465068 | R139: 0.04427787639 | S139: 1 | T139: 0 | U139: 2 | V139: 0 | W139: 0 | X139: 3 | Y139: 0 | Z139: 0 | AA139: 0 | AB139: 1 | AC139: 10 | AD139: -0.0568 | AE139: 1.02 | AF139: -0.2446 | AG139: 2.94 | AH139: -0.206 | AI139: 4.35 | AJ139: -0.153 | AK139: 43 | AL139: 44 | AM139: 46 | AN139: 48 | AO139: 47 | AP139: 0 | AQ139: 0 | AR139: 42 | AS139: 3 | AT139: 3 | AU139: 3 | AV139: 3 | AW139: 3 | AX139: 0 | AY139: 0 | AZ139: 3 | BA139: 0.0007950964382 | BB139: 0.0007950964382 | BC139: 0.0007950964382 | BD139: 0.0007950964382 | BE139: 0.0007950964382 | BF139: 0.0007950964382 | BG139: 0.0007950964382 | BH139: 0.0007950964382 | BI139: 0.0007950964382 | BJ139: 0.0007950964382 | BK139: 0.0007950964382 | BL139: 0.0007950964382 | BM139: 0.0007950964382 | BN139: 0.0007950964382 | BO139: 0.0007950964382 | BP139: 0.0007950964382 | BQ139: 0.0007950964382 | BR139: 0.0007950964382 | BS139: 0.0007950964382 | BT139: 0.0007950964382 | BU139: 0.0007950964382 | BV139: 0.0007950964382 | BW139: 0.0007950964382 | BX139: 0.0007950964382 | BY139: 0.0007950964382 | BZ139: 0.0007950964382 | CA139: 0.0007950964382 | CB139: 0.0007950964382 | CC139: 0.0007950964382
A140: 3 | B140: 2148 | C140: 46 | D140: 51 | E140: 46 | F140: 0.9272 | G140: 17372.93554 | H140: 0 | I140: 0 | J140: 0 | K140: =SUM(G140:J140) -> 17372.93554 | L140: 2.211990853 | M140: 28838356.89 | N140: 7870055.844 | O140: 0 | P140: 36708412.73 | Q140: 11.68465068 | R140: 0.1893074011 | S140: 1 | T140: 0 | U140: 2 | V140: 0 | W140: 0 | X140: 3 | Y140: 0 | Z140: 0 | AA140: 0 | AB140: 1 | AC140: 10 | AD140: -0.0568 | AE140: 1.02 | AF140: -0.2446 | AG140: 2.94 | AH140: -0.206 | AI140: 4.35 | AJ140: -0.153 | AK140: 44 | AL140: 0 | AM140: 0 | AN140: 0 | AO140: 48 | AP140: 47 | AQ140: 45 | AR140: 43 | AS140: 3 | AT140: 0 | AU140: 0 | AV140: 0 | AW140: 3 | AX140: 3 | AY140: 3 | AZ140: 3 | BA140: 0.0007950964382 | BB140: 0.0007950964382 | BC140: 0.0007950964382 | BD140: 0.0007950964382 | BE140: 0.0007950964382 | BF140: 0.0007950964382 | BG140: 0.0007950964382 | BH140: 0.0007950964382 | BI140: 0.0007950964382 | BJ140: 0.0007950964382 | BK140: 0.0007950964382 | BL140: 0.0007950964382 | BM140: 0.0007950964382 | BN140: 0.0007950964382 | BO140: 0.0007950964382 | BP140: 0.0007950964382 | BQ140: 0.0007950964382 | BR140: 0.0007950964382 | BS140: 0.0007950964382 | BT140: 0.0007950964382 | BU140: 0.0007950964382 | BV140: 0.0007950964382 | BW140: 0.0007950964382 | BX140: 0.0007950964382 | BY140: 0.0007950964382 | BZ140: 0.0007950964382 | CA140: 0.0007950964382 | CB140: 0.0007950964382 | CC140: 0.0007950964382
A141: 3 | B141: 2145 | C141: 47 | D141: 51 | E141: 46 | F141: 0.9272 | G141: 14219.4016 | H141: 0 | I141: 0 | J141: 0 | K141: 14219.4016 | L141: 1.810470442 | M141: 28838356.89 | N141: 7870055.844 | O141: 0 | P141: 36708412.73 | Q141: 11.68465068 | R141: 0.1549443361 | S141: 1 | T141: 0 | U141: 2 | V141: 0 | W141: 0 | X141: 3 | Y141: 0 | Z141: 0 | AA141: 0 | AB141: 1 | AC141: 10 | AD141: -0.0568 | AE141: 1.02 | AF141: -0.2446 | AG141: 2.94 | AH141: -0.206 | AI141: 4.35 | AJ141: -0.153 | AK141: 45 | AL141: 46 | AM141: 48 | AN141: 50 | AO141: 49 | AP141: 0 | AQ141: 0 | AR141: 0 | AS141: 3 | AT141: 3 | AU141: 3 | AV141: 3 | AW141: 3 | AX141: 0 | AY141: 0 | AZ141: 0 | BA141: 0.0007950964382 | BB141: 0.0007950964382 | BC141: 0.0007950964382 | BD141: 0.0007950964382 | BE141: 0.0007950964382 | BF141: 0.0007950964382 | BG141: 0.0007950964382 | BH141: 0.0007950964382 | BI141: 0.0007950964382 | BJ141: 0.0007950964382 | BK141: 0.0007950964382 | BL141: 0.0007950964382 | BM141: 0.0007950964382 | BN141: 0.0007950964382 | BO141: 0.0007950964382 | BP141: 0.0007950964382 | BQ141: 0.0007950964382 | BR141: 0.0007950964382 | BS141: 0.0007950964382 | BT141: 0.0007950964382 | BU141: 0.0007950964382 | BV141: 0.0007950964382 | BW141: 0.0007950964382 | BX141: 0.0007950964382 | BY141: 0.0007950964382 | BZ141: 0.0007950964382 | CA141: 0.0007950964382 | CB141: 0.0007950964382 | CC141: 0.0007950964382
A142: 3 | B142: 2144 | C142: 48 | D142: 51 | E142: 46 | F142: 0.9272 | G142: 30766.38691 | H142: 0 | I142: 0 | J142: 0 | K142: 30766.38691 | L142: 3.917298046 | M142: 28838356.89 | N142: 7870055.844 | O142: 0 | P142: 36708412.73 | Q142: 11.68465068 | R142: 0.335251618 | S142: 1 | T142: 0 | U142: 2 | V142: 0 | W142: 0 | X142: 3 | Y142: 0 | Z142: 0 | AA142: 0 | AB142: 1 | AC142: 10 | AD142: -0.0568 | AE142: 1.02 | AF142: -0.2446 | AG142: 2.94 | AH142: -0.206 | AI142: 4.35 | AJ142: -0.153 | AK142: 46 | AL142: 0 | AM142: 0 | AN142: 51 | AO142: 50 | AP142: 49 | AQ142: 47 | AR142: 45 | AS142: 3 | AT142: 0 | AU142: 0 | AV142: 3 | AW142: 3 | AX142: 3 | AY142: 3 | AZ142: 3 | BA142: 0.0007950964382 | BB142: 0.0007950964382 | BC142: 0.0007950964382 | BD142: 0.0007950964382 | BE142: 0.0007950964382 | BF142: 0.0007950964382 | BG142: 0.0007950964382 | BH142: 0.0007950964382 | BI142: 0.0007950964382 | BJ142: 0.0007950964382 | BK142: 0.0007950964382 | BL142: 0.0007950964382 | BM142: 0.0007950964382 | BN142: 0.0007950964382 | BO142: 0.0007950964382 | BP142: 0.0007950964382 | BQ142: 0.0007950964382 | BR142: 0.0007950964382 | BS142: 0.0007950964382 | BT142: 0.0007950964382 | BU142: 0.0007950964382 | BV142: 0.0007950964382 | BW142: 0.0007950964382 | BX142: 0.0007950964382 | BY142: 0.0007950964382 | BZ142: 0.0007950964382 | CA142: 0.0007950964382 | CB142: 0.0007950964382 | CC142: 0.0007950964382
A143: 3 | B143: 1959 | C143: 49 | D143: 51 | E143: 46 | F143: 0.9272 | G143: 62146.27763 | H143: 0 | I143: 0 | J143: 0 | K143: 62146.27763 | L143: 7.912709824 | M143: 28838356.89 | N143: 7870055.844 | O143: 0 | P143: 36708412.73 | Q143: 11.68465068 | R143: 0.6771883936 | S143: 1 | T143: 0 | U143: 2 | V143: 0 | W143: 0 | X143: 3 | Y143: 0 | Z143: 0 | AA143: 0 | AB143: 1 | AC143: 10 | AD143: -0.0568 | AE143: 1.02 | AF143: -0.2446 | AG143: 2.94 | AH143: -0.206 | AI143: 4.35 | AJ143: -0.153 | AK143: 47 | AL143: 48 | AM143: 50 | AN143: 54 | AO143: 53 | AP143: 52 | AQ143: 0 | AR143: 0 | AS143: 3 | AT143: 3 | AU143: 3 | AV143: 3 | AW143: 3 | AX143: 3 | AY143: 0 | AZ143: 0 | BA143: 0.0007950964382 | BB143: 0.0007950964382 | BC143: 0.0007950964382 | BD143: 0.0007950964382 | BE143: 0.0007950964382 | BF143: 0.0007950964382 | BG143: 0.0007950964382 | BH143: 0.0007950964382 | BI143: 0.0007950964382 | BJ143: 0.0007950964382 | BK143: 0.0007950964382 | BL143: 0.0007950964382 | BM143: 0.0007950964382 | BN143: 0.0007950964382 | BO143: 0.0007950964382 | BP143: 0.0007950964382 | BQ143: 0.0007950964382 | BR143: 0.0007950964382 | BS143: 0.0007950964382 | BT143: 0.0007950964382 | BU143: 0.0007950964382 | BV143: 0.0007950964382 | BW143: 0.0007950964382 | BX143: 0.0007950964382 | BY143: 0.0007950964382 | BZ143: 0.0007950964382 | CA143: 0.0007950964382 | CB143: 0.0007950964382 | CC143: 0.0007950964382
A144: 3 | B144: 1958 | C144: 50 | D144: 51 | E144: 46 | F144: 0.9272 | G144: 60610.44546 | H144: 0 | I144: 0 | J144: 0 | K144: 60610.44546 | L144: 7.717161599 | M144: 28838356.89 | N144: 7870055.844 | O144: 0 | P144: 36708412.73 | Q144: 11.68465068 | R144: 0.6604529147 | S144: 1 | T144: 0 | U144: 2 | V144: 0 | W144: 0 | X144: 3 | Y144: 0 | Z144: 0 | AA144: 0 | AB144: 1 | AC144: 10 | AD144: -0.0568 | AE144: 1.02 | AF144: -0.2446 | AG144: 2.94 | AH144: -0.206 | AI144: 4.35 | AJ144: -0.153 | AK144: 48 | AL144: 0 | AM144: 51 | AN144: 55 | AO144: 54 | AP144: 53 | AQ144: 49 | AR144: 47 | AS144: 3 | AT144: 0 | AU144: 3 | AV144: 3 | AW144: 3 | AX144: 3 | AY144: 3 | AZ144: 3 | BA144: 0.0007950964382 | BB144: 0.0007950964382 | BC144: 0.0007950964382 | BD144: 0.0007950964382 | BE144: 0.0007950964382 | BF144: 0.0007950964382 | BG144: 0.0007950964382 | BH144: 0.0007950964382 | BI144: 0.0007950964382 | BJ144: 0.0007950964382 | BK144: 0.0007950964382 | BL144: 0.0007950964382 | BM144: 0.0007950964382 | BN144: 0.0007950964382 | BO144: 0.0007950964382 | BP144: 0.0007950964382 | BQ144: 0.0007950964382 | BR144: 0.0007950964382 | BS144: 0.0007950964382 | BT144: 0.0007950964382 | BU144: 0.0007950964382 | BV144: 0.0007950964382 | BW144: 0.0007950964382 | BX144: 0.0007950964382 | BY144: 0.0007950964382 | BZ144: 0.0007950964382 | CA144: 0.0007950964382 | CB144: 0.0007950964382 | CC144: 0.0007950964382
A145: 3 | B145: 1957 | C145: 51 | D145: 51 | E145: 46 | F145: 0.9272 | G145: 4039.590952 | H145: 0 | I145: 0 | J145: 0 | K145: 4039.590952 | L145: 0.5143366945 | M145: 28838356.89 | N145: 7870055.844 | O145: 0 | P145: 36708412.73 | Q145: 11.68465068 | R145: 0.04401814899 | S145: 1 | T145: 0 | U145: 2 | V145: 0 | W145: 0 | X145: 3 | Y145: 0 | Z145: 0 | AA145: 0 | AB145: 1 | AC145: 10 | AD145: -0.0568 | AE145: 1.02 | AF145: -0.2446 | AG145: 2.94 | AH145: -0.206 | AI145: 4.35 | AJ145: -0.153 | AK145: 0 | AL145: 0 | AM145: 0 | AN145: 0 | AO145: 55 | AP145: 54 | AQ145: 50 | AR145: 48 | AS145: 0 | AT145: 0 | AU145: 0 | AV145: 0 | AW145: 3 | AX145: 3 | AY145: 3 | AZ145: 3 | BA145: 0.0007950964382 | BB145: 0.0007950964382 | BC145: 0.0007950964382 | BD145: 0.0007950964382 | BE145: 0.0007950964382 | BF145: 0.0007950964382 | BG145: 0.0007950964382 | BH145: 0.0007950964382 | BI145: 0.0007950964382 | BJ145: 0.0007950964382 | BK145: 0.0007950964382 | BL145: 0.0007950964382 | BM145: 0.0007950964382 | BN145: 0.0007950964382 | BO145: 0.0007950964382 | BP145: 0.0007950964382 | BQ145: 0.0007950964382 | BR145: 0.0007950964382 | BS145: 0.0007950964382 | BT145: 0.0007950964382 | BU145: 0.0007950964382 | BV145: 0.0007950964382 | BW145: 0.0007950964382 | BX145: 0.0007950964382 | BY145: 0.0007950964382 | BZ145: 0.0007950964382 | CA145: 0.0007950964382 | CB145: 0.0007950964382 | CC145: 0.0007950964382
A146: 3 | B146: 1956 | C146: 52 | D146: 50 | E146: 46 | F146: 0.8515 | G146: 22096.50033 | H146: 0 | I146: 0 | J146: 0 | K146: 22096.50033 | L146: 2.813413802 | M146: 28838356.89 | N146: 7870055.844 | O146: 0 | P146: 36708412.73 | Q146: 11.68465068 | R146: 0.2407785974 | S146: 1 | T146: 0 | U146: 2 | V146: 0 | W146: 0 | X146: 3 | Y146: 0 | Z146: 0 | AA146: 0 | AB146: 1 | AC146: 10 | AD146: -0.0568 | AE146: 1.02 | AF146: -0.2446 | AG146: 2.94 | AH146: -0.206 | AI146: 4.35 | AJ146: -0.153 | AK146: 0 | AL146: 45 | AM146: 53 | AN146: 57 | AO146: 56 | AP146: 0 | AQ146: 0 | AR146: 0 | AS146: 0 | AT146: 3 | AU146: 3 | AV146: 3 | AW146: 3 | AX146: 0 | AY146: 0 | AZ146: 0 | BA146: 0.0007950964382 | BB146: 0.0007950964382 | BC146: 0.0007950964382 | BD146: 0.0007950964382 | BE146: 0.0007950964382 | BF146: 0.0007950964382 | BG146: 0.0007950964382 | BH146: 0.0007950964382 | BI146: 0.0007950964382 | BJ146: 0.0007950964382 | BK146: 0.0007950964382 | BL146: 0.0007950964382 | BM146: 0.0007950964382 | BN146: 0.0007950964382 | BO146: 0.0007950964382 | BP146: 0.0007950964382 | BQ146: 0.0007950964382 | BR146: 0.0007950964382 | BS146: 0.0007950964382 | BT146: 0.0007950964382 | BU146: 0.0007950964382 | BV146: 0.0007950964382 | BW146: 0.0007950964382 | BX146: 0.0007950964382 | BY146: 0.0007950964382 | BZ146: 0.0007950964382 | CA146: 0.0007950964382 | CB146: 0.0007950964382 | CC146: 0.0007950964382
A147: 3 | B147: 1955 | C147: 53 | D147: 51 | E147: 46 | F147: 0.9272 | G147: 68867.8751 | H147: 0 | I147: 0 | J147: 0 | K147: 68867.8751 | L147: 8.768530193 | M147: 28838356.89 | N147: 7870055.844 | O147: 0 | P147: 36708412.73 | Q147: 11.68465068 | R147: 0.750431522 | S147: 1 | T147: 0 | U147: 2 | V147: 0 | W147: 0 | X147: 3 | Y147: 0 | Z147: 0 | AA147: 0 | AB147: 1 | AC147: 10 | AD147: -0.0568 | AE147: 1.02 | AF147: -0.2446 | AG147: 2.94 | AH147: -0.206 | AI147: 4.35 | AJ147: -0.153 | AK147: 49 | AL147: 50 | AM147: 54 | AN147: 58 | AO147: 57 | AP147: 56 | AQ147: 52 | AR147: 0 | AS147: 3 | AT147: 3 | AU147: 3 | AV147: 3 | AW147: 3 | AX147: 3 | AY147: 3 | AZ147: 0 | BA147: 0.0007950964382 | BB147: 0.0007950964382 | BC147: 0.0007950964382 | BD147: 0.0007950964382 | BE147: 0.0007950964382 | BF147: 0.0007950964382 | BG147: 0.0007950964382 | BH147: 0.0007950964382 | BI147: 0.0007950964382 | BJ147: 0.0007950964382 | BK147: 0.0007950964382 | BL147: 0.0007950964382 | BM147: 0.0007950964382 | BN147: 0.0007950964382 | BO147: 0.0007950964382 | BP147: 0.0007950964382 | BQ147: 0.0007950964382 | BR147: 0.0007950964382 | BS147: 0.0007950964382 | BT147: 0.0007950964382 | BU147: 0.0007950964382 | BV147: 0.0007950964382 | BW147: 0.0007950964382 | BX147: 0.0007950964382 | BY147: 0.0007950964382 | BZ147: 0.0007950964382 | CA147: 0.0007950964382 | CB147: 0.0007950964382 | CC147: 0.0007950964382
A148: 3 | B148: 1954 | C148: 54 | D148: 51 | E148: 46 | F148: 0.9272 | G148: 60715.11419 | H148: 0 | I148: 0 | J148: 0 | K148: 60715.11419 | L148: 7.730488435 | M148: 28838356.89 | N148: 7870055.844 | O148: 0 | P148: 36708412.73 | Q148: 11.68465068 | R148: 0.6615934568 | S148: 1 | T148: 0 | U148: 2 | V148: 0 | W148: 0 | X148: 3 | Y148: 0 | Z148: 0 | AA148: 0 | AB148: 1 | AC148: 10 | AD148: -0.0568 | AE148: 1.02 | AF148: -0.2446 | AG148: 2.94 | AH148: -0.206 | AI148: 4.35 | AJ148: -0.153 | AK148: 50 | AL148: 51 | AM148: 55 | AN148: 59 | AO148: 58 | AP148: 57 | AQ148: 53 | AR148: 49 | AS148: 3 | AT148: 3 | AU148: 3 | AV148: 3 | AW148: 3 | AX148: 3 | AY148: 3 | AZ148: 3 | BA148: 0.0007950964382 | BB148: 0.0007950964382 | BC148: 0.0007950964382 | BD148: 0.0007950964382 | BE148: 0.0007950964382 | BF148: 0.0007950964382 | BG148: 0.0007950964382 | BH148: 0.0007950964382 | BI148: 0.0007950964382 | BJ148: 0.0007950964382 | BK148: 0.0007950964382 | BL148: 0.0007950964382 | BM148: 0.0007950964382 | BN148: 0.0007950964382 | BO148: 0.0007950964382 | BP148: 0.0007950964382 | BQ148: 0.0007950964382 | BR148: 0.0007950964382 | BS148: 0.0007950964382 | BT148: 0.0007950964382 | BU148: 0.0007950964382 | BV148: 0.0007950964382 | BW148: 0.0007950964382 | BX148: 0.0007950964382 | BY148: 0.0007950964382 | BZ148: 0.0007950964382 | CA148: 0.0007950964382 | CB148: 0.0007950964382 | CC148: 0.0007950964382
A149: 3 | B149: 1953 | C149: 55 | D149: 51 | E149: 46 | F149: 0.9272 | G149: 4398.159056 | H149: 0 | I149: 0 | J149: 0 | K149: 4398.159056 | L149: 0.5599910034 | M149: 28838356.89 | N149: 7870055.844 | O149: 0 | P149: 36708412.73 | Q149: 11.68465068 | R149: 0.04792535257 | S149: 1 | T149: 0 | U149: 2 | V149: 0 | W149: 0 | X149: 3 | Y149: 0 | Z149: 0 | AA149: 0 | AB149: 1 | AC149: 10 | AD149: -0.0568 | AE149: 1.02 | AF149: -0.2446 | AG149: 2.94 | AH149: -0.206 | AI149: 4.35 | AJ149: -0.153 | AK149: 51 | AL149: 0 | AM149: 0 | AN149: 60 | AO149: 59 | AP149: 58 | AQ149: 54 | AR149: 50 | AS149: 3 | AT149: 0 | AU149: 0 | AV149: 3 | AW149: 3 | AX149: 3 | AY149: 3 | AZ149: 3 | BA149: 0.0007950964382 | BB149: 0.0007950964382 | BC149: 0.0007950964382 | BD149: 0.0007950964382 | BE149: 0.0007950964382 | BF149: 0.0007950964382 | BG149: 0.0007950964382 | BH149: 0.0007950964382 | BI149: 0.0007950964382 | BJ149: 0.0007950964382 | BK149: 0.0007950964382 | BL149: 0.0007950964382 | BM149: 0.0007950964382 | BN149: 0.0007950964382 | BO149: 0.0007950964382 | BP149: 0.0007950964382 | BQ149: 0.0007950964382 | BR149: 0.0007950964382 | BS149: 0.0007950964382 | BT149: 0.0007950964382 | BU149: 0.0007950964382 | BV149: 0.0007950964382 | BW149: 0.0007950964382 | BX149: 0.0007950964382 | BY149: 0.0007950964382 | BZ149: 0.0007950964382 | CA149: 0.0007950964382 | CB149: 0.0007950964382 | CC149: 0.0007950964382
A150: 3 | B150: 1952 | C150: 56 | D150: 59 | E150: 54 | F150: 0.8515 | G150: 10236.80847 | H150: 0 | I150: 0 | J150: 0 | K150: 10236.80847 | L150: 1.303390936 | M150: 28223051.95 | N150: 6592333.879 | O150: 0 | P150: 34815385.83 | Q150: 11.0820815 | R150: 0.1176124662 | S150: 1 | T150: 0 | U150: 2 | V150: 0 | W150: 0 | X150: 3 | Y150: 0 | Z150: 0 | AA150: 0 | AB150: 1 | AC150: 10 | AD150: -0.0568 | AE150: 1.02 | AF150: -0.2446 | AG150: 2.94 | AH150: -0.206 | AI150: 4.35 | AJ150: -0.153 | AK150: 52 | AL150: 53 | AM150: 57 | AN150: 61 | AO150: 0 | AP150: 0 | AQ150: 0 | AR150: 0 | AS150: 3 | AT150: 3 | AU150: 3 | AV150: 3 | AW150: 0 | AX150: 0 | AY150: 0 | AZ150: 0 | BA150: 0.0007950964382 | BB150: 0.0007950964382 | BC150: 0.0007950964382 | BD150: 0.0007950964382 | BE150: 0.0007950964382 | BF150: 0.0007950964382 | BG150: 0.0007950964382 | BH150: 0.0007950964382 | BI150: 0.0007950964382 | BJ150: 0.0007950964382 | BK150: 0.0007950964382 | BL150: 0.0007950964382 | BM150: 0.0007950964382 | BN150: 0.0007950964382 | BO150: 0.0007950964382 | BP150: 0.0007950964382 | BQ150: 0.0007950964382 | BR150: 0.0007950964382 | BS150: 0.0007950964382 | BT150: 0.0007950964382 | BU150: 0.0007950964382 | BV150: 0.0007950964382 | BW150: 0.0007950964382 | BX150: 0.0007950964382 | BY150: 0.0007950964382 | BZ150: 0.0007950964382 | CA150: 0.0007950964382 | CB150: 0.0007950964382 | CC150: 0.0007950964382
A151: 3 | B151: 1951 | C151: 57 | D151: 60 | E151: 54 | F151: 0.8962 | G151: 66297.79158 | H151: 0 | I151: 0 | J151: 0 | K151: 66297.79158 | L151: 8.441296996 | M151: 28223051.95 | N151: 6592333.879 | O151: 0 | P151: 34815385.83 | Q151: 11.0820815 | R151: 0.7617068143 | S151: 1 | T151: 0 | U151: 2 | V151: 0 | W151: 0 | X151: 3 | Y151: 0 | Z151: 0 | AA151: 0 | AB151: 1 | AC151: 10 | AD151: -0.0568 | AE151: 1.02 | AF151: -0.2446 | AG151: 2.94 | AH151: -0.206 | AI151: 4.35 | AJ151: -0.153 | AK151: 53 | AL151: 54 | AM151: 58 | AN151: 62 | AO151: 61 | AP151: 0 | AQ151: 56 | AR151: 52 | AS151: 3 | AT151: 3 | AU151: 3 | AV151: 3 | AW151: 3 | AX151: 0 | AY151: 3 | AZ151: 3 | BA151: 0.0007950964382 | BB151: 0.0007950964382 | BC151: 0.0007950964382 | BD151: 0.0007950964382 | BE151: 0.0007950964382 | BF151: 0.0007950964382 | BG151: 0.0007950964382 | BH151: 0.0007950964382 | BI151: 0.0007950964382 | BJ151: 0.0007950964382 | BK151: 0.0007950964382 | BL151: 0.0007950964382 | BM151: 0.0007950964382 | BN151: 0.0007950964382 | BO151: 0.0007950964382 | BP151: 0.0007950964382 | BQ151: 0.0007950964382 | BR151: 0.0007950964382 | BS151: 0.0007950964382 | BT151: 0.0007950964382 | BU151: 0.0007950964382 | BV151: 0.0007950964382 | BW151: 0.0007950964382 | BX151: 0.0007950964382 | BY151: 0.0007950964382 | BZ151: 0.0007950964382 | CA151: 0.0007950964382 | CB151: 0.0007950964382 | CC151: 0.0007950964382
A152: 3 | B152: 1950 | C152: 58 | D152: 60 | E152: 54 | F152: 0.8962 | G152: 49191.19131 | H152: 0 | I152: 0 | J152: 0 | K152: 49191.19131 | L152: 6.263217003 | M152: 28223051.95 | N152: 6592333.879 | O152: 0 | P152: 34815385.83 | Q152: 11.0820815 | R152: 0.5651661199 | S152: 1 | T152: 0 | U152: 2 | V152: 0 | W152: 0 | X152: 3 | Y152: 0 | Z152: 0 | AA152: 0 | AB152: 1 | AC152: 10 | AD152: -0.0568 | AE152: 1.02 | AF152: -0.2446 | AG152: 2.94 | AH152: -0.206 | AI152: 4.35 | AJ152: -0.153 | AK152: 54 | AL152: 55 | AM152: 59 | AN152: 63 | AO152: 62 | AP152: 61 | AQ152: 57 | AR152: 53 | AS152: 3 | AT152: 3 | AU152: 3 | AV152: 3 | AW152: 3 | AX152: 3 | AY152: 3 | AZ152: 3 | BA152: 0.0007950964382 | BB152: 0.0007950964382 | BC152: 0.0007950964382 | BD152: 0.0007950964382 | BE152: 0.0007950964382 | BF152: 0.0007950964382 | BG152: 0.0007950964382 | BH152: 0.0007950964382 | BI152: 0.0007950964382 | BJ152: 0.0007950964382 | BK152: 0.0007950964382 | BL152: 0.0007950964382 | BM152: 0.0007950964382 | BN152: 0.0007950964382 | BO152: 0.0007950964382 | BP152: 0.0007950964382 | BQ152: 0.0007950964382 | BR152: 0.0007950964382 | BS152: 0.0007950964382 | BT152: 0.0007950964382 | BU152: 0.0007950964382 | BV152: 0.0007950964382 | BW152: 0.0007950964382 | BX152: 0.0007950964382 | BY152: 0.0007950964382 | BZ152: 0.0007950964382 | CA152: 0.0007950964382 | CB152: 0.0007950964382 | CC152: 0.0007950964382
A153: 3 | B153: 1949 | C153: 59 | D153: 60 | E153: 54 | F153: 0.8962 | G153: 4197.1122 | H153: 0 | I153: 0 | J153: 0 | K153: 4197.1122 | L153: 0.5343929227 | M153: 28223051.95 | N153: 6592333.879 | O153: 0 | P153: 34815385.83 | Q153: 11.0820815 | R153: 0.04822134927 | S153: 1 | T153: 0 | U153: 2 | V153: 0 | W153: 0 | X153: 3 | Y153: 0 | Z153: 0 | AA153: 0 | AB153: 1 | AC153: 10 | AD153: -0.0568 | AE153: 1.02 | AF153: -0.2446 | AG153: 2.94 | AH153: -0.206 | AI153: 4.35 | AJ153: -0.153 | AK153: 55 | AL153: 0 | AM153: 60 | AN153: 64 | AO153: 63 | AP153: 62 | AQ153: 58 | AR153: 54 | AS153: 3 | AT153: 0 | AU153: 3 | AV153: 3 | AW153: 3 | AX153: 3 | AY153: 3 | AZ153: 3 | BA153: 0.0007950964382 | BB153: 0.0007950964382 | BC153: 0.0007950964382 | BD153: 0.0007950964382 | BE153: 0.0007950964382 | BF153: 0.0007950964382 | BG153: 0.0007950964382 | BH153: 0.0007950964382 | BI153: 0.0007950964382 | BJ153: 0.0007950964382 | BK153: 0.0007950964382 | BL153: 0.0007950964382 | BM153: 0.0007950964382 | BN153: 0.0007950964382 | BO153: 0.0007950964382 | BP153: 0.0007950964382 | BQ153: 0.0007950964382 | BR153: 0.0007950964382 | BS153: 0.0007950964382 | BT153: 0.0007950964382 | BU153: 0.0007950964382 | BV153: 0.0007950964382 | BW153: 0.0007950964382 | BX153: 0.0007950964382 | BY153: 0.0007950964382 | BZ153: 0.0007950964382 | CA153: 0.0007950964382 | CB153: 0.0007950964382 | CC153: 0.0007950964382
A154: 3 | B154: 1920 | C154: 60 | D154: 60 | E154: 54 | F154: 0.8962 | G154: 1773.150364 | H154: 0 | I154: 0 | J154: 0 | K154: 1773.150364 | L154: 0.2257645162 | M154: 28223051.95 | N154: 6592333.879 | O154: 0 | P154: 34815385.83 | Q154: 11.0820815 | R154: 0.02037203175 | S154: 1 | T154: 0 | U154: 2 | V154: 0 | W154: 0 | X154: 3 | Y154: 0 | Z154: 0 | AA154: 0 | AB154: 1 | AC154: 10 | AD154: -0.0568 | AE154: 1.02 | AF154: -0.2446 | AG154: 2.94 | AH154: -0.206 | AI154: 4.35 | AJ154: -0.153 | AK154: 0 | AL154: 0 | AM154: 0 | AN154: 0 | AO154: 64 | AP154: 63 | AQ154: 59 | AR154: 55 | AS154: 0 | AT154: 0 | AU154: 0 | AV154: 0 | AW154: 3 | AX154: 3 | AY154: 3 | AZ154: 3 | BA154: 0.0007950964382 | BB154: 0.0007950964382 | BC154: 0.0007950964382 | BD154: 0.0007950964382 | BE154: 0.0007950964382 | BF154: 0.0007950964382 | BG154: 0.0007950964382 | BH154: 0.0007950964382 | BI154: 0.0007950964382 | BJ154: 0.0007950964382 | BK154: 0.0007950964382 | BL154: 0.0007950964382 | BM154: 0.0007950964382 | BN154: 0.0007950964382 | BO154: 0.0007950964382 | BP154: 0.0007950964382 | BQ154: 0.0007950964382 | BR154: 0.0007950964382 | BS154: 0.0007950964382 | BT154: 0.0007950964382 | BU154: 0.0007950964382 | BV154: 0.0007950964382 | BW154: 0.0007950964382 | BX154: 0.0007950964382 | BY154: 0.0007950964382 | BZ154: 0.0007950964382 | CA154: 0.0007950964382 | CB154: 0.0007950964382 | CC154: 0.0007950964382
A155: 3 | B155: 1947 | C155: 61 | D155: 60 | E155: 54 | F155: 0.8962 | G155: 51341.56361 | H155: 0 | I155: 0 | J155: 0 | K155: 51341.56361 | L155: 6.537010907 | M155: 28223051.95 | N155: 6592333.879 | O155: 0 | P155: 34815385.83 | Q155: 11.0820815 | R155: 0.5898721199 | S155: 1 | T155: 0 | U155: 2 | V155: 0 | W155: 0 | X155: 3 | Y155: 0 | Z155: 0 | AA155: 0 | AB155: 1 | AC155: 10 | AD155: -0.0568 | AE155: 1.02 | AF155: -0.2446 | AG155: 2.94 | AH155: -0.206 | AI155: 4.35 | AJ155: -0.153 | AK155: 57 | AL155: 58 | AM155: 62 | AN155: 65 | AO155: 0 | AP155: 0 | AQ155: 0 | AR155: 56 | AS155: 3 | AT155: 3 | AU155: 3 | AV155: 3 | AW155: 0 | AX155: 0 | AY155: 0 | AZ155: 3 | BA155: 0.0007950964382 | BB155: 0.0007950964382 | BC155: 0.0007950964382 | BD155: 0.0007950964382 | BE155: 0.0007950964382 | BF155: 0.0007950964382 | BG155: 0.0007950964382 | BH155: 0.0007950964382 | BI155: 0.0007950964382 | BJ155: 0.0007950964382 | BK155: 0.0007950964382 | BL155: 0.0007950964382 | BM155: 0.0007950964382 | BN155: 0.0007950964382 | BO155: 0.0007950964382 | BP155: 0.0007950964382 | BQ155: 0.0007950964382 | BR155: 0.0007950964382 | BS155: 0.0007950964382 | BT155: 0.0007950964382 | BU155: 0.0007950964382 | BV155: 0.0007950964382 | BW155: 0.0007950964382 | BX155: 0.0007950964382 | BY155: 0.0007950964382 | BZ155: 0.0007950964382 | CA155: 0.0007950964382 | CB155: 0.0007950964382 | CC155: 0.0007950964382
A156: 3 | B156: 1946 | C156: 62 | D156: 60 | E156: 54 | F156: 0.8962 | G156: 46392.08018 | H156: 0 | I156: 0 | J156: 0 | K156: 46392.08018 | L156: 5.906823105 | M156: 28223051.95 | N156: 6592333.879 | O156: 0 | P156: 34815385.83 | Q156: 11.0820815 | R156: 0.5330066472 | S156: 1 | T156: 0 | U156: 2 | V156: 0 | W156: 0 | X156: 3 | Y156: 0 | Z156: 0 | AA156: 0 | AB156: 1 | AC156: 10 | AD156: -0.0568 | AE156: 1.02 | AF156: -0.2446 | AG156: 2.94 | AH156: -0.206 | AI156: 4.35 | AJ156: -0.153 | AK156: 58 | AL156: 59 | AM156: 63 | AN156: 66 | AO156: 65 | AP156: 0 | AQ156: 61 | AR156: 57 | AS156: 3 | AT156: 3 | AU156: 3 | AV156: 3 | AW156: 3 | AX156: 0 | AY156: 3 | AZ156: 3 | BA156: 0.0007950964382 | BB156: 0.0007950964382 | BC156: 0.0007950964382 | BD156: 0.0007950964382 | BE156: 0.0007950964382 | BF156: 0.0007950964382 | BG156: 0.0007950964382 | BH156: 0.0007950964382 | BI156: 0.0007950964382 | BJ156: 0.0007950964382 | BK156: 0.0007950964382 | BL156: 0.0007950964382 | BM156: 0.0007950964382 | BN156: 0.0007950964382 | BO156: 0.0007950964382 | BP156: 0.0007950964382 | BQ156: 0.0007950964382 | BR156: 0.0007950964382 | BS156: 0.0007950964382 | BT156: 0.0007950964382 | BU156: 0.0007950964382 | BV156: 0.0007950964382 | BW156: 0.0007950964382 | BX156: 0.0007950964382 | BY156: 0.0007950964382 | BZ156: 0.0007950964382 | CA156: 0.0007950964382 | CB156: 0.0007950964382 | CC156: 0.0007950964382
A157: 3 | B157: 1945 | C157: 63 | D157: 60 | E157: 54 | F157: 0.8962 | G157: 2982.540472 | H157: 0 | I157: 0 | J157: 0 | K157: 2982.540472 | L157: 0.3797488473 | M157: 28223051.95 | N157: 6592333.879 | O157: 0 | P157: 34815385.83 | Q157: 11.0820815 | R157: 0.03426692425 | S157: 1 | T157: 0 | U157: 2 | V157: 0 | W157: 0 | X157: 3 | Y157: 0 | Z157: 0 | AA157: 0 | AB157: 1 | AC157: 10 | AD157: -0.0568 | AE157: 1.02 | AF157: -0.2446 | AG157: 2.94 | AH157: -0.206 | AI157: 4.35 | AJ157: -0.153 | AK157: 59 | AL157: 60 | AM157: 64 | AN157: 67 | AO157: 66 | AP157: 65 | AQ157: 62 | AR157: 58 | AS157: 3 | AT157: 3 | AU157: 3 | AV157: 3 | AW157: 3 | AX157: 3 | AY157: 3 | AZ157: 3 | BA157: 0.0007950964382 | BB157: 0.0007950964382 | BC157: 0.0007950964382 | BD157: 0.0007950964382 | BE157: 0.0007950964382 | BF157: 0.0007950964382 | BG157: 0.0007950964382 | BH157: 0.0007950964382 | BI157: 0.0007950964382 | BJ157: 0.0007950964382 | BK157: 0.0007950964382 | BL157: 0.0007950964382 | BM157: 0.0007950964382 | BN157: 0.0007950964382 | BO157: 0.0007950964382 | BP157: 0.0007950964382 | BQ157: 0.0007950964382 | BR157: 0.0007950964382 | BS157: 0.0007950964382 | BT157: 0.0007950964382 | BU157: 0.0007950964382 | BV157: 0.0007950964382 | BW157: 0.0007950964382 | BX157: 0.0007950964382 | BY157: 0.0007950964382 | BZ157: 0.0007950964382 | CA157: 0.0007950964382 | CB157: 0.0007950964382 | CC157: 0.0007950964382
A158: 3 | B158: 1916 | C158: 64 | D158: 60 | E158: 54 | F158: 0.8962 | G158: 2541.066448 | H158: 0 | I158: 0 | J158: 0 | K158: 2541.066448 | L158: 0.3235386287 | M158: 28223051.95 | N158: 6592333.879 | O158: 0 | P158: 34815385.83 | Q158: 11.0820815 | R158: 0.02919475269 | S158: 1 | T158: 0 | U158: 2 | V158: 0 | W158: 0 | X158: 3 | Y158: 0 | Z158: 0 | AA158: 0 | AB158: 1 | AC158: 10 | AD158: -0.0568 | AE158: 1.02 | AF158: -0.2446 | AG158: 2.94 | AH158: -0.206 | AI158: 4.35 | AJ158: -0.153 | AK158: 60 | AL158: 0 | AM158: 0 | AN158: 0 | AO158: 67 | AP158: 66 | AQ158: 63 | AR158: 59 | AS158: 3 | AT158: 0 | AU158: 0 | AV158: 0 | AW158: 3 | AX158: 3 | AY158: 3 | AZ158: 3 | BA158: 0.0007950964382 | BB158: 0.0007950964382 | BC158: 0.0007950964382 | BD158: 0.0007950964382 | BE158: 0.0007950964382 | BF158: 0.0007950964382 | BG158: 0.0007950964382 | BH158: 0.0007950964382 | BI158: 0.0007950964382 | BJ158: 0.0007950964382 | BK158: 0.0007950964382 | BL158: 0.0007950964382 | BM158: 0.0007950964382 | BN158: 0.0007950964382 | BO158: 0.0007950964382 | BP158: 0.0007950964382 | BQ158: 0.0007950964382 | BR158: 0.0007950964382 | BS158: 0.0007950964382 | BT158: 0.0007950964382 | BU158: 0.0007950964382 | BV158: 0.0007950964382 | BW158: 0.0007950964382 | BX158: 0.0007950964382 | BY158: 0.0007950964382 | BZ158: 0.0007950964382 | CA158: 0.0007950964382 | CB158: 0.0007950964382 | CC158: 0.0007950964382
A159: 3 | B159: 1943 | C159: 65 | D159: 60 | E159: 54 | F159: 0.8962 | G159: 1716.152544 | H159: 0 | I159: 0 | J159: 0 | K159: 1716.152544 | L159: 0.2185073284 | M159: 28223051.95 | N159: 6592333.879 | O159: 0 | P159: 34815385.83 | Q159: 11.0820815 | R159: =L159/Q159 -> 0.01971717392 | S159: 1 | T159: 0 | U159: 2 | V159: 0 | W159: 0 | X159: 3 | Y159: 0 | Z159: 0 | AA159: 0 | AB159: 1 | AC159: 10 | AD159: -0.0568 | AE159: 1.02 | AF159: -0.2446 | AG159: 2.94 | AH159: -0.206 | AI159: 4.35 | AJ159: -0.153 | AK159: 62 | AL159: 63 | AM159: 66 | AN159: 0 | AO159: 0 | AP159: 0 | AQ159: 0 | AR159: 61 | AS159: 3 | AT159: 3 | AU159: 3 | AV159: 0 | AW159: 0 | AX159: 0 | AY159: 0 | AZ159: 3 | BA159: 0.0007950964382 | BB159: 0.0007950964382 | BC159: 0.0007950964382 | BD159: 0.0007950964382 | BE159: 0.0007950964382 | BF159: 0.0007950964382 | BG159: 0.0007950964382 | BH159: 0.0007950964382 | BI159: 0.0007950964382 | BJ159: 0.0007950964382 | BK159: 0.0007950964382 | BL159: 0.0007950964382 | BM159: 0.0007950964382 | BN159: 0.0007950964382 | BO159: 0.0007950964382 | BP159: 0.0007950964382 | BQ159: 0.0007950964382 | BR159: 0.0007950964382 | BS159: 0.0007950964382 | BT159: 0.0007950964382 | BU159: 0.0007950964382 | BV159: 0.0007950964382 | BW159: 0.0007950964382 | BX159: 0.0007950964382 | BY159: 0.0007950964382 | BZ159: 0.0007950964382 | CA159: 0.0007950964382 | CB159: 0.0007950964382 | CC159: 0.0007950964382
A160: 3 | B160: 1942 | C160: 66 | D160: 60 | E160: 54 | F160: 0.8962 | G160: 2507.90408 | H160: 0 | I160: 0 | J160: 0 | K160: 2507.90408 | L160: 0.3193162649 | M160: 28223051.95 | N160: 6592333.879 | O160: 0 | P160: 34815385.83 | Q160: 11.0820815 | R160: 0.0288137445 | S160: 1 | T160: 0 | U160: 2 | V160: 0 | W160: 0 | X160: 3 | Y160: 0 | Z160: 0 | AA160: 0 | AB160: 1 | AC160: 10 | AD160: -0.0568 | AE160: 1.02 | AF160: -0.2446 | AG160: 2.94 | AH160: -0.206 | AI160: 4.35 | AJ160: -0.153 | AK160: 63 | AL160: 64 | AM160: 67 | AN160: 68 | AO160: 0 | AP160: 0 | AQ160: 65 | AR160: 62 | AS160: 3 | AT160: 3 | AU160: 3 | AV160: 3 | AW160: 0 | AX160: 0 | AY160: 3 | AZ160: 3 | BA160: 0.0007950964382 | BB160: 0.0007950964382 | BC160: 0.0007950964382 | BD160: 0.0007950964382 | BE160: 0.0007950964382 | BF160: 0.0007950964382 | BG160: 0.0007950964382 | BH160: 0.0007950964382 | BI160: 0.0007950964382 | BJ160: 0.0007950964382 | BK160: 0.0007950964382 | BL160: 0.0007950964382 | BM160: 0.0007950964382 | BN160: 0.0007950964382 | BO160: 0.0007950964382 | BP160: 0.0007950964382 | BQ160: 0.0007950964382 | BR160: 0.0007950964382 | BS160: 0.0007950964382 | BT160: 0.0007950964382 | BU160: 0.0007950964382 | BV160: 0.0007950964382 | BW160: 0.0007950964382 | BX160: 0.0007950964382 | BY160: 0.0007950964382 | BZ160: 0.0007950964382 | CA160: 0.0007950964382 | CB160: 0.0007950964382 | CC160: 0.0007950964382
A161: 3 | B161: 1912 | C161: 67 | D161: 60 | E161: 54 | F161: 0.8962 | G161: 2415.671244 | H161: 0 | I161: 0 | J161: 0 | K161: 2415.671244 | L161: 0.3075728155 | M161: 28223051.95 | N161: 6592333.879 | O161: 0 | P161: 34815385.83 | Q161: 11.0820815 | R161: 0.02775406547 | S161: 1 | T161: 0 | U161: 2 | V161: 0 | W161: 0 | X161: 3 | Y161: 0 | Z161: 0 | AA161: 0 | AB161: 1 | AC161: 10 | AD161: -0.0568 | AE161: 1.02 | AF161: -0.2446 | AG161: 2.94 | AH161: -0.206 | AI161: 4.35 | AJ161: -0.153 | AK161: 64 | AL161: 0 | AM161: 0 | AN161: 69 | AO161: 68 | AP161: 0 | AQ161: 66 | AR161: 63 | AS161: 3 | AT161: 0 | AU161: 0 | AV161: 3 | AW161: 3 | AX161: 0 | AY161: 3 | AZ161: 3 | BA161: 0.0007950964382 | BB161: 0.0007950964382 | BC161: 0.0007950964382 | BD161: 0.0007950964382 | BE161: 0.0007950964382 | BF161: 0.0007950964382 | BG161: 0.0007950964382 | BH161: 0.0007950964382 | BI161: 0.0007950964382 | BJ161: 0.0007950964382 | BK161: 0.0007950964382 | BL161: 0.0007950964382 | BM161: 0.0007950964382 | BN161: 0.0007950964382 | BO161: 0.0007950964382 | BP161: 0.0007950964382 | BQ161: 0.0007950964382 | BR161: 0.0007950964382 | BS161: 0.0007950964382 | BT161: 0.0007950964382 | BU161: 0.0007950964382 | BV161: 0.0007950964382 | BW161: 0.0007950964382 | BX161: 0.0007950964382 | BY161: 0.0007950964382 | BZ161: 0.0007950964382 | CA161: 0.0007950964382 | CB161: 0.0007950964382 | CC161: 0.0007950964382
A162: 3 | B162: 1908 | C162: 68 | D162: 60 | E162: 54 | F162: 0.8962 | G162: 9644.031144 | H162: 0 | I162: 0 | J162: 0 | K162: 9644.031144 | L162: 1.227916182 | M162: 28223051.95 | N162: 6592333.879 | O162: 0 | P162: 34815385.83 | Q162: 11.0820815 | R162: 0.1108019448 | S162: 1 | T162: 0 | U162: 2 | V162: 0 | W162: 0 | X162: 3 | Y162: 0 | Z162: 0 | AA162: 0 | AB162: 1 | AC162: 10 | AD162: -0.0568 | AE162: 1.02 | AF162: -0.2446 | AG162: 2.94 | AH162: -0.206 | AI162: 4.35 | AJ162: -0.153 | AK162: 67 | AL162: 0 | AM162: 69 | AN162: 71 | AO162: 0 | AP162: 0 | AQ162: 0 | AR162: 66 | AS162: 3 | AT162: 0 | AU162: 3 | AV162: 3 | AW162: 0 | AX162: 0 | AY162: 0 | AZ162: 3 | BA162: 0.0007950964382 | BB162: 0.0007950964382 | BC162: 0.0007950964382 | BD162: 0.0007950964382 | BE162: 0.0007950964382 | BF162: 0.0007950964382 | BG162: 0.0007950964382 | BH162: 0.0007950964382 | BI162: 0.0007950964382 | BJ162: 0.0007950964382 | BK162: 0.0007950964382 | BL162: 0.0007950964382 | BM162: 0.0007950964382 | BN162: 0.0007950964382 | BO162: 0.0007950964382 | BP162: 0.0007950964382 | BQ162: 0.0007950964382 | BR162: 0.0007950964382 | BS162: 0.0007950964382 | BT162: 0.0007950964382 | BU162: 0.0007950964382 | BV162: 0.0007950964382 | BW162: 0.0007950964382 | BX162: 0.0007950964382 | BY162: 0.0007950964382 | BZ162: 0.0007950964382 | CA162: 0.0007950964382 | CB162: 0.0007950964382 | CC162: 0.0007950964382
A163: 3 | B163: 1907 | C163: 69 | D163: 60 | E163: 54 | F163: 0.8962 | G163: 237647.747 | H163: 0 | I163: 0 | J163: 0 | K163: 237647.747 | L163: 30.25825092 | M163: 28223051.95 | N163: 6592333.879 | O163: 0 | P163: 34815385.83 | Q163: 11.0820815 | R163: 2.730376141 | S163: 0 | T163: 1 | U163: 2 | V163: 2 | W163: 0 | X163: 3 | Y163: 0 | Z163: 0 | AA163: 0 | AB163: 2 | AC163: 10 | AD163: -0.1034 | AE163: 1.035 | AF163: -0.4288 | AG163: 1.52 | AH163: -0.076 | AI163: 4.35 | AJ163: -0.153 | AK163: 0 | AL163: 0 | AM163: 70 | AN163: 72 | AO163: 71 | AP163: 0 | AQ163: 68 | AR163: 67 | AS163: 0 | AT163: 0 | AU163: 3 | AV163: 3 | AW163: 3 | AX163: 0 | AY163: 3 | AZ163: 3 | BA163: 0.0007950964382 | BB163: 0.0007950964382 | BC163: 0.0007950964382 | BD163: 0.0007950964382 | BE163: 0.0007950964382 | BF163: 0.0007950964382 | BG163: 0.0007950964382 | BH163: 0.0007950964382 | BI163: 0.0007950964382 | BJ163: 0.0007950964382 | BK163: 0.0007950964382 | BL163: 0.0007950964382 | BM163: 0.0007950964382 | BN163: 0.0007950964382 | BO163: 0.0007950964382 | BP163: 0.0007950964382 | BQ163: 0.0007950964382 | BR163: 0.0007950964382 | BS163: 0.0007950964382 | BT163: 0.0007950964382 | BU163: 0.0007950964382 | BV163: 0.0007950964382 | BW163: 0.0007950964382 | BX163: 0.0007950964382 | BY163: 0.0007950964382 | BZ163: 0.0007950964382 | CA163: 0.0007950964382 | CB163: 0.0007950964382 | CC163: 0.0007950964382
A164: 3 | B164: 1906 | C164: 70 | D164: 60 | E164: 54 | F164: 0.8962 | G164: 242986.8883 | H164: 0 | I164: 0 | J164: 0 | K164: 242986.8883 | L164: 30.9380515 | M164: 28223051.95 | N164: 6592333.879 | O164: 0 | P164: 34815385.83 | Q164: 11.0820815 | R164: 2.79171846 | S164: 0 | T164: 1 | U164: 2 | V164: 2 | W164: 0 | X164: 3 | Y164: 0 | Z164: 0 | AA164: 0 | AB164: 2 | AC164: 10 | AD164: -0.1034 | AE164: 1.035 | AF164: -0.4288 | AG164: 1.52 | AH164: -0.076 | AI164: 4.35 | AJ164: -0.153 | AK164: 0 | AL164: 0 | AM164: 0 | AN164: 73 | AO164: 72 | AP164: 71 | AQ164: 69 | AR164: 0 | AS164: 0 | AT164: 0 | AU164: 0 | AV164: 3 | AW164: 3 | AX164: 3 | AY164: 3 | AZ164: 0 | BA164: 0.0007950964382 | BB164: 0.0007950964382 | BC164: 0.0007950964382 | BD164: 0.0007950964382 | BE164: 0.0007950964382 | BF164: 0.0007950964382 | BG164: 0.0007950964382 | BH164: 0.0007950964382 | BI164: 0.0007950964382 | BJ164: 0.0007950964382 | BK164: 0.0007950964382 | BL164: 0.0007950964382 | BM164: 0.0007950964382 | BN164: 0.0007950964382 | BO164: 0.0007950964382 | BP164: 0.0007950964382 | BQ164: 0.0007950964382 | BR164: 0.0007950964382 | BS164: 0.0007950964382 | BT164: 0.0007950964382 | BU164: 0.0007950964382 | BV164: 0.0007950964382 | BW164: 0.0007950964382 | BX164: 0.0007950964382 | BY164: 0.0007950964382 | BZ164: 0.0007950964382 | CA164: 0.0007950964382 | CB164: 0.0007950964382 | CC164: 0.0007950964382
A165: 3 | B165: 2271 | C165: 71 | D165: 67 | E165: 62 | F165: 0.9343 | G165: 241282.1353 | H165: 0 | I165: 0 | J165: 0 | K165: 241282.1353 | L165: 30.72099561 | M165: 31029345.84 | N165: 1361315.627 | O165: 0 | P165: 32390661.46 | Q165: 10.31026776 | R165: 2.979650608 | S165: 0 | T165: 1 | U165: 2 | V165: 2 | W165: 0 | X165: 3 | Y165: 0 | Z165: 0 | AA165: 0 | AB165: 2 | AC165: 10 | AD165: -0.1034 | AE165: 1.035 | AF165: -0.4288 | AG165: 1.52 | AH165: -0.076 | AI165: 4.35 | AJ165: -0.153 | AK165: 69 | AL165: 70 | AM165: 72 | AN165: 74 | AO165: 0 | AP165: 0 | AQ165: 0 | AR165: 68 | AS165: 3 | AT165: 3 | AU165: 3 | AV165: 3 | AW165: 0 | AX165: 0 | AY165: 0 | AZ165: 3 | BA165: 0.0007950964382 | BB165: 0.0007950964382 | BC165: 0.0007950964382 | BD165: 0.0007950964382 | BE165: 0.0007950964382 | BF165: 0.0007950964382 | BG165: 0.0007950964382 | BH165: 0.0007950964382 | BI165: 0.0007950964382 | BJ165: 0.0007950964382 | BK165: 0.0007950964382 | BL165: 0.0007950964382 | BM165: 0.0007950964382 | BN165: 0.0007950964382 | BO165: 0.0007950964382 | BP165: 0.0007950964382 | BQ165: 0.0007950964382 | BR165: 0.0007950964382 | BS165: 0.0007950964382 | BT165: 0.0007950964382 | BU165: 0.0007950964382 | BV165: 0.0007950964382 | BW165: 0.0007950964382 | BX165: 0.0007950964382 | BY165: 0.0007950964382 | BZ165: 0.0007950964382 | CA165: 0.0007950964382 | CB165: 0.0007950964382 | CC165: 0.0007950964382
A166: 3 | B166: 2270 | C166: 72 | D166: 67 | E166: 62 | F166: 0.9343 | G166: 252259.9154 | H166: 0 | I166: 0 | J166: 0 | K166: 252259.9154 | L166: 32.11872999 | M166: 31029345.84 | N166: 1361315.627 | O166: 0 | P166: 32390661.46 | Q166: 10.31026776 | R166: 3.115217832 | S166: 0 | T166: 1 | U166: 2 | V166: 2 | W166: 0 | X166: 3 | Y166: 0 | Z166: 0 | AA166: 0 | AB166: 2 | AC166: 10 | AD166: -0.1034 | AE166: 1.035 | AF166: -0.4288 | AG166: 1.52 | AH166: -0.076 | AI166: 4.35 | AJ166: -0.153 | AK166: 70 | AL166: 0 | AM166: 73 | AN166: 75 | AO166: 74 | AP166: 0 | AQ166: 71 | AR166: 69 | AS166: 3 | AT166: 0 | AU166: 3 | AV166: 3 | AW166: 3 | AX166: 0 | AY166: 3 | AZ166: 3 | BA166: 0.0007950964382 | BB166: 0.0007950964382 | BC166: 0.0007950964382 | BD166: 0.0007950964382 | BE166: 0.0007950964382 | BF166: 0.0007950964382 | BG166: 0.0007950964382 | BH166: 0.0007950964382 | BI166: 0.0007950964382 | BJ166: 0.0007950964382 | BK166: 0.0007950964382 | BL166: 0.0007950964382 | BM166: 0.0007950964382 | BN166: 0.0007950964382 | BO166: 0.0007950964382 | BP166: 0.0007950964382 | BQ166: 0.0007950964382 | BR166: 0.0007950964382 | BS166: 0.0007950964382 | BT166: 0.0007950964382 | BU166: 0.0007950964382 | BV166: 0.0007950964382 | BW166: 0.0007950964382 | BX166: 0.0007950964382 | BY166: 0.0007950964382 | BZ166: 0.0007950964382 | CA166: 0.0007950964382 | CB166: 0.0007950964382 | CC166: 0.0007950964382
A167: 3 | B167: 2269 | C167: 73 | D167: 68 | E167: 63 | F167: 0.9343 | G167: 20067.37794 | H167: 0 | I167: 0 | J167: 0 | K167: 20067.37794 | L167: 2.555057915 | M167: 47772973.62 | N167: 2300103.885 | O167: 0 | P167: 50073077.51 | Q167: 15.9387556 | R167: 0.1603047301 | S167: 1 | T167: 0 | U167: 2 | V167: 0 | W167: 0 | X167: 3 | Y167: 0 | Z167: 0 | AA167: 0 | AB167: 1 | AC167: 10 | AD167: -0.0568 | AE167: 1.02 | AF167: -0.2446 | AG167: 2.94 | AH167: -0.206 | AI167: 4.35 | AJ167: -0.153 | AK167: 0 | AL167: 0 | AM167: 0 | AN167: 0 | AO167: 75 | AP167: 74 | AQ167: 72 | AR167: 70 | AS167: 0 | AT167: 0 | AU167: 0 | AV167: 0 | AW167: 3 | AX167: 3 | AY167: 3 | AZ167: 3 | BA167: 0.0007950964382 | BB167: 0.0007950964382 | BC167: 0.0007950964382 | BD167: 0.0007950964382 | BE167: 0.0007950964382 | BF167: 0.0007950964382 | BG167: 0.0007950964382 | BH167: 0.0007950964382 | BI167: 0.0007950964382 | BJ167: 0.0007950964382 | BK167: 0.0007950964382 | BL167: 0.0007950964382 | BM167: 0.0007950964382 | BN167: 0.0007950964382 | BO167: 0.0007950964382 | BP167: 0.0007950964382 | BQ167: 0.0007950964382 | BR167: 0.0007950964382 | BS167: 0.0007950964382 | BT167: 0.0007950964382 | BU167: 0.0007950964382 | BV167: 0.0007950964382 | BW167: 0.0007950964382 | BX167: 0.0007950964382 | BY167: 0.0007950964382 | BZ167: 0.0007950964382 | CA167: 0.0007950964382 | CB167: 0.0007950964382 | CC167: 0.0007950964382
A168: 3 | B168: 2266 | C168: 74 | D168: 67 | E168: 62 | F168: 0.9343 | G168: 28710.3201 | H168: 0 | I168: 0 | J168: 0 | K168: 28710.3201 | L168: 3.655511489 | M168: 31029345.84 | N168: 1361315.627 | O168: 0 | P168: 32390661.46 | Q168: 10.31026776 | R168: 0.3545505871 | S168: 1 | T168: 0 | U168: 2 | V168: 0 | W168: 0 | X168: 3 | Y168: 0 | Z168: 0 | AA168: 0 | AB168: 1 | AC168: 10 | AD168: -0.0568 | AE168: 1.02 | AF168: -0.2446 | AG168: 2.94 | AH168: -0.206 | AI168: 4.35 | AJ168: -0.153 | AK168: 72 | AL168: 73 | AM168: 75 | AN168: 77 | AO168: 76 | AP168: 0 | AQ168: 0 | AR168: 71 | AS168: 3 | AT168: 3 | AU168: 3 | AV168: 3 | AW168: 3 | AX168: 0 | AY168: 0 | AZ168: 3 | BA168: 0.0007950964382 | BB168: 0.0007950964382 | BC168: 0.0007950964382 | BD168: 0.0007950964382 | BE168: 0.0007950964382 | BF168: 0.0007950964382 | BG168: 0.0007950964382 | BH168: 0.0007950964382 | BI168: 0.0007950964382 | BJ168: 0.0007950964382 | BK168: 0.0007950964382 | BL168: 0.0007950964382 | BM168: 0.0007950964382 | BN168: 0.0007950964382 | BO168: 0.0007950964382 | BP168: 0.0007950964382 | BQ168: 0.0007950964382 | BR168: 0.0007950964382 | BS168: 0.0007950964382 | BT168: 0.0007950964382 | BU168: 0.0007950964382 | BV168: 0.0007950964382 | BW168: 0.0007950964382 | BX168: 0.0007950964382 | BY168: 0.0007950964382 | BZ168: 0.0007950964382 | CA168: 0.0007950964382 | CB168: 0.0007950964382 | CC168: 0.0007950964382
A169: 3 | B169: 2265 | C169: 75 | D169: 68 | E169: 63 | F169: 0.9343 | G169: 28349.67934 | H169: 0 | I169: 0 | J169: 0 | K169: 28349.67934 | L169: 3.609593282 | M169: 47772973.62 | N169: 2300103.885 | O169: 0 | P169: 50073077.51 | Q169: 15.9387556 | R169: 0.2264664427 | S169: 1 | T169: 0 | U169: 2 | V169: 0 | W169: 0 | X169: 3 | Y169: 0 | Z169: 0 | AA169: 0 | AB169: 1 | AC169: 10 | AD169: -0.0568 | AE169: 1.02 | AF169: -0.2446 | AG169: 2.94 | AH169: -0.206 | AI169: 4.35 | AJ169: -0.153 | AK169: 73 | AL169: 0 | AM169: 0 | AN169: 78 | AO169: 77 | AP169: 76 | AQ169: 74 | AR169: 72 | AS169: 3 | AT169: 0 | AU169: 0 | AV169: 3 | AW169: 3 | AX169: 3 | AY169: 3 | AZ169: 3 | BA169: 0.0007950964382 | BB169: 0.0007950964382 | BC169: 0.0007950964382 | BD169: 0.0007950964382 | BE169: 0.0007950964382 | BF169: 0.0007950964382 | BG169: 0.0007950964382 | BH169: 0.0007950964382 | BI169: 0.0007950964382 | BJ169: 0.0007950964382 | BK169: 0.0007950964382 | BL169: 0.0007950964382 | BM169: 0.0007950964382 | BN169: 0.0007950964382 | BO169: 0.0007950964382 | BP169: 0.0007950964382 | BQ169: 0.0007950964382 | BR169: 0.0007950964382 | BS169: 0.0007950964382 | BT169: 0.0007950964382 | BU169: 0.0007950964382 | BV169: 0.0007950964382 | BW169: 0.0007950964382 | BX169: 0.0007950964382 | BY169: 0.0007950964382 | BZ169: 0.0007950964382 | CA169: 0.0007950964382 | CB169: 0.0007950964382 | CC169: 0.0007950964382
A170: 3 | B170: 2263 | C170: 76 | D170: 67 | E170: 62 | F170: 0.9343 | G170: 21094.37502 | H170: 0 | I170: 0 | J170: 0 | K170: 21094.37502 | L170: 2.685819245 | M170: 31029345.84 | N170: 1361315.627 | O170: 0 | P170: 32390661.46 | Q170: 10.31026776 | R170: 0.2604994658 | S170: 1 | T170: 0 | U170: 2 | V170: 0 | W170: 0 | X170: 3 | Y170: 0 | Z170: 0 | AA170: 0 | AB170: 1 | AC170: 10 | AD170: -0.0568 | AE170: 1.02 | AF170: -0.2446 | AG170: 2.94 | AH170: -0.206 | AI170: 4.35 | AJ170: -0.153 | AK170: 74 | AL170: 75 | AM170: 77 | AN170: 79 | AO170: 0 | AP170: 0 | AQ170: 0 | AR170: 0 | AS170: 3 | AT170: 3 | AU170: 3 | AV170: 3 | AW170: 0 | AX170: 0 | AY170: 0 | AZ170: 0 | BA170: 0.0007950964382 | BB170: 0.0007950964382 | BC170: 0.0007950964382 | BD170: 0.0007950964382 | BE170: 0.0007950964382 | BF170: 0.0007950964382 | BG170: 0.0007950964382 | BH170: 0.0007950964382 | BI170: 0.0007950964382 | BJ170: 0.0007950964382 | BK170: 0.0007950964382 | BL170: 0.0007950964382 | BM170: 0.0007950964382 | BN170: 0.0007950964382 | BO170: 0.0007950964382 | BP170: 0.0007950964382 | BQ170: 0.0007950964382 | BR170: 0.0007950964382 | BS170: 0.0007950964382 | BT170: 0.0007950964382 | BU170: 0.0007950964382 | BV170: 0.0007950964382 | BW170: 0.0007950964382 | BX170: 0.0007950964382 | BY170: 0.0007950964382 | BZ170: 0.0007950964382 | CA170: 0.0007950964382 | CB170: 0.0007950964382 | CC170: 0.0007950964382
A171: 3 | B171: 2262 | C171: 77 | D171: 68 | E171: 63 | F171: 0.9343 | G171: 134890.0045 | H171: 0 | I171: 0 | J171: 0 | K171: 134890.0045 | L171: 17.17472879 | M171: 47772973.62 | N171: 2300103.885 | O171: 0 | P171: 50073077.51 | Q171: 15.9387556 | R171: 1.07754515 | S171: 1 | T171: 0 | U171: 2 | V171: 0 | W171: 0 | X171: 3 | Y171: 0 | Z171: 0 | AA171: 0 | AB171: 1 | AC171: 10 | AD171: -0.0568 | AE171: 1.02 | AF171: -0.2446 | AG171: 2.94 | AH171: -0.206 | AI171: 4.35 | AJ171: -0.153 | AK171: 75 | AL171: 0 | AM171: 78 | AN171: 0 | AO171: 79 | AP171: 0 | AQ171: 76 | AR171: 74 | AS171: 3 | AT171: 0 | AU171: 3 | AV171: 0 | AW171: 3 | AX171: 0 | AY171: 3 | AZ171: 3 | BA171: 0.0007950964382 | BB171: 0.0007950964382 | BC171: 0.0007950964382 | BD171: 0.0007950964382 | BE171: 0.0007950964382 | BF171: 0.0007950964382 | BG171: 0.0007950964382 | BH171: 0.0007950964382 | BI171: 0.0007950964382 | BJ171: 0.0007950964382 | BK171: 0.0007950964382 | BL171: 0.0007950964382 | BM171: 0.0007950964382 | BN171: 0.0007950964382 | BO171: 0.0007950964382 | BP171: 0.0007950964382 | BQ171: 0.0007950964382 | BR171: 0.0007950964382 | BS171: 0.0007950964382 | BT171: 0.0007950964382 | BU171: 0.0007950964382 | BV171: 0.0007950964382 | BW171: 0.0007950964382 | BX171: 0.0007950964382 | BY171: 0.0007950964382 | BZ171: 0.0007950964382 | CA171: 0.0007950964382 | CB171: 0.0007950964382 | CC171: 0.0007950964382
A172: 3 | B172: 2261 | C172: 78 | D172: 68 | E172: 63 | F172: 0.9343 | G172: 111407.939 | H172: 0 | I172: 0 | J172: 0 | K172: 111407.939 | L172: 14.18489935 | M172: 47772973.62 | N172: 2300103.885 | O172: 0 | P172: 50073077.51 | Q172: 15.9387556 | R172: 0.8899627865 | S172: 1 | T172: 0 | U172: 2 | V172: 0 | W172: 0 | X172: 3 | Y172: 0 | Z172: 0 | AA172: 0 | AB172: 1 | AC172: 10 | AD172: -0.0568 | AE172: 1.02 | AF172: -0.2446 | AG172: 2.94 | AH172: -0.206 | AI172: 4.35 | AJ172: -0.153 | AK172: 0 | AL172: 0 | AM172: 0 | AN172: 0 | AO172: 0 | AP172: 79 | AQ172: 77 | AR172: 75 | AS172: 0 | AT172: 0 | AU172: 0 | AV172: 0 | AW172: 0 | AX172: 3 | AY172: 3 | AZ172: 3 | BA172: 0.0007950964382 | BB172: 0.0007950964382 | BC172: 0.0007950964382 | BD172: 0.0007950964382 | BE172: 0.0007950964382 | BF172: 0.0007950964382 | BG172: 0.0007950964382 | BH172: 0.0007950964382 | BI172: 0.0007950964382 | BJ172: 0.0007950964382 | BK172: 0.0007950964382 | BL172: 0.0007950964382 | BM172: 0.0007950964382 | BN172: 0.0007950964382 | BO172: 0.0007950964382 | BP172: 0.0007950964382 | BQ172: 0.0007950964382 | BR172: 0.0007950964382 | BS172: 0.0007950964382 | BT172: 0.0007950964382 | BU172: 0.0007950964382 | BV172: 0.0007950964382 | BW172: 0.0007950964382 | BX172: 0.0007950964382 | BY172: 0.0007950964382 | BZ172: 0.0007950964382 | CA172: 0.0007950964382 | CB172: 0.0007950964382 | CC172: 0.0007950964382
A173: 3 | B173: 2259 | C173: 79 | D173: 68 | E173: 63 | F173: 0.9343 | G173: 247442.0452 | H173: 0 | I173: 0 | J173: 0 | K173: 247442.0452 | L173: 31.50529969 | M173: 47772973.62 | N173: 2300103.885 | O173: 0 | P173: 50073077.51 | Q173: 15.9387556 | R173: 1.976647392 | S173: 1 | T173: 0 | U173: 2 | V173: 0 | W173: 0 | X173: 3 | Y173: 0 | Z173: 0 | AA173: 0 | AB173: 1 | AC173: 10 | AD173: -0.0568 | AE173: 1.02 | AF173: -0.2446 | AG173: 2.94 | AH173: -0.206 | AI173: 4.35 | AJ173: -0.153 | AK173: 77 | AL173: 78 | AM173: 0 | AN173: 0 | AO173: 0 | AP173: 0 | AQ173: 0 | AR173: 76 | AS173: 3 | AT173: 3 | AU173: 0 | AV173: 0 | AW173: 0 | AX173: 0 | AY173: 0 | AZ173: 3 | BA173: 0.0007950964382 | BB173: 0.0007950964382 | BC173: 0.0007950964382 | BD173: 0.0007950964382 | BE173: 0.0007950964382 | BF173: 0.0007950964382 | BG173: 0.0007950964382 | BH173: 0.0007950964382 | BI173: 0.0007950964382 | BJ173: 0.0007950964382 | BK173: 0.0007950964382 | BL173: 0.0007950964382 | BM173: 0.0007950964382 | BN173: 0.0007950964382 | BO173: 0.0007950964382 | BP173: 0.0007950964382 | BQ173: 0.0007950964382 | BR173: 0.0007950964382 | BS173: 0.0007950964382 | BT173: 0.0007950964382 | BU173: 0.0007950964382 | BV173: 0.0007950964382 | BW173: 0.0007950964382 | BX173: 0.0007950964382 | BY173: 0.0007950964382 | BZ173: 0.0007950964382 | CA173: 0.0007950964382 | CB173: 0.0007950964382 | CC173: 0.0007950964382
A174: 4 | B174: CAMPECHE | E174: 0 | AB174: 0
A175: 4 | B175: 264 | C175: 1 | D175: 93 | E175: 85 | F175: 0.2054 | G175: 47664.68606 | H175: 0 | I175: 0 | J175: 0 | K175: 47664.68606 | L175: 6.068856317 | M175: 70793966.16 | N175: 1504291.288 | O175: 36965642.43 | P175: 109263899.9 | Q175: 34.77977953 | R175: =L175/Q175 -> 0.1744938122 | S175: 1 | T175: 0 | U175: 2 | V175: 0 | W175: 0 | X175: 3 | Y175: 0 | Z175: 0 | AA175: 0 | AB175: 1 | AC175: 10 | AD175: -0.0568 | AE175: 1.02 | AF175: -0.2446 | AG175: 2.94 | AH175: -0.206 | AI175: 4.35 | AJ175: -0.153 | AK175: 0 | AL175: 18 | AM175: 26 | AN175: 3 | AO175: 2 | AP175: 0 | AQ175: 0 | AR175: 0 | AS175: 0 | AT175: 31 | AU175: 31 | AV175: 4 | AW175: 4 | AX175: 0 | AY175: 0 | AZ175: 0 | BA175: 0.003145231707 | BB175: 0.003145231707 | BC175: 0.003145231707 | BD175: 0.003145231707 | BE175: 0.003145231707 | BF175: 0.003145231707 | BG175: 0.003145231707 | BH175: 0.003145231707 | BI175: 0.003145231707 | BJ175: 0.003145231707 | BK175: 0.003145231707 | BL175: 0.003145231707 | BM175: 0.003145231707 | BN175: 0.003145231707 | BO175: 0.003145231707 | BP175: 0.003145231707 | BQ175: 0.003145231707 | BR175: 0.003145231707 | BS175: 0.003145231707 | BT175: 0.003145231707 | BU175: 0.003145231707 | BV175: 0.003145231707 | BW175: 0.003145231707 | BX175: 0.003145231707 | BY175: 0.003145231707 | BZ175: 0.003145231707 | CA175: 0.003145231707 | CB175: 0.003145231707 | CC175: 0.003145231707
A176: 4 | B176: 262 | C176: 2 | D176: 93 | E176: 85 | F176: 0.2054 | G176: 113129.2731 | H176: 0 | I176: 0 | J176: 0 | K176: 113129.2731 | L176: 14.40406642 | M176: 70793966.16 | N176: 1504291.288 | O176: 36965642.43 | P176: 109263899.9 | Q176: 34.77977953 | R176: 0.414150596 | S176: 1 | T176: 0 | U176: 2 | V176: 0 | W176: 0 | X176: 3 | Y176: 0 | Z176: 0 | AA176: 0 | AB176: 1 | AC176: 10 | AD176: -0.0568 | AE176: 1.02 | AF176: -0.2446 | AG176: 2.94 | AH176: -0.206 | AI176: 4.35 | AJ176: -0.153 | AK176: 1 | AL176: 26 | AM176: 3 | AN176: 5 | AO176: 4 | AP176: 0 | AQ176: 0 | AR176: 0 | AS176: 4 | AT176: 31 | AU176: 4 | AV176: 4 | AW176: 4 | AX176: 0 | AY176: 0 | AZ176: 0 | BA176: 0.003145231707 | BB176: 0.003145231707 | BC176: 0.003145231707 | BD176: 0.003145231707 | BE176: 0.003145231707 | BF176: 0.003145231707 | BG176: 0.003145231707 | BH176: 0.003145231707 | BI176: 0.003145231707 | BJ176: 0.003145231707 | BK176: 0.003145231707 | BL176: 0.003145231707 | BM176: 0.003145231707 | BN176: 0.003145231707 | BO176: 0.003145231707 | BP176: 0.003145231707 | BQ176: 0.003145231707 | BR176: 0.003145231707 | BS176: 0.003145231707 | BT176: 0.003145231707 | BU176: 0.003145231707 | BV176: 0.003145231707 | BW176: 0.003145231707 | BX176: 0.003145231707 | BY176: 0.003145231707 | BZ176: 0.003145231707 | CA176: 0.003145231707 | CB176: 0.003145231707 | CC176: 0.003145231707
A177: 4 | B177: 261 | C177: 3 | D177: 93 | E177: 85 | F177: 0.2054 | G177: 157994.8481 | H177: 0 | I177: 0 | J177: 0 | K177: 157994.8481 | L177: 20.11652884 | M177: 70793966.16 | N177: 1504291.288 | O177: 36965642.43 | P177: 109263899.9 | Q177: 34.77977953 | R177: 0.5783972501 | S177: 1 | T177: 0 | U177: 2 | V177: 0 | W177: 0 | X177: 3 | Y177: 0 | Z177: 0 | AA177: 0 | AB177: 1 | AC177: 10 | AD177: -0.0568 | AE177: 1.02 | AF177: -0.2446 | AG177: 2.94 | AH177: -0.206 | AI177: 4.35 | AJ177: -0.153 | AK177: 26 | AL177: 27 | AM177: 34 | AN177: 6 | AO177: 5 | AP177: 4 | AQ177: 2 | AR177: 1 | AS177: 31 | AT177: 31 | AU177: 31 | AV177: 4 | AW177: 4 | AX177: 4 | AY177: 4 | AZ177: 4 | BA177: 0.003145231707 | BB177: 0.003145231707 | BC177: 0.003145231707 | BD177: 0.003145231707 | BE177: 0.003145231707 | BF177: 0.003145231707 | BG177: 0.003145231707 | BH177: 0.003145231707 | BI177: 0.003145231707 | BJ177: 0.003145231707 | BK177: 0.003145231707 | BL177: 0.003145231707 | BM177: 0.003145231707 | BN177: 0.003145231707 | BO177: 0.003145231707 | BP177: 0.003145231707 | BQ177: 0.003145231707 | BR177: 0.003145231707 | BS177: 0.003145231707 | BT177: 0.003145231707 | BU177: 0.003145231707 | BV177: 0.003145231707 | BW177: 0.003145231707 | BX177: 0.003145231707 | BY177: 0.003145231707 | BZ177: 0.003145231707 | CA177: 0.003145231707 | CB177: 0.003145231707 | CC177: 0.003145231707
A178: 4 | B178: 260 | C178: 4 | D178: 93 | E178: 85 | F178: 0.2054 | G178: 305817.1398 | H178: 0 | I178: 0 | J178: 0 | K178: 305817.1398 | L178: 38.93784758 | M178: 70793966.16 | N178: 1504291.288 | O178: 36965642.43 | P178: 109263899.9 | Q178: 34.77977953 | R178: 1.119554181 | S178: 1 | T178: 0 | U178: 2 | V178: 0 | W178: 0 | X178: 3 | Y178: 0 | Z178: 0 | AA178: 0 | AB178: 1 | AC178: 10 | AD178: -0.0568 | AE178: 1.02 | AF178: -0.2446 | AG178: 2.94 | AH178: -0.206 | AI178: 4.35 | AJ178: -0.153 | AK178: 2 | AL178: 3 | AM178: 5 | AN178: 8 | AO178: 7 | AP178: 0 | AQ178: 0 | AR178: 0 | AS178: 4 | AT178: 4 | AU178: 4 | AV178: 4 | AW178: 4 | AX178: 0 | AY178: 0 | AZ178: 0 | BA178: 0.003145231707 | BB178: 0.003145231707 | BC178: 0.003145231707 | BD178: 0.003145231707 | BE178: 0.003145231707 | BF178: 0.003145231707 | BG178: 0.003145231707 | BH178: 0.003145231707 | BI178: 0.003145231707 | BJ178: 0.003145231707 | BK178: 0.003145231707 | BL178: 0.003145231707 | BM178: 0.003145231707 | BN178: 0.003145231707 | BO178: 0.003145231707 | BP178: 0.003145231707 | BQ178: 0.003145231707 | BR178: 0.003145231707 | BS178: 0.003145231707 | BT178: 0.003145231707 | BU178: 0.003145231707 | BV178: 0.003145231707 | BW178: 0.003145231707 | BX178: 0.003145231707 | BY178: 0.003145231707 | BZ178: 0.003145231707 | CA178: 0.003145231707 | CB178: 0.003145231707 | CC178: 0.003145231707
A179: 4 | B179: 259 | C179: 5 | D179: 93 | E179: 85 | F179: 0.2054 | G179: 363309.2863 | H179: 0 | I179: 0 | J179: 0 | K179: 363309.2863 | L179: 46.25797503 | M179: 70793966.16 | N179: 1504291.288 | O179: 36965642.43 | P179: 109263899.9 | Q179: 34.77977953 | R179: 1.330024964 | S179: 1 | T179: 0 | U179: 2 | V179: 0 | W179: 0 | X179: 3 | Y179: 0 | Z179: 0 | AA179: 0 | AB179: 1 | AC179: 10 | AD179: -0.0568 | AE179: 1.02 | AF179: -0.2446 | AG179: 2.94 | AH179: -0.206 | AI179: 4.35 | AJ179: -0.153 | AK179: 3 | AL179: 34 | AM179: 6 | AN179: 9 | AO179: 8 | AP179: 7 | AQ179: 4 | AR179: 2 | AS179: 4 | AT179: 4 | AU179: 31 | AV179: 4 | AW179: 4 | AX179: 4 | AY179: 4 | AZ179: 4 | BA179: 0.003145231707 | BB179: 0.003145231707 | BC179: 0.003145231707 | BD179: 0.003145231707 | BE179: 0.003145231707 | BF179: 0.003145231707 | BG179: 0.003145231707 | BH179: 0.003145231707 | BI179: 0.003145231707 | BJ179: 0.003145231707 | BK179: 0.003145231707 | BL179: 0.003145231707 | BM179: 0.003145231707 | BN179: 0.003145231707 | BO179: 0.003145231707 | BP179: 0.003145231707 | BQ179: 0.003145231707 | BR179: 0.003145231707 | BS179: 0.003145231707 | BT179: 0.003145231707 | BU179: 0.003145231707 | BV179: 0.003145231707 | BW179: 0.003145231707 | BX179: 0.003145231707 | BY179: 0.003145231707 | BZ179: 0.003145231707 | CA179: 0.003145231707 | CB179: 0.003145231707 | CC179: 0.003145231707
A180: 4 | B180: 13 | C180: 6 | D180: 94 | E180: 86 | F180: 0.072 | G180: 223158.9012 | H180: 0 | I180: 0 | J180: 0 | K180: 223158.9012 | L180: 28.41347378 | M180: 31943411.59 | N180: 2088525.114 | O180: 41297985.65 | P180: 75329922.35 | Q180: 23.97825901 | R180: 1.184968173 | S180: 1 | T180: 0 | U180: 2 | V180: 0 | W180: 0 | X180: 3 | Y180: 0 | Z180: 0 | AA180: 0 | AB180: 1 | AC180: 10 | AD180: -0.0568 | AE180: 1.02 | AF180: -0.2446 | AG180: 2.94 | AH180: -0.206 | AI180: 4.35 | AJ180: -0.153 | AK180: 34 | AL180: 35 | AM180: 40 | AN180: 43 | AO180: 9 | AP180: 8 | AQ180: 5 | AR180: 3 | AS180: 31 | AT180: 31 | AU180: 31 | AV180: 4 | AW180: 4 | AX180: 4 | AY180: 4 | AZ180: 4 | BA180: 0.003145231707 | BB180: 0.003145231707 | BC180: 0.003145231707 | BD180: 0.003145231707 | BE180: 0.003145231707 | BF180: 0.003145231707 | BG180: 0.003145231707 | BH180: 0.003145231707 | BI180: 0.003145231707 | BJ180: 0.003145231707 | BK180: 0.003145231707 | BL180: 0.003145231707 | BM180: 0.003145231707 | BN180: 0.003145231707 | BO180: 0.003145231707 | BP180: 0.003145231707 | BQ180: 0.003145231707 | BR180: 0.003145231707 | BS180: 0.003145231707 | BT180: 0.003145231707 | BU180: 0.003145231707 | BV180: 0.003145231707 | BW180: 0.003145231707 | BX180: 0.003145231707 | BY180: 0.003145231707 | BZ180: 0.003145231707 | CA180: 0.003145231707 | CB180: 0.003145231707 | CC180: 0.003145231707
A181: 4 | B181: 224 | C181: 7 | D181: 101 | E181: 93 | F181: 0.2435 | G181: 302998.3385 | H181: 0 | I181: 0 | J181: 0 | K181: 302998.3385 | L181: 38.57894665 | M181: 70349283.67 | N181: 448314.4625 | O181: 39559782.83 | P181: 110357381 | Q181: 35.12784538 | R181: 1.098244035 | S181: 1 | T181: 0 | U181: 2 | V181: 0 | W181: 0 | X181: 3 | Y181: 0 | Z181: 0 | AA181: 0 | AB181: 1 | AC181: 10 | AD181: -0.0568 | AE181: 1.02 | AF181: -0.2446 | AG181: 2.94 | AH181: -0.206 | AI181: 4.35 | AJ181: -0.153 | AK181: 4 | AL181: 5 | AM181: 8 | AN181: 11 | AO181: 10 | AP181: 0 | AQ181: 0 | AR181: 0 | AS181: 4 | AT181: 4 | AU181: 4 | AV181: 4 | AW181: 4 | AX181: 0 | AY181: 0 | AZ181: 0 | BA181: 0.003145231707 | BB181: 0.003145231707 | BC181: 0.003145231707 | BD181: 0.003145231707 | BE181: 0.003145231707 | BF181: 0.003145231707 | BG181: 0.003145231707 | BH181: 0.003145231707 | BI181: 0.003145231707 | BJ181: 0.003145231707 | BK181: 0.003145231707 | BL181: 0.003145231707 | BM181: 0.003145231707 | BN181: 0.003145231707 | BO181: 0.003145231707 | BP181: 0.003145231707 | BQ181: 0.003145231707 | BR181: 0.003145231707 | BS181: 0.003145231707 | BT181: 0.003145231707 | BU181: 0.003145231707 | BV181: 0.003145231707 | BW181: 0.003145231707 | BX181: 0.003145231707 | BY181: 0.003145231707 | BZ181: 0.003145231707 | CA181: 0.003145231707 | CB181: 0.003145231707 | CC181: 0.003145231707
A182: 4 | B182: 223 | C182: 8 | D182: 101 | E182: 93 | F182: 0.2435 | G182: 332549.1173 | H182: 0 | I182: 0 | J182: 0 | K182: 332549.1173 | L182: 42.34146868 | M182: 70349283.67 | N182: 448314.4625 | O182: 39559782.83 | P182: 110357381 | Q182: 35.12784538 | R182: 1.205353423 | S182: 1 | T182: 0 | U182: 2 | V182: 0 | W182: 0 | X182: 3 | Y182: 0 | Z182: 0 | AA182: 0 | AB182: 1 | AC182: 10 | AD182: -0.0568 | AE182: 1.02 | AF182: -0.2446 | AG182: 2.94 | AH182: -0.206 | AI182: 4.35 | AJ182: -0.153 | AK182: 5 | AL182: 6 | AM182: 9 | AN182: 12 | AO182: 11 | AP182: 10 | AQ182: 7 | AR182: 4 | AS182: 4 | AT182: 4 | AU182: 4 | AV182: 4 | AW182: 4 | AX182: 4 | AY182: 4 | AZ182: 4 | BA182: 0.003145231707 | BB182: 0.003145231707 | BC182: 0.003145231707 | BD182: 0.003145231707 | BE182: 0.003145231707 | BF182: 0.003145231707 | BG182: 0.003145231707 | BH182: 0.003145231707 | BI182: 0.003145231707 | BJ182: 0.003145231707 | BK182: 0.003145231707 | BL182: 0.003145231707 | BM182: 0.003145231707 | BN182: 0.003145231707 | BO182: 0.003145231707 | BP182: 0.003145231707 | BQ182: 0.003145231707 | BR182: 0.003145231707 | BS182: 0.003145231707 | BT182: 0.003145231707 | BU182: 0.003145231707 | BV182: 0.003145231707 | BW182: 0.003145231707 | BX182: 0.003145231707 | BY182: 0.003145231707 | BZ182: 0.003145231707 | CA182: 0.003145231707 | CB182: 0.003145231707 | CC182: 0.003145231707
A183: 4 | B183: 137 | C183: 9 | D183: 102 | E183: 94 | F183: 0.1795 | G183: 80148.26184 | H183: 0 | I183: 0 | J183: 0 | K183: 80148.26184 | L183: 10.20479364 | M183: 32067320.7 | N183: 54135.66276 | O183: 41899022.22 | P183: 74020478.59 | Q183: 23.56145011 | R183: 0.4331139888 | S183: 1 | T183: 0 | U183: 2 | V183: 0 | W183: 0 | X183: 3 | Y183: 0 | Z183: 0 | AA183: 0 | AB183: 1 | AC183: 10 | AD183: -0.0568 | AE183: 1.02 | AF183: -0.2446 | AG183: 2.94 | AH183: -0.206 | AI183: 4.35 | AJ183: -0.153 | AK183: 6 | AL183: 40 | AM183: 43 | AN183: 13 | AO183: 12 | AP183: 11 | AQ183: 8 | AR183: 5 | AS183: 4 | AT183: 31 | AU183: 31 | AV183: 4 | AW183: 4 | AX183: 4 | AY183: 4 | AZ183: 4 | BA183: 0.003145231707 | BB183: 0.003145231707 | BC183: 0.003145231707 | BD183: 0.003145231707 | BE183: 0.003145231707 | BF183: 0.003145231707 | BG183: 0.003145231707 | BH183: 0.003145231707 | BI183: 0.003145231707 | BJ183: 0.003145231707 | BK183: 0.003145231707 | BL183: 0.003145231707 | BM183: 0.003145231707 | BN183: 0.003145231707 | BO183: 0.003145231707 | BP183: 0.003145231707 | BQ183: 0.003145231707 | BR183: 0.003145231707 | BS183: 0.003145231707 | BT183: 0.003145231707 | BU183: 0.003145231707 | BV183: 0.003145231707 | BW183: 0.003145231707 | BX183: 0.003145231707 | BY183: 0.003145231707 | BZ183: 0.003145231707 | CA183: 0.003145231707 | CB183: 0.003145231707 | CC183: 0.003145231707
A184: 4 | B184: 221 | C184: 10 | D184: 101 | E184: 93 | F184: 0.2435 | G184: 330798.7661 | H184: 0 | I184: 0 | J184: 0 | K184: 330798.7661 | L184: 42.11860703 | M184: 70349283.67 | N184: 448314.4625 | O184: 39559782.83 | P184: 110357381 | Q184: 35.12784538 | R184: 1.199009122 | S184: 1 | T184: 0 | U184: 2 | V184: 0 | W184: 0 | X184: 3 | Y184: 0 | Z184: 0 | AA184: 0 | AB184: 1 | AC184: 10 | AD184: -0.0568 | AE184: 1.02 | AF184: -0.2446 | AG184: 2.94 | AH184: -0.206 | AI184: 4.35 | AJ184: -0.153 | AK184: 7 | AL184: 8 | AM184: 11 | AN184: 15 | AO184: 14 | AP184: 0 | AQ184: 0 | AR184: 0 | AS184: 4 | AT184: 4 | AU184: 4 | AV184: 4 | AW184: 4 | AX184: 0 | AY184: 0 | AZ184: 0 | BA184: 0.003145231707 | BB184: 0.003145231707 | BC184: 0.003145231707 | BD184: 0.003145231707 | BE184: 0.003145231707 | BF184: 0.003145231707 | BG184: 0.003145231707 | BH184: 0.003145231707 | BI184: 0.003145231707 | BJ184: 0.003145231707 | BK184: 0.003145231707 | BL184: 0.003145231707 | BM184: 0.003145231707 | BN184: 0.003145231707 | BO184: 0.003145231707 | BP184: 0.003145231707 | BQ184: 0.003145231707 | BR184: 0.003145231707 | BS184: 0.003145231707 | BT184: 0.003145231707 | BU184: 0.003145231707 | BV184: 0.003145231707 | BW184: 0.003145231707 | BX184: 0.003145231707 | BY184: 0.003145231707 | BZ184: 0.003145231707 | CA184: 0.003145231707 | CB184: 0.003145231707 | CC184: 0.003145231707
A185: 4 | B185: 220 | C185: 11 | D185: 101 | E185: 93 | F185: 0.2435 | G185: 309827.7136 | H185: 0 | I185: 0 | J185: 0 | K185: 309827.7136 | L185: 39.44848971 | M185: 70349283.67 | N185: 448314.4625 | O185: 39559782.83 | P185: 110357381 | Q185: 35.12784538 | R185: 1.122997704 | S185: 1 | T185: 0 | U185: 2 | V185: 0 | W185: 0 | X185: 3 | Y185: 0 | Z185: 0 | AA185: 0 | AB185: 1 | AC185: 10 | AD185: -0.0568 | AE185: 1.02 | AF185: -0.2446 | AG185: 2.94 | AH185: -0.206 | AI185: 4.35 | AJ185: -0.153 | AK185: 8 | AL185: 9 | AM185: 12 | AN185: 16 | AO185: 15 | AP185: 14 | AQ185: 10 | AR185: 7 | AS185: 4 | AT185: 4 | AU185: 4 | AV185: 4 | AW185: 4 | AX185: 4 | AY185: 4 | AZ185: 4 | BA185: 0.003145231707 | BB185: 0.003145231707 | BC185: 0.003145231707 | BD185: 0.003145231707 | BE185: 0.003145231707 | BF185: 0.003145231707 | BG185: 0.003145231707 | BH185: 0.003145231707 | BI185: 0.003145231707 | BJ185: 0.003145231707 | BK185: 0.003145231707 | BL185: 0.003145231707 | BM185: 0.003145231707 | BN185: 0.003145231707 | BO185: 0.003145231707 | BP185: 0.003145231707 | BQ185: 0.003145231707 | BR185: 0.003145231707 | BS185: 0.003145231707 | BT185: 0.003145231707 | BU185: 0.003145231707 | BV185: 0.003145231707 | BW185: 0.003145231707 | BX185: 0.003145231707 | BY185: 0.003145231707 | BZ185: 0.003145231707 | CA185: 0.003145231707 | CB185: 0.003145231707 | CC185: 0.003145231707
A186: 4 | B186: 129 | C186: 12 | D186: 102 | E186: 94 | F186: 0.1795 | G186: 48694.79211 | H186: 0 | I186: 0 | J186: 0 | K186: 48694.79211 | L186: 6.200013494 | M186: 32067320.7 | N186: 54135.66276 | O186: 41899022.22 | P186: 74020478.59 | Q186: 23.56145011 | R186: 0.2631422711 | S186: 1 | T186: 0 | U186: 2 | V186: 0 | W186: 0 | X186: 3 | Y186: 0 | Z186: 0 | AA186: 0 | AB186: 1 | AC186: 10 | AD186: -0.0568 | AE186: 1.02 | AF186: -0.2446 | AG186: 2.94 | AH186: -0.206 | AI186: 4.35 | AJ186: -0.153 | AK186: 9 | AL186: 43 | AM186: 13 | AN186: 17 | AO186: 16 | AP186: 15 | AQ186: 11 | AR186: 8 | AS186: 4 | AT186: 31 | AU186: 4 | AV186: 4 | AW186: 4 | AX186: 4 | AY186: 4 | AZ186: 4 | BA186: 0.003145231707 | BB186: 0.003145231707 | BC186: 0.003145231707 | BD186: 0.003145231707 | BE186: 0.003145231707 | BF186: 0.003145231707 | BG186: 0.003145231707 | BH186: 0.003145231707 | BI186: 0.003145231707 | BJ186: 0.003145231707 | BK186: 0.003145231707 | BL186: 0.003145231707 | BM186: 0.003145231707 | BN186: 0.003145231707 | BO186: 0.003145231707 | BP186: 0.003145231707 | BQ186: 0.003145231707 | BR186: 0.003145231707 | BS186: 0.003145231707 | BT186: 0.003145231707 | BU186: 0.003145231707 | BV186: 0.003145231707 | BW186: 0.003145231707 | BX186: 0.003145231707 | BY186: 0.003145231707 | BZ186: 0.003145231707 | CA186: 0.003145231707 | CB186: 0.003145231707 | CC186: 0.003145231707
A187: 4 | B187: 128 | C187: 13 | D187: 102 | E187: 94 | F187: 0.1795 | G187: 40439.43513 | H187: 0 | I187: 0 | J187: 0 | K187: 40439.43513 | L187: 5.148908797 | M187: 32067320.7 | N187: 54135.66276 | O187: 41899022.22 | P187: 74020478.59 | Q187: 23.56145011 | R187: 0.2185310655 | S187: 1 | T187: 0 | U187: 2 | V187: 0 | W187: 0 | X187: 3 | Y187: 0 | Z187: 0 | AA187: 0 | AB187: 1 | AC187: 10 | AD187: -0.0568 | AE187: 1.02 | AF187: -0.2446 | AG187: 2.94 | AH187: -0.206 | AI187: 4.35 | AJ187: -0.153 | AK187: 43 | AL187: 44 | AM187: 46 | AN187: 18 | AO187: 17 | AP187: 16 | AQ187: 12 | AR187: 9 | AS187: 31 | AT187: 31 | AU187: 31 | AV187: 4 | AW187: 4 | AX187: 4 | AY187: 4 | AZ187: 4 | BA187: 0.003145231707 | BB187: 0.003145231707 | BC187: 0.003145231707 | BD187: 0.003145231707 | BE187: 0.003145231707 | BF187: 0.003145231707 | BG187: 0.003145231707 | BH187: 0.003145231707 | BI187: 0.003145231707 | BJ187: 0.003145231707 | BK187: 0.003145231707 | BL187: 0.003145231707 | BM187: 0.003145231707 | BN187: 0.003145231707 | BO187: 0.003145231707 | BP187: 0.003145231707 | BQ187: 0.003145231707 | BR187: 0.003145231707 | BS187: 0.003145231707 | BT187: 0.003145231707 | BU187: 0.003145231707 | BV187: 0.003145231707 | BW187: 0.003145231707 | BX187: 0.003145231707 | BY187: 0.003145231707 | BZ187: 0.003145231707 | CA187: 0.003145231707 | CB187: 0.003145231707 | CC187: 0.003145231707
A188: 4 | B188: 218 | C188: 14 | D188: 101 | E188: 93 | F188: 0.2435 | G188: 104590.9997 | H188: 0 | I188: 0 | J188: 0 | K188: 104590.9997 | L188: 13.31693968 | M188: 70349283.67 | N188: 448314.4625 | O188: 39559782.83 | P188: 110357381 | Q188: 35.12784538 | R188: 0.3790992457 | S188: 1 | T188: 0 | U188: 2 | V188: 0 | W188: 0 | X188: 3 | Y188: 0 | Z188: 0 | AA188: 0 | AB188: 1 | AC188: 10 | AD188: -0.0568 | AE188: 1.02 | AF188: -0.2446 | AG188: 2.94 | AH188: -0.206 | AI188: 4.35 | AJ188: -0.153 | AK188: 10 | AL188: 11 | AM188: 15 | AN188: 21 | AO188: 20 | AP188: 19 | AQ188: 0 | AR188: 0 | AS188: 4 | AT188: 4 | AU188: 4 | AV188: 4 | AW188: 4 | AX188: 4 | AY188: 0 | AZ188: 0 | BA188: 0.003145231707 | BB188: 0.003145231707 | BC188: 0.003145231707 | BD188: 0.003145231707 | BE188: 0.003145231707 | BF188: 0.003145231707 | BG188: 0.003145231707 | BH188: 0.003145231707 | BI188: 0.003145231707 | BJ188: 0.003145231707 | BK188: 0.003145231707 | BL188: 0.003145231707 | BM188: 0.003145231707 | BN188: 0.003145231707 | BO188: 0.003145231707 | BP188: 0.003145231707 | BQ188: 0.003145231707 | BR188: 0.003145231707 | BS188: 0.003145231707 | BT188: 0.003145231707 | BU188: 0.003145231707 | BV188: 0.003145231707 | BW188: 0.003145231707 | BX188: 0.003145231707 | BY188: 0.003145231707 | BZ188: 0.003145231707 | CA188: 0.003145231707 | CB188: 0.003145231707 | CC188: 0.003145231707
A189: 4 | B189: 217 | C189: 15 | D189: 101 | E189: 93 | F189: 0.2435 | G189: 49540.4325 | H189: 0 | I189: 0 | J189: 0 | K189: 49540.4325 | L189: 6.307683772 | M189: 70349283.67 | N189: 448314.4625 | O189: 39559782.83 | P189: 110357381 | Q189: 35.12784538 | R189: 0.1795636397 | S189: 1 | T189: 0 | U189: 2 | V189: 0 | W189: 0 | X189: 3 | Y189: 0 | Z189: 0 | AA189: 0 | AB189: 1 | AC189: 10 | AD189: -0.0568 | AE189: 1.02 | AF189: -0.2446 | AG189: 2.94 | AH189: -0.206 | AI189: 4.35 | AJ189: -0.153 | AK189: 11 | AL189: 12 | AM189: 16 | AN189: 22 | AO189: 21 | AP189: 20 | AQ189: 14 | AR189: 10 | AS189: 4 | AT189: 4 | AU189: 4 | AV189: 4 | AW189: 4 | AX189: 4 | AY189: 4 | AZ189: 4 | BA189: 0.003145231707 | BB189: 0.003145231707 | BC189: 0.003145231707 | BD189: 0.003145231707 | BE189: 0.003145231707 | BF189: 0.003145231707 | BG189: 0.003145231707 | BH189: 0.003145231707 | BI189: 0.003145231707 | BJ189: 0.003145231707 | BK189: 0.003145231707 | BL189: 0.003145231707 | BM189: 0.003145231707 | BN189: 0.003145231707 | BO189: 0.003145231707 | BP189: 0.003145231707 | BQ189: 0.003145231707 | BR189: 0.003145231707 | BS189: 0.003145231707 | BT189: 0.003145231707 | BU189: 0.003145231707 | BV189: 0.003145231707 | BW189: 0.003145231707 | BX189: 0.003145231707 | BY189: 0.003145231707 | BZ189: 0.003145231707 | CA189: 0.003145231707 | CB189: 0.003145231707 | CC189: 0.003145231707
A190: 4 | B190: 121 | C190: 16 | D190: 102 | E190: 94 | F190: 0.1795 | G190: 37928.42208 | H190: 0 | I190: 0 | J190: 0 | K190: 37928.42208 | L190: 4.829196686 | M190: 32067320.7 | N190: 54135.66276 | O190: 41899022.22 | P190: 74020478.59 | Q190: 23.56145011 | R190: 0.2049617771 | S190: 1 | T190: 0 | U190: 2 | V190: 0 | W190: 0 | X190: 3 | Y190: 0 | Z190: 0 | AA190: 0 | AB190: 1 | AC190: 10 | AD190: -0.0568 | AE190: 1.02 | AF190: -0.2446 | AG190: 2.94 | AH190: -0.206 | AI190: 4.35 | AJ190: -0.153 | AK190: 12 | AL190: 13 | AM190: 17 | AN190: 23 | AO190: 22 | AP190: 21 | AQ190: 15 | AR190: 11 | AS190: 4 | AT190: 4 | AU190: 4 | AV190: 4 | AW190: 4 | AX190: 4 | AY190: 4 | AZ190: 4 | BA190: 0.003145231707 | BB190: 0.003145231707 | BC190: 0.003145231707 | BD190: 0.003145231707 | BE190: 0.003145231707 | BF190: 0.003145231707 | BG190: 0.003145231707 | BH190: 0.003145231707 | BI190: 0.003145231707 | BJ190: 0.003145231707 | BK190: 0.003145231707 | BL190: 0.003145231707 | BM190: 0.003145231707 | BN190: 0.003145231707 | BO190: 0.003145231707 | BP190: 0.003145231707 | BQ190: 0.003145231707 | BR190: 0.003145231707 | BS190: 0.003145231707 | BT190: 0.003145231707 | BU190: 0.003145231707 | BV190: 0.003145231707 | BW190: 0.003145231707 | BX190: 0.003145231707 | BY190: 0.003145231707 | BZ190: 0.003145231707 | CA190: 0.003145231707 | CB190: 0.003145231707 | CC190: 0.003145231707
A191: 4 | B191: 120 | C191: 17 | D191: 102 | E191: 94 | F191: 0.1795 | G191: 22213.60494 | H191: 0 | I191: 0 | J191: 0 | K191: 22213.60494 | L191: 2.828324024 | M191: 32067320.7 | N191: 54135.66276 | O191: 41899022.22 | P191: 74020478.59 | Q191: 23.56145011 | R191: 0.1200403205 | S191: 1 | T191: 0 | U191: 2 | V191: 0 | W191: 0 | X191: 3 | Y191: 0 | Z191: 0 | AA191: 0 | AB191: 1 | AC191: 10 | AD191: -0.0568 | AE191: 1.02 | AF191: -0.2446 | AG191: 2.94 | AH191: -0.206 | AI191: 4.35 | AJ191: -0.153 | AK191: 13 | AL191: 46 | AM191: 18 | AN191: 24 | AO191: 23 | AP191: 22 | AQ191: 16 | AR191: 12 | AS191: 4 | AT191: 31 | AU191: 4 | AV191: 4 | AW191: 4 | AX191: 4 | AY191: 4 | AZ191: 4 | BA191: 0.003145231707 | BB191: 0.003145231707 | BC191: 0.003145231707 | BD191: 0.003145231707 | BE191: 0.003145231707 | BF191: 0.003145231707 | BG191: 0.003145231707 | BH191: 0.003145231707 | BI191: 0.003145231707 | BJ191: 0.003145231707 | BK191: 0.003145231707 | BL191: 0.003145231707 | BM191: 0.003145231707 | BN191: 0.003145231707 | BO191: 0.003145231707 | BP191: 0.003145231707 | BQ191: 0.003145231707 | BR191: 0.003145231707 | BS191: 0.003145231707 | BT191: 0.003145231707 | BU191: 0.003145231707 | BV191: 0.003145231707 | BW191: 0.003145231707 | BX191: 0.003145231707 | BY191: 0.003145231707 | BZ191: 0.003145231707 | CA191: 0.003145231707 | CB191: 0.003145231707 | CC191: 0.003145231707
A192: 4 | B192: 119 | C192: 18 | D192: 102 | E192: 94 | F192: 0.1795 | G192: 17813.37324 | H192: 0 | I192: 0 | J192: 0 | K192: 17813.37324 | L192: 2.268069123 | M192: 32067320.7 | N192: 54135.66276 | O192: 41899022.22 | P192: 74020478.59 | Q192: 23.56145011 | R192: 0.0962618647 | S192: 1 | T192: 0 | U192: 2 | V192: 0 | W192: 0 | X192: 3 | Y192: 0 | Z192: 0 | AA192: 0 | AB192: 1 | AC192: 10 | AD192: -0.0568 | AE192: 1.02 | AF192: -0.2446 | AG192: 2.94 | AH192: -0.206 | AI192: 4.35 | AJ192: -0.153 | AK192: 46 | AL192: 49 | AM192: 50 | AN192: 51 | AO192: 24 | AP192: 23 | AQ192: 17 | AR192: 13 | AS192: 31 | AT192: 23 | AU192: 23 | AV192: 23 | AW192: 4 | AX192: 4 | AY192: 4 | AZ192: 4 | BA192: 0.003145231707 | BB192: 0.003145231707 | BC192: 0.003145231707 | BD192: 0.003145231707 | BE192: 0.003145231707 | BF192: 0.003145231707 | BG192: 0.003145231707 | BH192: 0.003145231707 | BI192: 0.003145231707 | BJ192: 0.003145231707 | BK192: 0.003145231707 | BL192: 0.003145231707 | BM192: 0.003145231707 | BN192: 0.003145231707 | BO192: 0.003145231707 | BP192: 0.003145231707 | BQ192: 0.003145231707 | BR192: 0.003145231707 | BS192: 0.003145231707 | BT192: 0.003145231707 | BU192: 0.003145231707 | BV192: 0.003145231707 | BW192: 0.003145231707 | BX192: 0.003145231707 | BY192: 0.003145231707 | BZ192: 0.003145231707 | CA192: 0.003145231707 | CB192: 0.003145231707 | CC192: 0.003145231707
A193: 4 | B193: 215 | C193: 19 | D193: 101 | E193: 93 | F193: 0.2435 | G193: 85743.37511 | H193: 0 | I193: 0 | J193: 0 | K193: 85743.37511 | L193: 10.91718559 | M193: 70349283.67 | N193: 448314.4625 | O193: 39559782.83 | P193: 110357381 | Q193: 35.12784538 | R193: 0.3107843784 | S193: 1 | T193: 0 | U193: 2 | V193: 0 | W193: 0 | X193: 3 | Y193: 0 | Z193: 0 | AA193: 0 | AB193: 1 | AC193: 10 | AD193: -0.0568 | AE193: 1.02 | AF193: -0.2446 | AG193: 2.94 | AH193: -0.206 | AI193: 4.35 | AJ193: -0.153 | AK193: 0 | AL193: 14 | AM193: 20 | AN193: 27 | AO193: 26 | AP193: 25 | AQ193: 0 | AR193: 0 | AS193: 0 | AT193: 4 | AU193: 4 | AV193: 4 | AW193: 4 | AX193: 4 | AY193: 0 | AZ193: 0 | BA193: 0.003145231707 | BB193: 0.003145231707 | BC193: 0.003145231707 | BD193: 0.003145231707 | BE193: 0.003145231707 | BF193: 0.003145231707 | BG193: 0.003145231707 | BH193: 0.003145231707 | BI193: 0.003145231707 | BJ193: 0.003145231707 | BK193: 0.003145231707 | BL193: 0.003145231707 | BM193: 0.003145231707 | BN193: 0.003145231707 | BO193: 0.003145231707 | BP193: 0.003145231707 | BQ193: 0.003145231707 | BR193: 0.003145231707 | BS193: 0.003145231707 | BT193: 0.003145231707 | BU193: 0.003145231707 | BV193: 0.003145231707 | BW193: 0.003145231707 | BX193: 0.003145231707 | BY193: 0.003145231707 | BZ193: 0.003145231707 | CA193: 0.003145231707 | CB193: 0.003145231707 | CC193: 0.003145231707
A194: 4 | B194: 214 | C194: 20 | D194: 101 | E194: 93 | F194: 0.2435 | G194: 80607.35337 | H194: 0 | I194: 0 | J194: 0 | K194: 80607.35337 | L194: 10.26324699 | M194: 70349283.67 | N194: 448314.4625 | O194: 39559782.83 | P194: 110357381 | Q194: 35.12784538 | R194: 0.2921684174 | S194: 1 | T194: 0 | U194: 2 | V194: 0 | W194: 0 | X194: 3 | Y194: 0 | Z194: 0 | AA194: 0 | AB194: 1 | AC194: 10 | AD194: -0.0568 | AE194: 1.02 | AF194: -0.2446 | AG194: 2.94 | AH194: -0.206 | AI194: 4.35 | AJ194: -0.153 | AK194: 14 | AL194: 15 | AM194: 21 | AN194: 28 | AO194: 27 | AP194: 26 | AQ194: 19 | AR194: 0 | AS194: 4 | AT194: 4 | AU194: 4 | AV194: 4 | AW194: 4 | AX194: 4 | AY194: 4 | AZ194: 0 | BA194: 0.003145231707 | BB194: 0.003145231707 | BC194: 0.003145231707 | BD194: 0.003145231707 | BE194: 0.003145231707 | BF194: 0.003145231707 | BG194: 0.003145231707 | BH194: 0.003145231707 | BI194: 0.003145231707 | BJ194: 0.003145231707 | BK194: 0.003145231707 | BL194: 0.003145231707 | BM194: 0.003145231707 | BN194: 0.003145231707 | BO194: 0.003145231707 | BP194: 0.003145231707 | BQ194: 0.003145231707 | BR194: 0.003145231707 | BS194: 0.003145231707 | BT194: 0.003145231707 | BU194: 0.003145231707 | BV194: 0.003145231707 | BW194: 0.003145231707 | BX194: 0.003145231707 | BY194: 0.003145231707 | BZ194: 0.003145231707 | CA194: 0.003145231707 | CB194: 0.003145231707 | CC194: 0.003145231707
A195: 4 | B195: 213 | C195: 21 | D195: 101 | E195: 93 | F195: 0.2435 | G195: 26432.47994 | H195: 0 | I195: 0 | J195: 0 | K195: 26432.47994 | L195: 3.365487873 | M195: 70349283.67 | N195: 448314.4625 | O195: 39559782.83 | P195: 110357381 | Q195: 35.12784538 | R195: 0.09580684033 | S195: 1 | T195: 0 | U195: 2 | V195: 0 | W195: 0 | X195: 3 | Y195: 0 | Z195: 0 | AA195: 0 | AB195: 1 | AC195: 10 | AD195: -0.0568 | AE195: 1.02 | AF195: -0.2446 | AG195: 2.94 | AH195: -0.206 | AI195: 4.35 | AJ195: -0.153 | AK195: 15 | AL195: 16 | AM195: 22 | AN195: 29 | AO195: 28 | AP195: 27 | AQ195: 20 | AR195: 14 | AS195: 4 | AT195: 4 | AU195: 4 | AV195: 4 | AW195: 4 | AX195: 4 | AY195: 4 | AZ195: 4 | BA195: 0.003145231707 | BB195: 0.003145231707 | BC195: 0.003145231707 | BD195: 0.003145231707 | BE195: 0.003145231707 | BF195: 0.003145231707 | BG195: 0.003145231707 | BH195: 0.003145231707 | BI195: 0.003145231707 | BJ195: 0.003145231707 | BK195: 0.003145231707 | BL195: 0.003145231707 | BM195: 0.003145231707 | BN195: 0.003145231707 | BO195: 0.003145231707 | BP195: 0.003145231707 | BQ195: 0.003145231707 | BR195: 0.003145231707 | BS195: 0.003145231707 | BT195: 0.003145231707 | BU195: 0.003145231707 | BV195: 0.003145231707 | BW195: 0.003145231707 | BX195: 0.003145231707 | BY195: 0.003145231707 | BZ195: 0.003145231707 | CA195: 0.003145231707 | CB195: 0.003145231707 | CC195: 0.003145231707
A196: 4 | B196: 113 | C196: 22 | D196: 102 | E196: 94 | F196: 0.1795 | G196: 16580.14768 | H196: 0 | I196: 0 | J196: 0 | K196: 16580.14768 | L196: 2.111049968 | M196: 32067320.7 | N196: 54135.66276 | O196: 41899022.22 | P196: 74020478.59 | Q196: 23.56145011 | R196: 0.08959762483 | S196: 1 | T196: 0 | U196: 2 | V196: 0 | W196: 0 | X196: 3 | Y196: 0 | Z196: 0 | AA196: 0 | AB196: 1 | AC196: 10 | AD196: -0.0568 | AE196: 1.02 | AF196: -0.2446 | AG196: 2.94 | AH196: -0.206 | AI196: 4.35 | AJ196: -0.153 | AK196: 16 | AL196: 17 | AM196: 23 | AN196: 30 | AO196: 29 | AP196: 28 | AQ196: 21 | AR196: 15 | AS196: 4 | AT196: 4 | AU196: 4 | AV196: 4 | AW196: 4 | AX196: 4 | AY196: 4 | AZ196: 4 | BA196: 0.003145231707 | BB196: 0.003145231707 | BC196: 0.003145231707 | BD196: 0.003145231707 | BE196: 0.003145231707 | BF196: 0.003145231707 | BG196: 0.003145231707 | BH196: 0.003145231707 | BI196: 0.003145231707 | BJ196: 0.003145231707 | BK196: 0.003145231707 | BL196: 0.003145231707 | BM196: 0.003145231707 | BN196: 0.003145231707 | BO196: 0.003145231707 | BP196: 0.003145231707 | BQ196: 0.003145231707 | BR196: 0.003145231707 | BS196: 0.003145231707 | BT196: 0.003145231707 | BU196: 0.003145231707 | BV196: 0.003145231707 | BW196: 0.003145231707 | BX196: 0.003145231707 | BY196: 0.003145231707 | BZ196: 0.003145231707 | CA196: 0.003145231707 | CB196: 0.003145231707 | CC196: 0.003145231707
A197: 4 | B197: 112 | C197: 23 | D197: 102 | E197: 94 | F197: 0.1795 | G197: 15017.37108 | H197: 0 | I197: 0 | J197: 0 | K197: 15017.37108 | L197: 1.912071072 | M197: 32067320.7 | N197: 54135.66276 | O197: 41899022.22 | P197: 74020478.59 | Q197: 23.56145011 | R197: 0.08115252088 | S197: =IF(R197<=2,1,0) -> 1 | T197: =IF(R197>2,1,0) -> 0 | U197: =IF(R197<=6,2,0) -> 2 | V197: 0 | W197: =IF(R197>6,1,0) -> 0 | X197: =IF(R197<=10,3,0) -> 3 | Y197: 0 | Z197: =IF(R197>10,4,0) -> 0 | AA197: 0 | AB197: 1 | AC197: 10 | AD197: -0.0568 | AE197: 1.02 | AF197: -0.2446 | AG197: 2.94 | AH197: -0.206 | AI197: 4.35 | AJ197: -0.153 | AK197: 17 | AL197: 18 | AM197: 24 | AN197: 31 | AO197: 30 | AP197: 29 | AQ197: 22 | AR197: 16 | AS197: 4 | AT197: 4 | AU197: 4 | AV197: 4 | AW197: 4 | AX197: 4 | AY197: 4 | AZ197: 4 | BA197: 0.003145231707 | BB197: 0.003145231707 | BC197: 0.003145231707 | BD197: 0.003145231707 | BE197: 0.003145231707 | BF197: 0.003145231707 | BG197: 0.003145231707 | BH197: 0.003145231707 | BI197: 0.003145231707 | BJ197: 0.003145231707 | BK197: 0.003145231707 | BL197: 0.003145231707 | BM197: 0.003145231707 | BN197: 0.003145231707 | BO197: 0.003145231707 | BP197: 0.003145231707 | BQ197: 0.003145231707 | BR197: 0.003145231707 | BS197: 0.003145231707 | BT197: 0.003145231707 | BU197: 0.003145231707 | BV197: 0.003145231707 | BW197: 0.003145231707 | BX197: 0.003145231707 | BY197: 0.003145231707 | BZ197: 0.003145231707 | CA197: 0.003145231707 | CB197: 0.003145231707 | CC197: 0.003145231707
A198: 4 | B198: 111 | C198: 24 | D198: 102 | E198: 94 | F198: 0.1795 | G198: 14926.17457 | H198: 0 | I198: 0 | J198: 0 | K198: 14926.17457 | L198: =K198/(PI()*50^2) -> 1.900459572 | M198: 32067320.7 | N198: 54135.66276 | O198: 41899022.22 | P198: =SUM(M198:O198) -> 74020478.59 | Q198: =P198/(PI()*1000^2) -> 23.56145011 | R198: 0.08065970314 | S198: 1 | T198: 0 | U198: 2 | V198: =T198*U198 -> 0 | W198: 0 | X198: 3 | Y198: =W198*X198 -> 0 | Z198: 0 | AA198: =IF(Z198=4,AB198,0) -> 0 | AB198: 1 | AC198: 10 | AD198: -0.0568 | AE198: 1.02 | AF198: -0.2446 | AG198: 2.94 | AH198: -0.206 | AI198: 4.35 | AJ198: -0.153 | AK198: 18 | AL198: 50 | AM198: 51 | AN198: 52 | AO198: 31 | AP198: 30 | AQ198: 23 | AR198: 17 | AS198: 4 | AT198: 23 | AU198: 23 | AV198: 23 | AW198: 4 | AX198: 4 | AY198: 4 | AZ198: 4 | BA198: 0.003145231707 | BB198: 0.003145231707 | BC198: 0.003145231707 | BD198: 0.003145231707 | BE198: 0.003145231707 | BF198: 0.003145231707 | BG198: 0.003145231707 | BH198: 0.003145231707 | BI198: 0.003145231707 | BJ198: 0.003145231707 | BK198: 0.003145231707 | BL198: 0.003145231707 | BM198: 0.003145231707 | BN198: 0.003145231707 | BO198: 0.003145231707 | BP198: 0.003145231707 | BQ198: 0.003145231707 | BR198: 0.003145231707 | BS198: 0.003145231707 | BT198: 0.003145231707 | BU198: 0.003145231707 | BV198: 0.003145231707 | BW198: 0.003145231707 | BX198: 0.003145231707 | BY198: 0.003145231707 | BZ198: 0.003145231707 | CA198: 0.003145231707 | CB198: 0.003145231707 | CC198: 0.003145231707
A199: 4 | B199: 211 | C199: 25 | D199: 110 | E199: 102 | F199: 0.5885 | G199: 42280.98288 | H199: 0 | I199: 0 | J199: 0 | K199: 42280.98288 | L199: 5.383381939 | M199: 67731347.89 | N199: 0 | O199: 36826190.55 | P199: 104557538.4 | Q199: 33.28169816 | R199: 0.161752021 | S199: 1 | T199: 0 | U199: 2 | V199: 0 | W199: 0 | X199: 3 | Y199: 0 | Z199: 0 | AA199: 0 | AB199: 1 | AC199: 10 | AD199: -0.0568 | AE199: 1.02 | AF199: -0.2446 | AG199: 2.94 | AH199: -0.206 | AI199: 4.35 | AJ199: -0.153 | AK199: 0 | AL199: 19 | AM199: 26 | AN199: 36 | AO199: 35 | AP199: 34 | AQ199: 0 | AR199: 0 | AS199: 0 | AT199: 4 | AU199: 4 | AV199: 4 | AW199: 4 | AX199: 4 | AY199: 0 | AZ199: 0 | BA199: 0.003145231707 | BB199: 0.003145231707 | BC199: 0.003145231707 | BD199: 0.003145231707 | BE199: 0.003145231707 | BF199: 0.003145231707 | BG199: 0.003145231707 | BH199: 0.003145231707 | BI199: 0.003145231707 | BJ199: 0.003145231707 | BK199: 0.003145231707 | BL199: 0.003145231707 | BM199: 0.003145231707 | BN199: 0.003145231707 | BO199: 0.003145231707 | BP199: 0.003145231707 | BQ199: 0.003145231707 | BR199: 0.003145231707 | BS199: 0.003145231707 | BT199: 0.003145231707 | BU199: 0.003145231707 | BV199: 0.003145231707 | BW199: 0.003145231707 | BX199: 0.003145231707 | BY199: 0.003145231707 | BZ199: 0.003145231707 | CA199: 0.003145231707 | CB199: 0.003145231707 | CC199: 0.003145231707
A200: 4 | B200: 210 | C200: 26 | D200: 110 | E200: 102 | F200: 0.5885 | G200: 88589.12082 | H200: 0 | I200: 0 | J200: 0 | K200: 88589.12082 | L200: 11.27951719 | M200: 67731347.89 | N200: 0 | O200: 36826190.55 | P200: 104557538.4 | Q200: 33.28169816 | R200: 0.3389105066 | S200: 1 | T200: 0 | U200: 2 | V200: 0 | W200: 0 | X200: 3 | Y200: 0 | Z200: 0 | AA200: 0 | AB200: 1 | AC200: 10 | AD200: -0.0568 | AE200: 1.02 | AF200: -0.2446 | AG200: 2.94 | AH200: -0.206 | AI200: 4.35 | AJ200: -0.153 | AK200: 19 | AL200: 20 | AM200: 27 | AN200: 37 | AO200: 36 | AP200: 35 | AQ200: 25 | AR200: 0 | AS200: 4 | AT200: 4 | AU200: 4 | AV200: 4 | AW200: 4 | AX200: 4 | AY200: 4 | AZ200: 0 | BA200: 0.003145231707 | BB200: 0.003145231707 | BC200: 0.003145231707 | BD200: 0.003145231707 | BE200: 0.003145231707 | BF200: 0.003145231707 | BG200: 0.003145231707 | BH200: 0.003145231707 | BI200: 0.003145231707 | BJ200: 0.003145231707 | BK200: 0.003145231707 | BL200: 0.003145231707 | BM200: 0.003145231707 | BN200: 0.003145231707 | BO200: 0.003145231707 | BP200: 0.003145231707 | BQ200: 0.003145231707 | BR200: 0.003145231707 | BS200: 0.003145231707 | BT200: 0.003145231707 | BU200: 0.003145231707 | BV200: 0.003145231707 | BW200: 0.003145231707 | BX200: 0.003145231707 | BY200: 0.003145231707 | BZ200: 0.003145231707 | CA200: 0.003145231707 | CB200: 0.003145231707 | CC200: 0.003145231707
... 924 more rows

Sheet Cálculos&Supuestos
B2: GENERALES
B4: Variables | D4: Valores | E4: Fuente | G4: Contaminante | H4: Velocidad de decaimiento (m/s) | J4: Velocidad de decaimiento efectiva (m/s) | L4: Fuente
B5: MJ por Mwh | D5: 3600 | E5: CFE | G5: PM10 | H5: =0.0067 -> 0.0067 | J5: - | L5: OIEA | N5: Tecnología | P5: Costo Nivelado (pesos/Mwh)
B6: Equivalencia CH4-CO2 | D6: 21 | E6: IPCC | G6: SO2 | H6: =0.0073 -> 0.0073 | J6: - | L6: OIEA
B7: Equivalencia N2O-CO2 | D7: 310 | E7: IPCC | G7: NOx | H7: =0.0147 -> 0.0147 | J7: - | L7: OIEA | N7: =Principal!D13 -> 0 | P7: 1094.4493
B8: Horas al año | D8: 8760 | E8: IMCO | G8: Sulfatos | H8: =0.0173 -> 0.0173 | J8: - | L8: OIEA
B9: Horas por segundo | D9: 0.0002777777778 | E9: IMCO | G9: Nitratos | H9: =0.0071 -> 0.0071 | J9: - | L9: OIEA
B10: Tipo de cambio USD | D10: 13.5 | E10: IMCO | G10: SO2-Sulfatos | H10: - | J10: 0.0173 | L10: OIEA
B11: Inflación anual | D11: 0.05 | E11: IMCO | G11: NOx-Nitratos | H11: - | J11: 0.0071 | L11: OIEA
B12: Tasa de descuento anual | D12: 0.048 | E12: BM (CETES) | G12: Fuente: OIEA
B13: Fuente: IPCC, CFE, BANXICO
B15: Combustible | C15: Unidades (U) | D15: Factor de emisión de gases de efecto invernadero | H15: Fuente | I15: Poder calorífico(MJ/U) | J15: Fuente | K15: Unidades | L15: Factor de emisión de gases dañinos para la salud | S15: Fuente
D16: (tCO2/MJ) | E16: (tCH4/MJ) | F16: (tN2O/MJ) | G16: (tCO2e/MJ) | L16: NOx | M16: SO2 | N16: S (% azufre) | O16: SO2 | P16: PM10 | Q16: A (% ceniza) | R16: PM10
B17: Carbón | C17: kg | D17: 9.46e-05 | E17: 1e-09 | F17: 1.5e-09 | G17: =(D17+E17*$D$6+F17*$D$7) -> 9.5086e-05 | H17: IPCC | I17: 18.5 | J17: CFE | K17: kg/kg | L17: 0.007 | M17: 0.019 | N17: 0.01 | O17: =M17*N17 -> 0.00019 | P17: 0.0011793392 | Q17: 0.08 | R17: =P17*Q17*100 -> 0.0094347136 | S17: EPA-MIT
B18: Combustóleo | C18: l | D18: 7.74e-05 | E18: 3e-09 | F18: 6e-10 | G18: =(D18+E18*$D$6+F18*$D$7) -> 7.7649e-05 | H18: IPCC | I18: 41.68 | J18: CFE | K18: kg/l | L18: 0.00563 | M18: 0.01881 | N18: 0.02 | O18: =M18*N18 -> 0.0003762 | P18: 0.001032 | Q18: - | R18: =P18 -> 0.001032 | S18: EPA-MIT
B19: Gas natural | C19: m3 | D19: 5.61e-05 | E19: 1e-09 | F19: 1e-10 | G19: =(D19+E19*$D$6+F19*$D$7) -> 5.6152e-05 | H19: IPCC | I19: 36.84 | J19: CFE | K19: kg/m3 | L19: 0.00160219 | M19: 9.61e-06 | N19: - | O19: =M19 -> 9.61e-06 | P19: 0.0001216 | Q19: - | R19: =P19 -> 0.0001216 | S19: EPA-MIT
B20: Diesel | C20: l | D20: 7.41e-05 | E20: 3e-09 | F20: 6e-10 | G20: =(D20+E20*$D$6+F20*$D$7) -> 7.4349e-05 | H20: IPCC | I20: 38.69 | J20: CFE | K20: kg/l | L20: 0.00563 | M20: 0.01881 | N20: 0.005 | O20: 9.405e-05 | P20: 0.00012 | Q20: - | R20: =P20 -> 0.00012 | S20: EPA-MIT
B21: Fuente: IPCC, EPA, MIT
B23: Datos de la planta | D23: Costo Nivelado (pesos/Mwh) | E23: Vida útil | F23: Capacidad (Mw) | G23: Autoconsumo (%) | H23: Factor de planta (%) | I23: Altura de la chimenea (m) | J23: Eficiencia neta (%) | K23: Régimen térmico (MJ/Mwh) | L23: Consumo específico | N23: Generación bruta (Mwh) | Q23: Generación neta (Mwh) | T23: Fuente | U23: Disminución de emisiones por filtros instalados (%) | X23: Tasa de emisión (µg/s) | AA23: Fuente
E24: (años) | L24: (U/Mwh) | M24: (U/s) | N24: Anual | O24: Hora | P24: Segundo | Q24: Anual | R24: Hora | S24: Segundo | U24: SO2 | V24: NOX | W24: PM10 | X24: SO2 | Y24: NOX | Z24: PM10
B25: Ciclo combinado | D25: 717.1148764 | E25: 30 | F25: =Principal!I13 -> 0 | G25: 0.021 | H25: 0.8 | I25: 75 | J25: 0.4997307054 | K25: =$D$5/J25 -> 7203.879932 | L25: =K25/I19 -> 195.5450579 | M25: =L25*S25 -> 0 | N25: =F25*H25*$D$8 -> 0 | O25: =F25*H25 -> 0 | P25: =F25*H25*$D$9 -> 0 | Q25: =N25*(1-G25) -> 0 | R25: =O25*(1-G25) -> 0 | S25: =P25*(1-G25) -> 0 | T25: CFE | U25: 0 | V25: 0 | W25: 0 | X25: =M25*$O$19*10^9*(1-U25) -> 0 | Y25: =M25*L19*10^9*(1-V25) -> 0 | Z25: =M25*R19*10^9*(1-W25) -> 0 | AA25: CFE-MIT
B26: Turbogás con gas | D26: 1579.621967 | E26: 30 | F26: =Principal!I13 -> 0 | G26: 0.013 | H26: 0.13 | I26: 75 | J26: 0.3414768999 | K26: =$D$5/J26 -> 10542.4408 | L26: =K26/I19 -> 286.1683169 | M26: =L26*S26 -> 0 | N26: =F26*H26*$D$8 -> 0 | O26: =F26*H26 -> 0 | P26: 0 | Q26: 0 | R26: 0 | S26: =P26*(1-G26) -> 0 | T26: CFE | U26: 0 | V26: 0 | W26: 0 | X26: =M26*$O$19*10^9*(1-U26) -> 0 | Y26: =M26*L19*10^9*(1-V26) -> 0 | Z26: =M26*R19*10^9*(1-W26) -> 0 | AA26: CFE-MIT
B27: Turbogás con diesel | D27: 3530.544281 | E27: 30 | F27: =Principal!I13 -> 0 | G27: 0.016 | H27: 0.13 | I27: 75 | J27: 0.3656 | K27: 9846.827133 | L27: =K27/I20 -> 254.5057414 | M27: 0 | N27: 0 | O27: 0 | P27: 0 | Q27: 0 | R27: 0 | S27: 0 | T27: CFE | U27: 0 | V27: 0 | W27: 0 | X27: =M27*O20*10^9*(1-U27) -> 0 | Y27: =M27*L20*10^9*(1-V27) -> 0 | Z27: =M27*R20*10^9*(1-W27) -> 0 | AA27: CFE-MIT
B28: Combustión interna | D28: 1919.610328 | E28: 30 | F28: =Principal!I13 -> 0 | G28: 0.067 | H28: 0.65 | I28: 75 | J28: 0.4150885127 | K28: 8672.849018 | L28: =K28/I18 -> 208.0817903 | M28: 0 | N28: 0 | O28: 0 | P28: 0 | Q28: 0 | R28: 0 | S28: 0 | T28: CFE | U28: 0 | V28: 0 | W28: 0 | X28: =M28*O18*10^9*(1-U28) -> 0 | Y28: =M28*L18*10^9*(1-V28) -> 0 | Z28: =M28*R18*10^9*(1-W28) -> 0 | AA28: CFE-MIT
B29: Carboeléctrica | D29: 1094.449259 | E29: 30 | F29: =Principal!I13 -> 0 | G29: 0.089 | H29: 0.8 | I29: 75 | J29: 0.373551097 | K29: 9637.235787 | L29: =K29/I17 -> 520.9316642 | M29: 0 | N29: 0 | O29: 0 | P29: 0 | Q29: 0 | R29: 0 | S29: 0 | T29: CFE | U29: 0 | V29: 0 | W29: 0 | X29: =M29*O17*10^9*(1-U29) -> 0 | Y29: =M29*L17*10^9*(1-V29) -> 0 | Z29: =M29*R17*10^9*(1-W29) -> 0 | AA29: CFE-MIT
B30: Termoeléctrica convencional | D30: 1703.939571 | E30: 30 | F30: =Principal!I13 -> 0 | G30: 0.0383 | H30: 0.7 | I30: 75 | J30: 0.3629442091 | K30: 9918.879844 | L30: =K30/I18 -> 237.9769636 | M30: 0 | N30: 0 | O30: 0 | P30: 0 | Q30: 0 | R30: 0 | S30: 0 | T30: CFE | U30: 0 | V30: 0 | W30: 0 | X30: =M30*O18*10^9*(1-U30) -> 0 | Y30: =M30*L18*10^9*(1-V30) -> 0 | Z30: =M30*R18*10^9*(1-W30) -> 0 | AA30: CFE-MIT
B31: Nota: La variable "Disminución de emisiones por filtros instalados" hace referencia a si la planta evaluada cuenta o no con un filtro y si cuenta en cuantificar la disminución de emisiones de los gases evaluados
B32: Fuente: CFE, EPA, MIT
B34: SALUD
B36: Enfermedad | E36: Población en riesgo | F36: Incremento de riesgo relativo | J36: Tasa de incidencia (casos-persona-año) | L36: Fuente | N36: Fracción de población (%) | O36: Fracción de población pérdida de productividad* (%) | Q36: Fuente | R36: Pendiente para costo de tratamiento (casos/(año-receptor-μg/m3) | U36: Pendiente para pérdida de productividad (casos/(año-receptor-μg/m3) | AA36: Costo del tratamiento | AC36: Pérdida de productividad | AF36: Voluntad a pagar | AH36: Fuente | AI36: Total (pesos) | AJ36: Costo por contaminante (pesos) | AN36: COSTO TOTAL (pesos) | AO36: Fuente
F37: PM10 (%/μg/m3) | G37: Sulfatos (%/μg/m3) | H37: Nitratos (%/μg/m3) | I37: SO2 (%/μg/m3) | O37: Adultos < 65 años | P37: Adultos > 65 años | R37: PM10 y Sulfatos | S37: Nitratos | T37: SO2 | U37: PM10 y Sulfatos | V37: Nitratos | W37: SO2 | X37: PM10 y Sulfatos | Y37: Nitratos | Z37: SO2 | AA37: (pesos) | AC37: (días) | AD37: (pesos) | AE37: (pesos) | AF37: (pesos) | AG37: (pesos) | AJ37: PM10 | AK37: Sulfatos | AL37: Nitratos | AM37: SO2
B38: Bronquitis crónica | E38: >= 30 años | F38: 0.36 | G38: =F38 -> 0.36 | H38: =F38/2 -> 0.18 | I38: 0 | J38: 0.007 | L38: CEPAL-SEMARNAT | N38: =J53 -> 0.4336681267 | O38: =J53-J54 -> 0.37189915 | P38: =J54 -> 0.06176897672 | Q38: INEGI | R38: =F38*J38*N38/100 -> 1.092843679e-05 | S38: =H38*J38*N38/100 -> 5.464218397e-06 | T38: =I38*J38*N38/100 -> 0 | U38: =F38*J38*O38/100 -> 9.371858581e-06 | V38: =H38*J38*O38/100 -> 4.68592929e-06 | W38: =I38*J38*O38/100 -> 0 | X38: =F38*J38*P38/100 -> 1.556578213e-06 | Y38: =H38*J38*P38/100 -> 7.782891066e-07 | Z38: =I38*J38*P38/100 -> 0 | AA38: 327021.0073 | AB38: =IF($P$51=TRUE,AA38,0) -> 327021.0073 | AC38: 7 | AD38: =AC38*$E$54 -> 1675.75464 | AE38: =IF($P$52=TRUE, AD38,0) -> 1675.75464 | AF38: 1500371.079 | AG38: =IF($P$53=TRUE,AF38,0) -> 1500371.079 | AH38: CEPAL-SEMARNAT | AI38: =AB38+AE38+AG38 -> 1829067.841 | AJ38: =$H$66*(R38*$AB38+U38*AE38+X38*$E$55*AE38+R38*AG38)*$M$60/$H$5/1000000*$H$89*$H$92*$H$93*$H$94*$H$95*$H$96 -> 75025320.38 | AK38: =$H$66*(R38*AB38+U38*AE38+X38*AE38*$E$55+R38*AG38)*$K$60/$J$10/1000000 -> 457593.7305 | AL38: =$H$66*(S38*AB38+V38*AE38+Y38*AE38*$E$55+S38*AG38)*$L$60/$J$11/1000000 -> 20539140.39 | AM38: =$H$66*(T38*AB38+W38*AE38+Z38*$E$55*AE38+T38*AG38)*$K$60/$H$6/1000000*$H$89*$H$90*$H$93*$H$94*$H$95*$H$96 -> 0 | AN38: =SUM(AJ38:AM38) -> 96022054.49 | AO38: IMCO
B39: Días de actividad restringida | E39: Adultos | F39: 0.26 | G39: 0.26 | H39: 0.13 | I39: 0 | J39: 6.46 | L39: CEPAL-SEMARNAT | N39: =J52 -> 0.5999581721 | O39: =J52-J54 -> 0.5381891954 | P39: =J54 -> 0.06176897672 | Q39: INEGI | R39: 0.01007689746 | S39: 0.005038448729 | T39: 0 | U39: 0.009039425726 | V39: 0.004519712863 | W39: 0 | X39: 0.001037471733 | Y39: 0.0005187358665 | Z39: 0 | AA39: 0 | AB39: 0 | AC39: 1 | AD39: =AC39*$E$54 -> 239.39352 | AE39: 239.39352 | AF39: 377.4146906 | AG39: 377.4146906 | AH39: CEPAL-SEMARNAT | AI39: =AB39+AE39+AG39 -> 616.8082106 | AJ39: 22864438.63 | AK39: 139454.5696 | AL39: 6259432.314 | AM39: 0 | AN39: 29263325.51 | AO39: IMCO
B40: Ingresos hospitalarios (respiratorios) | E40: Población total | F40: 0.04 | G40: 0.04 | H40: 0.02 | I40: 0.04 | J40: 0.0026 | L40: CEPAL-SEMARNAT | N40: 1 | O40: =J52-J54 -> 0.5381891954 | P40: =J54 -> 0.06176897672 | Q40: INEGI | R40: 1.04e-06 | S40: 5.2e-07 | T40: 1.04e-06 | U40: 5.597167632e-07 | V40: 2.798583816e-07 | W40: 5.597167632e-07 | X40: 6.423973578e-08 | Y40: 3.211986789e-08 | Z40: 6.423973578e-08 | AA40: 40338.19343 | AB40: 40338.19343 | AC40: 8 | AD40: 1915.14816 | AE40: 1915.14816 | AF40: 3511.597556 | AG40: 3511.597556 | AH40: CEPAL-SEMARNAT | AI40: 45764.93914 | AJ40: 175433.0347 | AK40: 1069.99952 | AL40: 48027.03553 | AM40: 3299.169068 | AN40: 227829.2388 | AO40: IMCO
B41: Ingresos hospitalarios (cardiovasculares) | E41: >= 65 años | F41: 0.06 | G41: 0.06 | H41: 0.03 | I41: 0 | J41: 0.0021 | L41: CEPAL-SEMARNAT | N41: =J54 -> 0.06176897672 | O41: 0 | P41: =J54 -> 0.06176897672 | Q41: INEGI | R41: 7.782891066e-08 | S41: 3.891445533e-08 | T41: 0 | U41: 0 | V41: 0 | W41: 0 | X41: 7.782891066e-08 | Y41: 3.891445533e-08 | Z41: 0 | AA41: 200646.1716 | AB41: 200646.1716 | AC41: 8 | AD41: 1915.14816 | AE41: 1915.14816 | AF41: 3511.597556 | AG41: 3511.597556 | AH41: CEPAL-SEMARNAT | AI41: 206072.9173 | AJ41: 59922.15688 | AK41: 365.4766573 | AL41: 16404.45634 | AM41: 0 | AN41: 76692.08988 | AO41: IMCO
B42: Visitas a salas de urgencia (respiratorias) | E42: Polación total | F42: 0.311 | G42: 0.311 | H42: 0.1555 | I42: 0 | J42: 0.032 | L42: CEPAL-SEMARNAT | N42: 1 | O42: =J52-J54 -> 0.5381891954 | P42: =J54 -> 0.06176897672 | Q42: INEGI | R42: 9.952e-05 | S42: 4.976e-05 | T42: 0 | U42: 5.356058873e-05 | V42: 2.678029436e-05 | W42: 0 | X42: 6.147248563e-06 | Y42: 3.073624281e-06 | Z42: 0 | AA42: 2560 | AB42: 2560 | AC42: 5 | AD42: 1196.9676 | AE42: 1196.9676 | AF42: 1934.727904 | AG42: 1934.727904 | AH42: CEPAL-SEMARNAT | AI42: 5691.695504 | AJ42: 1933498.317 | AK42: 11792.77481 | AL42: 529319.8773 | AM42: 0 | AN42: 2474610.97 | AO42: IMCO
B43: Crisis aguda de asma | E43: Asmáticos | F43: 0.774 | G43: 0.774 | H43: 0.387 | I43: 0 | J43: 0.1274 | L43: CEPAL-SEMARNAT | N43: 0.056 | O43: 0.056 | P43: 0.056 | Q43: INEGI | R43: 5.5220256e-05 | S43: 2.7610128e-05 | T43: 0 | U43: 5.5220256e-05 | V43: 2.7610128e-05 | W43: 0 | X43: 5.5220256e-05 | Y43: 2.7610128e-05 | Z43: 0 | AA43: 5829.656332 | AB43: 5829.656332 | AC43: 1 | AD43: 239.39352 | AE43: 239.39352 | AF43: 1624.524103 | AG43: 1624.524103 | AH43: CEPAL-SEMARNAT | AI43: 7693.573956 | AJ43: 1619495.051 | AK43: 9877.609026 | AL43: 443357.4696 | AM43: 0 | AN43: 2072730.129 | AO43: IMCO
